Workbook

Sheet M1
C1: 0 | D1: 0.5 | E1: 1 | F1: 1.5 | G1: 2 | H1: 2.5 | I1: 3 | J1: 3.5 | K1: 4 | N1: 0 | O1: 0.1 | P1: 0.2 | Q1: 0.3 | R1: 0.4 | S1: 0.5 | T1: 0.6 | U1: 0.7 | V1: 0.8 | W1: 0.9 | X1: 1 | Y1: 1.1 | Z1: 1.2 | AA1: 1.3 | AB1: 1.4 | AC1: 1.5 | AD1: 1.6 | AE1: 1.7 | AF1: 1.8 | AG1: 1.9 | AH1: 2 | AI1: 2.1 | AJ1: 2.2 | AK1: 2.3 | AL1: 2.4 | AM1: 2.5 | AN1: 2.6 | AO1: 2.7 | AP1: 2.8 | AQ1: 2.9 | AR1: 3 | AS1: 3.1 | AT1: 3.2 | AU1: 3.3 | AV1: 3.4 | AW1: 3.5 | AX1: 3.6 | AY1: 3.7 | AZ1: 3.8 | BA1: 3.9 | BB1: 4 | BF1: 0 | BG1: 0.1 | BH1: 0.2 | BI1: 0.3 | BJ1: 0.4 | BK1: 0.5 | BL1: 0.6 | BM1: 0.7 | BN1: 0.8 | BO1: 0.9 | BP1: 1 | BQ1: 1.1 | BR1: 1.2 | BS1: 1.3 | BT1: 1.4 | BU1: 1.5 | BV1: 1.6 | BW1: 1.7 | BX1: 1.8 | BY1: 1.9 | BZ1: 2 | CA1: 2.1 | CB1: 2.2 | CC1: 2.3 | CD1: 2.4 | CE1: 2.5 | CF1: 2.6 | CG1: 2.7 | CH1: 2.8 | CI1: 2.9 | CJ1: 3 | CK1: 3.1 | CL1: 3.2 | CM1: 3.3 | CN1: 3.4 | CO1: 3.5 | CP1: 3.6 | CQ1: 3.7 | CR1: 3.8 | CS1: 3.9 | CT1: 4 | CY1: 0 | CZ1: 0.1 | DA1: 0.2 | DB1: 0.3 | DC1: 0.4 | DD1: 0.5 | DE1: 0.6 | DF1: 0.7 | DG1: 0.8 | DH1: 0.9 | DI1: 1 | DJ1: 1.1 | DK1: 1.2 | DL1: 1.3 | DM1: 1.4 | DN1: 1.5 | DO1: 1.6 | DP1: 1.7 | DQ1: 1.8 | DR1: 1.9 | DS1: 2 | DT1: 2.1 | DU1: 2.2 | DV1: 2.3 | DW1: 2.4 | DX1: 2.5 | DY1: 2.6 | DZ1: 2.7 | EA1: 2.8 | EB1: 2.9 | EC1: 3 | ED1: 3.1 | EE1: 3.2 | EF1: 3.3 | EG1: 3.4 | EH1: 3.5 | EI1: 3.6 | EJ1: 3.7 | EK1: 3.8 | EL1: 3.9 | EM1: 4 | ER1: =IF(ER2>0,ER2/10-0.1,"") -> 0 | ES1: =IF(ES2>0,ES2/10-0.1,"") -> 0.1 | ET1: 0.2 | EU1: 0.3 | EV1: 0.4 | EW1: 0.5 | EX1: 0.6 | EY1: 0.7 | EZ1: 0.8 | FA1: 0.9 | FB1: 1 | FC1: 1.1 | FD1: 1.2 | FE1: 1.3 | FF1: 1.4 | FG1: 1.5 | FH1: 1.6 | FI1: 1.7 | FJ1: 1.8 | FK1: 1.9 | FL1: 2 | FM1: 2 | FN1: 2.1 | FO1: 2.2 | FP1: 2.3 | FQ1: 2.4 | FR1: 2.5 | FS1: 2.6 | FT1: 2.7 | FU1: 2.8 | FV1: 2.9 | FW1: 3 | FX1: 3.1 | FY1: 3.2 | FZ1: 3.3 | GA1: 3.4 | GB1: 3.5 | GC1: 3.6 | GD1: 3.7 | GE1: 3.8 | GF1: 3.9 | GG1: 4 | GM1: 0 | GN1: 0.1 | GO1: 0.2 | GP1: 0.3 | GQ1: 0.4 | GR1: 0.5 | GS1: 0.6 | GT1: 0.7 | GU1: 0.8 | GV1: 0.9 | GW1: 1 | GX1: 1.1 | GY1: 1.2 | GZ1: 1.3 | HA1: 1.4 | HB1: 1.5 | HC1: 1.6 | HD1: 1.7 | HE1: 1.8 | HF1: 1.9 | HG1: 2 | HH1: 2 | HI1: 2.1 | HJ1: 2.2 | HK1: 2.3 | HL1: 2.4 | HM1: 2.5 | HN1: 2.6 | HO1: 2.7 | HP1: 2.8 | HQ1: 2.9 | HR1: 3 | HS1: 3.1 | HT1: 3.2 | HU1: 3.3 | HV1: 3.4 | HW1: 3.5 | HX1: 3.6 | HY1: 3.7 | HZ1: 3.8 | IA1: 3.9 | IB1: 4 | IH1: =IF(IH2>0,IH2/10-0.1,"") -> 0 | II1: 0.1 | IJ1: 0.2 | IK1: 0.3 | IL1: 0.4 | IM1: 0.5 | IN1: 0.6 | IO1: 0.7 | IP1: 0.8 | IQ1: 0.9 | IR1: 1 | IS1: 1.1 | IT1: 1.2 | IU1: 1.3 | IV1: 1.4 | IW1: 1.5 | IX1: 1.6 | IY1: 1.7 | IZ1: 1.8 | JA1: 1.9 | JB1: 2 | JC1: 2 | JD1: 2.1 | JE1: 2.2 | JF1: 2.3 | JG1: 2.4 | JH1: 2.5 | JI1: 2.6 | JJ1: 2.7 | JK1: 2.8 | JL1: 2.9 | JM1: 3 | JN1: 3.1 | JO1: 3.2 | JP1: 3.3 | JQ1: 3.4 | JR1: 3.5 | JS1: 3.6 | JT1: 3.7 | JU1: 3.8 | JV1: 3.9 | JW1: 4 | KF1: =IF(KF2>0,KF2/10-0.1,"") -> 0 | KG1: 0.1 | KH1: 0.2 | KI1: 0.3 | KJ1: 0.4 | KK1: 0.5 | KL1: 0.6 | KM1: 0.7 | KN1: 0.8 | KO1: 0.9 | KP1: 1 | KQ1: 1.1 | KR1: 1.2 | KS1: 1.3 | KT1: 1.4 | KU1: 1.5 | KV1: 1.6 | KW1: 1.7 | KX1: 1.8 | KY1: 1.9 | KZ1: 2 | LA1: 2 | LB1: 2.1 | LC1: 2.2 | LD1: 2.3 | LE1: 2.4 | LF1: 2.5 | LG1: 2.6 | LH1: 2.7 | LI1: 2.8 | LJ1: 2.9 | LK1: 3 | LL1: 3.1 | LM1: 3.2 | LN1: 3.3 | LO1: 3.4 | LP1: 3.5 | LQ1: 3.6 | LR1: 3.7 | LS1: 3.8 | LT1: 3.9 | LU1: 4 | ME1: =IF(ME2>0,ME2/10-0.1,"") -> 0 | MF1: =IF(MF2>0,MF2/10-0.1,"") -> 0.1 | MG1: 0.2 | MH1: 0.3 | MI1: 0.4 | MJ1: 0.5 | MK1: 0.6 | ML1: 0.7 | MM1: 0.8 | MN1: 0.9 | MO1: 1 | MP1: 1.1 | MQ1: 1.2 | MR1: 1.3 | MS1: 1.4 | MT1: 1.5 | MU1: 1.6 | MV1: 1.7 | MW1: 1.8 | MX1: 1.9 | MY1: 2 | MZ1: 2.1 | NA1: 2.2 | NB1: 2.3 | NC1: 2.4 | ND1: 2.5 | NE1: 2.6 | NF1: 2.7 | NG1: 2.8 | NH1: 2.9 | NI1: 3 | NJ1: 3.1 | NK1: 3.2 | NL1: 3.3 | NM1: 3.4 | NN1: 3.5 | NO1: 3.6 | NP1: 3.7 | NQ1: 3.8 | NR1: 3.9 | NW1: =IF(NW2>0,NW2/10-0.1,"") -> 0 | NX1: =IF(NX2>0,NX2/10-0.1,"") -> 0.1 | NY1: 0.2 | NZ1: 0.3 | OA1: 0.4 | OB1: 0.5 | OC1: 0.6 | OD1: 0.7 | OE1: 0.8 | OF1: 0.9 | OG1: 1 | OH1: 1.1 | OI1: 1.2 | OJ1: 1.3 | OK1: 1.4 | OL1: 1.5 | OM1: 1.6 | ON1: 1.7 | OO1: 1.8 | OP1: 1.9 | OQ1: 2 | OR1: 2.1 | OS1: 2.2 | OT1: 2.3 | OU1: 2.4 | OV1: 2.5 | OW1: 2.6 | OX1: 2.7 | OY1: 2.8 | OZ1: 2.9 | PA1: 3 | PB1: 3.1 | PC1: 3.2 | PD1: 3.3 | PE1: 3.4 | PF1: 3.5 | PG1: 3.6 | PH1: 3.7 | PI1: 3.8 | PJ1: 3.9 | PO1: =IF(PO2>0,PO2/10-0.1,"") -> 0 | PP1: =IF(PP2>0,PP2/10-0.1,"") -> 0.1 | PQ1: 0.2 | PR1: 0.3 | PS1: 0.4 | PT1: 0.5 | PU1: 0.6 | PV1: 0.7 | PW1: 0.8 | PX1: 0.9 | PY1: 1 | PZ1: 1.1 | QA1: 1.2 | QB1: 1.3 | QC1: 1.4 | QD1: 1.5 | QE1: 1.6 | QF1: 1.7 | QG1: 1.8 | QH1: 1.9 | QI1: 2 | QJ1: 2.1 | QK1: 2.2 | QL1: 2.3 | QM1: 2.4 | QN1: 2.5 | QO1: 2.6 | QP1: 2.7 | QQ1: 2.8 | QR1: 2.9 | QS1: 3 | QT1: 3.1 | QU1: 3.2 | QV1: 3.3 | QW1: 3.4 | QX1: 3.5 | QY1: 3.6 | QZ1: 3.7 | RA1: 3.8 | RB1: 3.9 | RG1: 0 | RH1: 0.1 | RI1: 0.2 | RJ1: 0.3 | RK1: 0.4 | RL1: 0.5 | RM1: 0.6 | RN1: 0.7 | RO1: 0.8 | RP1: 0.9 | RQ1: 1 | RR1: 1.1 | RS1: 1.2 | RT1: 1.3 | RU1: 1.4 | RV1: 1.5 | RW1: 1.6 | RX1: 1.7 | RY1: 1.8 | RZ1: 1.9 | SA1: 2 | SB1: 2.1 | SC1: 2.2 | SD1: 2.3 | SE1: 2.4 | SF1: 2.5 | SG1: 2.6 | SH1: 2.7 | SI1: 2.8 | SJ1: 2.9 | SK1: 3 | SL1: 3.1 | SM1: 3.2 | SN1: 3.3 | SO1: 3.4 | SP1: 3.5 | SQ1: 3.6 | SR1: 3.7 | SS1: 3.8 | ST1: 3.9 | SU1: 4 | SZ1: 0 | TA1: 0.1 | TB1: 0.2 | TC1: 0.3 | TD1: 0.4 | TE1: 0.5 | TF1: 0.6 | TG1: 0.7 | TH1: 0.8 | TI1: 0.9 | TJ1: 1 | TK1: 1.1 | TL1: 1.2 | TM1: 1.3 | TN1: 1.4 | TO1: 1.5 | TP1: 1.6 | TQ1: 1.7 | TR1: 1.8 | TS1: 1.9 | TT1: 2 | TU1: 2.1 | TV1: 2.2 | TW1: 2.3 | TX1: 2.4 | TY1: 2.5 | TZ1: 2.6 | UA1: 2.7 | UB1: 2.8 | UC1: 2.9 | UD1: 3 | UE1: 3.1 | UF1: 3.2 | UG1: 3.3 | UH1: 3.4 | UI1: 3.5 | UJ1: 3.6 | UK1: 3.7 | UL1: 3.8 | UM1: 3.9 | UN1: 4 | US1: 0 | UT1: 0.1 | UU1: 0.2 | UV1: 0.3 | UW1: 0.4 | UX1: 0.5 | UY1: 0.6 | UZ1: 0.7 | VA1: 0.8 | VB1: 0.9 | VC1: 1 | VD1: 1.1 | VE1: 1.2 | VF1: 1.3 | VG1: 1.4 | VH1: 1.5 | VI1: 1.6 | VJ1: 1.7 | VK1: 1.8 | VL1: 1.9 | VM1: 2 | VN1: 2.1 | VO1: 2.2 | VP1: 2.3 | VQ1: 2.4 | VR1: 2.5 | VS1: 2.6 | VT1: 2.7 | VU1: 2.8 | VV1: 2.9 | VW1: 3 | VX1: 3.1 | VY1: 3.2 | VZ1: 3.3 | WA1: 3.4 | WB1: 3.5 | WC1: 3.6 | WD1: 3.7 | WE1: 3.8 | WF1: 3.9 | WG1: 4 | WL1: 0 | WM1: 0.1 | WN1: 0.2 | WO1: 0.3 | WP1: 0.4 | WQ1: 0.5 | WR1: 0.6 | WS1: 0.7 | WT1: 0.8 | WU1: 0.9 | WV1: 1 | WW1: 1.1 | WX1: 1.2 | WY1: 1.3 | WZ1: 1.4 | XA1: 1.5 | XB1: 1.6 | XC1: 1.7 | XD1: 1.8 | XE1: 1.9 | XF1: 2 | XG1: 2.1 | XH1: 2.2 | XI1: 2.3 | XJ1: 2.4 | XK1: 2.5 | XL1: 2.6 | XM1: 2.7 | XN1: 2.8 | XO1: 2.9 | XP1: 3 | XQ1: 3.1 | XR1: 3.2 | XS1: 3.3 | XT1: 3.4 | XU1: 3.5 | XV1: 3.6 | XW1: 3.7 | XX1: 3.8 | XY1: 3.9 | XZ1: 4 | YE1: 0 | YF1: 0.1 | YG1: 0.2 | YH1: 0.3 | YI1: 0.4 | YJ1: 0.5 | YK1: 0.6 | YL1: 0.7 | YM1: 0.8 | YN1: 0.9 | YO1: 1 | YP1: 1.1 | YQ1: 1.2 | YR1: 1.3 | YS1: 1.4 | YT1: 1.5 | YU1: 1.6 | YV1: 1.7 | YW1: 1.8 | YX1: 1.9 | YY1: 2 | YZ1: 2 | ZA1: 2.1 | ZB1: 2.2 | ZC1: 2.3 | ZD1: 2.4 | ZE1: 2.5 | ZF1: 2.6 | ZG1: 2.7 | ZH1: 2.8 | ZI1: 2.9 | ZJ1: 3 | ZK1: 3.1 | ZL1: 3.2 | ZM1: 3.3 | ZN1: 3.4 | ZO1: 3.5 | ZP1: 3.6 | ZQ1: 3.7 | ZR1: 3.8 | ZS1: 3.9 | ZT1: 4 | ZY1: 0 | ZZ1: 0.1 | AAA1: 0.2 | AAB1: 0.3 | AAC1: 0.4 | AAD1: 0.5 | AAE1: 0.6 | AAF1: 0.7 | AAG1: 0.8 | AAH1: 0.9 | AAI1: 1 | AAJ1: 1.1 | AAK1: 1.2 | AAL1: 1.3 | AAM1: 1.4 | AAN1: 1.5 | AAO1: 1.6 | AAP1: 1.7 | AAQ1: 1.8 | AAR1: 1.9 | AAS1: 2 | AAT1: 2 | AAU1: 2.1 | AAV1: 2.2 | AAW1: 2.3 | AAX1: 2.4 | AAY1: 2.5 | AAZ1: 2.6 | ABA1: 2.7 | ABB1: 2.8 | ABC1: 2.9 | ABD1: 3 | ABE1: 3.1 | ABF1: 3.2 | ABG1: 3.3 | ABH1: 3.4 | ABI1: 3.5 | ABJ1: 3.6 | ABK1: 3.7 | ABL1: 3.8 | ABM1: 3.9 | ABN1: 4 | ABS1: 0 | ABT1: 0.1 | ABU1: 0.2 | ABV1: 0.3 | ABW1: 0.4 | ABX1: 0.5 | ABY1: 0.6 | ABZ1: 0.7 | ACA1: 0.8 | ACB1: 0.9 | ACC1: 1 | ACD1: 1.1 | ACE1: 1.2 | ACF1: 1.3 | ACG1: 1.4 | ACH1: 1.5 | ACI1: 1.6 | ACJ1: 1.7 | ACK1: 1.8 | ACL1: 1.9 | ACM1: 2 | ACN1: 2 | ACO1: 2.1 | ACP1: 2.2 | ACQ1: 2.3 | ACR1: 2.4 | ACS1: 2.5 | ACT1: 2.6 | ACU1: 2.7 | ACV1: 2.8 | ACW1: 2.9 | ACX1: 3 | ACY1: 3.1 | ACZ1: 3.2 | ADA1: 3.3 | ADB1: 3.4 | ADC1: 3.5 | ADD1: 3.6 | ADE1: 3.7 | ADF1: 3.8 | ADG1: 3.9 | ADH1: 4
A2: 1000 | C2: 1 | D2: 2 | E2: 3 | F2: 4 | G2: 5 | H2: 6 | I2: 7 | J2: 8 | K2: 9 | N2: 1 | O2: 1A | P2: 1B | Q2: 1C | R2: 1D | S2: 2 | T2: 2A | U2: 2B | V2: 2C | W2: 2D | X2: 3 | Y2: 3A | Z2: 3B | AA2: 3C | AB2: 3D | AC2: 4 | AD2: 4A | AE2: 4B | AF2: 4C | AG2: 4D | AH2: 5 | AI2: 5A | AJ2: 5B | AK2: 5C | AL2: 5D | AM2: 6 | AN2: 6A | AO2: 6B | AP2: 6C | AQ2: 6D | AR2: 7 | AS2: 7A | AT2: 7B | AU2: 7C | AV2: 7D | AW2: 8 | AX2: 8A | AY2: 8B | AZ2: 8C | BA2: 8D | BB2: 9 | BF2: 1 | BG2: 2 | BH2: 3 | BI2: 4 | BJ2: 5 | BK2: 6 | BL2: 7 | BM2: 8 | BN2: 9 | BO2: 10 | BP2: 11 | BQ2: 12 | BR2: 13 | BS2: 14 | BT2: 15 | BU2: 16 | BV2: 17 | BW2: 18 | BX2: 19 | BY2: 20 | BZ2: 21 | CA2: 22 | CB2: 23 | CC2: 24 | CD2: 25 | CE2: 26 | CF2: 27 | CG2: 28 | CH2: 29 | CI2: 30 | CJ2: 31 | CK2: 32 | CL2: 33 | CM2: 34 | CN2: 35 | CO2: 36 | CP2: 37 | CQ2: 38 | CR2: 39 | CS2: 40 | CT2: 41 | CY2: 1 | CZ2: 2 | DA2: 3 | DB2: 4 | DC2: 5 | DD2: 6 | DE2: 7 | DF2: 8 | DG2: 9 | DH2: 10 | DI2: 11 | DJ2: 12 | DK2: 13 | DL2: 14 | DM2: 15 | DN2: 16 | DO2: 17 | DP2: 18 | DQ2: 19 | DR2: 20 | DS2: 21 | DT2: 22 | DU2: 23 | DV2: 24 | DW2: 25 | DX2: 26 | DY2: 27 | DZ2: 28 | EA2: 29 | EB2: 30 | EC2: 31 | ED2: 32 | EE2: 33 | EF2: 34 | EG2: 35 | EH2: 36 | EI2: 37 | EJ2: 38 | EK2: 39 | EL2: 40 | EM2: 41 | ER2: 1 | ES2: 2 | ET2: 3 | EU2: 4 | EV2: 5 | EW2: 6 | EX2: 7 | EY2: 8 | EZ2: 9 | FA2: 10 | FB2: 11 | FC2: 12 | FD2: 13 | FE2: 14 | FF2: 15 | FG2: 16 | FH2: 17 | FI2: 18 | FJ2: 19 | FK2: 20 | FL2: 21 | FM2: 21 | FN2: 22 | FO2: 23 | FP2: 24 | FQ2: 25 | FR2: 26 | FS2: 27 | FT2: 28 | FU2: 29 | FV2: 30 | FW2: 31 | FX2: 32 | FY2: 33 | FZ2: 34 | GA2: 35 | GB2: 36 | GC2: 37 | GD2: 38 | GE2: 39 | GF2: 40 | GG2: 41 | GJ2: opěrných bodů | GK2: 3 | GM2: 1 | GN2: 2 | GO2: 3 | GP2: 4 | GQ2: 5 | GR2: 6 | GS2: 7 | GT2: 8 | GU2: 9 | GV2: 10 | GW2: 11 | GX2: 12 | GY2: 13 | GZ2: 14 | HA2: 15 | HB2: 16 | HC2: 17 | HD2: 18 | HE2: 19 | HF2: 20 | HG2: 21 | HH2: 21 | HI2: 22 | HJ2: 23 | HK2: 24 | HL2: 25 | HM2: 26 | HN2: 27 | HO2: 28 | HP2: 29 | HQ2: 30 | HR2: 31 | HS2: 32 | HT2: 33 | HU2: 34 | HV2: 35 | HW2: 36 | HX2: 37 | HY2: 38 | HZ2: 39 | IA2: 40 | IB2: 41 | IH2: =ER2 -> 1 | II2: 2 | IJ2: 3 | IK2: 4 | IL2: 5 | IM2: 6 | IN2: 7 | IO2: 8 | IP2: 9 | IQ2: 10 | IR2: 11 | IS2: 12 | IT2: 13 | IU2: 14 | IV2: 15 | IW2: 16 | IX2: 17 | IY2: 18 | IZ2: 19 | JA2: 20 | JB2: 21 | JC2: 21 | JD2: 22 | JE2: 23 | JF2: 24 | JG2: 25 | JH2: 26 | JI2: 27 | JJ2: 28 | JK2: 29 | JL2: 30 | JM2: 31 | JN2: 32 | JO2: 33 | JP2: 34 | JQ2: 35 | JR2: 36 | JS2: 37 | JT2: 38 | JU2: 39 | JV2: 40 | JW2: 41 | KF2: =IH2 -> 1 | KG2: =II2 -> 2 | KH2: 3 | KI2: 4 | KJ2: 5 | KK2: 6 | KL2: 7 | KM2: 8 | KN2: 9 | KO2: 10 | KP2: 11 | KQ2: 12 | KR2: 13 | KS2: 14 | KT2: 15 | KU2: 16 | KV2: 17 | KW2: 18 | KX2: 19 | KY2: 20 | KZ2: 21 | LA2: 21 | LB2: 22 | LC2: 23 | LD2: 24 | LE2: 25 | LF2: 26 | LG2: 27 | LH2: 28 | LI2: 29 | LJ2: 30 | LK2: 31 | LL2: 32 | LM2: 33 | LN2: 34 | LO2: 35 | LP2: 36 | LQ2: 37 | LR2: 38 | LS2: 39 | LT2: 40 | LU2: 41 | ME2: 1 | MF2: 2 | MG2: 3 | MH2: 4 | MI2: 5 | MJ2: 6 | MK2: 7 | ML2: 8 | MM2: 9 | MN2: 10 | MO2: 11 | MP2: 12 | MQ2: 13 | MR2: 14 | MS2: 15 | MT2: 16 | MU2: 17 | MV2: 18 | MW2: 19 | MX2: 20 | MY2: 21 | MZ2: 22 | NA2: 23 | NB2: 24 | NC2: 25 | ND2: 26 | NE2: 27 | NF2: 28 | NG2: 29 | NH2: 30 | NI2: 31 | NJ2: 32 | NK2: 33 | NL2: 34 | NM2: 35 | NN2: 36 | NO2: 37 | NP2: 38 | NQ2: 39 | NR2: 40 | NW2: 1 | NX2: 2 | NY2: 3 | NZ2: 4 | OA2: 5 | OB2: 6 | OC2: 7 | OD2: 8 | OE2: 9 | OF2: 10 | OG2: 11 | OH2: 12 | OI2: 13 | OJ2: 14 | OK2: 15 | OL2: 16 | OM2: 17 | ON2: 18 | OO2: 19 | OP2: 20 | OQ2: 21 | OR2: 22 | OS2: 23 | OT2: 24 | OU2: 25 | OV2: 26 | OW2: 27 | OX2: 28 | OY2: 29 | OZ2: 30 | PA2: 31 | PB2: 32 | PC2: 33 | PD2: 34 | PE2: 35 | PF2: 36 | PG2: 37 | PH2: 38 | PI2: 39 | PJ2: 40 | PO2: 1 | PP2: 2 | PQ2: 3 | PR2: 4 | PS2: 5 | PT2: 6 | PU2: 7 | PV2: 8 | PW2: 9 | PX2: 10 | PY2: 11 | PZ2: 12 | QA2: 13 | QB2: 14 | QC2: 15 | QD2: 16 | QE2: 17 | QF2: 18 | QG2: 19 | QH2: 20 | QI2: 21 | QJ2: 22 | QK2: 23 | QL2: 24 | QM2: 25 | QN2: 26 | QO2: 27 | QP2: 28 | QQ2: 29 | QR2: 30 | QS2: 31 | QT2: 32 | QU2: 33 | QV2: 34 | QW2: 35 | QX2: 36 | QY2: 37 | QZ2: 38 | RA2: 39 | RB2: 40 | RG2: 1 | RH2: 2 | RI2: 3 | RJ2: 4 | RK2: 5 | RL2: 6 | RM2: 7 | RN2: 8 | RO2: 9 | RP2: 10 | RQ2: 11 | RR2: 12 | RS2: 13 | RT2: 14 | RU2: 15 | RV2: 16 | RW2: 17 | RX2: 18 | RY2: 19 | RZ2: 20 | SA2: 21 | SB2: 22 | SC2: 23 | SD2: 24 | SE2: 25 | SF2: 26 | SG2: 27 | SH2: 28 | SI2: 29 | SJ2: 30 | SK2: 31 | SL2: 32 | SM2: 33 | SN2: 34 | SO2: 35 | SP2: 36 | SQ2: 37 | SR2: 38 | SS2: 39 | ST2: 40 | SU2: 41 | SZ2: 1 | TA2: 2 | TB2: 3 | TC2: 4 | TD2: 5 | TE2: 6 | TF2: 7 | TG2: 8 | TH2: 9 | TI2: 10 | TJ2: 11 | TK2: 12 | TL2: 13 | TM2: 14 | TN2: 15 | TO2: 16 | TP2: 17 | TQ2: 18 | TR2: 19 | TS2: 20 | TT2: 21 | TU2: 22 | TV2: 23 | TW2: 24 | TX2: 25 | TY2: 26 | TZ2: 27 | UA2: 28 | UB2: 29 | UC2: 30 | UD2: 31 | UE2: 32 | UF2: 33 | UG2: 34 | UH2: 35 | UI2: 36 | UJ2: 37 | UK2: 38 | UL2: 39 | UM2: 40 | UN2: 41 | US2: 1 | UT2: 2 | UU2: 3 | UV2: 4 | UW2: 5 | UX2: 6 | UY2: 7 | UZ2: 8 | VA2: 9 | VB2: 10 | VC2: 11 | VD2: 12 | VE2: 13 | VF2: 14 | VG2: 15 | VH2: 16 | VI2: 17 | VJ2: 18 | VK2: 19 | VL2: 20 | VM2: 21 | VN2: 22 | VO2: 23 | VP2: 24 | VQ2: 25 | VR2: 26 | VS2: 27 | VT2: 28 | VU2: 29 | VV2: 30 | VW2: 31 | VX2: 32 | VY2: 33 | VZ2: 34 | WA2: 35 | WB2: 36 | WC2: 37 | WD2: 38 | WE2: 39 | WF2: 40 | WG2: 41 | WL2: 1 | WM2: 2 | WN2: 3 | WO2: 4 | WP2: 5 | WQ2: 6 | WR2: 7 | WS2: 8 | WT2: 9 | WU2: 10 | WV2: 11 | WW2: 12 | WX2: 13 | WY2: 14 | WZ2: 15 | XA2: 16 | XB2: 17 | XC2: 18 | XD2: 19 | XE2: 20 | XF2: 21 | XG2: 22 | XH2: 23 | XI2: 24 | XJ2: 25 | XK2: 26 | XL2: 27 | XM2: 28 | XN2: 29 | XO2: 30 | XP2: 31 | XQ2: 32 | XR2: 33 | XS2: 34 | XT2: 35 | XU2: 36 | XV2: 37 | XW2: 38 | XX2: 39 | XY2: 40 | XZ2: 41 | YE2: 1 | YF2: 2 | YG2: 3 | YH2: 4 | YI2: 5 | YJ2: 6 | YK2: 7 | YL2: 8 | YM2: 9 | YN2: 10 | YO2: 11 | YP2: 12 | YQ2: 13 | YR2: 14 | YS2: 15 | YT2: 16 | YU2: 17 | YV2: 18 | YW2: 19 | YX2: 20 | YY2: 21 | YZ2: 21 | ZA2: 22 | ZB2: 23 | ZC2: 24 | ZD2: 25 | ZE2: 26 | ZF2: 27 | ZG2: 28 | ZH2: 29 | ZI2: 30 | ZJ2: 31 | ZK2: 32 | ZL2: 33 | ZM2: 34 | ZN2: 35 | ZO2: 36 | ZP2: 37 | ZQ2: 38 | ZR2: 39 | ZS2: 40 | ZT2: 41 | ZY2: 1 | ZZ2: 2 | AAA2: 3 | AAB2: 4 | AAC2: 5 | AAD2: 6 | AAE2: 7 | AAF2: 8 | AAG2: 9 | AAH2: 10 | AAI2: 11 | AAJ2: 12 | AAK2: 13 | AAL2: 14 | AAM2: 15 | AAN2: 16 | AAO2: 17 | AAP2: 18 | AAQ2: 19 | AAR2: 20 | AAS2: 21 | AAT2: 21 | AAU2: 22 | AAV2: 23 | AAW2: 24 | AAX2: 25 | AAY2: 26 | AAZ2: 27 | ABA2: 28 | ABB2: 29 | ABC2: 30 | ABD2: 31 | ABE2: 32 | ABF2: 33 | ABG2: 34 | ABH2: 35 | ABI2: 36 | ABJ2: 37 | ABK2: 38 | ABL2: 39 | ABM2: 40 | ABN2: 41 | ABS2: 1 | ABT2: 2 | ABU2: 3 | ABV2: 4 | ABW2: 5 | ABX2: 6 | ABY2: 7 | ABZ2: 8 | ACA2: 9 | ACB2: 10 | ACC2: 11 | ACD2: 12 | ACE2: 13 | ACF2: 14 | ACG2: 15 | ACH2: 16 | ACI2: 17 | ACJ2: 18 | ACK2: 19 | ACL2: 20 | ACM2: 21 | ACN2: 21 | ACO2: 22 | ACP2: 23 | ACQ2: 24 | ACR2: 25 | ACS2: 26 | ACT2: 27 | ACU2: 28 | ACV2: 29 | ACW2: 30 | ACX2: 31 | ACY2: 32 | ACZ2: 33 | ADA2: 34 | ADB2: 35 | ADC2: 36 | ADD2: 37 | ADE2: 38 | ADF2: 39 | ADG2: 40 | ADH2: 41
A3: 1 | B3: A | C3: 43 | D3: 43 | E3: 41 | F3: 41 | G3: 42 | H3: 41 | I3: 37 | J3: 39 | K3: 34 | M3: 1 | N3: =ROUND('3D Interpolace'!M4,2) -> 43 | O3: =ROUND('3D Interpolace'!N4,2) -> 43.16 | P3: =ROUND('3D Interpolace'!O4,2) -> 43.24 | Q3: =ROUND('3D Interpolace'!P4,2) -> 43.24 | R3: =ROUND('3D Interpolace'!Q4,2) -> 43.16 | S3: =ROUND('3D Interpolace'!R4,2) -> 43 | T3: =ROUND('3D Interpolace'!S4,2) -> 42.7 | U3: =ROUND('3D Interpolace'!T4,2) -> 42.25 | V3: =ROUND('3D Interpolace'!U4,2) -> 41.75 | W3: =ROUND('3D Interpolace'!V4,2) -> 41.3 | X3: =ROUND('3D Interpolace'!W4,2) -> 41 | Y3: =ROUND('3D Interpolace'!X4,2) -> 40.86 | Z3: =ROUND('3D Interpolace'!Y4,2) -> 40.81 | AA3: =ROUND('3D Interpolace'!Z4,2) -> 40.83 | AB3: =ROUND('3D Interpolace'!AA4,2) -> 40.9 | AC3: =ROUND('3D Interpolace'!AB4,2) -> 41 | AD3: =ROUND('3D Interpolace'!AC4,2) -> 41.17 | AE3: =ROUND('3D Interpolace'!AD4,2) -> 41.42 | AF3: =ROUND('3D Interpolace'!AE4,2) -> 41.7 | AG3: =ROUND('3D Interpolace'!AF4,2) -> 41.91 | AH3: =ROUND('3D Interpolace'!AG4,2) -> 42 | AI3: =ROUND('3D Interpolace'!AH4,2) -> 41.98 | AJ3: =ROUND('3D Interpolace'!AI4,2) -> 41.89 | AK3: =ROUND('3D Interpolace'!AJ4,2) -> 41.71 | AL3: =ROUND('3D Interpolace'!AK4,2) -> 41.42 | AM3: =ROUND('3D Interpolace'!AL4,2) -> 41 | AN3: =ROUND('3D Interpolace'!AM4,2) -> 40.3 | AO3: =ROUND('3D Interpolace'!AN4,2) -> 39.33 | AP3: =ROUND('3D Interpolace'!AO4,2) -> 38.31 | AQ3: =ROUND('3D Interpolace'!AP4,2) -> 37.46 | AR3: =ROUND('3D Interpolace'!AQ4,2) -> 37 | AS3: =ROUND('3D Interpolace'!AR4,2) -> 37.13 | AT3: =ROUND('3D Interpolace'!AS4,2) -> 37.7 | AU3: =ROUND('3D Interpolace'!AT4,2) -> 38.42 | AV3: =ROUND('3D Interpolace'!AU4,2) -> 38.95 | AW3: =ROUND('3D Interpolace'!AV4,2) -> 39 | AX3: =ROUND('3D Interpolace'!AW4,2) -> 38.56 | AY3: =ROUND('3D Interpolace'!AX4,2) -> 37.84 | AZ3: =ROUND('3D Interpolace'!AY4,2) -> 36.84 | BA3: =ROUND('3D Interpolace'!AZ4,2) -> 35.56 | BB3: =ROUND('3D Interpolace'!BA4,2) -> 34 | BD3: 0 | BE3: 1 | BO3: 4 | BP3: 4 | CU3: 0 | CW3: 0 | CX3: 1 | CY3: =N3+BF3 -> 43 | CZ3: 43.16 | DA3: 43.24 | DB3: 43.24 | DC3: 43.16 | DD3: 43 | DE3: =T3+BL3 -> 42.7 | DF3: =U3+BM3 -> 42.25 | DG3: =V3+BN3 -> 41.75 | DH3: 45.3 | DI3: 45 | DJ3: 40.86 | DK3: 40.81 | DL3: 40.83 | DM3: =AB3+BT3 -> 40.9 | DN3: =AC3+BU3 -> 41 | DO3: =AD3+BV3 -> 41.17 | DP3: 41.42 | DQ3: 41.7 | DR3: 41.91 | DS3: 42 | DT3: 41.98 | DU3: 41.89 | DV3: 41.71 | DW3: 41.42 | DX3: 41 | DY3: 40.3 | DZ3: 39.33 | EA3: 38.31 | EB3: 37.46 | EC3: 37 | ED3: 37.13 | EE3: 37.7 | EF3: 38.42 | EG3: 38.95 | EH3: 39 | EI3: 38.56 | EJ3: 37.84 | EK3: 36.84 | EL3: 35.56 | EM3: 34 | EN3: 0 | EP3: =IF(EQ3>0,EQ3/10-0.1,"") -> 0 | EQ3: 1 | ER3: =IF(ISNUMBER(INDEX(VstupniData,$EQ3,ER$2)),INDEX(VstupniData,$EQ3,ER$2),"") -> 43 | ES3: =IF(ISNUMBER(INDEX(VstupniData,$EQ3,ES$2)),INDEX(VstupniData,$EQ3,ES$2),"") -> 43.16 | ET3: 43.24 | EU3: 43.24 | EV3: 43.16 | EW3: 43 | EX3: 42.7 | EY3: 42.25 | EZ3: 41.75 | FA3: 45.3 | FB3: =IF(ISNUMBER(INDEX(VstupniData,$EQ3,FB$2)),INDEX(VstupniData,$EQ3,FB$2),"") -> 45 | FC3: 40.86 | FD3: 40.81 | FE3: 40.83 | FF3: 40.9 | FG3: 41 | FH3: 41.17 | FI3: 41.42 | FJ3: 41.7 | FK3: 41.91 | FL3: =IF(ISNUMBER(INDEX(VstupniData,$EQ3,FL$2)),INDEX(VstupniData,$EQ3,FL$2),"") -> 42 | FM3: 42 | FN3: 41.98 | FO3: 41.89 | FP3: 41.71 | FQ3: 41.42 | FR3: 41 | FS3: 40.3 | FT3: 39.33 | FU3: 38.31 | FV3: =IF(ISNUMBER(INDEX(VstupniData,$EQ3,FV$2)),INDEX(VstupniData,$EQ3,FV$2),"") -> 37.46 | FW3: 37 | FX3: 37.13 | FY3: 37.7 | FZ3: 38.42 | GA3: 38.95 | GB3: 39 | GC3: 38.56 | GD3: 37.84 | GE3: 36.84 | GF3: =IF(ISNUMBER(INDEX(VstupniData,$EQ3,GF$2)),INDEX(VstupniData,$EQ3,GF$2),"") -> 35.56 | GG3: 34 | GK3: 0 | GL3: 1 | GM3: =IF(OR(AND(INT(1000*GM$1/500)-1000*GM$1/500=0,INT(1000*$GK3/500)-1000*$GK3/500=0),ZY3>4),ER3,IF(AND(ZY3=4,OR(INT(1000*GM$1/500)-1000*GM$1/500=0,INT(1000*$GK3/500)-1000*$GK3/500=0)),ER3,0)) -> 43 | GN3: =IF(OR(AND(INT(1000*GN$1/500)-1000*GN$1/500=0,INT(1000*$GK3/500)-1000*$GK3/500=0),ZZ3>4),ES3,IF(AND(ZZ3=4,OR(INT(1000*GN$1/500)-1000*GN$1/500=0,INT(1000*$GK3/500)-1000*$GK3/500=0)),ES3,0)) -> 0 | GO3: =IF(OR(AND(INT(1000*GO$1/500)-1000*GO$1/500=0,INT(1000*$GK3/500)-1000*$GK3/500=0),AAA3>4),ET3,IF(AND(AAA3=4,OR(INT(1000*GO$1/500)-1000*GO$1/500=0,INT(1000*$GK3/500)-1000*$GK3/500=0)),ET3,0)) -> 0 | GP3: =IF(OR(AND(INT(1000*GP$1/500)-1000*GP$1/500=0,INT(1000*$GK3/500)-1000*$GK3/500=0),AAB3>4),EU3,IF(AND(AAB3=4,OR(INT(1000*GP$1/500)-1000*GP$1/500=0,INT(1000*$GK3/500)-1000*$GK3/500=0)),EU3,0)) -> 0 | GQ3: =IF(OR(AND(INT(1000*GQ$1/500)-1000*GQ$1/500=0,INT(1000*$GK3/500)-1000*$GK3/500=0),AAC3>4),EV3,IF(AND(AAC3=4,OR(INT(1000*GQ$1/500)-1000*GQ$1/500=0,INT(1000*$GK3/500)-1000*$GK3/500=0)),EV3,0)) -> 0 | GR3: =IF(OR(AND(INT(1000*GR$1/500)-1000*GR$1/500=0,INT(1000*$GK3/500)-1000*$GK3/500=0),AAD3>4),EW3,IF(AND(AAD3=4,OR(INT(1000*GR$1/500)-1000*GR$1/500=0,INT(1000*$GK3/500)-1000*$GK3/500=0)),EW3,0)) -> 43 | GS3: =IF(OR(AND(INT(1000*GS$1/500)-1000*GS$1/500=0,INT(1000*$GK3/500)-1000*$GK3/500=0),AAE3>4),EX3,IF(AND(AAE3=4,OR(INT(1000*GS$1/500)-1000*GS$1/500=0,INT(1000*$GK3/500)-1000*$GK3/500=0)),EX3,0)) -> 0 | GT3: =IF(OR(AND(INT(1000*GT$1/500)-1000*GT$1/500=0,INT(1000*$GK3/500)-1000*$GK3/500=0),AAF3>4),EY3,IF(AND(AAF3=4,OR(INT(1000*GT$1/500)-1000*GT$1/500=0,INT(1000*$GK3/500)-1000*$GK3/500=0)),EY3,0)) -> 0 | GU3: =IF(OR(AND(INT(1000*GU$1/500)-1000*GU$1/500=0,INT(1000*$GK3/500)-1000*$GK3/500=0),AAG3>4),EZ3,IF(AND(AAG3=4,OR(INT(1000*GU$1/500)-1000*GU$1/500=0,INT(1000*$GK3/500)-1000*$GK3/500=0)),EZ3,0)) -> 0 | GV3: =IF(OR(AND(INT(1000*GV$1/500)-1000*GV$1/500=0,INT(1000*$GK3/500)-1000*$GK3/500=0),AAH3>4),FA3,IF(AND(AAH3=4,OR(INT(1000*GV$1/500)-1000*GV$1/500=0,INT(1000*$GK3/500)-1000*$GK3/500=0)),FA3,0)) -> 45.3 | GW3: =IF(OR(AND(INT(1000*GW$1/500)-1000*GW$1/500=0,INT(1000*$GK3/500)-1000*$GK3/500=0),AAI3>4),FB3,IF(AND(AAI3=4,OR(INT(1000*GW$1/500)-1000*GW$1/500=0,INT(1000*$GK3/500)-1000*$GK3/500=0)),FB3,0)) -> 45 | GX3: =IF(OR(AND(INT(1000*GX$1/500)-1000*GX$1/500=0,INT(1000*$GK3/500)-1000*$GK3/500=0),AAJ3>4),FC3,IF(AND(AAJ3=4,OR(INT(1000*GX$1/500)-1000*GX$1/500=0,INT(1000*$GK3/500)-1000*$GK3/500=0)),FC3,0)) -> 0 | GY3: =IF(OR(AND(INT(1000*GY$1/500)-1000*GY$1/500=0,INT(1000*$GK3/500)-1000*$GK3/500=0),AAK3>4),FD3,IF(AND(AAK3=4,OR(INT(1000*GY$1/500)-1000*GY$1/500=0,INT(1000*$GK3/500)-1000*$GK3/500=0)),FD3,0)) -> 0 | GZ3: =IF(OR(AND(INT(1000*GZ$1/500)-1000*GZ$1/500=0,INT(1000*$GK3/500)-1000*$GK3/500=0),AAL3>4),FE3,IF(AND(AAL3=4,OR(INT(1000*GZ$1/500)-1000*GZ$1/500=0,INT(1000*$GK3/500)-1000*$GK3/500=0)),FE3,0)) -> 0 | HA3: =IF(OR(AND(INT(1000*HA$1/500)-1000*HA$1/500=0,INT(1000*$GK3/500)-1000*$GK3/500=0),AAM3>4),FF3,IF(AND(AAM3=4,OR(INT(1000*HA$1/500)-1000*HA$1/500=0,INT(1000*$GK3/500)-1000*$GK3/500=0)),FF3,0)) -> 0 | HB3: =IF(OR(AND(INT(1000*HB$1/500)-1000*HB$1/500=0,INT(1000*$GK3/500)-1000*$GK3/500=0),AAN3>4),FG3,IF(AND(AAN3=4,OR(INT(1000*HB$1/500)-1000*HB$1/500=0,INT(1000*$GK3/500)-1000*$GK3/500=0)),FG3,0)) -> 41 | HC3: =IF(OR(AND(INT(1000*HC$1/500)-1000*HC$1/500=0,INT(1000*$GK3/500)-1000*$GK3/500=0),AAO3>4),FH3,IF(AND(AAO3=4,OR(INT(1000*HC$1/500)-1000*HC$1/500=0,INT(1000*$GK3/500)-1000*$GK3/500=0)),FH3,0)) -> 0 | HD3: =IF(OR(AND(INT(1000*HD$1/500)-1000*HD$1/500=0,INT(1000*$GK3/500)-1000*$GK3/500=0),AAP3>4),FI3,IF(AND(AAP3=4,OR(INT(1000*HD$1/500)-1000*HD$1/500=0,INT(1000*$GK3/500)-1000*$GK3/500=0)),FI3,0)) -> 0 | HE3: =IF(OR(AND(INT(1000*HE$1/500)-1000*HE$1/500=0,INT(1000*$GK3/500)-1000*$GK3/500=0),AAQ3>4),FJ3,IF(AND(AAQ3=4,OR(INT(1000*HE$1/500)-1000*HE$1/500=0,INT(1000*$GK3/500)-1000*$GK3/500=0)),FJ3,0)) -> 0 | HF3: =IF(OR(AND(INT(1000*HF$1/500)-1000*HF$1/500=0,INT(1000*$GK3/500)-1000*$GK3/500=0),AAR3>4),FK3,IF(AND(AAR3=4,OR(INT(1000*HF$1/500)-1000*HF$1/500=0,INT(1000*$GK3/500)-1000*$GK3/500=0)),FK3,0)) -> 0 | HG3: =IF(OR(AND(INT(1000*HG$1/500)-1000*HG$1/500=0,INT(1000*$GK3/500)-1000*$GK3/500=0),AAS3>4),FL3,IF(AND(AAS3=4,OR(INT(1000*HG$1/500)-1000*HG$1/500=0,INT(1000*$GK3/500)-1000*$GK3/500=0)),FL3,0)) -> 42 | HH3: =IF(OR(AND(INT(1000*HH$1/500)-1000*HH$1/500=0,INT(1000*$GK3/500)-1000*$GK3/500=0),AAT3>4),FM3,IF(AND(AAT3=4,OR(INT(1000*HH$1/500)-1000*HH$1/500=0,INT(1000*$GK3/500)-1000*$GK3/500=0)),FM3,0)) -> 42 | HI3: =IF(OR(AND(INT(1000*HI$1/500)-1000*HI$1/500=0,INT(1000*$GK3/500)-1000*$GK3/500=0),AAU3>4),FN3,IF(AND(AAU3=4,OR(INT(1000*HI$1/500)-1000*HI$1/500=0,INT(1000*$GK3/500)-1000*$GK3/500=0)),FN3,0)) -> 0 | HJ3: =IF(OR(AND(INT(1000*HJ$1/500)-1000*HJ$1/500=0,INT(1000*$GK3/500)-1000*$GK3/500=0),AAV3>4),FO3,IF(AND(AAV3=4,OR(INT(1000*HJ$1/500)-1000*HJ$1/500=0,INT(1000*$GK3/500)-1000*$GK3/500=0)),FO3,0)) -> 0 | HK3: =IF(OR(AND(INT(1000*HK$1/500)-1000*HK$1/500=0,INT(1000*$GK3/500)-1000*$GK3/500=0),AAW3>4),FP3,IF(AND(AAW3=4,OR(INT(1000*HK$1/500)-1000*HK$1/500=0,INT(1000*$GK3/500)-1000*$GK3/500=0)),FP3,0)) -> 0 | HL3: =IF(OR(AND(INT(1000*HL$1/500)-1000*HL$1/500=0,INT(1000*$GK3/500)-1000*$GK3/500=0),AAX3>4),FQ3,IF(AND(AAX3=4,OR(INT(1000*HL$1/500)-1000*HL$1/500=0,INT(1000*$GK3/500)-1000*$GK3/500=0)),FQ3,0)) -> 0 | HM3: =IF(OR(AND(INT(1000*HM$1/500)-1000*HM$1/500=0,INT(1000*$GK3/500)-1000*$GK3/500=0),AAY3>4),FR3,IF(AND(AAY3=4,OR(INT(1000*HM$1/500)-1000*HM$1/500=0,INT(1000*$GK3/500)-1000*$GK3/500=0)),FR3,0)) -> 41 | HN3: =IF(OR(AND(INT(1000*HN$1/500)-1000*HN$1/500=0,INT(1000*$GK3/500)-1000*$GK3/500=0),AAZ3>4),FS3,IF(AND(AAZ3=4,OR(INT(1000*HN$1/500)-1000*HN$1/500=0,INT(1000*$GK3/500)-1000*$GK3/500=0)),FS3,0)) -> 0 | HO3: =IF(OR(AND(INT(1000*HO$1/500)-1000*HO$1/500=0,INT(1000*$GK3/500)-1000*$GK3/500=0),ABA3>4),FT3,IF(AND(ABA3=4,OR(INT(1000*HO$1/500)-1000*HO$1/500=0,INT(1000*$GK3/500)-1000*$GK3/500=0)),FT3,0)) -> 0 | HP3: =IF(OR(AND(INT(1000*HP$1/500)-1000*HP$1/500=0,INT(1000*$GK3/500)-1000*$GK3/500=0),ABB3>4),FU3,IF(AND(ABB3=4,OR(INT(1000*HP$1/500)-1000*HP$1/500=0,INT(1000*$GK3/500)-1000*$GK3/500=0)),FU3,0)) -> 0 | HQ3: =IF(OR(AND(INT(1000*HQ$1/500)-1000*HQ$1/500=0,INT(1000*$GK3/500)-1000*$GK3/500=0),ABC3>4),FV3,IF(AND(ABC3=4,OR(INT(1000*HQ$1/500)-1000*HQ$1/500=0,INT(1000*$GK3/500)-1000*$GK3/500=0)),FV3,0)) -> 0 | HR3: =IF(OR(AND(INT(1000*HR$1/500)-1000*HR$1/500=0,INT(1000*$GK3/500)-1000*$GK3/500=0),ABD3>4),FW3,IF(AND(ABD3=4,OR(INT(1000*HR$1/500)-1000*HR$1/500=0,INT(1000*$GK3/500)-1000*$GK3/500=0)),FW3,0)) -> 37 | HS3: =IF(OR(AND(INT(1000*HS$1/500)-1000*HS$1/500=0,INT(1000*$GK3/500)-1000*$GK3/500=0),ABE3>4),FX3,IF(AND(ABE3=4,OR(INT(1000*HS$1/500)-1000*HS$1/500=0,INT(1000*$GK3/500)-1000*$GK3/500=0)),FX3,0)) -> 0 | HT3: =IF(OR(AND(INT(1000*HT$1/500)-1000*HT$1/500=0,INT(1000*$GK3/500)-1000*$GK3/500=0),ABF3>4),FY3,IF(AND(ABF3=4,OR(INT(1000*HT$1/500)-1000*HT$1/500=0,INT(1000*$GK3/500)-1000*$GK3/500=0)),FY3,0)) -> 0 | HU3: =IF(OR(AND(INT(1000*HU$1/500)-1000*HU$1/500=0,INT(1000*$GK3/500)-1000*$GK3/500=0),ABG3>4),FZ3,IF(AND(ABG3=4,OR(INT(1000*HU$1/500)-1000*HU$1/500=0,INT(1000*$GK3/500)-1000*$GK3/500=0)),FZ3,0)) -> 0 | HV3: =IF(OR(AND(INT(1000*HV$1/500)-1000*HV$1/500=0,INT(1000*$GK3/500)-1000*$GK3/500=0),ABH3>4),GA3,IF(AND(ABH3=4,OR(INT(1000*HV$1/500)-1000*HV$1/500=0,INT(1000*$GK3/500)-1000*$GK3/500=0)),GA3,0)) -> 0 | HW3: =IF(OR(AND(INT(1000*HW$1/500)-1000*HW$1/500=0,INT(1000*$GK3/500)-1000*$GK3/500=0),ABI3>4),GB3,IF(AND(ABI3=4,OR(INT(1000*HW$1/500)-1000*HW$1/500=0,INT(1000*$GK3/500)-1000*$GK3/500=0)),GB3,0)) -> 39 | HX3: =IF(OR(AND(INT(1000*HX$1/500)-1000*HX$1/500=0,INT(1000*$GK3/500)-1000*$GK3/500=0),ABJ3>4),GC3,IF(AND(ABJ3=4,OR(INT(1000*HX$1/500)-1000*HX$1/500=0,INT(1000*$GK3/500)-1000*$GK3/500=0)),GC3,0)) -> 0 | HY3: =IF(OR(AND(INT(1000*HY$1/500)-1000*HY$1/500=0,INT(1000*$GK3/500)-1000*$GK3/500=0),ABK3>4),GD3,IF(AND(ABK3=4,OR(INT(1000*HY$1/500)-1000*HY$1/500=0,INT(1000*$GK3/500)-1000*$GK3/500=0)),GD3,0)) -> 0 | HZ3: =IF(OR(AND(INT(1000*HZ$1/500)-1000*HZ$1/500=0,INT(1000*$GK3/500)-1000*$GK3/500=0),ABL3>4),GE3,IF(AND(ABL3=4,OR(INT(1000*HZ$1/500)-1000*HZ$1/500=0,INT(1000*$GK3/500)-1000*$GK3/500=0)),GE3,0)) -> 0 | IA3: =IF(OR(AND(INT(1000*IA$1/500)-1000*IA$1/500=0,INT(1000*$GK3/500)-1000*$GK3/500=0),ABM3>4),GF3,IF(AND(ABM3=4,OR(INT(1000*IA$1/500)-1000*IA$1/500=0,INT(1000*$GK3/500)-1000*$GK3/500=0)),GF3,0)) -> 0 | IB3: =IF(OR(AND(INT(1000*IB$1/500)-1000*IB$1/500=0,INT(1000*$GK3/500)-1000*$GK3/500=0),ABN3>4),GG3,IF(AND(ABN3=4,OR(INT(1000*IB$1/500)-1000*IB$1/500=0,INT(1000*$GK3/500)-1000*$GK3/500=0)),GG3,0)) -> 34 | IC3: 0 | IG3: 1 | IH3: 48 | II3: 47.7 | IJ3: 47.4 | IK3: 47.1 | IL3: 46.8 | IM3: 46.5 | IN3: 46.2 | IO3: 45.9 | IP3: 45.6 | IQ3: 45.3 | IR3: 45 | IS3: 44.7 | IT3: 44.4 | IU3: 44.1 | IV3: 43.8 | IW3: 43.5 | IX3: 43.2 | IY3: 42.9 | IZ3: 42.6 | JA3: 42.3 | JB3: 42 | JC3: 42 | JD3: 41.8 | JE3: 41.6 | JF3: 41.4 | JG3: 41.2 | JH3: 41 | JI3: 40.8 | JJ3: 40.6 | JK3: 40.4 | JL3: 40.2 | JM3: 40 | JN3: 39.8 | JO3: 39.6 | JP3: 39.4 | JQ3: 39.2 | JR3: 39 | JS3: 38.8 | JT3: 38.6 | JU3: 38.4 | JV3: 38.2 | JW3: 38 | JX3: 0 | KD3: 0 | KE3: 1 | KF3: =IF(IH3-ER3>0.001,IH3-ER3,IF(IH3-ER3>-0.001,0,IH3-ER3)) -> 5 | KG3: =IF(II3-ES3>0.001,II3-ES3,IF(II3-ES3>-0.001,0,II3-ES3)) -> 4.54 | KH3: =IF(IJ3-ET3>0.001,IJ3-ET3,IF(IJ3-ET3>-0.001,0,IJ3-ET3)) -> 4.16 | KI3: =IF(IK3-EU3>0.001,IK3-EU3,IF(IK3-EU3>-0.001,0,IK3-EU3)) -> 3.86 | KJ3: =IF(IL3-EV3>0.001,IL3-EV3,IF(IL3-EV3>-0.001,0,IL3-EV3)) -> 3.64 | KK3: =IF(IM3-EW3>0.001,IM3-EW3,IF(IM3-EW3>-0.001,0,IM3-EW3)) -> 3.5 | KL3: =IF(IN3-EX3>0.001,IN3-EX3,IF(IN3-EX3>-0.001,0,IN3-EX3)) -> 3.5 | KM3: =IF(IO3-EY3>0.001,IO3-EY3,IF(IO3-EY3>-0.001,0,IO3-EY3)) -> 3.65 | KN3: =IF(IP3-EZ3>0.001,IP3-EZ3,IF(IP3-EZ3>-0.001,0,IP3-EZ3)) -> 3.85 | KO3: =IF(IQ3-FA3>0.001,IQ3-FA3,IF(IQ3-FA3>-0.001,0,IQ3-FA3)) -> 0 | KP3: =IF(IR3-FB3>0.001,IR3-FB3,IF(IR3-FB3>-0.001,0,IR3-FB3)) -> 0 | KQ3: =IF(IS3-FC3>0.001,IS3-FC3,IF(IS3-FC3>-0.001,0,IS3-FC3)) -> 3.84 | KR3: =IF(IT3-FD3>0.001,IT3-FD3,IF(IT3-FD3>-0.001,0,IT3-FD3)) -> 3.59 | KS3: =IF(IU3-FE3>0.001,IU3-FE3,IF(IU3-FE3>-0.001,0,IU3-FE3)) -> 3.27 | KT3: =IF(IV3-FF3>0.001,IV3-FF3,IF(IV3-FF3>-0.001,0,IV3-FF3)) -> 2.9 | KU3: =IF(IW3-FG3>0.001,IW3-FG3,IF(IW3-FG3>-0.001,0,IW3-FG3)) -> 2.5 | KV3: =IF(IX3-FH3>0.001,IX3-FH3,IF(IX3-FH3>-0.001,0,IX3-FH3)) -> 2.03 | KW3: =IF(IY3-FI3>0.001,IY3-FI3,IF(IY3-FI3>-0.001,0,IY3-FI3)) -> 1.48 | KX3: =IF(IZ3-FJ3>0.001,IZ3-FJ3,IF(IZ3-FJ3>-0.001,0,IZ3-FJ3)) -> 0.9 | KY3: =IF(JA3-FK3>0.001,JA3-FK3,IF(JA3-FK3>-0.001,0,JA3-FK3)) -> 0.39 | KZ3: =IF(JB3-FL3>0.001,JB3-FL3,IF(JB3-FL3>-0.001,0,JB3-FL3)) -> 0 | LA3: =IF(JC3-FM3>0.001,JC3-FM3,IF(JC3-FM3>-0.001,0,JC3-FM3)) -> 0 | LB3: =IF(JD3-FN3>0.001,JD3-FN3,IF(JD3-FN3>-0.001,0,JD3-FN3)) -> -0.18 | LC3: =IF(JE3-FO3>0.001,JE3-FO3,IF(JE3-FO3>-0.001,0,JE3-FO3)) -> -0.29 | LD3: =IF(JF3-FP3>0.001,JF3-FP3,IF(JF3-FP3>-0.001,0,JF3-FP3)) -> -0.31 | LE3: =IF(JG3-FQ3>0.001,JG3-FQ3,IF(JG3-FQ3>-0.001,0,JG3-FQ3)) -> -0.22 | LF3: =IF(JH3-FR3>0.001,JH3-FR3,IF(JH3-FR3>-0.001,0,JH3-FR3)) -> 0 | LG3: =IF(JI3-FS3>0.001,JI3-FS3,IF(JI3-FS3>-0.001,0,JI3-FS3)) -> 0.5 | LH3: =IF(JJ3-FT3>0.001,JJ3-FT3,IF(JJ3-FT3>-0.001,0,JJ3-FT3)) -> 1.27 | LI3: =IF(JK3-FU3>0.001,JK3-FU3,IF(JK3-FU3>-0.001,0,JK3-FU3)) -> 2.09 | LJ3: =IF(JL3-FV3>0.001,JL3-FV3,IF(JL3-FV3>-0.001,0,JL3-FV3)) -> 2.74 | LK3: =IF(JM3-FW3>0.001,JM3-FW3,IF(JM3-FW3>-0.001,0,JM3-FW3)) -> 3 | LL3: =IF(JN3-FX3>0.001,JN3-FX3,IF(JN3-FX3>-0.001,0,JN3-FX3)) -> 2.67 | LM3: =IF(JO3-FY3>0.001,JO3-FY3,IF(JO3-FY3>-0.001,0,JO3-FY3)) -> 1.9 | LN3: =IF(JP3-FZ3>0.001,JP3-FZ3,IF(JP3-FZ3>-0.001,0,JP3-FZ3)) -> 0.98 | LO3: =IF(JQ3-GA3>0.001,JQ3-GA3,IF(JQ3-GA3>-0.001,0,JQ3-GA3)) -> 0.25 | LP3: =IF(JR3-GB3>0.001,JR3-GB3,IF(JR3-GB3>-0.001,0,JR3-GB3)) -> 0 | LQ3: =IF(JS3-GC3>0.001,JS3-GC3,IF(JS3-GC3>-0.001,0,JS3-GC3)) -> 0.24 | LR3: =IF(JT3-GD3>0.001,JT3-GD3,IF(JT3-GD3>-0.001,0,JT3-GD3)) -> 0.76 | LS3: =IF(JU3-GE3>0.001,JU3-GE3,IF(JU3-GE3>-0.001,0,JU3-GE3)) -> 1.56 | LT3: =IF(JV3-GF3>0.001,JV3-GF3,IF(JV3-GF3>-0.001,0,JV3-GF3)) -> 2.64 | LU3: =IF(JW3-GG3>0.001,JW3-GG3,IF(JW3-GG3>-0.001,0,JW3-GG3)) -> 4 | MC3: =IF(MD3>0,MD3/10-0.1,"") -> 0 | MD3: 1 | ME3: =AVERAGE(KF3:KG4) -> 5.337857143 | MF3: =AVERAGE(KG3:KH4) -> 4.995357143 | MG3: 4.705357143 | MH3: 4.467857143 | MI3: 4.282857143 | MJ3: 4.167857143 | MK3: 4.147857143 | ML3: 4.195357143 | MM3: 2.242857143 | MN3: 0.2303571429 | MO3: 2.135357143 | MP3: 3.982857143 | MQ3: 3.787857143 | MR3: 3.532857143 | MS3: 3.205357143 | MT3: 2.765357143 | MU3: 2.180357143 | MV3: 1.507857143 | MW3: 0.8578571429 | MX3: 0.3378571429 | MY3: =AVERAGE(LA3:LB4) -> 0.05285714286 | MZ3: =AVERAGE(LB3:LC4) -> -0.02964285714 | NA3: =AVERAGE(LC3:LD4) -> 0.002857142857 | NB3: =AVERAGE(LD3:LE4) -> 0.1428571429 | NC3: =AVERAGE(LE3:LF4) -> 0.3803571429 | ND3: =AVERAGE(LF3:LG4) -> 0.7778571429 | NE3: =AVERAGE(LG3:LH4) -> 1.402857143 | NF3: =AVERAGE(LH3:LI4) -> 2.160357143 | NG3: =AVERAGE(LI3:LJ4) -> 2.855357143 | NH3: =AVERAGE(LJ3:LK4) -> 3.292857143 | NI3: =AVERAGE(LK3:LL4) -> 3.282857143 | NJ3: =AVERAGE(LL3:LM4) -> 2.797857143 | NK3: =AVERAGE(LM3:LN4) -> 2.037857143 | NL3: =AVERAGE(LN3:LO4) -> 1.290357143 | NM3: =AVERAGE(LO3:LP4) -> 0.8403571429 | NN3: =AVERAGE(LP3:LQ4) -> 0.8228571429 | NO3: =AVERAGE(LQ3:LR4) -> 1.147857143 | NP3: =AVERAGE(LR3:LS4) -> 1.720357143 | NQ3: =AVERAGE(LS3:LT4) -> 2.540357143 | NR3: =AVERAGE(LT3:LU4) -> 3.607857143 | NU3: =IF(NV3>0,NV3/10-0.1,"") -> 0 | NV3: 1 | NW3: =IF(ME3<$C$34,$D$34,IF(ME3<$C$35,$D$35,IF(ME3<$C$36,$D$36,IF(ME3<$C$37,$D$37,IF(ME3<$C$38,$D$38,IF(ME3<$C$39,$D$39,IF(ME3<$C$40,$D$40,IF(ME3<$C$41,$D$41,0)))))))) -> 1.68 | NX3: =IF(MF3<$C$34,$D$34,IF(MF3<$C$35,$D$35,IF(MF3<$C$36,$D$36,IF(MF3<$C$37,$D$37,IF(MF3<$C$38,$D$38,IF(MF3<$C$39,$D$39,IF(MF3<$C$40,$D$40,IF(MF3<$C$41,$D$41,0)))))))) -> 1.68 | NY3: 1.68 | NZ3: 1.68 | OA3: 1.68 | OB3: 1.68 | OC3: 1.68 | OD3: 1.68 | OE3: 5.27 | OF3: 22.99 | OG3: 5.27 | OH3: 5.27 | OI3: 5.27 | OJ3: 5.27 | OK3: 5.27 | OL3: 5.27 | OM3: 5.27 | ON3: 22.99 | OO3: 22.99 | OP3: 22.99 | OQ3: 22.99 | OR3: 22.99 | OS3: 22.99 | OT3: 22.99 | OU3: 22.99 | OV3: 22.99 | OW3: 22.99 | OX3: 5.27 | OY3: 5.27 | OZ3: 5.27 | PA3: 5.27 | PB3: 5.27 | PC3: 5.27 | PD3: 22.99 | PE3: 22.99 | PF3: 22.99 | PG3: 22.99 | PH3: 22.99 | PI3: 5.27 | PJ3: 5.27 | PM3: =IF(PN3>0,PN3/10-0.1,"") -> 0 | PN3: 1 | PO3: =NW3-NW227 -> -21.31 | PP3: =NX3-NX227 -> -21.31 | PQ3: -21.31 | PR3: -21.31 | PS3: -21.31 | PT3: -21.31 | PU3: -3.59 | PV3: -3.59 | PW3: -17.72 | PX3: 0 | PY3: 0 | PZ3: 3.59 | QA3: 0 | QB3: 0 | QC3: 0 | QD3: 0 | QE3: 0 | QF3: 0 | QG3: 0 | QH3: 0 | QI3: 0 | QJ3: 0 | QK3: 0 | QL3: 0 | QM3: 0 | QN3: 0 | QO3: 0 | QP3: -17.72 | QQ3: -17.72 | QR3: -17.72 | QS3: 0 | QT3: 0 | QU3: -17.72 | QV3: 0 | QW3: 0 | QX3: 0 | QY3: 0 | QZ3: 0 | RA3: -17.72 | RB3: 0 | RE3: 0 | RF3: 1 | RG3: =IF(CY3=MAX(CY3:CZ4),CY3,0) -> 0 | RH3: =IF(CZ3=MAX(CY3:DA4),CZ3,0) -> 0 | RI3: 43.24 | RJ3: 43.24 | RK3: 0 | RL3: 0 | RM3: 0 | RN3: 0 | RO3: 0 | RP3: 45.3 | RQ3: 0 | RR3: 0 | RS3: 0 | RT3: 0 | RU3: 0 | RV3: 0 | RW3: 0 | RX3: 0 | RY3: 0 | RZ3: 0 | SA3: 0 | SB3: 0 | SC3: 0 | SD3: 0 | SE3: 0 | SF3: 0 | SG3: 0 | SH3: 0 | SI3: 0 | SJ3: 0 | SK3: 0 | SL3: 0 | SM3: 0 | SN3: 0 | SO3: 0 | SP3: 39 | SQ3: 0 | SR3: 0 | SS3: 0 | ST3: 0 | SU3: =IF(EM3=MAX(EL3:EM4),EM3,0) -> 0 | SV3: 0 | SX3: 0 | SY3: 1 | SZ3: =IF(AND(B18=2000,B19=1000),COUNTIF(RG3:SA13,">0"),IF(AND(B18=1000,B19=500),COUNTIF(RG3:RQ8,">0"),"Error")) -> 7 | TA3: =SZ3 -> 7 | TB3: 7 | TC3: 7 | TD3: 7 | TE3: 7 | TF3: 7 | TG3: 7 | TH3: 7 | TI3: 7 | TJ3: =IF(FB3=MAX(FA3:FC4),FB3,0) -> 0 | TK3: 0 | TL3: 0 | TM3: 0 | TN3: 0 | TO3: 0 | TP3: 0 | TQ3: 0 | TR3: 0 | TS3: 0 | TT3: 0 | TU3: 0 | TV3: 0 | TW3: 0 | TX3: 0 | TY3: 0 | TZ3: 0 | UA3: 0 | UB3: 0 | UC3: 0 | UD3: 0 | UE3: 0 | UF3: 0 | UG3: 0 | UH3: 0 | UI3: 0 | UJ3: 39 | UK3: 0 | UL3: 0 | UM3: 0 | UN3: =IF(GF3=MAX(GE3:GF4),GF3,0) -> 0 | UO3: 0 | UQ3: 0 | UR3: 1 | US3: 1 | UT3: 1 | UU3: 1 | UV3: 1 | UW3: 1 | UX3: 1 | UY3: 1 | UZ3: 1 | VA3: 1 | VB3: 1 | VC3: 1 | VD3: 1 | VE3: 1 | VF3: 1 | VG3: 1 | VH3: 1 | VI3: 1 | VJ3: 1 | VK3: 1 | VL3: 1 | VM3: 1 | VN3: 1 | VO3: 1 | VP3: 1 | VQ3: 1 | VR3: 1 | VS3: 1 | VT3: 1 | VU3: 1 | VV3: 1 | VW3: 1 | VX3: 1 | VY3: 1 | VZ3: 1 | WA3: 1 | WB3: 1 | WC3: 1 | WD3: 1 | WE3: 1 | WF3: 1 | WG3: 1 | WH3: 0 | WJ3: 0 | WK3: 1 | WL3: =IF(RG3>0,RG3,US3*CY3) -> 43 | WM3: =IF(RH3>0,RH3,UT3*CZ3) -> 43.16 | WN3: =IF(RI3>0,RI3,UU3*DA3) -> 43.24 | WO3: =IF(RJ3>0,RJ3,UV3*DB3) -> 43.24 | WP3: =IF(RK3>0,RK3,UW3*DC3) -> 43.16 | WQ3: =IF(RL3>0,RL3,UX3*DD3) -> 43 | WR3: =IF(RM3>0,RM3,UY3*DE3) -> 42.7 | WS3: =IF(RN3>0,RN3,UZ3*DF3) -> 42.25 | WT3: =IF(RO3>0,RO3,VA3*DG3) -> 41.75 | WU3: =IF(RP3>0,RP3,VB3*DH3) -> 45.3 | WV3: =IF(RQ3>0,RQ3,VC3*DI3) -> 45 | WW3: =IF(RR3>0,RR3,VD3*DJ3) -> 40.86 | WX3: =IF(RS3>0,RS3,VE3*DK3) -> 40.81 | WY3: =IF(RT3>0,RT3,VF3*DL3) -> 40.83 | WZ3: =IF(RU3>0,RU3,VG3*DM3) -> 40.9 | XA3: =IF(RV3>0,RV3,VH3*DN3) -> 41 | XB3: =IF(RW3>0,RW3,VI3*DO3) -> 41.17 | XC3: =IF(RX3>0,RX3,VJ3*DP3) -> 41.42 | XD3: =IF(RY3>0,RY3,VK3*DQ3) -> 41.7 | XE3: =IF(RZ3>0,RZ3,VL3*DR3) -> 41.91 | XF3: =IF(SA3>0,SA3,VM3*DS3) -> 42 | XG3: =IF(SB3>0,SB3,VN3*DT3) -> 41.98 | XH3: =IF(SC3>0,SC3,VO3*DU3) -> 41.89 | XI3: =IF(SD3>0,SD3,VP3*DV3) -> 41.71 | XJ3: =IF(SE3>0,SE3,VQ3*DW3) -> 41.42 | XK3: =IF(SF3>0,SF3,VR3*DX3) -> 41 | XL3: =IF(SG3>0,SG3,VS3*DY3) -> 40.3 | XM3: =IF(SH3>0,SH3,VT3*DZ3) -> 39.33 | XN3: =IF(SI3>0,SI3,VU3*EA3) -> 38.31 | XO3: =IF(SJ3>0,SJ3,VV3*EB3) -> 37.46 | XP3: =IF(SK3>0,SK3,VW3*EC3) -> 37 | XQ3: =IF(SL3>0,SL3,VX3*ED3) -> 37.13 | XR3: =IF(SM3>0,SM3,VY3*EE3) -> 37.7 | XS3: =IF(SN3>0,SN3,VZ3*EF3) -> 38.42 | XT3: =IF(SO3>0,SO3,WA3*EG3) -> 38.95 | XU3: =IF(SP3>0,SP3,WB3*EH3) -> 39 | XV3: =IF(SQ3>0,SQ3,WC3*EI3) -> 38.56 | XW3: =IF(SR3>0,SR3,WD3*EJ3) -> 37.84 | XX3: =IF(SS3>0,SS3,WE3*EK3) -> 36.84 | XY3: =IF(ST3>0,ST3,WF3*EL3) -> 35.56 | XZ3: =IF(SU3>0,SU3,WG3*EM3) -> 34 | YA3: 0 | YC3: 0 | YD3: 1 | YE3: =COUNTIF(RG3:SA13,">0") -> 7 | YF3: =YE3 -> 7 | YG3: =YF3 -> 7 | YH3: 7 | YI3: 7 | YJ3: 7 | YK3: 7 | YL3: 7 | YM3: 7 | YN3: 7 | YO3: 7 | YP3: 7 | YQ3: 7 | YR3: 7 | YS3: 7 | YT3: 7 | YU3: 7 | YV3: 7 | YW3: 7 | YX3: 7 | YY3: =YX3 -> 7 | YZ3: =COUNTIF(SA3:SU13,">0") -> 4 | ZA3: =YZ3 -> 4 | ZB3: =ZA3 -> 4 | ZC3: 4 | ZD3: 4 | ZE3: 4 | ZF3: 4 | ZG3: 4 | ZH3: 4 | ZI3: 4 | ZJ3: 4 | ZK3: 4 | ZL3: 4 | ZM3: 4 | ZN3: 4 | ZO3: 4 | ZP3: 4 | ZQ3: 4 | ZR3: 4 | ZS3: 4 | ZT3: =ZS3 -> 4 | ZU3: 0 | ZW3: 0 | ZX3: 1 | ZY3: =IF(ISNUMBER(INDEX(Asfalt,$ZX3,ZY$2)),INDEX(Asfalt,$ZX3,ZY$2),0) -> 0 | ZZ3: =IF(ISNUMBER(INDEX(Asfalt,$ZX3,ZZ$2)),INDEX(Asfalt,$ZX3,ZZ$2),0) -> 0 | AAA3: 0 | AAB3: 0 | AAC3: 0 | AAD3: 0 | AAE3: 0 | AAF3: 0 | AAG3: 0 | AAH3: 4 | AAI3: =IF(ISNUMBER(INDEX(Asfalt,$ZX3,AAI$2)),INDEX(Asfalt,$ZX3,AAI$2),0) -> 4 | AAJ3: 0 | AAK3: 0 | AAL3: 0 | AAM3: 0 | AAN3: 0 | AAO3: 0 | AAP3: 0 | AAQ3: 0 | AAR3: 0 | AAS3: =IF(ISNUMBER(INDEX(Asfalt,$ZX3,AAS$2)),INDEX(Asfalt,$ZX3,AAS$2),0) -> 0 | AAT3: 0 | AAU3: 0 | AAV3: 0 | AAW3: 0 | AAX3: 0 | AAY3: 0 | AAZ3: 0 | ABA3: 0 | ABB3: 0 | ABC3: =IF(ISNUMBER(INDEX(Asfalt,$ZX3,ABC$2)),INDEX(Asfalt,$ZX3,ABC$2),0) -> 0 | ABD3: 0 | ABE3: 0 | ABF3: 0 | ABG3: 0 | ABH3: 0 | ABI3: 0 | ABJ3: 0 | ABK3: 0 | ABL3: 0 | ABM3: 0 | ABN3: 0 | ABO3: 0 | ABQ3: 0 | ABR3: 1 | ABS3: =IF(BF3>1,N3,IF(AND(INT(1000*ABS$1/500)-1000*ABS$1/500=0,INT(1000*$UQ3/500)-1000*$UQ3/500=0),1,0)) -> 1 | ABT3: =IF(AND(INT(1000*ABT$1/500)-1000*ABT$1/500=0,INT(1000*$UQ3/500)-1000*$UQ3/500=0),1,0) -> 0 | ABU3: 0 | ABV3: 0 | ABW3: 0 | ABX3: 1 | ABY3: 0 | ABZ3: 0 | ACA3: 0 | ACB3: 0 | ACC3: 1 | ACD3: 0 | ACE3: 0 | ACF3: 0 | ACG3: 0 | ACH3: 1 | ACI3: 0 | ACJ3: 0 | ACK3: 0 | ACL3: 0 | ACM3: 1 | ACN3: =COUNTIF(VO3:WI13,">0") -> 57 | ACO3: =ACN3 -> 57 | ACP3: =ACO3 -> 57 | ACQ3: 57 | ACR3: 57 | ACS3: 57 | ACT3: 57 | ACU3: 57 | ACV3: 57 | ACW3: 57 | ACX3: 57 | ACY3: 57 | ACZ3: 57 | ADA3: 57 | ADB3: 57 | ADC3: 57 | ADD3: 57 | ADE3: 57 | ADF3: 57 | ADG3: 57 | ADH3: =ADG3 -> 57 | ADI3: 0
A4: 2 | B4: B | C4: 40 | D4: 39 | E4: 40 | F4: 38 | G4: 41 | H4: 38 | I4: 35 | J4: 34 | K4: 33 | M4: 1A | N4: =ROUND('3D Interpolace'!M5,2) -> 42.24 | O4: =ROUND('3D Interpolace'!N5,2) -> 42.22 | P4: =ROUND('3D Interpolace'!O5,2) -> 42.17 | Q4: =ROUND('3D Interpolace'!P5,2) -> 42.1 | R4: =ROUND('3D Interpolace'!Q5,2) -> 42 | S4: =ROUND('3D Interpolace'!R5,2) -> 41.88 | T4: =ROUND('3D Interpolace'!S5,2) -> 41.72 | U4: =ROUND('3D Interpolace'!T5,2) -> 41.51 | V4: =ROUND('3D Interpolace'!U5,2) -> 41.28 | W4: =ROUND('3D Interpolace'!V5,2) -> 41.07 | X4: =ROUND('3D Interpolace'!W5,2) -> 40.88 | Y4: =ROUND('3D Interpolace'!X5,2) -> 40.69 | Z4: =ROUND('3D Interpolace'!Y5,2) -> 40.48 | AA4: =ROUND('3D Interpolace'!Z5,2) -> 40.3 | AB4: =ROUND('3D Interpolace'!AA5,2) -> 40.21 | AC4: =ROUND('3D Interpolace'!AB5,2) -> 40.24 | AD4: =ROUND('3D Interpolace'!AC5,2) -> 40.5 | AE4: =ROUND('3D Interpolace'!AD5,2) -> 40.96 | AF4: =ROUND('3D Interpolace'!AE5,2) -> 41.46 | AG4: =ROUND('3D Interpolace'!AF5,2) -> 41.87 | AH4: =ROUND('3D Interpolace'!AG5,2) -> 42.04 | AI4: =ROUND('3D Interpolace'!AH5,2) -> 41.94 | AJ4: =ROUND('3D Interpolace'!AI5,2) -> 41.68 | AK4: =ROUND('3D Interpolace'!AJ5,2) -> 41.28 | AL4: =ROUND('3D Interpolace'!AK5,2) -> 40.79 | AM4: =ROUND('3D Interpolace'!AL5,2) -> 40.24 | AN4: =ROUND('3D Interpolace'!AM5,2) -> 39.52 | AO4: =ROUND('3D Interpolace'!AN5,2) -> 38.61 | AP4: =ROUND('3D Interpolace'!AO5,2) -> 37.68 | AQ4: =ROUND('3D Interpolace'!AP5,2) -> 36.9 | AR4: =ROUND('3D Interpolace'!AQ5,2) -> 36.44 | AS4: =ROUND('3D Interpolace'!AR5,2) -> 36.47 | AT4: =ROUND('3D Interpolace'!AS5,2) -> 36.88 | AU4: =ROUND('3D Interpolace'!AT5,2) -> 37.42 | AV4: =ROUND('3D Interpolace'!AU5,2) -> 37.82 | AW4: =ROUND('3D Interpolace'!AV5,2) -> 37.84 | AX4: =ROUND('3D Interpolace'!AW5,2) -> 37.48 | AY4: =ROUND('3D Interpolace'!AX5,2) -> 36.9 | AZ4: =ROUND('3D Interpolace'!AY5,2) -> 36.11 | BA4: =ROUND('3D Interpolace'!AZ5,2) -> 35.1 | BB4: =ROUND('3D Interpolace'!BA5,2) -> 33.88 | BD4: 0.1 | BE4: 2 | BO4: 4 | BP4: 4 | CU4: 0.1 | CW4: 0.1 | CX4: 2 | CY4: =N4+BF4 -> 42.24 | CZ4: =O4+BG4 -> 42.22 | DA4: =P4+BH4 -> 42.17 | DB4: =Q4+BI4 -> 42.1 | DC4: =R4+BJ4 -> 42 | DD4: =S4+BK4 -> 41.88 | DE4: 41.72 | DF4: 41.51 | DG4: =V4+BN4 -> 41.28 | DH4: =W4+BO4 -> 45.07 | DI4: =X4+BP4 -> 44.88 | DJ4: =Y4+BQ4 -> 40.69 | DK4: =Z4+BR4 -> 40.48 | DL4: =AA4+BS4 -> 40.3 | DM4: 40.21 | DN4: 40.24 | DO4: =AD4+BV4 -> 40.5 | DP4: =AE4+BW4 -> 40.96 | DQ4: =AF4+BX4 -> 41.46 | DR4: =AG4+BY4 -> 41.87 | DS4: =AH4+BZ4 -> 42.04 | DT4: =AI4+CA4 -> 41.94 | DU4: =AJ4+CB4 -> 41.68 | DV4: =AK4+CC4 -> 41.28 | DW4: =AL4+CD4 -> 40.79 | DX4: =AM4+CE4 -> 40.24 | DY4: =AN4+CF4 -> 39.52 | DZ4: =AO4+CG4 -> 38.61 | EA4: =AP4+CH4 -> 37.68 | EB4: =AQ4+CI4 -> 36.9 | EC4: =AR4+CJ4 -> 36.44 | ED4: =AS4+CK4 -> 36.47 | EE4: =AT4+CL4 -> 36.88 | EF4: =AU4+CM4 -> 37.42 | EG4: =AV4+CN4 -> 37.82 | EH4: =AW4+CO4 -> 37.84 | EI4: =AX4+CP4 -> 37.48 | EJ4: =AY4+CQ4 -> 36.9 | EK4: =AZ4+CR4 -> 36.11 | EL4: =BA4+CS4 -> 35.1 | EM4: =BB4+CT4 -> 33.88 | EN4: 0.1 | EP4: =IF(EQ4>0,EQ4/10-0.1,"") -> 0.1 | EQ4: 2 | ER4: 42.24 | ES4: 42.22 | ET4: 42.17 | EU4: 42.1 | EV4: 42 | EW4: 41.88 | EX4: 41.72 | EY4: 41.51 | EZ4: 41.28 | FA4: 45.07 | FB4: 44.88 | FC4: 40.69 | FD4: 40.48 | FE4: 40.3 | FF4: 40.21 | FG4: 40.24 | FH4: 40.5 | FI4: 40.96 | FJ4: 41.46 | FK4: 41.87 | FL4: 42.04 | FM4: 42.04 | FN4: 41.94 | FO4: 41.68 | FP4: 41.28 | FQ4: 40.79 | FR4: 40.24 | FS4: 39.52 | FT4: 38.61 | FU4: 37.68 | FV4: 36.9 | FW4: 36.44 | FX4: 36.47 | FY4: 36.88 | FZ4: 37.42 | GA4: 37.82 | GB4: 37.84 | GC4: 37.48 | GD4: 36.9 | GE4: 36.11 | GF4: 35.1 | GG4: 33.88 | GK4: 0.1 | GL4: 2 | GM4: 0 | GN4: 0 | GO4: 0 | GP4: 0 | GQ4: 0 | GR4: 0 | GS4: 0 | GT4: 0 | GU4: 0 | GV4: 0 | GW4: 44.88 | GX4: 0 | GY4: 0 | GZ4: 0 | HA4: 0 | HB4: 0 | HC4: 0 | HD4: 0 | HE4: 0 | HF4: 0 | HG4: 0 | HH4: 0 | HI4: 0 | HJ4: 0 | HK4: 0 | HL4: 0 | HM4: 0 | HN4: 0 | HO4: 0 | HP4: 0 | HQ4: 0 | HR4: 0 | HS4: 0 | HT4: 0 | HU4: 0 | HV4: 0 | HW4: 0 | HX4: 0 | HY4: 0 | HZ4: 0 | IA4: 0 | IB4: 0 | IC4: 0.1 | IG4: =EQ4 -> 2 | IH4: 48.28571429 | II4: 47.98571429 | IJ4: 47.68571429 | IK4: 47.38571429 | IL4: 47.08571429 | IM4: 46.78571429 | IN4: 46.48571429 | IO4: 46.18571429 | IP4: 45.88571429 | IQ4: 45.58571429 | IR4: 45.28571429 | IS4: 44.98571429 | IT4: 44.68571429 | IU4: 44.38571429 | IV4: 44.08571429 | IW4: 43.78571429 | IX4: 43.48571429 | IY4: 43.18571429 | IZ4: 42.88571429 | JA4: 42.58571429 | JB4: 42.28571429 | JC4: 42.28571429 | JD4: 42.08571429 | JE4: 41.88571429 | JF4: 41.68571429 | JG4: 41.48571429 | JH4: 41.28571429 | JI4: 41.08571429 | JJ4: 40.88571429 | JK4: 40.68571429 | JL4: 40.48571429 | JM4: 40.28571429 | JN4: 40.08571429 | JO4: 39.88571429 | JP4: 39.68571429 | JQ4: 39.48571429 | JR4: 39.28571429 | JS4: 39.08571429 | JT4: 38.88571429 | JU4: 38.68571429 | JV4: 38.48571429 | JW4: 38.28571429 | JX4: 0.1 | KD4: =IF(KE4>0,KE4/10-0.1,"") -> 0.1 | KE4: =IG4 -> 2 | KF4: 6.045714286 | KG4: 5.765714286 | KH4: 5.515714286 | KI4: 5.285714286 | KJ4: 5.085714286 | KK4: 4.905714286 | KL4: 4.765714286 | KM4: 4.675714286 | KN4: 4.605714286 | KO4: 0.5157142857 | KP4: 0.4057142857 | KQ4: 4.295714286 | KR4: 4.205714286 | KS4: 4.085714286 | KT4: 3.875714286 | KU4: 3.545714286 | KV4: 2.985714286 | KW4: 2.225714286 | KX4: 1.425714286 | KY4: 0.7157142857 | KZ4: 0.2457142857 | LA4: 0.2457142857 | LB4: 0.1457142857 | LC4: 0.2057142857 | LD4: 0.4057142857 | LE4: 0.6957142857 | LF4: 1.045714286 | LG4: 1.565714286 | LH4: 2.275714286 | LI4: 3.005714286 | LJ4: 3.585714286 | LK4: 3.845714286 | LL4: 3.615714286 | LM4: 3.005714286 | LN4: 2.265714286 | LO4: 1.665714286 | LP4: 1.445714286 | LQ4: 1.605714286 | LR4: 1.985714286 | LS4: 2.575714286 | LT4: 3.385714286 | LU4: 4.405714286 | MC4: =IF(MD4>0,MD4/10-0.1,"") -> 0.1 | MD4: 2 | ME4: =AVERAGE(KF4:KG5) -> 6.423571429 | MF4: =AVERAGE(KG4:KH5) -> 6.218571429 | MG4: =AVERAGE(KH4:KI5) -> 6.018571429 | MH4: =AVERAGE(KI4:KJ5) -> 5.821071429 | MI4: =AVERAGE(KJ4:KK5) -> 5.626071429 | MJ4: =AVERAGE(KK4:KL5) -> 5.431071429 | MK4: =AVERAGE(KL4:KM5) -> 5.241071429 | ML4: =AVERAGE(KM4:KN5) -> 5.056071429 | MM4: =AVERAGE(KN4:KO5) -> 2.876071429 | MN4: =AVERAGE(KO4:KP5) -> 0.7085714286 | MO4: =AVERAGE(KP4:KQ5) -> 2.583571429 | MP4: =AVERAGE(KQ4:KR5) -> 4.526071429 | MQ4: =AVERAGE(KR4:KS5) -> 4.493571429 | MR4: =AVERAGE(KS4:KT5) -> 4.403571429 | MS4: =AVERAGE(KT4:KU5) -> 4.181071429 | MT4: =AVERAGE(KU4:KV5) -> 3.731071429 | MU4: =AVERAGE(KV4:KW5) -> 3.018571429 | MV4: =AVERAGE(KW4:KX5) -> 2.158571429 | MW4: =AVERAGE(KX4:KY5) -> 1.321071429 | MX4: =AVERAGE(KY4:KZ5) -> 0.6785714286 | MY4: =AVERAGE(LA4:LB5) -> 0.3910714286 | MZ4: 0.4210714286 | NA4: 0.6285714286 | NB4: 0.9535714286 | NC4: 1.333571429 | ND4: 1.786071429 | NE4: 2.383571429 | NF4: 3.071071429 | NG4: 3.693571429 | NH4: 4.098571429 | NI4: 4.136071429 | NJ4: 3.778571429 | NK4: 3.188571429 | NL4: 2.596071429 | NM4: 2.228571429 | NN4: 2.193571429 | NO4: 2.418571429 | NP4: 2.826071429 | NQ4: 3.416071429 | NR4: 4.193571429 | NU4: =IF(NV4>0,NV4/10-0.1,"") -> 0.1 | NV4: 2 | NW4: =IF(ME4<$C$34,$D$34,IF(ME4<$C$35,$D$35,IF(ME4<$C$36,$D$36,IF(ME4<$C$37,$D$37,IF(ME4<$C$38,$D$38,IF(ME4<$C$39,$D$39,IF(ME4<$C$40,$D$40,IF(ME4<$C$41,$D$41,0)))))))) -> 0.57 | NX4: =IF(MF4<$C$34,$D$34,IF(MF4<$C$35,$D$35,IF(MF4<$C$36,$D$36,IF(MF4<$C$37,$D$37,IF(MF4<$C$38,$D$38,IF(MF4<$C$39,$D$39,IF(MF4<$C$40,$D$40,IF(MF4<$C$41,$D$41,0)))))))) -> 0.57 | NY4: =IF(MG4<$C$34,$D$34,IF(MG4<$C$35,$D$35,IF(MG4<$C$36,$D$36,IF(MG4<$C$37,$D$37,IF(MG4<$C$38,$D$38,IF(MG4<$C$39,$D$39,IF(MG4<$C$40,$D$40,IF(MG4<$C$41,$D$41,0)))))))) -> 0.57 | NZ4: =IF(MH4<$C$34,$D$34,IF(MH4<$C$35,$D$35,IF(MH4<$C$36,$D$36,IF(MH4<$C$37,$D$37,IF(MH4<$C$38,$D$38,IF(MH4<$C$39,$D$39,IF(MH4<$C$40,$D$40,IF(MH4<$C$41,$D$41,0)))))))) -> 1.68 | OA4: =IF(MI4<$C$34,$D$34,IF(MI4<$C$35,$D$35,IF(MI4<$C$36,$D$36,IF(MI4<$C$37,$D$37,IF(MI4<$C$38,$D$38,IF(MI4<$C$39,$D$39,IF(MI4<$C$40,$D$40,IF(MI4<$C$41,$D$41,0)))))))) -> 1.68 | OB4: =IF(MJ4<$C$34,$D$34,IF(MJ4<$C$35,$D$35,IF(MJ4<$C$36,$D$36,IF(MJ4<$C$37,$D$37,IF(MJ4<$C$38,$D$38,IF(MJ4<$C$39,$D$39,IF(MJ4<$C$40,$D$40,IF(MJ4<$C$41,$D$41,0)))))))) -> 1.68 | OC4: =IF(MK4<$C$34,$D$34,IF(MK4<$C$35,$D$35,IF(MK4<$C$36,$D$36,IF(MK4<$C$37,$D$37,IF(MK4<$C$38,$D$38,IF(MK4<$C$39,$D$39,IF(MK4<$C$40,$D$40,IF(MK4<$C$41,$D$41,0)))))))) -> 1.68 | OD4: =IF(ML4<$C$34,$D$34,IF(ML4<$C$35,$D$35,IF(ML4<$C$36,$D$36,IF(ML4<$C$37,$D$37,IF(ML4<$C$38,$D$38,IF(ML4<$C$39,$D$39,IF(ML4<$C$40,$D$40,IF(ML4<$C$41,$D$41,0)))))))) -> 1.68 | OE4: =IF(MM4<$C$34,$D$34,IF(MM4<$C$35,$D$35,IF(MM4<$C$36,$D$36,IF(MM4<$C$37,$D$37,IF(MM4<$C$38,$D$38,IF(MM4<$C$39,$D$39,IF(MM4<$C$40,$D$40,IF(MM4<$C$41,$D$41,0)))))))) -> 5.27 | OF4: =IF(MN4<$C$34,$D$34,IF(MN4<$C$35,$D$35,IF(MN4<$C$36,$D$36,IF(MN4<$C$37,$D$37,IF(MN4<$C$38,$D$38,IF(MN4<$C$39,$D$39,IF(MN4<$C$40,$D$40,IF(MN4<$C$41,$D$41,0)))))))) -> 22.99 | OG4: =IF(MO4<$C$34,$D$34,IF(MO4<$C$35,$D$35,IF(MO4<$C$36,$D$36,IF(MO4<$C$37,$D$37,IF(MO4<$C$38,$D$38,IF(MO4<$C$39,$D$39,IF(MO4<$C$40,$D$40,IF(MO4<$C$41,$D$41,0)))))))) -> 5.27 | OH4: =IF(MP4<$C$34,$D$34,IF(MP4<$C$35,$D$35,IF(MP4<$C$36,$D$36,IF(MP4<$C$37,$D$37,IF(MP4<$C$38,$D$38,IF(MP4<$C$39,$D$39,IF(MP4<$C$40,$D$40,IF(MP4<$C$41,$D$41,0)))))))) -> 1.68 | OI4: =IF(MQ4<$C$34,$D$34,IF(MQ4<$C$35,$D$35,IF(MQ4<$C$36,$D$36,IF(MQ4<$C$37,$D$37,IF(MQ4<$C$38,$D$38,IF(MQ4<$C$39,$D$39,IF(MQ4<$C$40,$D$40,IF(MQ4<$C$41,$D$41,0)))))))) -> 1.68 | OJ4: =IF(MR4<$C$34,$D$34,IF(MR4<$C$35,$D$35,IF(MR4<$C$36,$D$36,IF(MR4<$C$37,$D$37,IF(MR4<$C$38,$D$38,IF(MR4<$C$39,$D$39,IF(MR4<$C$40,$D$40,IF(MR4<$C$41,$D$41,0)))))))) -> 1.68 | OK4: =IF(MS4<$C$34,$D$34,IF(MS4<$C$35,$D$35,IF(MS4<$C$36,$D$36,IF(MS4<$C$37,$D$37,IF(MS4<$C$38,$D$38,IF(MS4<$C$39,$D$39,IF(MS4<$C$40,$D$40,IF(MS4<$C$41,$D$41,0)))))))) -> 1.68 | OL4: =IF(MT4<$C$34,$D$34,IF(MT4<$C$35,$D$35,IF(MT4<$C$36,$D$36,IF(MT4<$C$37,$D$37,IF(MT4<$C$38,$D$38,IF(MT4<$C$39,$D$39,IF(MT4<$C$40,$D$40,IF(MT4<$C$41,$D$41,0)))))))) -> 5.27 | OM4: =IF(MU4<$C$34,$D$34,IF(MU4<$C$35,$D$35,IF(MU4<$C$36,$D$36,IF(MU4<$C$37,$D$37,IF(MU4<$C$38,$D$38,IF(MU4<$C$39,$D$39,IF(MU4<$C$40,$D$40,IF(MU4<$C$41,$D$41,0)))))))) -> 5.27 | ON4: =IF(MV4<$C$34,$D$34,IF(MV4<$C$35,$D$35,IF(MV4<$C$36,$D$36,IF(MV4<$C$37,$D$37,IF(MV4<$C$38,$D$38,IF(MV4<$C$39,$D$39,IF(MV4<$C$40,$D$40,IF(MV4<$C$41,$D$41,0)))))))) -> 5.27 | OO4: =IF(MW4<$C$34,$D$34,IF(MW4<$C$35,$D$35,IF(MW4<$C$36,$D$36,IF(MW4<$C$37,$D$37,IF(MW4<$C$38,$D$38,IF(MW4<$C$39,$D$39,IF(MW4<$C$40,$D$40,IF(MW4<$C$41,$D$41,0)))))))) -> 22.99 | OP4: =IF(MX4<$C$34,$D$34,IF(MX4<$C$35,$D$35,IF(MX4<$C$36,$D$36,IF(MX4<$C$37,$D$37,IF(MX4<$C$38,$D$38,IF(MX4<$C$39,$D$39,IF(MX4<$C$40,$D$40,IF(MX4<$C$41,$D$41,0)))))))) -> 22.99 | OQ4: =IF(MY4<$C$34,$D$34,IF(MY4<$C$35,$D$35,IF(MY4<$C$36,$D$36,IF(MY4<$C$37,$D$37,IF(MY4<$C$38,$D$38,IF(MY4<$C$39,$D$39,IF(MY4<$C$40,$D$40,IF(MY4<$C$41,$D$41,0)))))))) -> 22.99 | OR4: =IF(MZ4<$C$34,$D$34,IF(MZ4<$C$35,$D$35,IF(MZ4<$C$36,$D$36,IF(MZ4<$C$37,$D$37,IF(MZ4<$C$38,$D$38,IF(MZ4<$C$39,$D$39,IF(MZ4<$C$40,$D$40,IF(MZ4<$C$41,$D$41,0)))))))) -> 22.99 | OS4: =IF(NA4<$C$34,$D$34,IF(NA4<$C$35,$D$35,IF(NA4<$C$36,$D$36,IF(NA4<$C$37,$D$37,IF(NA4<$C$38,$D$38,IF(NA4<$C$39,$D$39,IF(NA4<$C$40,$D$40,IF(NA4<$C$41,$D$41,0)))))))) -> 22.99 | OT4: =IF(NB4<$C$34,$D$34,IF(NB4<$C$35,$D$35,IF(NB4<$C$36,$D$36,IF(NB4<$C$37,$D$37,IF(NB4<$C$38,$D$38,IF(NB4<$C$39,$D$39,IF(NB4<$C$40,$D$40,IF(NB4<$C$41,$D$41,0)))))))) -> 22.99 | OU4: =IF(NC4<$C$34,$D$34,IF(NC4<$C$35,$D$35,IF(NC4<$C$36,$D$36,IF(NC4<$C$37,$D$37,IF(NC4<$C$38,$D$38,IF(NC4<$C$39,$D$39,IF(NC4<$C$40,$D$40,IF(NC4<$C$41,$D$41,0)))))))) -> 22.99 | OV4: =IF(ND4<$C$34,$D$34,IF(ND4<$C$35,$D$35,IF(ND4<$C$36,$D$36,IF(ND4<$C$37,$D$37,IF(ND4<$C$38,$D$38,IF(ND4<$C$39,$D$39,IF(ND4<$C$40,$D$40,IF(ND4<$C$41,$D$41,0)))))))) -> 22.99 | OW4: =IF(NE4<$C$34,$D$34,IF(NE4<$C$35,$D$35,IF(NE4<$C$36,$D$36,IF(NE4<$C$37,$D$37,IF(NE4<$C$38,$D$38,IF(NE4<$C$39,$D$39,IF(NE4<$C$40,$D$40,IF(NE4<$C$41,$D$41,0)))))))) -> 5.27 | OX4: =IF(NF4<$C$34,$D$34,IF(NF4<$C$35,$D$35,IF(NF4<$C$36,$D$36,IF(NF4<$C$37,$D$37,IF(NF4<$C$38,$D$38,IF(NF4<$C$39,$D$39,IF(NF4<$C$40,$D$40,IF(NF4<$C$41,$D$41,0)))))))) -> 5.27 | OY4: =IF(NG4<$C$34,$D$34,IF(NG4<$C$35,$D$35,IF(NG4<$C$36,$D$36,IF(NG4<$C$37,$D$37,IF(NG4<$C$38,$D$38,IF(NG4<$C$39,$D$39,IF(NG4<$C$40,$D$40,IF(NG4<$C$41,$D$41,0)))))))) -> 5.27 | OZ4: =IF(NH4<$C$34,$D$34,IF(NH4<$C$35,$D$35,IF(NH4<$C$36,$D$36,IF(NH4<$C$37,$D$37,IF(NH4<$C$38,$D$38,IF(NH4<$C$39,$D$39,IF(NH4<$C$40,$D$40,IF(NH4<$C$41,$D$41,0)))))))) -> 1.68 | PA4: =IF(NI4<$C$34,$D$34,IF(NI4<$C$35,$D$35,IF(NI4<$C$36,$D$36,IF(NI4<$C$37,$D$37,IF(NI4<$C$38,$D$38,IF(NI4<$C$39,$D$39,IF(NI4<$C$40,$D$40,IF(NI4<$C$41,$D$41,0)))))))) -> 1.68 | PB4: =IF(NJ4<$C$34,$D$34,IF(NJ4<$C$35,$D$35,IF(NJ4<$C$36,$D$36,IF(NJ4<$C$37,$D$37,IF(NJ4<$C$38,$D$38,IF(NJ4<$C$39,$D$39,IF(NJ4<$C$40,$D$40,IF(NJ4<$C$41,$D$41,0)))))))) -> 5.27 | PC4: =IF(NK4<$C$34,$D$34,IF(NK4<$C$35,$D$35,IF(NK4<$C$36,$D$36,IF(NK4<$C$37,$D$37,IF(NK4<$C$38,$D$38,IF(NK4<$C$39,$D$39,IF(NK4<$C$40,$D$40,IF(NK4<$C$41,$D$41,0)))))))) -> 5.27 | PD4: =IF(NL4<$C$34,$D$34,IF(NL4<$C$35,$D$35,IF(NL4<$C$36,$D$36,IF(NL4<$C$37,$D$37,IF(NL4<$C$38,$D$38,IF(NL4<$C$39,$D$39,IF(NL4<$C$40,$D$40,IF(NL4<$C$41,$D$41,0)))))))) -> 5.27 | PE4: =IF(NM4<$C$34,$D$34,IF(NM4<$C$35,$D$35,IF(NM4<$C$36,$D$36,IF(NM4<$C$37,$D$37,IF(NM4<$C$38,$D$38,IF(NM4<$C$39,$D$39,IF(NM4<$C$40,$D$40,IF(NM4<$C$41,$D$41,0)))))))) -> 5.27 | PF4: =IF(NN4<$C$34,$D$34,IF(NN4<$C$35,$D$35,IF(NN4<$C$36,$D$36,IF(NN4<$C$37,$D$37,IF(NN4<$C$38,$D$38,IF(NN4<$C$39,$D$39,IF(NN4<$C$40,$D$40,IF(NN4<$C$41,$D$41,0)))))))) -> 5.27 | PG4: =IF(NO4<$C$34,$D$34,IF(NO4<$C$35,$D$35,IF(NO4<$C$36,$D$36,IF(NO4<$C$37,$D$37,IF(NO4<$C$38,$D$38,IF(NO4<$C$39,$D$39,IF(NO4<$C$40,$D$40,IF(NO4<$C$41,$D$41,0)))))))) -> 5.27 | PH4: =IF(NP4<$C$34,$D$34,IF(NP4<$C$35,$D$35,IF(NP4<$C$36,$D$36,IF(NP4<$C$37,$D$37,IF(NP4<$C$38,$D$38,IF(NP4<$C$39,$D$39,IF(NP4<$C$40,$D$40,IF(NP4<$C$41,$D$41,0)))))))) -> 5.27 | PI4: =IF(NQ4<$C$34,$D$34,IF(NQ4<$C$35,$D$35,IF(NQ4<$C$36,$D$36,IF(NQ4<$C$37,$D$37,IF(NQ4<$C$38,$D$38,IF(NQ4<$C$39,$D$39,IF(NQ4<$C$40,$D$40,IF(NQ4<$C$41,$D$41,0)))))))) -> 5.27 | PJ4: =IF(NR4<$C$34,$D$34,IF(NR4<$C$35,$D$35,IF(NR4<$C$36,$D$36,IF(NR4<$C$37,$D$37,IF(NR4<$C$38,$D$38,IF(NR4<$C$39,$D$39,IF(NR4<$C$40,$D$40,IF(NR4<$C$41,$D$41,0)))))))) -> 1.68 | PM4: =IF(PN4>0,PN4/10-0.1,"") -> 0.1 | PN4: 2 | PO4: =NW4-NW228 -> -22.42 | PP4: =NX4-NX228 -> -22.42 | PQ4: =NY4-NY228 -> -22.42 | PR4: =NZ4-NZ228 -> -21.31 | PS4: =OA4-OA228 -> -3.59 | PT4: =OB4-OB228 -> -3.59 | PU4: =OC4-OC228 -> -3.59 | PV4: =OD4-OD228 -> -3.59 | PW4: =OE4-OE228 -> -17.72 | PX4: =OF4-OF228 -> 0 | PY4: =OG4-OG228 -> 0 | PZ4: =OH4-OH228 -> 0 | QA4: =OI4-OI228 -> 0 | QB4: =OJ4-OJ228 -> -3.59 | QC4: =OK4-OK228 -> -3.59 | QD4: =OL4-OL228 -> 0 | QE4: =OM4-OM228 -> 0 | QF4: =ON4-ON228 -> -17.72 | QG4: =OO4-OO228 -> 0 | QH4: =OP4-OP228 -> 0 | QI4: =OQ4-OQ228 -> 0 | QJ4: =OR4-OR228 -> 0 | QK4: =OS4-OS228 -> 0 | QL4: =OT4-OT228 -> 0 | QM4: =OU4-OU228 -> 0 | QN4: =OV4-OV228 -> 0 | QO4: =OW4-OW228 -> -17.72 | QP4: =OX4-OX228 -> -17.72 | QQ4: =OY4-OY228 -> -17.72 | QR4: =OZ4-OZ228 -> -21.31 | QS4: =PA4-PA228 -> -3.59 | QT4: =PB4-PB228 -> -17.72 | QU4: =PC4-PC228 -> -17.72 | QV4: =PD4-PD228 -> -17.72 | QW4: =PE4-PE228 -> -17.72 | QX4: =PF4-PF228 -> -17.72 | QY4: =PG4-PG228 -> -17.72 | QZ4: =PH4-PH228 -> -17.72 | RA4: =PI4-PI228 -> -17.72 | RB4: =PJ4-PJ228 -> -3.59 | RE4: 0.1 | RF4: 2 | RG4: =IF(CY4=MAX(CY3:CZ5),CY4,0) -> 0 | RH4: =IF(CZ4=MAX(CY3:DA5),CZ4,0) -> 0 | RI4: =IF(DA4=MAX(CZ3:DB5),DA4,0) -> 0 | RJ4: =IF(DB4=MAX(DA3:DC5),DB4,0) -> 0 | RK4: =IF(DC4=MAX(DB3:DD5),DC4,0) -> 0 | RL4: =IF(DD4=MAX(DC3:DE5),DD4,0) -> 0 | RM4: =IF(DE4=MAX(DD3:DF5),DE4,0) -> 0 | RN4: =IF(DF4=MAX(DE3:DG5),DF4,0) -> 0 | RO4: =IF(DG4=MAX(DF3:DH5),DG4,0) -> 0 | RP4: =IF(DH4=MAX(DG3:DI5),DH4,0) -> 0 | RQ4: =IF(DI4=MAX(DH3:DJ5),DI4,0) -> 0 | RR4: =IF(DJ4=MAX(DI3:DK5),DJ4,0) -> 0 | RS4: =IF(DK4=MAX(DJ3:DL5),DK4,0) -> 0 | RT4: =IF(DL4=MAX(DK3:DM5),DL4,0) -> 0 | RU4: =IF(DM4=MAX(DL3:DN5),DM4,0) -> 0 | RV4: =IF(DN4=MAX(DM3:DO5),DN4,0) -> 0 | RW4: =IF(DO4=MAX(DN3:DP5),DO4,0) -> 0 | RX4: =IF(DP4=MAX(DO3:DQ5),DP4,0) -> 0 | RY4: =IF(DQ4=MAX(DP3:DR5),DQ4,0) -> 0 | RZ4: =IF(DR4=MAX(DQ3:DS5),DR4,0) -> 0 | SA4: =IF(DS4=MAX(DR3:DT5),DS4,0) -> 42.04 | SB4: =IF(DT4=MAX(DS3:DU5),DT4,0) -> 0 | SC4: =IF(DU4=MAX(DT3:DV5),DU4,0) -> 0 | SD4: =IF(DV4=MAX(DU3:DW5),DV4,0) -> 0 | SE4: =IF(DW4=MAX(DV3:DX5),DW4,0) -> 0 | SF4: =IF(DX4=MAX(DW3:DY5),DX4,0) -> 0 | SG4: =IF(DY4=MAX(DX3:DZ5),DY4,0) -> 0 | SH4: =IF(DZ4=MAX(DY3:EA5),DZ4,0) -> 0 | SI4: =IF(EA4=MAX(DZ3:EB5),EA4,0) -> 0 | SJ4: =IF(EB4=MAX(EA3:EC5),EB4,0) -> 0 | SK4: =IF(EC4=MAX(EB3:ED5),EC4,0) -> 0 | SL4: =IF(ED4=MAX(EC3:EE5),ED4,0) -> 0 | SM4: =IF(EE4=MAX(ED3:EF5),EE4,0) -> 0 | SN4: =IF(EF4=MAX(EE3:EG5),EF4,0) -> 0 | SO4: =IF(EG4=MAX(EF3:EH5),EG4,0) -> 0 | SP4: =IF(EH4=MAX(EG3:EI5),EH4,0) -> 0 | SQ4: =IF(EI4=MAX(EH3:EJ5),EI4,0) -> 0 | SR4: =IF(EJ4=MAX(EI3:EK5),EJ4,0) -> 0 | SS4: =IF(EK4=MAX(EJ3:EL5),EK4,0) -> 0 | ST4: =IF(EL4=MAX(EK3:EM5),EL4,0) -> 0 | SU4: =IF(EM4=MAX(EL3:EM5),EM4,0) -> 0 | SV4: 0.1 | SX4: 0.1 | SY4: 2 | SZ4: =IF(ER4=MAX(ER3:ES5),ER4,0) -> 0 | TA4: =IF(ES4=MAX(ER3:ET5),ES4,0) -> 0 | TB4: =IF(ET4=MAX(ES3:EU5),ET4,0) -> 0 | TC4: =IF(EU4=MAX(ET3:EV5),EU4,0) -> 0 | TD4: =IF(EV4=MAX(EU3:EW5),EV4,0) -> 0 | TE4: =IF(EW4=MAX(EV3:EX5),EW4,0) -> 0 | TF4: =IF(EX4=MAX(EW3:EY5),EX4,0) -> 0 | TG4: =IF(EY4=MAX(EX3:EZ5),EY4,0) -> 0 | TH4: =IF(EZ4=MAX(EY3:FA5),EZ4,0) -> 0 | TI4: =IF(FA4=MAX(EZ3:FB5),FA4,0) -> 0 | TJ4: =IF(FB4=MAX(FA3:FC5),FB4,0) -> 0 | TK4: =IF(FC4=MAX(FB3:FD5),FC4,0) -> 0 | TL4: =IF(FD4=MAX(FC3:FE5),FD4,0) -> 0 | TM4: =IF(FE4=MAX(FD3:FF5),FE4,0) -> 0 | TN4: =IF(FF4=MAX(FE3:FG5),FF4,0) -> 0 | TO4: =IF(FG4=MAX(FF3:FH5),FG4,0) -> 0 | TP4: =IF(FH4=MAX(FG3:FI5),FH4,0) -> 0 | TQ4: =IF(FI4=MAX(FH3:FJ5),FI4,0) -> 0 | TR4: =IF(FJ4=MAX(FI3:FK5),FJ4,0) -> 0 | TS4: =IF(FK4=MAX(FJ3:FL5),FK4,0) -> 0 | TT4: =IF(FL4=MAX(FK3:FM5),FL4,0) -> 42.04 | TU4: =IF(FM4=MAX(FL3:FN5),FM4,0) -> 42.04 | TV4: =IF(FN4=MAX(FM3:FO5),FN4,0) -> 0 | TW4: =IF(FO4=MAX(FN3:FP5),FO4,0) -> 0 | TX4: =IF(FP4=MAX(FO3:FQ5),FP4,0) -> 0 | TY4: =IF(FQ4=MAX(FP3:FR5),FQ4,0) -> 0 | TZ4: =IF(FR4=MAX(FQ3:FS5),FR4,0) -> 0 | UA4: =IF(FS4=MAX(FR3:FT5),FS4,0) -> 0 | UB4: =IF(FT4=MAX(FS3:FU5),FT4,0) -> 0 | UC4: =IF(FU4=MAX(FT3:FV5),FU4,0) -> 0 | UD4: =IF(FV4=MAX(FU3:FW5),FV4,0) -> 0 | UE4: =IF(FW4=MAX(FV3:FX5),FW4,0) -> 0 | UF4: =IF(FX4=MAX(FW3:FY5),FX4,0) -> 0 | UG4: =IF(FY4=MAX(FX3:FZ5),FY4,0) -> 0 | UH4: =IF(FZ4=MAX(FY3:GA5),FZ4,0) -> 0 | UI4: =IF(GA4=MAX(FZ3:GB5),GA4,0) -> 0 | UJ4: =IF(GB4=MAX(GA3:GC5),GB4,0) -> 0 | UK4: =IF(GC4=MAX(GB3:GD5),GC4,0) -> 0 | UL4: =IF(GD4=MAX(GC3:GE5),GD4,0) -> 0 | UM4: =IF(GE4=MAX(GD3:GF5),GE4,0) -> 0 | UN4: =IF(GF4=MAX(GE3:GF5),GF4,0) -> 0 | UO4: 0.1 | UQ4: 0.1 | UR4: 2 | US4: 1 | UT4: =IF(OR(INT(1000*UT$1/$B$18)-1000*UT$1/$B$18=0,INT(1000*$UQ4/$B$19)-1000*$UQ4/$B$19=0),1,0) -> 0 | UU4: 0 | UV4: 0 | UW4: 0 | UX4: 0 | UY4: 0 | UZ4: 0 | VA4: 0 | VB4: 0 | VC4: 0 | VD4: =IF(OR(INT(1000*VD$1/$B$18)-1000*VD$1/$B$18=0,INT(1000*$UQ4/$B$19)-1000*$UQ4/$B$19=0),1,0) -> 0 | VE4: 0 | VF4: 0 | VG4: 0 | VH4: 0 | VI4: 0 | VJ4: 0 | VK4: 0 | VL4: 0 | VM4: 1 | VN4: =IF(OR(INT(1000*VN$1/$B$18)-1000*VN$1/$B$18=0,INT(1000*$UQ4/$B$19)-1000*$UQ4/$B$19=0),1,0) -> 0 | VO4: 0 | VP4: 0 | VQ4: 0 | VR4: 0 | VS4: 0 | VT4: 0 | VU4: 0 | VV4: 0 | VW4: 0 | VX4: =IF(OR(INT(1000*VX$1/$B$18)-1000*VX$1/$B$18=0,INT(1000*$UQ4/$B$19)-1000*$UQ4/$B$19=0),1,0) -> 0 | VY4: 0 | VZ4: 0 | WA4: 0 | WB4: 0 | WC4: 0 | WD4: 0 | WE4: 0 | WF4: 0 | WG4: 1 | WH4: 0.1 | WJ4: 0.1 | WK4: 2 | WL4: 42.24 | WM4: 0 | WN4: 0 | WO4: 0 | WP4: 0 | WQ4: 0 | WR4: 0 | WS4: 0 | WT4: 0 | WU4: 0 | WV4: 0 | WW4: 0 | WX4: 0 | WY4: 0 | WZ4: 0 | XA4: 0 | XB4: 0 | XC4: 0 | XD4: 0 | XE4: 0 | XF4: 42.04 | XG4: 0 | XH4: 0 | XI4: 0 | XJ4: 0 | XK4: 0 | XL4: 0 | XM4: 0 | XN4: 0 | XO4: 0 | XP4: 0 | XQ4: 0 | XR4: 0 | XS4: 0 | XT4: 0 | XU4: 0 | XV4: 0 | XW4: 0 | XX4: 0 | XY4: 0 | XZ4: 33.88 | YA4: 0.1 | YC4: 0.1 | YD4: 2 | YE4: =YE3 -> 7 | YF4: =YF3 -> 7 | YG4: =YG3 -> 7 | YH4: 7 | YI4: 7 | YJ4: 7 | YK4: 7 | YL4: 7 | YM4: 7 | YN4: 7 | YO4: 7 | YP4: 7 | YQ4: 7 | YR4: 7 | YS4: 7 | YT4: 7 | YU4: 7 | YV4: 7 | YW4: 7 | YX4: 7 | YY4: =YX4 -> 7 | YZ4: =ZA4 -> 4 | ZA4: =ZA3 -> 4 | ZB4: =ZB3 -> 4 | ZC4: =ZC3 -> 4 | ZD4: =ZD3 -> 4 | ZE4: =ZE3 -> 4 | ZF4: =ZF3 -> 4 | ZG4: =ZG3 -> 4 | ZH4: =ZH3 -> 4 | ZI4: =ZI3 -> 4 | ZJ4: =ZJ3 -> 4 | ZK4: =ZK3 -> 4 | ZL4: =ZL3 -> 4 | ZM4: =ZM3 -> 4 | ZN4: =ZN3 -> 4 | ZO4: =ZO3 -> 4 | ZP4: =ZP3 -> 4 | ZQ4: =ZQ3 -> 4 | ZR4: =ZR3 -> 4 | ZS4: =ZS3 -> 4 | ZT4: =ZS4 -> 4 | ZU4: 0.1 | ZW4: 0.1 | ZX4: 2 | ZY4: 0 | ZZ4: 0 | AAA4: 0 | AAB4: 0 | AAC4: 0 | AAD4: 0 | AAE4: 0 | AAF4: 0 | AAG4: 0 | AAH4: 4 | AAI4: 4 | AAJ4: 0 | AAK4: 0 | AAL4: 0 | AAM4: 0 | AAN4: 0 | AAO4: 0 | AAP4: 0 | AAQ4: 0 | AAR4: 0 | AAS4: 0 | AAT4: 0 | AAU4: 0 | AAV4: 0 | AAW4: 0 | AAX4: 0 | AAY4: 0 | AAZ4: 0 | ABA4: 0 | ABB4: 0 | ABC4: 0 | ABD4: 0 | ABE4: 0 | ABF4: 0 | ABG4: 0 | ABH4: 0 | ABI4: 0 | ABJ4: 0 | ABK4: 0 | ABL4: 0 | ABM4: 0 | ABN4: 0 | ABO4: 0.1 | ABQ4: 0.1 | ABR4: 2 | ABS4: =IF(OR(INT(1000*ABS$1/$B$18)-1000*ABS$1/$B$18=0,INT(1000*$UQ4/$B$19)-1000*$UQ4/$B$19=0),1,0) -> 1 | ABT4: 0 | ABU4: 0 | ABV4: 0 | ABW4: 0 | ABX4: 0 | ABY4: 0 | ABZ4: 0 | ACA4: 0 | ACB4: 0 | ACC4: =IF(OR(INT(1000*ACC$1/$B$18)-1000*ACC$1/$B$18=0,INT(1000*$UQ4/$B$19)-1000*$UQ4/$B$19=0),1,0) -> 0 | ACD4: 0 | ACE4: 0 | ACF4: 0 | ACG4: 0 | ACH4: 0 | ACI4: 0 | ACJ4: 0 | ACK4: 0 | ACL4: 0 | ACM4: 1 | ACN4: =ACO4 -> 57 | ACO4: =ACO3 -> 57 | ACP4: =ACP3 -> 57 | ACQ4: =ACQ3 -> 57 | ACR4: =ACR3 -> 57 | ACS4: =ACS3 -> 57 | ACT4: =ACT3 -> 57 | ACU4: =ACU3 -> 57 | ACV4: =ACV3 -> 57 | ACW4: =ACW3 -> 57 | ACX4: =ACX3 -> 57 | ACY4: =ACY3 -> 57 | ACZ4: =ACZ3 -> 57 | ADA4: =ADA3 -> 57 | ADB4: =ADB3 -> 57 | ADC4: =ADC3 -> 57 | ADD4: =ADD3 -> 57 | ADE4: =ADE3 -> 57 | ADF4: =ADF3 -> 57 | ADG4: =ADG3 -> 57 | ADH4: =ADG4 -> 57 | ADI4: 0.1
A5: 3 | B5: C | C5: 39 | D5: 39 | E5: 38 | F5: 37 | G5: 37 | H5: 37 | I5: 35 | J5: 31 | K5: 31 | M5: 1B | N5: =ROUND('3D Interpolace'!M6,2) -> 41.56 | O5: =ROUND('3D Interpolace'!N6,2) -> 41.4 | P5: =ROUND('3D Interpolace'!O6,2) -> 41.25 | Q5: =ROUND('3D Interpolace'!P6,2) -> 41.12 | R5: =ROUND('3D Interpolace'!Q6,2) -> 41.01 | S5: =ROUND('3D Interpolace'!R6,2) -> 40.92 | T5: =ROUND('3D Interpolace'!S6,2) -> 40.87 | U5: =ROUND('3D Interpolace'!T6,2) -> 40.85 | V5: =ROUND('3D Interpolace'!U6,2) -> 40.85 | W5: =ROUND('3D Interpolace'!V6,2) -> 40.81 | X5: =ROUND('3D Interpolace'!W6,2) -> 40.72 | Y5: =ROUND('3D Interpolace'!X6,2) -> 40.49 | Z5: =ROUND('3D Interpolace'!Y6,2) -> 40.15 | AA5: =ROUND('3D Interpolace'!Z6,2) -> 39.81 | AB5: =ROUND('3D Interpolace'!AA6,2) -> 39.58 | AC5: =ROUND('3D Interpolace'!AB6,2) -> 39.56 | AD5: =ROUND('3D Interpolace'!AC6,2) -> 39.89 | AE5: =ROUND('3D Interpolace'!AD6,2) -> 40.49 | AF5: =ROUND('3D Interpolace'!AE6,2) -> 41.17 | AG5: =ROUND('3D Interpolace'!AF6,2) -> 41.73 | AH5: =ROUND('3D Interpolace'!AG6,2) -> 41.96 | AI5: =ROUND('3D Interpolace'!AH6,2) -> 41.81 | AJ5: =ROUND('3D Interpolace'!AI6,2) -> 41.4 | AK5: =ROUND('3D Interpolace'!AJ6,2) -> 40.84 | AL5: =ROUND('3D Interpolace'!AK6,2) -> 40.19 | AM5: =ROUND('3D Interpolace'!AL6,2) -> 39.56 | AN5: =ROUND('3D Interpolace'!AM6,2) -> 38.85 | AO5: =ROUND('3D Interpolace'!AN6,2) -> 38 | AP5: =ROUND('3D Interpolace'!AO6,2) -> 37.14 | AQ5: =ROUND('3D Interpolace'!AP6,2) -> 36.42 | AR5: =ROUND('3D Interpolace'!AQ6,2) -> 35.96 | AS5: =ROUND('3D Interpolace'!AR6,2) -> 35.9 | AT5: =ROUND('3D Interpolace'!AS6,2) -> 36.15 | AU5: =ROUND('3D Interpolace'!AT6,2) -> 36.51 | AV5: =ROUND('3D Interpolace'!AU6,2) -> 36.78 | AW5: =ROUND('3D Interpolace'!AV6,2) -> 36.76 | AX5: =ROUND('3D Interpolace'!AW6,2) -> 36.46 | AY5: =ROUND('3D Interpolace'!AX6,2) -> 36 | AZ5: =ROUND('3D Interpolace'!AY6,2) -> 35.4 | BA5: =ROUND('3D Interpolace'!AZ6,2) -> 34.64 | BB5: =ROUND('3D Interpolace'!BA6,2) -> 33.72 | BD5: 0.2 | BE5: 3 | BO5: 4 | BP5: 4 | CU5: 0.2 | CW5: 0.2 | CX5: 3 | CY5: 41.56 | CZ5: 41.4 | DA5: 41.25 | DB5: 41.12 | DC5: 41.01 | DD5: 40.92 | DE5: 40.87 | DF5: 40.85 | DG5: 40.85 | DH5: 44.81 | DI5: 44.72 | DJ5: 40.49 | DK5: 40.15 | DL5: 39.81 | DM5: 39.58 | DN5: 39.56 | DO5: 39.89 | DP5: 40.49 | DQ5: 41.17 | DR5: 41.73 | DS5: 41.96 | DT5: 41.81 | DU5: 41.4 | DV5: 40.84 | DW5: 40.19 | DX5: 39.56 | DY5: 38.85 | DZ5: 38 | EA5: 37.14 | EB5: 36.42 | EC5: 35.96 | ED5: 35.9 | EE5: 36.15 | EF5: 36.51 | EG5: 36.78 | EH5: 36.76 | EI5: 36.46 | EJ5: 36 | EK5: 35.4 | EL5: 34.64 | EM5: 33.72 | EN5: 0.2 | EP5: 0.2 | EQ5: 3 | ER5: 41.56 | ES5: 41.4 | ET5: 41.25 | EU5: 41.12 | EV5: 41.01 | EW5: 40.92 | EX5: 40.87 | EY5: 40.85 | EZ5: 40.85 | FA5: 44.81 | FB5: 44.72 | FC5: 40.49 | FD5: 40.15 | FE5: 39.81 | FF5: 39.58 | FG5: 39.56 | FH5: 39.89 | FI5: 40.49 | FJ5: 41.17 | FK5: 41.73 | FL5: 41.96 | FM5: 41.96 | FN5: 41.81 | FO5: 41.4 | FP5: 40.84 | FQ5: 40.19 | FR5: 39.56 | FS5: 38.85 | FT5: 38 | FU5: 37.14 | FV5: 36.42 | FW5: 35.96 | FX5: 35.9 | FY5: 36.15 | FZ5: 36.51 | GA5: 36.78 | GB5: 36.76 | GC5: 36.46 | GD5: 36 | GE5: 35.4 | GF5: 34.64 | GG5: 33.72 | GK5: 0.2 | GL5: 3 | GM5: 0 | GN5: 0 | GO5: 0 | GP5: 0 | GQ5: 0 | GR5: 0 | GS5: 0 | GT5: 0 | GU5: 0 | GV5: 0 | GW5: 44.72 | GX5: 0 | GY5: 0 | GZ5: 0 | HA5: 0 | HB5: 0 | HC5: 0 | HD5: 0 | HE5: 0 | HF5: 0 | HG5: 0 | HH5: 0 | HI5: 0 | HJ5: 0 | HK5: 0 | HL5: 0 | HM5: 0 | HN5: 0 | HO5: 0 | HP5: 0 | HQ5: 0 | HR5: 0 | HS5: 0 | HT5: 0 | HU5: 0 | HV5: 0 | HW5: 0 | HX5: 0 | HY5: 0 | HZ5: 0 | IA5: 0 | IB5: 0 | IC5: 0.2 | IG5: 3 | IH5: 48.57142857 | II5: 48.27142857 | IJ5: 47.97142857 | IK5: 47.67142857 | IL5: 47.37142857 | IM5: 47.07142857 | IN5: 46.77142857 | IO5: 46.47142857 | IP5: 46.17142857 | IQ5: 45.87142857 | IR5: 45.57142857 | IS5: 45.27142857 | IT5: 44.97142857 | IU5: 44.67142857 | IV5: 44.37142857 | IW5: 44.07142857 | IX5: 43.77142857 | IY5: 43.47142857 | IZ5: 43.17142857 | JA5: 42.87142857 | JB5: 42.57142857 | JC5: 42.57142857 | JD5: 42.37142857 | JE5: 42.17142857 | JF5: 41.97142857 | JG5: 41.77142857 | JH5: 41.57142857 | JI5: 41.37142857 | JJ5: 41.17142857 | JK5: 40.97142857 | JL5: 40.77142857 | JM5: 40.57142857 | JN5: 40.37142857 | JO5: 40.17142857 | JP5: 39.97142857 | JQ5: 39.77142857 | JR5: 39.57142857 | JS5: 39.37142857 | JT5: 39.17142857 | JU5: 38.97142857 | JV5: 38.77142857 | JW5: 38.57142857 | JX5: 0.2 | KD5: 0.2 | KE5: 3 | KF5: 7.011428571 | KG5: 6.871428571 | KH5: 6.721428571 | KI5: 6.551428571 | KJ5: 6.361428571 | KK5: 6.151428571 | KL5: 5.901428571 | KM5: 5.621428571 | KN5: 5.321428571 | KO5: 1.061428571 | KP5: 0.8514285714 | KQ5: 4.781428571 | KR5: 4.821428571 | KS5: 4.861428571 | KT5: 4.791428571 | KU5: 4.511428571 | KV5: 3.881428571 | KW5: 2.981428571 | KX5: 2.001428571 | KY5: 1.141428571 | KZ5: 0.6114285714 | LA5: 0.6114285714 | LB5: 0.5614285714 | LC5: 0.7714285714 | LD5: 1.131428571 | LE5: 1.581428571 | LF5: 2.011428571 | LG5: 2.521428571 | LH5: 3.171428571 | LI5: 3.831428571 | LJ5: 4.351428571 | LK5: 4.611428571 | LL5: 4.471428571 | LM5: 4.021428571 | LN5: 3.461428571 | LO5: 2.991428571 | LP5: 2.811428571 | LQ5: 2.911428571 | LR5: 3.171428571 | LS5: 3.571428571 | LT5: 4.131428571 | LU5: 4.851428571 | MC5: 0.2 | MD5: 3 | ME5: 7.411785714 | MF5: 7.309285714 | MG5: 7.174285714 | MH5: 7.006785714 | MI5: 6.804285714 | MJ5: 6.549285714 | MK5: 6.226785714 | ML5: 5.859285714 | MM5: 3.501785714 | MN5: 1.214285714 | MO5: 3.066785714 | MP5: 5.081785714 | MQ5: 5.176785714 | MR5: 5.221785714 | MS5: 5.084285714 | MT5: 4.629285714 | MU5: 3.829285714 | MV5: 2.834285714 | MW5: 1.859285714 | MX5: 1.129285714 | MY5: 0.8392857143 | MZ5: 0.9517857143 | NA5: 1.289285714 | NB5: 1.746785714 | NC5: 2.224285714 | ND5: 2.706785714 | NE5: 3.269285714 | NF5: 3.889285714 | NG5: 4.446785714 | NH5: 4.824285714 | NI5: 4.906785714 | NJ5: 4.674285714 | NK5: 4.254285714 | NL5: 3.816785714 | NM5: 3.534285714 | NN5: 3.491785714 | NO5: 3.631785714 | NP5: 3.896785714 | NQ5: 4.286785714 | NR5: 4.804285714 | NU5: 0.2 | NV5: 3 | NW5: 0.57 | NX5: 0.57 | NY5: 0.57 | NZ5: 0.57 | OA5: 0.57 | OB5: 0.57 | OC5: 0.57 | OD5: 1.68 | OE5: 5.27 | OF5: 22.99 | OG5: 5.27 | OH5: 1.68 | OI5: 1.68 | OJ5: 1.68 | OK5: 1.68 | OL5: 1.68 | OM5: 5.27 | ON5: 5.27 | OO5: 22.99 | OP5: 22.99 | OQ5: 22.99 | OR5: 22.99 | OS5: 22.99 | OT5: 22.99 | OU5: 5.27 | OV5: 5.27 | OW5: 5.27 | OX5: 5.27 | OY5: 1.68 | OZ5: 1.68 | PA5: 1.68 | PB5: 1.68 | PC5: 1.68 | PD5: 5.27 | PE5: 5.27 | PF5: 5.27 | PG5: 5.27 | PH5: 5.27 | PI5: 1.68 | PJ5: 1.68 | PM5: 0.2 | PN5: 3 | PO5: -22.42 | PP5: -22.42 | PQ5: -4.7 | PR5: -4.7 | PS5: -4.7 | PT5: -4.7 | PU5: -4.7 | PV5: -3.59 | PW5: -17.72 | PX5: 0 | PY5: 0 | PZ5: 0 | QA5: 0 | QB5: 0 | QC5: 0 | QD5: -3.59 | QE5: 0 | QF5: -17.72 | QG5: 0 | QH5: 0 | QI5: 0 | QJ5: 0 | QK5: 0 | QL5: 0 | QM5: -17.72 | QN5: -17.72 | QO5: -17.72 | QP5: -17.72 | QQ5: -21.31 | QR5: -21.31 | QS5: -21.31 | QT5: -21.31 | QU5: -21.31 | QV5: -17.72 | QW5: -17.72 | QX5: -17.72 | QY5: -17.72 | QZ5: -17.72 | RA5: -21.31 | RB5: -21.31 | RE5: 0.2 | RF5: 3 | RG5: 0 | RH5: 0 | RI5: 0 | RJ5: 0 | RK5: 0 | RL5: 0 | RM5: 0 | RN5: 0 | RO5: 0 | RP5: 0 | RQ5: 0 | RR5: 0 | RS5: 0 | RT5: 0 | RU5: 0 | RV5: 0 | RW5: 0 | RX5: 0 | RY5: 0 | RZ5: 0 | SA5: 0 | SB5: 0 | SC5: 0 | SD5: 0 | SE5: 0 | SF5: 0 | SG5: 0 | SH5: 0 | SI5: 0 | SJ5: 0 | SK5: 0 | SL5: 0 | SM5: 0 | SN5: 0 | SO5: 0 | SP5: 0 | SQ5: 0 | SR5: 0 | SS5: 0 | ST5: 0 | SU5: 0 | SV5: 0.2 | SX5: 0.2 | SY5: 3 | SZ5: 0 | TA5: 0 | TB5: 0 | TC5: 0 | TD5: 0 | TE5: 0 | TF5: 0 | TG5: 0 | TH5: 0 | TI5: 0 | TJ5: 0 | TK5: 0 | TL5: 0 | TM5: 0 | TN5: 0 | TO5: 0 | TP5: 0 | TQ5: 0 | TR5: 0 | TS5: 0 | TT5: 0 | TU5: 0 | TV5: 0 | TW5: 0 | TX5: 0 | TY5: 0 | TZ5: 0 | UA5: 0 | UB5: 0 | UC5: 0 | UD5: 0 | UE5: 0 | UF5: 0 | UG5: 0 | UH5: 0 | UI5: 0 | UJ5: 0 | UK5: 0 | UL5: 0 | UM5: 0 | UN5: 0 | UO5: 0.2 | UQ5: 0.2 | UR5: 3 | US5: 1 | UT5: 0 | UU5: 0 | UV5: 0 | UW5: 0 | UX5: 0 | UY5: 0 | UZ5: 0 | VA5: 0 | VB5: 0 | VC5: 0 | VD5: 0 | VE5: 0 | VF5: 0 | VG5: 0 | VH5: 0 | VI5: 0 | VJ5: 0 | VK5: 0 | VL5: 0 | VM5: 1 | VN5: 0 | VO5: 0 | VP5: 0 | VQ5: 0 | VR5: 0 | VS5: 0 | VT5: 0 | VU5: 0 | VV5: 0 | VW5: 0 | VX5: 0 | VY5: 0 | VZ5: 0 | WA5: 0 | WB5: 0 | WC5: 0 | WD5: 0 | WE5: 0 | WF5: 0 | WG5: 1 | WH5: 0.2 | WJ5: 0.2 | WK5: 3 | WL5: 41.56 | WM5: 0 | WN5: 0 | WO5: 0 | WP5: 0 | WQ5: 0 | WR5: 0 | WS5: 0 | WT5: 0 | WU5: 0 | WV5: 0 | WW5: 0 | WX5: 0 | WY5: 0 | WZ5: 0 | XA5: 0 | XB5: 0 | XC5: 0 | XD5: 0 | XE5: 0 | XF5: 41.96 | XG5: 0 | XH5: 0 | XI5: 0 | XJ5: 0 | XK5: 0 | XL5: 0 | XM5: 0 | XN5: 0 | XO5: 0 | XP5: 0 | XQ5: 0 | XR5: 0 | XS5: 0 | XT5: 0 | XU5: 0 | XV5: 0 | XW5: 0 | XX5: 0 | XY5: 0 | XZ5: 33.72 | YA5: 0.2 | YC5: 0.2 | YD5: 3 | YE5: =YE4 -> 7 | YF5: =YF4 -> 7 | YG5: =YG4 -> 7 | YH5: =YH4 -> 7 | YI5: =YI4 -> 7 | YJ5: =YJ4 -> 7 | YK5: =YK4 -> 7 | YL5: =YL4 -> 7 | YM5: =YM4 -> 7 | YN5: =YN4 -> 7 | YO5: =YO4 -> 7 | YP5: =YP4 -> 7 | YQ5: =YQ4 -> 7 | YR5: =YR4 -> 7 | YS5: =YS4 -> 7 | YT5: =YT4 -> 7 | YU5: =YU4 -> 7 | YV5: =YV4 -> 7 | YW5: =YW4 -> 7 | YX5: =YX4 -> 7 | YY5: =YX5 -> 7 | YZ5: 4 | ZA5: =ZA4 -> 4 | ZB5: 4 | ZC5: 4 | ZD5: 4 | ZE5: 4 | ZF5: 4 | ZG5: 4 | ZH5: 4 | ZI5: 4 | ZJ5: 4 | ZK5: 4 | ZL5: 4 | ZM5: 4 | ZN5: 4 | ZO5: 4 | ZP5: 4 | ZQ5: 4 | ZR5: 4 | ZS5: 4 | ZT5: =ZS5 -> 4 | ZU5: 0.2 | ZW5: 0.2 | ZX5: 3 | ZY5: 0 | ZZ5: 0 | AAA5: 0 | AAB5: 0 | AAC5: 0 | AAD5: 0 | AAE5: 0 | AAF5: 0 | AAG5: 0 | AAH5: 4 | AAI5: 4 | AAJ5: 0 | AAK5: 0 | AAL5: 0 | AAM5: 0 | AAN5: 0 | AAO5: 0 | AAP5: 0 | AAQ5: 0 | AAR5: 0 | AAS5: 0 | AAT5: 0 | AAU5: 0 | AAV5: 0 | AAW5: 0 | AAX5: 0 | AAY5: 0 | AAZ5: 0 | ABA5: 0 | ABB5: 0 | ABC5: 0 | ABD5: 0 | ABE5: 0 | ABF5: 0 | ABG5: 0 | ABH5: 0 | ABI5: 0 | ABJ5: 0 | ABK5: 0 | ABL5: 0 | ABM5: 0 | ABN5: 0 | ABO5: 0.2 | ABQ5: 0.2 | ABR5: 3 | ABS5: 1 | ABT5: 0 | ABU5: 0 | ABV5: 0 | ABW5: 0 | ABX5: 0 | ABY5: 0 | ABZ5: 0 | ACA5: 0 | ACB5: 0 | ACC5: 0 | ACD5: 0 | ACE5: 0 | ACF5: 0 | ACG5: 0 | ACH5: 0 | ACI5: 0 | ACJ5: 0 | ACK5: 0 | ACL5: 0 | ACM5: 1 | ACN5: 57 | ACO5: =ACO4 -> 57 | ACP5: 57 | ACQ5: 57 | ACR5: 57 | ACS5: 57 | ACT5: 57 | ACU5: 57 | ACV5: 57 | ACW5: 57 | ACX5: 57 | ACY5: 57 | ACZ5: 57 | ADA5: 57 | ADB5: 57 | ADC5: 57 | ADD5: 57 | ADE5: 57 | ADF5: 57 | ADG5: 57 | ADH5: =ADG5 -> 57 | ADI5: 0.2
A6: 4 | B6: D | C6: 37 | D6: 38 | E6: 37 | F6: 35 | G6: 34 | H6: 35 | I6: 34 | J6: 33 | K6: 33 | M6: 1C | N6: =ROUND('3D Interpolace'!M7,2) -> 40.96 | O6: =ROUND('3D Interpolace'!N7,2) -> 40.69 | P6: =ROUND('3D Interpolace'!O7,2) -> 40.48 | Q6: =ROUND('3D Interpolace'!P7,2) -> 40.31 | R6: =ROUND('3D Interpolace'!Q7,2) -> 40.19 | S6: =ROUND('3D Interpolace'!R7,2) -> 40.12 | T6: =ROUND('3D Interpolace'!S7,2) -> 40.15 | U6: =ROUND('3D Interpolace'!T7,2) -> 40.28 | V6: =ROUND('3D Interpolace'!U7,2) -> 40.44 | W6: =ROUND('3D Interpolace'!V7,2) -> 40.55 | X6: =ROUND('3D Interpolace'!W7,2) -> 40.52 | Y6: =ROUND('3D Interpolace'!X7,2) -> 40.26 | Z6: =ROUND('3D Interpolace'!Y7,2) -> 39.83 | AA6: =ROUND('3D Interpolace'!Z7,2) -> 39.36 | AB6: =ROUND('3D Interpolace'!AA7,2) -> 39.02 | AC6: =ROUND('3D Interpolace'!AB7,2) -> 38.96 | AD6: =ROUND('3D Interpolace'!AC7,2) -> 39.33 | AE6: =ROUND('3D Interpolace'!AD7,2) -> 40.03 | AF6: =ROUND('3D Interpolace'!AE7,2) -> 40.83 | AG6: =ROUND('3D Interpolace'!AF7,2) -> 41.49 | AH6: =ROUND('3D Interpolace'!AG7,2) -> 41.76 | AI6: =ROUND('3D Interpolace'!AH7,2) -> 41.57 | AJ6: =ROUND('3D Interpolace'!AI7,2) -> 41.07 | AK6: =ROUND('3D Interpolace'!AJ7,2) -> 40.39 | AL6: =ROUND('3D Interpolace'!AK7,2) -> 39.65 | AM6: =ROUND('3D Interpolace'!AL7,2) -> 38.96 | AN6: =ROUND('3D Interpolace'!AM7,2) -> 38.26 | AO6: =ROUND('3D Interpolace'!AN7,2) -> 37.47 | AP6: =ROUND('3D Interpolace'!AO7,2) -> 36.69 | AQ6: =ROUND('3D Interpolace'!AP7,2) -> 36.02 | AR6: =ROUND('3D Interpolace'!AQ7,2) -> 35.56 | AS6: =ROUND('3D Interpolace'!AR7,2) -> 35.41 | AT6: =ROUND('3D Interpolace'!AS7,2) -> 35.5 | AU6: =ROUND('3D Interpolace'!AT7,2) -> 35.68 | AV6: =ROUND('3D Interpolace'!AU7,2) -> 35.82 | AW6: =ROUND('3D Interpolace'!AV7,2) -> 35.76 | AX6: =ROUND('3D Interpolace'!AW7,2) -> 35.51 | AY6: =ROUND('3D Interpolace'!AX7,2) -> 35.16 | AZ6: =ROUND('3D Interpolace'!AY7,2) -> 34.71 | BA6: =ROUND('3D Interpolace'!AZ7,2) -> 34.16 | BB6: =ROUND('3D Interpolace'!BA7,2) -> 33.52 | BD6: 0.3 | BE6: 4 | BO6: 4 | BP6: 4 | CU6: 0.3 | CW6: 0.3 | CX6: 4 | CY6: 40.96 | CZ6: 40.69 | DA6: 40.48 | DB6: 40.31 | DC6: 40.19 | DD6: 40.12 | DE6: 40.15 | DF6: 40.28 | DG6: 40.44 | DH6: 44.55 | DI6: 44.52 | DJ6: 40.26 | DK6: 39.83 | DL6: 39.36 | DM6: 39.02 | DN6: 38.96 | DO6: 39.33 | DP6: 40.03 | DQ6: 40.83 | DR6: 41.49 | DS6: 41.76 | DT6: 41.57 | DU6: 41.07 | DV6: 40.39 | DW6: 39.65 | DX6: 38.96 | DY6: 38.26 | DZ6: 37.47 | EA6: 36.69 | EB6: 36.02 | EC6: 35.56 | ED6: 35.41 | EE6: 35.5 | EF6: 35.68 | EG6: 35.82 | EH6: 35.76 | EI6: 35.51 | EJ6: 35.16 | EK6: 34.71 | EL6: 34.16 | EM6: 33.52 | EN6: 0.3 | EP6: 0.3 | EQ6: 4 | ER6: 40.96 | ES6: 40.69 | ET6: 40.48 | EU6: 40.31 | EV6: 40.19 | EW6: 40.12 | EX6: 40.15 | EY6: 40.28 | EZ6: 40.44 | FA6: 44.55 | FB6: 44.52 | FC6: 40.26 | FD6: 39.83 | FE6: 39.36 | FF6: 39.02 | FG6: 38.96 | FH6: 39.33 | FI6: 40.03 | FJ6: 40.83 | FK6: 41.49 | FL6: 41.76 | FM6: 41.76 | FN6: 41.57 | FO6: 41.07 | FP6: 40.39 | FQ6: 39.65 | FR6: 38.96 | FS6: 38.26 | FT6: 37.47 | FU6: 36.69 | FV6: 36.02 | FW6: 35.56 | FX6: 35.41 | FY6: 35.5 | FZ6: 35.68 | GA6: 35.82 | GB6: 35.76 | GC6: 35.51 | GD6: 35.16 | GE6: 34.71 | GF6: 34.16 | GG6: 33.52 | GK6: 0.3 | GL6: 4 | GM6: 0 | GN6: 0 | GO6: 0 | GP6: 0 | GQ6: 0 | GR6: 0 | GS6: 0 | GT6: 0 | GU6: 0 | GV6: 0 | GW6: 44.52 | GX6: 0 | GY6: 0 | GZ6: 0 | HA6: 0 | HB6: 0 | HC6: 0 | HD6: 0 | HE6: 0 | HF6: 0 | HG6: 0 | HH6: 0 | HI6: 0 | HJ6: 0 | HK6: 0 | HL6: 0 | HM6: 0 | HN6: 0 | HO6: 0 | HP6: 0 | HQ6: 0 | HR6: 0 | HS6: 0 | HT6: 0 | HU6: 0 | HV6: 0 | HW6: 0 | HX6: 0 | HY6: 0 | HZ6: 0 | IA6: 0 | IB6: 0 | IC6: 0.3 | IG6: 4 | IH6: 48.85714286 | II6: 48.55714286 | IJ6: 48.25714286 | IK6: 47.95714286 | IL6: 47.65714286 | IM6: 47.35714286 | IN6: 47.05714286 | IO6: 46.75714286 | IP6: 46.45714286 | IQ6: 46.15714286 | IR6: 45.85714286 | IS6: 45.55714286 | IT6: 45.25714286 | IU6: 44.95714286 | IV6: 44.65714286 | IW6: 44.35714286 | IX6: 44.05714286 | IY6: 43.75714286 | IZ6: 43.45714286 | JA6: 43.15714286 | JB6: 42.85714286 | JC6: 42.85714286 | JD6: 42.65714286 | JE6: 42.45714286 | JF6: 42.25714286 | JG6: 42.05714286 | JH6: 41.85714286 | JI6: 41.65714286 | JJ6: 41.45714286 | JK6: 41.25714286 | JL6: 41.05714286 | JM6: 40.85714286 | JN6: 40.65714286 | JO6: 40.45714286 | JP6: 40.25714286 | JQ6: 40.05714286 | JR6: 39.85714286 | JS6: 39.65714286 | JT6: 39.45714286 | JU6: 39.25714286 | JV6: 39.05714286 | JW6: 38.85714286 | JX6: 0.3 | KD6: 0.3 | KE6: 4 | KF6: 7.897142857 | KG6: 7.867142857 | KH6: 7.777142857 | KI6: 7.647142857 | KJ6: 7.467142857 | KK6: 7.237142857 | KL6: 6.907142857 | KM6: 6.477142857 | KN6: 6.017142857 | KO6: 1.607142857 | KP6: 1.337142857 | KQ6: 5.297142857 | KR6: 5.427142857 | KS6: 5.597142857 | KT6: 5.637142857 | KU6: 5.397142857 | KV6: 4.727142857 | KW6: 3.727142857 | KX6: 2.627142857 | KY6: 1.667142857 | KZ6: 1.097142857 | LA6: 1.097142857 | LB6: 1.087142857 | LC6: 1.387142857 | LD6: 1.867142857 | LE6: 2.407142857 | LF6: 2.897142857 | LG6: 3.397142857 | LH6: 3.987142857 | LI6: 4.567142857 | LJ6: 5.037142857 | LK6: 5.297142857 | LL6: 5.247142857 | LM6: 4.957142857 | LN6: 4.577142857 | LO6: 4.237142857 | LP6: 4.097142857 | LQ6: 4.147142857 | LR6: 4.297142857 | LS6: 4.547142857 | LT6: 4.897142857 | LU6: 5.337142857 | MC6: 0.3 | MD6: 4 | ME6: 8.3 | MF6: 8.27 | MG6: 8.18 | MH6: 8.03 | MI6: 7.82 | MJ6: 7.52 | MK6: 7.1 | ML6: 6.6025 | MM6: 4.12 | MN6: 1.7475 | MO6: 3.585 | MP6: 5.6525 | MQ6: 5.84 | MR6: 5.9825 | MS6: 5.91 | MT6: 5.46 | MU6: 4.6075 | MV6: 3.53 | MW6: 2.4725 | MX6: 1.69 | MY6: 1.4 | MZ6: 1.5625 | NA6: 1.98 | NB6: 2.5175 | NC6: 3.05 | ND6: 3.5425 | NE6: 4.065 | NF6: 4.6175 | NG6: 5.115 | NH6: 5.47 | NI6: 5.5975 | NJ6: 5.49 | NK6: 5.235 | NL6: 4.95 | NM6: 4.7575 | NN6: 4.7175 | NO6: 4.7875 | NP6: 4.9325 | NQ6: 5.1525 | NR6: 5.44 | NU6: 0.3 | NV6: 4 | NW6: 0.19 | NX6: 0.19 | NY6: 0.19 | NZ6: 0.19 | OA6: 0.57 | OB6: 0.57 | OC6: 0.57 | OD6: 0.57 | OE6: 1.68 | OF6: 22.99 | OG6: 5.27 | OH6: 1.68 | OI6: 1.68 | OJ6: 1.68 | OK6: 1.68 | OL6: 1.68 | OM6: 1.68 | ON6: 5.27 | OO6: 5.27 | OP6: 22.99 | OQ6: 22.99 | OR6: 22.99 | OS6: 22.99 | OT6: 5.27 | OU6: 5.27 | OV6: 5.27 | OW6: 1.68 | OX6: 1.68 | OY6: 1.68 | OZ6: 1.68 | PA6: 1.68 | PB6: 1.68 | PC6: 1.68 | PD6: 1.68 | PE6: 1.68 | PF6: 1.68 | PG6: 1.68 | PH6: 1.68 | PI6: 1.68 | PJ6: 1.68 | PM6: 0.3 | PN6: 4 | PO6: -22.8 | PP6: -5.08 | PQ6: -5.08 | PR6: -5.08 | PS6: -4.7 | PT6: -4.7 | PU6: -4.7 | PV6: -4.7 | PW6: -21.31 | PX6: 0 | PY6: 0 | PZ6: 0 | QA6: 0 | QB6: 0 | QC6: 0 | QD6: -3.59 | QE6: -3.59 | QF6: -17.72 | QG6: -17.72 | QH6: 0 | QI6: 0 | QJ6: 0 | QK6: 0 | QL6: -17.72 | QM6: -17.72 | QN6: -17.72 | QO6: -21.31 | QP6: -21.31 | QQ6: -21.31 | QR6: -21.31 | QS6: -21.31 | QT6: -21.31 | QU6: -21.31 | QV6: -21.31 | QW6: -21.31 | QX6: -21.31 | QY6: -21.31 | QZ6: -21.31 | RA6: -21.31 | RB6: -21.31 | RE6: 0.3 | RF6: 4 | RG6: 0 | RH6: 0 | RI6: 0 | RJ6: 0 | RK6: 0 | RL6: 0 | RM6: 0 | RN6: 0 | RO6: 0 | RP6: 0 | RQ6: 0 | RR6: 0 | RS6: 0 | RT6: 0 | RU6: 0 | RV6: 0 | RW6: 0 | RX6: 0 | RY6: 0 | RZ6: 0 | SA6: 0 | SB6: 0 | SC6: 0 | SD6: 0 | SE6: 0 | SF6: 0 | SG6: 0 | SH6: 0 | SI6: 0 | SJ6: 0 | SK6: 0 | SL6: 0 | SM6: 0 | SN6: 0 | SO6: 0 | SP6: 0 | SQ6: 0 | SR6: 0 | SS6: 0 | ST6: 0 | SU6: 0 | SV6: 0.3 | SX6: 0.3 | SY6: 4 | SZ6: 0 | TA6: 0 | TB6: 0 | TC6: 0 | TD6: 0 | TE6: 0 | TF6: 0 | TG6: 0 | TH6: 0 | TI6: 0 | TJ6: 0 | TK6: 0 | TL6: 0 | TM6: 0 | TN6: 0 | TO6: 0 | TP6: 0 | TQ6: 0 | TR6: 0 | TS6: 0 | TT6: 0 | TU6: 0 | TV6: 0 | TW6: 0 | TX6: 0 | TY6: 0 | TZ6: 0 | UA6: 0 | UB6: 0 | UC6: 0 | UD6: 0 | UE6: 0 | UF6: 0 | UG6: 0 | UH6: 0 | UI6: 0 | UJ6: 0 | UK6: 0 | UL6: 0 | UM6: 0 | UN6: 0 | UO6: 0.3 | UQ6: 0.3 | UR6: 4 | US6: 1 | UT6: 0 | UU6: 0 | UV6: 0 | UW6: 0 | UX6: 0 | UY6: 0 | UZ6: 0 | VA6: 0 | VB6: 0 | VC6: 0 | VD6: 0 | VE6: 0 | VF6: 0 | VG6: 0 | VH6: 0 | VI6: 0 | VJ6: 0 | VK6: 0 | VL6: 0 | VM6: 1 | VN6: 0 | VO6: 0 | VP6: 0 | VQ6: 0 | VR6: 0 | VS6: 0 | VT6: 0 | VU6: 0 | VV6: 0 | VW6: 0 | VX6: 0 | VY6: 0 | VZ6: 0 | WA6: 0 | WB6: 0 | WC6: 0 | WD6: 0 | WE6: 0 | WF6: 0 | WG6: 1 | WH6: 0.3 | WJ6: 0.3 | WK6: 4 | WL6: 40.96 | WM6: 0 | WN6: 0 | WO6: 0 | WP6: 0 | WQ6: 0 | WR6: 0 | WS6: 0 | WT6: 0 | WU6: 0 | WV6: 0 | WW6: 0 | WX6: 0 | WY6: 0 | WZ6: 0 | XA6: 0 | XB6: 0 | XC6: 0 | XD6: 0 | XE6: 0 | XF6: 41.76 | XG6: 0 | XH6: 0 | XI6: 0 | XJ6: 0 | XK6: 0 | XL6: 0 | XM6: 0 | XN6: 0 | XO6: 0 | XP6: 0 | XQ6: 0 | XR6: 0 | XS6: 0 | XT6: 0 | XU6: 0 | XV6: 0 | XW6: 0 | XX6: 0 | XY6: 0 | XZ6: 33.52 | YA6: 0.3 | YC6: 0.3 | YD6: 4 | YE6: 7 | YF6: 7 | YG6: 7 | YH6: 7 | YI6: 7 | YJ6: 7 | YK6: 7 | YL6: 7 | YM6: 7 | YN6: 7 | YO6: 7 | YP6: 7 | YQ6: 7 | YR6: 7 | YS6: 7 | YT6: 7 | YU6: 7 | YV6: 7 | YW6: 7 | YX6: 7 | YY6: 7 | YZ6: 4 | ZA6: 4 | ZB6: 4 | ZC6: 4 | ZD6: 4 | ZE6: 4 | ZF6: 4 | ZG6: 4 | ZH6: 4 | ZI6: 4 | ZJ6: 4 | ZK6: 4 | ZL6: 4 | ZM6: 4 | ZN6: 4 | ZO6: 4 | ZP6: 4 | ZQ6: 4 | ZR6: 4 | ZS6: 4 | ZT6: 4 | ZU6: 0.3 | ZW6: 0.3 | ZX6: 4 | ZY6: 0 | ZZ6: 0 | AAA6: 0 | AAB6: 0 | AAC6: 0 | AAD6: 0 | AAE6: 0 | AAF6: 0 | AAG6: 0 | AAH6: 4 | AAI6: 4 | AAJ6: 0 | AAK6: 0 | AAL6: 0 | AAM6: 0 | AAN6: 0 | AAO6: 0 | AAP6: 0 | AAQ6: 0 | AAR6: 0 | AAS6: 0 | AAT6: 0 | AAU6: 0 | AAV6: 0 | AAW6: 0 | AAX6: 0 | AAY6: 0 | AAZ6: 0 | ABA6: 0 | ABB6: 0 | ABC6: 0 | ABD6: 0 | ABE6: 0 | ABF6: 0 | ABG6: 0 | ABH6: 0 | ABI6: 0 | ABJ6: 0 | ABK6: 0 | ABL6: 0 | ABM6: 0 | ABN6: 0 | ABO6: 0.3 | ABQ6: 0.3 | ABR6: 4 | ABS6: 1 | ABT6: 0 | ABU6: 0 | ABV6: 0 | ABW6: 0 | ABX6: 0 | ABY6: 0 | ABZ6: 0 | ACA6: 0 | ACB6: 0 | ACC6: 0 | ACD6: 0 | ACE6: 0 | ACF6: 0 | ACG6: 0 | ACH6: 0 | ACI6: 0 | ACJ6: 0 | ACK6: 0 | ACL6: 0 | ACM6: 1 | ACN6: 57 | ACO6: 57 | ACP6: 57 | ACQ6: 57 | ACR6: 57 | ACS6: 57 | ACT6: 57 | ACU6: 57 | ACV6: 57 | ACW6: 57 | ACX6: 57 | ACY6: 57 | ACZ6: 57 | ADA6: 57 | ADB6: 57 | ADC6: 57 | ADD6: 57 | ADE6: 57 | ADF6: 57 | ADG6: 57 | ADH6: 57 | ADI6: 0.3
A7: 5 | B7: E | C7: 36 | D7: 37 | E7: 36 | F7: 38 | G7: 40 | H7: 41 | I7: 42 | J7: 39 | K7: 38 | M7: 1D | N7: =ROUND('3D Interpolace'!M8,2) -> 40.44 | O7: =ROUND('3D Interpolace'!N8,2) -> 40.11 | P7: =ROUND('3D Interpolace'!O8,2) -> 39.84 | Q7: =ROUND('3D Interpolace'!P8,2) -> 39.65 | R7: =ROUND('3D Interpolace'!Q8,2) -> 39.53 | S7: =ROUND('3D Interpolace'!R8,2) -> 39.48 | T7: =ROUND('3D Interpolace'!S8,2) -> 39.57 | U7: =ROUND('3D Interpolace'!T8,2) -> 39.8 | V7: =ROUND('3D Interpolace'!U8,2) -> 40.07 | W7: =ROUND('3D Interpolace'!V8,2) -> 40.26 | X7: =ROUND('3D Interpolace'!W8,2) -> 40.28 | Y7: =ROUND('3D Interpolace'!X8,2) -> 40 | Z7: =ROUND('3D Interpolace'!Y8,2) -> 39.5 | AA7: =ROUND('3D Interpolace'!Z8,2) -> 38.95 | AB7: =ROUND('3D Interpolace'!AA8,2) -> 38.54 | AC7: =ROUND('3D Interpolace'!AB8,2) -> 38.44 | AD7: =ROUND('3D Interpolace'!AC8,2) -> 38.83 | AE7: =ROUND('3D Interpolace'!AD8,2) -> 39.58 | AF7: =ROUND('3D Interpolace'!AE8,2) -> 40.44 | AG7: =ROUND('3D Interpolace'!AF8,2) -> 41.15 | AH7: =ROUND('3D Interpolace'!AG8,2) -> 41.44 | AI7: =ROUND('3D Interpolace'!AH8,2) -> 41.23 | AJ7: =ROUND('3D Interpolace'!AI8,2) -> 40.68 | AK7: =ROUND('3D Interpolace'!AJ8,2) -> 39.94 | AL7: =ROUND('3D Interpolace'!AK8,2) -> 39.15 | AM7: =ROUND('3D Interpolace'!AL8,2) -> 38.44 | AN7: =ROUND('3D Interpolace'!AM8,2) -> 37.77 | AO7: =ROUND('3D Interpolace'!AN8,2) -> 37.04 | AP7: =ROUND('3D Interpolace'!AO8,2) -> 36.33 | AQ7: =ROUND('3D Interpolace'!AP8,2) -> 35.7 | AR7: =ROUND('3D Interpolace'!AQ8,2) -> 35.24 | AS7: =ROUND('3D Interpolace'!AR8,2) -> 35 | AT7: =ROUND('3D Interpolace'!AS8,2) -> 34.93 | AU7: =ROUND('3D Interpolace'!AT8,2) -> 34.95 | AV7: =ROUND('3D Interpolace'!AU8,2) -> 34.95 | AW7: =ROUND('3D Interpolace'!AV8,2) -> 34.84 | AX7: =ROUND('3D Interpolace'!AW8,2) -> 34.62 | AY7: =ROUND('3D Interpolace'!AX8,2) -> 34.36 | AZ7: =ROUND('3D Interpolace'!AY8,2) -> 34.04 | BA7: =ROUND('3D Interpolace'!AZ8,2) -> 33.68 | BB7: =ROUND('3D Interpolace'!BA8,2) -> 33.28 | BD7: 0.4 | BE7: 5 | BO7: 4 | BP7: 4 | CU7: 0.4 | CW7: 0.4 | CX7: 5 | CY7: 40.44 | CZ7: 40.11 | DA7: 39.84 | DB7: 39.65 | DC7: 39.53 | DD7: 39.48 | DE7: 39.57 | DF7: 39.8 | DG7: 40.07 | DH7: 44.26 | DI7: 44.28 | DJ7: 40 | DK7: 39.5 | DL7: 38.95 | DM7: 38.54 | DN7: 38.44 | DO7: 38.83 | DP7: 39.58 | DQ7: 40.44 | DR7: 41.15 | DS7: 41.44 | DT7: 41.23 | DU7: 40.68 | DV7: 39.94 | DW7: 39.15 | DX7: 38.44 | DY7: 37.77 | DZ7: 37.04 | EA7: 36.33 | EB7: 35.7 | EC7: 35.24 | ED7: 35 | EE7: 34.93 | EF7: 34.95 | EG7: 34.95 | EH7: 34.84 | EI7: 34.62 | EJ7: 34.36 | EK7: 34.04 | EL7: 33.68 | EM7: 33.28 | EN7: 0.4 | EP7: 0.4 | EQ7: 5 | ER7: 40.44 | ES7: 40.11 | ET7: 39.84 | EU7: 39.65 | EV7: 39.53 | EW7: 39.48 | EX7: 39.57 | EY7: 39.8 | EZ7: 40.07 | FA7: 44.26 | FB7: 44.28 | FC7: 40 | FD7: 39.5 | FE7: 38.95 | FF7: 38.54 | FG7: 38.44 | FH7: 38.83 | FI7: 39.58 | FJ7: 40.44 | FK7: 41.15 | FL7: 41.44 | FM7: 41.44 | FN7: 41.23 | FO7: 40.68 | FP7: 39.94 | FQ7: 39.15 | FR7: 38.44 | FS7: 37.77 | FT7: 37.04 | FU7: 36.33 | FV7: 35.7 | FW7: 35.24 | FX7: 35 | FY7: 34.93 | FZ7: 34.95 | GA7: 34.95 | GB7: 34.84 | GC7: 34.62 | GD7: 34.36 | GE7: 34.04 | GF7: 33.68 | GG7: 33.28 | GK7: 0.4 | GL7: 5 | GM7: 0 | GN7: 0 | GO7: 0 | GP7: 0 | GQ7: 0 | GR7: 0 | GS7: 0 | GT7: 0 | GU7: 0 | GV7: 0 | GW7: 44.28 | GX7: 0 | GY7: 0 | GZ7: 0 | HA7: 0 | HB7: 0 | HC7: 0 | HD7: 0 | HE7: 0 | HF7: 0 | HG7: 0 | HH7: 0 | HI7: 0 | HJ7: 0 | HK7: 0 | HL7: 0 | HM7: 0 | HN7: 0 | HO7: 0 | HP7: 0 | HQ7: 0 | HR7: 0 | HS7: 0 | HT7: 0 | HU7: 0 | HV7: 0 | HW7: 0 | HX7: 0 | HY7: 0 | HZ7: 0 | IA7: 0 | IB7: 0 | IC7: 0.4 | IG7: 5 | IH7: 49.14285714 | II7: 48.84285714 | IJ7: 48.54285714 | IK7: 48.24285714 | IL7: 47.94285714 | IM7: 47.64285714 | IN7: 47.34285714 | IO7: 47.04285714 | IP7: 46.74285714 | IQ7: 46.44285714 | IR7: 46.14285714 | IS7: 45.84285714 | IT7: 45.54285714 | IU7: 45.24285714 | IV7: 44.94285714 | IW7: 44.64285714 | IX7: 44.34285714 | IY7: 44.04285714 | IZ7: 43.74285714 | JA7: 43.44285714 | JB7: 43.14285714 | JC7: 43.14285714 | JD7: 42.94285714 | JE7: 42.74285714 | JF7: 42.54285714 | JG7: 42.34285714 | JH7: 42.14285714 | JI7: 41.94285714 | JJ7: 41.74285714 | JK7: 41.54285714 | JL7: 41.34285714 | JM7: 41.14285714 | JN7: 40.94285714 | JO7: 40.74285714 | JP7: 40.54285714 | JQ7: 40.34285714 | JR7: 40.14285714 | JS7: 39.94285714 | JT7: 39.74285714 | JU7: 39.54285714 | JV7: 39.34285714 | JW7: 39.14285714 | JX7: 0.4 | KD7: 0.4 | KE7: 5 | KF7: 8.702857143 | KG7: 8.732857143 | KH7: 8.702857143 | KI7: 8.592857143 | KJ7: 8.412857143 | KK7: 8.162857143 | KL7: 7.772857143 | KM7: 7.242857143 | KN7: 6.672857143 | KO7: 2.182857143 | KP7: 1.862857143 | KQ7: 5.842857143 | KR7: 6.042857143 | KS7: 6.292857143 | KT7: 6.402857143 | KU7: 6.202857143 | KV7: 5.512857143 | KW7: 4.462857143 | KX7: 3.302857143 | KY7: 2.292857143 | KZ7: 1.702857143 | LA7: 1.702857143 | LB7: 1.712857143 | LC7: 2.062857143 | LD7: 2.602857143 | LE7: 3.192857143 | LF7: 3.702857143 | LG7: 4.172857143 | LH7: 4.702857143 | LI7: 5.212857143 | LJ7: 5.642857143 | LK7: 5.902857143 | LL7: 5.942857143 | LM7: 5.812857143 | LN7: 5.592857143 | LO7: 5.392857143 | LP7: 5.302857143 | LQ7: 5.322857143 | LR7: 5.382857143 | LS7: 5.502857143 | LT7: 5.662857143 | LU7: 5.862857143 | MC7: 0.4 | MD7: 5 | ME7: 9.088214286 | MF7: 9.098214286 | MG7: 9.033214286 | MH7: 8.890714286 | MI7: 8.673214286 | MJ7: 8.343214286 | MK7: 7.863214286 | ML7: 7.288214286 | MM7: 4.733214286 | MN7: 2.310714286 | MO7: 4.138214286 | MP7: 6.238214286 | MQ7: 6.483214286 | MR7: 6.685714286 | MS7: 6.658214286 | MT7: 6.223214286 | MU7: 5.355714286 | MV7: 4.250714286 | MW7: 3.165714286 | MX7: 2.363214286 | MY7: 2.073214286 | MZ7: 2.255714286 | NA7: 2.700714286 | NB7: 3.265714286 | NC7: 3.813214286 | ND7: 4.290714286 | NE7: 4.765714286 | NF7: 5.253214286 | NG7: 5.695714286 | NH7: 6.033214286 | NI7: 6.208214286 | NJ7: 6.220714286 | NK7: 6.125714286 | NL7: 5.993214286 | NM7: 5.895714286 | NN7: 5.870714286 | NO7: 5.890714286 | NP7: 5.935714286 | NQ7: 6.005714286 | NR7: 6.095714286 | NU7: 0.4 | NV7: 5 | NW7: 0.19 | NX7: 0.19 | NY7: 0.19 | NZ7: 0.19 | OA7: 0.19 | OB7: 0.19 | OC7: 0.57 | OD7: 0.57 | OE7: 1.68 | OF7: 5.27 | OG7: 1.68 | OH7: 0.57 | OI7: 0.57 | OJ7: 0.57 | OK7: 0.57 | OL7: 0.57 | OM7: 1.68 | ON7: 1.68 | OO7: 5.27 | OP7: 5.27 | OQ7: 5.27 | OR7: 5.27 | OS7: 5.27 | OT7: 5.27 | OU7: 5.27 | OV7: 1.68 | OW7: 1.68 | OX7: 1.68 | OY7: 1.68 | OZ7: 0.57 | PA7: 0.57 | PB7: 0.57 | PC7: 0.57 | PD7: 1.68 | PE7: 1.68 | PF7: 1.68 | PG7: 1.68 | PH7: 1.68 | PI7: 0.57 | PJ7: 0.57 | PM7: 0.4 | PN7: 5 | PO7: -5.08 | PP7: -5.08 | PQ7: -5.08 | PR7: -5.08 | PS7: -5.08 | PT7: -1.49 | PU7: -1.11 | PV7: -1.11 | PW7: -21.31 | PX7: -17.72 | PY7: -3.59 | PZ7: -1.11 | QA7: -1.11 | QB7: -1.11 | QC7: -1.11 | QD7: -1.11 | QE7: -3.59 | QF7: -3.59 | QG7: -17.72 | QH7: -17.72 | QI7: -17.72 | QJ7: -17.72 | QK7: -17.72 | QL7: -17.72 | QM7: -17.72 | QN7: -21.31 | QO7: -21.31 | QP7: -21.31 | QQ7: -21.31 | QR7: -22.42 | QS7: -22.42 | QT7: -22.42 | QU7: -22.42 | QV7: -21.31 | QW7: -21.31 | QX7: -21.31 | QY7: -21.31 | QZ7: -21.31 | RA7: -22.42 | RB7: -22.42 | RE7: 0.4 | RF7: 5 | RG7: 0 | RH7: 0 | RI7: 0 | RJ7: 0 | RK7: 0 | RL7: 0 | RM7: 0 | RN7: 0 | RO7: 0 | RP7: 0 | RQ7: 0 | RR7: 0 | RS7: 0 | RT7: 0 | RU7: 0 | RV7: 0 | RW7: 0 | RX7: 0 | RY7: 0 | RZ7: 0 | SA7: 0 | SB7: 0 | SC7: 0 | SD7: 0 | SE7: 0 | SF7: 0 | SG7: 0 | SH7: 0 | SI7: 0 | SJ7: 0 | SK7: 0 | SL7: 0 | SM7: 0 | SN7: 0 | SO7: 0 | SP7: 0 | SQ7: 0 | SR7: 0 | SS7: 0 | ST7: 0 | SU7: 0 | SV7: 0.4 | SX7: 0.4 | SY7: 5 | SZ7: 0 | TA7: 0 | TB7: 0 | TC7: 0 | TD7: 0 | TE7: 0 | TF7: 0 | TG7: 0 | TH7: 0 | TI7: 0 | TJ7: 0 | TK7: 0 | TL7: 0 | TM7: 0 | TN7: 0 | TO7: 0 | TP7: 0 | TQ7: 0 | TR7: 0 | TS7: 0 | TT7: 0 | TU7: 0 | TV7: 0 | TW7: 0 | TX7: 0 | TY7: 0 | TZ7: 0 | UA7: 0 | UB7: 0 | UC7: 0 | UD7: 0 | UE7: 0 | UF7: 0 | UG7: 0 | UH7: 0 | UI7: 0 | UJ7: 0 | UK7: 0 | UL7: 0 | UM7: 0 | UN7: 0 | UO7: 0.4 | UQ7: 0.4 | UR7: 5 | US7: 1 | UT7: 0 | UU7: 0 | UV7: 0 | UW7: 0 | UX7: 0 | UY7: 0 | UZ7: 0 | VA7: 0 | VB7: 0 | VC7: 0 | VD7: 0 | VE7: 0 | VF7: 0 | VG7: 0 | VH7: 0 | VI7: 0 | VJ7: 0 | VK7: 0 | VL7: 0 | VM7: 1 | VN7: 0 | VO7: 0 | VP7: 0 | VQ7: 0 | VR7: 0 | VS7: 0 | VT7: 0 | VU7: 0 | VV7: 0 | VW7: 0 | VX7: 0 | VY7: 0 | VZ7: 0 | WA7: 0 | WB7: 0 | WC7: 0 | WD7: 0 | WE7: 0 | WF7: 0 | WG7: 1 | WH7: 0.4 | WJ7: 0.4 | WK7: 5 | WL7: 40.44 | WM7: 0 | WN7: 0 | WO7: 0 | WP7: 0 | WQ7: 0 | WR7: 0 | WS7: 0 | WT7: 0 | WU7: 0 | WV7: 0 | WW7: 0 | WX7: 0 | WY7: 0 | WZ7: 0 | XA7: 0 | XB7: 0 | XC7: 0 | XD7: 0 | XE7: 0 | XF7: 41.44 | XG7: 0 | XH7: 0 | XI7: 0 | XJ7: 0 | XK7: 0 | XL7: 0 | XM7: 0 | XN7: 0 | XO7: 0 | XP7: 0 | XQ7: 0 | XR7: 0 | XS7: 0 | XT7: 0 | XU7: 0 | XV7: 0 | XW7: 0 | XX7: 0 | XY7: 0 | XZ7: 33.28 | YA7: 0.4 | YC7: 0.4 | YD7: 5 | YE7: 7 | YF7: 7 | YG7: 7 | YH7: 7 | YI7: 7 | YJ7: 7 | YK7: 7 | YL7: 7 | YM7: 7 | YN7: 7 | YO7: 7 | YP7: 7 | YQ7: 7 | YR7: 7 | YS7: 7 | YT7: 7 | YU7: 7 | YV7: 7 | YW7: 7 | YX7: 7 | YY7: 7 | YZ7: 4 | ZA7: 4 | ZB7: 4 | ZC7: 4 | ZD7: 4 | ZE7: 4 | ZF7: 4 | ZG7: 4 | ZH7: 4 | ZI7: 4 | ZJ7: 4 | ZK7: 4 | ZL7: 4 | ZM7: 4 | ZN7: 4 | ZO7: 4 | ZP7: 4 | ZQ7: 4 | ZR7: 4 | ZS7: 4 | ZT7: 4 | ZU7: 0.4 | ZW7: 0.4 | ZX7: 5 | ZY7: 0 | ZZ7: 0 | AAA7: 0 | AAB7: 0 | AAC7: 0 | AAD7: 0 | AAE7: 0 | AAF7: 0 | AAG7: 0 | AAH7: 4 | AAI7: 4 | AAJ7: 0 | AAK7: 0 | AAL7: 0 | AAM7: 0 | AAN7: 0 | AAO7: 0 | AAP7: 0 | AAQ7: 0 | AAR7: 0 | AAS7: 0 | AAT7: 0 | AAU7: 0 | AAV7: 0 | AAW7: 0 | AAX7: 0 | AAY7: 0 | AAZ7: 0 | ABA7: 0 | ABB7: 0 | ABC7: 0 | ABD7: 0 | ABE7: 0 | ABF7: 0 | ABG7: 0 | ABH7: 0 | ABI7: 0 | ABJ7: 0 | ABK7: 0 | ABL7: 0 | ABM7: 0 | ABN7: 0 | ABO7: 0.4 | ABQ7: 0.4 | ABR7: 5 | ABS7: 1 | ABT7: 0 | ABU7: 0 | ABV7: 0 | ABW7: 0 | ABX7: 0 | ABY7: 0 | ABZ7: 0 | ACA7: 0 | ACB7: 0 | ACC7: 0 | ACD7: 0 | ACE7: 0 | ACF7: 0 | ACG7: 0 | ACH7: 0 | ACI7: 0 | ACJ7: 0 | ACK7: 0 | ACL7: 0 | ACM7: 1 | ACN7: 57 | ACO7: 57 | ACP7: 57 | ACQ7: 57 | ACR7: 57 | ACS7: 57 | ACT7: 57 | ACU7: 57 | ACV7: 57 | ACW7: 57 | ACX7: 57 | ACY7: 57 | ACZ7: 57 | ADA7: 57 | ADB7: 57 | ADC7: 57 | ADD7: 57 | ADE7: 57 | ADF7: 57 | ADG7: 57 | ADH7: 57 | ADI7: 0.4
A8: 6 | B8: F | C8: 37 | D8: 35 | E8: 35 | F8: 37 | G8: 37 | H8: 45 | I8: 41 | J8: 40 | K8: 39 | M8: 2 | N8: =ROUND('3D Interpolace'!M9,2) -> 40 | O8: =ROUND('3D Interpolace'!N9,2) -> 39.64 | P8: =ROUND('3D Interpolace'!O9,2) -> 39.36 | Q8: =ROUND('3D Interpolace'!P9,2) -> 39.16 | R8: =ROUND('3D Interpolace'!Q9,2) -> 39.04 | S8: =ROUND('3D Interpolace'!R9,2) -> 39 | T8: =ROUND('3D Interpolace'!S9,2) -> 39.12 | U8: =ROUND('3D Interpolace'!T9,2) -> 39.4 | V8: =ROUND('3D Interpolace'!U9,2) -> 39.72 | W8: =ROUND('3D Interpolace'!V9,2) -> 39.96 | X8: =ROUND('3D Interpolace'!W9,2) -> 40 | Y8: =ROUND('3D Interpolace'!X9,2) -> 39.71 | Z8: =ROUND('3D Interpolace'!Y9,2) -> 39.18 | AA8: =ROUND('3D Interpolace'!Z9,2) -> 38.58 | AB8: =ROUND('3D Interpolace'!AA9,2) -> 38.13 | AC8: =ROUND('3D Interpolace'!AB9,2) -> 38 | AD8: =ROUND('3D Interpolace'!AC9,2) -> 38.38 | AE8: =ROUND('3D Interpolace'!AD9,2) -> 39.13 | AF8: =ROUND('3D Interpolace'!AE9,2) -> 39.99 | AG8: =ROUND('3D Interpolace'!AF9,2) -> 40.7 | AH8: =ROUND('3D Interpolace'!AG9,2) -> 41 | AI8: =ROUND('3D Interpolace'!AH9,2) -> 40.78 | AJ8: =ROUND('3D Interpolace'!AI9,2) -> 40.23 | AK8: =ROUND('3D Interpolace'!AJ9,2) -> 39.49 | AL8: =ROUND('3D Interpolace'!AK9,2) -> 38.7 | AM8: =ROUND('3D Interpolace'!AL9,2) -> 38 | AN8: =ROUND('3D Interpolace'!AM9,2) -> 37.37 | AO8: =ROUND('3D Interpolace'!AN9,2) -> 36.7 | AP8: =ROUND('3D Interpolace'!AO9,2) -> 36.06 | AQ8: =ROUND('3D Interpolace'!AP9,2) -> 35.47 | AR8: =ROUND('3D Interpolace'!AQ9,2) -> 35 | AS8: =ROUND('3D Interpolace'!AR9,2) -> 34.67 | AT8: =ROUND('3D Interpolace'!AS9,2) -> 34.46 | AU8: =ROUND('3D Interpolace'!AT9,2) -> 34.3 | AV8: =ROUND('3D Interpolace'!AU9,2) -> 34.17 | AW8: =ROUND('3D Interpolace'!AV9,2) -> 34 | AX8: =ROUND('3D Interpolace'!AW9,2) -> 33.8 | AY8: =ROUND('3D Interpolace'!AX9,2) -> 33.6 | AZ8: =ROUND('3D Interpolace'!AY9,2) -> 33.4 | BA8: =ROUND('3D Interpolace'!AZ9,2) -> 33.2 | BB8: =ROUND('3D Interpolace'!BA9,2) -> 33 | BD8: 0.5 | BE8: 6 | BO8: 4 | BP8: 4 | CU8: 0.5 | CW8: 0.5 | CX8: 6 | CY8: 40 | CZ8: 39.64 | DA8: 39.36 | DB8: 39.16 | DC8: 39.04 | DD8: 39 | DE8: 39.12 | DF8: 39.4 | DG8: 39.72 | DH8: 43.96 | DI8: 44 | DJ8: 39.71 | DK8: 39.18 | DL8: 38.58 | DM8: 38.13 | DN8: 38 | DO8: 38.38 | DP8: 39.13 | DQ8: 39.99 | DR8: 40.7 | DS8: 41 | DT8: 40.78 | DU8: 40.23 | DV8: 39.49 | DW8: 38.7 | DX8: 38 | DY8: 37.37 | DZ8: 36.7 | EA8: 36.06 | EB8: 35.47 | EC8: 35 | ED8: 34.67 | EE8: 34.46 | EF8: 34.3 | EG8: 34.17 | EH8: 34 | EI8: 33.8 | EJ8: 33.6 | EK8: 33.4 | EL8: 33.2 | EM8: 33 | EN8: 0.5 | EP8: 0.5 | EQ8: 6 | ER8: 40 | ES8: 39.64 | ET8: 39.36 | EU8: 39.16 | EV8: 39.04 | EW8: 39 | EX8: 39.12 | EY8: 39.4 | EZ8: 39.72 | FA8: 43.96 | FB8: 44 | FC8: 39.71 | FD8: 39.18 | FE8: 38.58 | FF8: 38.13 | FG8: 38 | FH8: 38.38 | FI8: 39.13 | FJ8: 39.99 | FK8: 40.7 | FL8: 41 | FM8: 41 | FN8: 40.78 | FO8: 40.23 | FP8: 39.49 | FQ8: 38.7 | FR8: 38 | FS8: 37.37 | FT8: 36.7 | FU8: 36.06 | FV8: 35.47 | FW8: 35 | FX8: 34.67 | FY8: 34.46 | FZ8: 34.3 | GA8: 34.17 | GB8: 34 | GC8: 33.8 | GD8: 33.6 | GE8: 33.4 | GF8: 33.2 | GG8: 33 | GK8: 0.5 | GL8: 6 | GM8: 40 | GN8: 0 | GO8: 0 | GP8: 0 | GQ8: 0 | GR8: 39 | GS8: 0 | GT8: 0 | GU8: 0 | GV8: 43.96 | GW8: 44 | GX8: 0 | GY8: 0 | GZ8: 0 | HA8: 0 | HB8: 38 | HC8: 0 | HD8: 0 | HE8: 0 | HF8: 0 | HG8: 41 | HH8: 41 | HI8: 0 | HJ8: 0 | HK8: 0 | HL8: 0 | HM8: 38 | HN8: 0 | HO8: 0 | HP8: 0 | HQ8: 0 | HR8: 35 | HS8: 0 | HT8: 0 | HU8: 0 | HV8: 0 | HW8: 34 | HX8: 0 | HY8: 0 | HZ8: 0 | IA8: 0 | IB8: 33 | IC8: 0.5 | IG8: 6 | IH8: 49.42857143 | II8: 49.12857143 | IJ8: 48.82857143 | IK8: 48.52857143 | IL8: 48.22857143 | IM8: 47.92857143 | IN8: 47.62857143 | IO8: 47.32857143 | IP8: 47.02857143 | IQ8: 46.72857143 | IR8: 46.42857143 | IS8: 46.12857143 | IT8: 45.82857143 | IU8: 45.52857143 | IV8: 45.22857143 | IW8: 44.92857143 | IX8: 44.62857143 | IY8: 44.32857143 | IZ8: 44.02857143 | JA8: 43.72857143 | JB8: 43.42857143 | JC8: 43.42857143 | JD8: 43.22857143 | JE8: 43.02857143 | JF8: 42.82857143 | JG8: 42.62857143 | JH8: 42.42857143 | JI8: 42.22857143 | JJ8: 42.02857143 | JK8: 41.82857143 | JL8: 41.62857143 | JM8: 41.42857143 | JN8: 41.22857143 | JO8: 41.02857143 | JP8: 40.82857143 | JQ8: 40.62857143 | JR8: 40.42857143 | JS8: 40.22857143 | JT8: 40.02857143 | JU8: 39.82857143 | JV8: 39.62857143 | JW8: 39.42857143 | JX8: 0.5 | KD8: 0.5 | KE8: 6 | KF8: 9.428571429 | KG8: 9.488571429 | KH8: 9.468571429 | KI8: 9.368571429 | KJ8: 9.188571429 | KK8: 8.928571429 | KL8: 8.508571429 | KM8: 7.928571429 | KN8: 7.308571429 | KO8: 2.768571429 | KP8: 2.428571429 | KQ8: 6.418571429 | KR8: 6.648571429 | KS8: 6.948571429 | KT8: 7.098571429 | KU8: 6.928571429 | KV8: 6.248571429 | KW8: 5.198571429 | KX8: 4.038571429 | KY8: 3.028571429 | KZ8: 2.428571429 | LA8: 2.428571429 | LB8: 2.448571429 | LC8: 2.798571429 | LD8: 3.338571429 | LE8: 3.928571429 | LF8: 4.428571429 | LG8: 4.858571429 | LH8: 5.328571429 | LI8: 5.768571429 | LJ8: 6.158571429 | LK8: 6.428571429 | LL8: 6.558571429 | LM8: 6.568571429 | LN8: 6.528571429 | LO8: 6.458571429 | LP8: 6.428571429 | LQ8: 6.428571429 | LR8: 6.428571429 | LS8: 6.428571429 | LT8: 6.428571429 | LU8: 6.428571429 | MC8: 0.5 | MD8: 6 | ME8: 9.748928571 | MF8: 9.756428571 | MG8: 9.688928571 | MH8: 9.543928571 | MI8: 9.321428571 | MJ8: 8.983928571 | MK8: 8.493928571 | ML8: 7.908928571 | MM8: 5.343928571 | MN8: 2.913928571 | MO8: 4.741428571 | MP8: 6.846428571 | MQ8: 7.101428571 | MR8: 7.318928571 | MS8: 7.308928571 | MT8: 6.901428571 | MU8: 6.068928571 | MV8: 5.003928571 | MW8: 3.956428571 | MX8: 3.173928571 | MY8: 2.886428571 | MZ8: 3.051428571 | NA8: 3.461428571 | NB8: 3.986428571 | NC8: 4.493928571 | ND8: 4.926428571 | NE8: 5.343928571 | NF8: 5.768928571 | NG8: 6.161428571 | NH8: 6.486428571 | NI8: 6.716428571 | NJ8: 6.853928571 | NK8: 6.926428571 | NL8: 6.958928571 | NM8: 6.971428571 | NN8: 6.976428571 | NO8: 6.968928571 | NP8: 6.941428571 | NQ8: 6.888928571 | NR8: 6.813928571 | NU8: 0.5 | NV8: 6 | NW8: 0.19 | NX8: 0.19 | NY8: 0.19 | NZ8: 0.19 | OA8: 0.19 | OB8: 0.19 | OC8: 0.19 | OD8: 0.57 | OE8: 1.68 | OF8: 5.27 | OG8: 1.68 | OH8: 0.57 | OI8: 0.57 | OJ8: 0.57 | OK8: 0.57 | OL8: 0.57 | OM8: 0.57 | ON8: 1.68 | OO8: 5.27 | OP8: 5.27 | OQ8: 5.27 | OR8: 5.27 | OS8: 5.27 | OT8: 5.27 | OU8: 1.68 | OV8: 1.68 | OW8: 1.68 | OX8: 1.68 | OY8: 0.57 | OZ8: 0.57 | PA8: 0.57 | PB8: 0.57 | PC8: 0.57 | PD8: 0.57 | PE8: 0.57 | PF8: 0.57 | PG8: 0.57 | PH8: 0.57 | PI8: 0.57 | PJ8: 0.57 | PM8: 0.5 | PN8: 6 | PO8: 0 | PP8: 0 | PQ8: 0 | PR8: 0.13 | PS8: 0.13 | PT8: 0.13 | PU8: 0.13 | PV8: 0.51 | PW8: 1.62 | PX8: 5.08 | PY8: 1.66 | PZ8: 0.56 | QA8: 0.56 | QB8: 0.56 | QC8: 0.56 | QD8: 0.56 | QE8: 0.55 | QF8: 1.66 | QG8: 5.21 | QH8: 5.21 | QI8: -17.72 | QJ8: -17.72 | QK8: -17.72 | QL8: -17.72 | QM8: -21.31 | QN8: -3.59 | QO8: -3.59 | QP8: -3.59 | QQ8: -4.7 | QR8: -4.7 | QS8: -22.42 | QT8: -22.42 | QU8: -22.42 | QV8: -22.42 | QW8: -22.42 | QX8: -22.42 | QY8: -22.42 | QZ8: -22.42 | RA8: -22.42 | RB8: -22.42 | RE8: 0.5 | RF8: 6 | RG8: 0 | RH8: 0 | RI8: 0 | RJ8: 0 | RK8: 0 | RL8: 0 | RM8: 0 | RN8: 0 | RO8: 0 | RP8: 0 | RQ8: 0 | RR8: 0 | RS8: 0 | RT8: 0 | RU8: 0 | RV8: 0 | RW8: 0 | RX8: 0 | RY8: 0 | RZ8: 0 | SA8: 0 | SB8: 0 | SC8: 0 | SD8: 0 | SE8: 0 | SF8: 0 | SG8: 0 | SH8: 0 | SI8: 0 | SJ8: 0 | SK8: 0 | SL8: 0 | SM8: 0 | SN8: 0 | SO8: 0 | SP8: 0 | SQ8: 0 | SR8: 0 | SS8: 0 | ST8: 0 | SU8: 0 | SV8: 0.5 | SX8: 0.5 | SY8: 6 | SZ8: 0 | TA8: 0 | TB8: 0 | TC8: 0 | TD8: 0 | TE8: 0 | TF8: 0 | TG8: 0 | TH8: 0 | TI8: 0 | TJ8: 0 | TK8: 0 | TL8: 0 | TM8: 0 | TN8: 0 | TO8: 0 | TP8: 0 | TQ8: 0 | TR8: 0 | TS8: 0 | TT8: 0 | TU8: 0 | TV8: 0 | TW8: 0 | TX8: 0 | TY8: 0 | TZ8: 0 | UA8: 0 | UB8: 0 | UC8: 0 | UD8: 0 | UE8: 0 | UF8: 0 | UG8: 0 | UH8: 0 | UI8: 0 | UJ8: 0 | UK8: 0 | UL8: 0 | UM8: 0 | UN8: 0 | UO8: 0.5 | UQ8: 0.5 | UR8: 6 | US8: 1 | UT8: 0 | UU8: 0 | UV8: 0 | UW8: 0 | UX8: 0 | UY8: 0 | UZ8: 0 | VA8: 0 | VB8: 0 | VC8: 0 | VD8: 0 | VE8: 0 | VF8: 0 | VG8: 0 | VH8: 0 | VI8: 0 | VJ8: 0 | VK8: 0 | VL8: 0 | VM8: 1 | VN8: 0 | VO8: 0 | VP8: 0 | VQ8: 0 | VR8: 0 | VS8: 0 | VT8: 0 | VU8: 0 | VV8: 0 | VW8: 0 | VX8: 0 | VY8: 0 | VZ8: 0 | WA8: 0 | WB8: 0 | WC8: 0 | WD8: 0 | WE8: 0 | WF8: 0 | WG8: 1 | WH8: 0.5 | WJ8: 0.5 | WK8: 6 | WL8: 40 | WM8: 0 | WN8: 0 | WO8: 0 | WP8: 0 | WQ8: 0 | WR8: 0 | WS8: 0 | WT8: 0 | WU8: 0 | WV8: 0 | WW8: 0 | WX8: 0 | WY8: 0 | WZ8: 0 | XA8: 0 | XB8: 0 | XC8: 0 | XD8: 0 | XE8: 0 | XF8: 41 | XG8: 0 | XH8: 0 | XI8: 0 | XJ8: 0 | XK8: 0 | XL8: 0 | XM8: 0 | XN8: 0 | XO8: 0 | XP8: 0 | XQ8: 0 | XR8: 0 | XS8: 0 | XT8: 0 | XU8: 0 | XV8: 0 | XW8: 0 | XX8: 0 | XY8: 0 | XZ8: 33 | YA8: 0.5 | YC8: 0.5 | YD8: 6 | YE8: 7 | YF8: 7 | YG8: 7 | YH8: 7 | YI8: 7 | YJ8: 7 | YK8: 7 | YL8: 7 | YM8: 7 | YN8: 7 | YO8: 7 | YP8: 7 | YQ8: 7 | YR8: 7 | YS8: 7 | YT8: 7 | YU8: 7 | YV8: 7 | YW8: 7 | YX8: 7 | YY8: 7 | YZ8: 4 | ZA8: 4 | ZB8: 4 | ZC8: 4 | ZD8: 4 | ZE8: 4 | ZF8: 4 | ZG8: 4 | ZH8: 4 | ZI8: 4 | ZJ8: 4 | ZK8: 4 | ZL8: 4 | ZM8: 4 | ZN8: 4 | ZO8: 4 | ZP8: 4 | ZQ8: 4 | ZR8: 4 | ZS8: 4 | ZT8: 4 | ZU8: 0.5 | ZW8: 0.5 | ZX8: 6 | ZY8: 0 | ZZ8: 0 | AAA8: 0 | AAB8: 0 | AAC8: 0 | AAD8: 0 | AAE8: 0 | AAF8: 0 | AAG8: 0 | AAH8: 4 | AAI8: 4 | AAJ8: 0 | AAK8: 0 | AAL8: 0 | AAM8: 0 | AAN8: 0 | AAO8: 0 | AAP8: 0 | AAQ8: 0 | AAR8: 0 | AAS8: 0 | AAT8: 0 | AAU8: 0 | AAV8: 0 | AAW8: 0 | AAX8: 0 | AAY8: 0 | AAZ8: 0 | ABA8: 0 | ABB8: 0 | ABC8: 0 | ABD8: 0 | ABE8: 0 | ABF8: 0 | ABG8: 0 | ABH8: 0 | ABI8: 0 | ABJ8: 0 | ABK8: 0 | ABL8: 0 | ABM8: 0 | ABN8: 0 | ABO8: 0.5 | ABQ8: 0.5 | ABR8: 6 | ABS8: 1 | ABT8: 0 | ABU8: 0 | ABV8: 0 | ABW8: 0 | ABX8: 0 | ABY8: 0 | ABZ8: 0 | ACA8: 0 | ACB8: 0 | ACC8: 0 | ACD8: 0 | ACE8: 0 | ACF8: 0 | ACG8: 0 | ACH8: 0 | ACI8: 0 | ACJ8: 0 | ACK8: 0 | ACL8: 0 | ACM8: 1 | ACN8: 57 | ACO8: 57 | ACP8: 57 | ACQ8: 57 | ACR8: 57 | ACS8: 57 | ACT8: 57 | ACU8: 57 | ACV8: 57 | ACW8: 57 | ACX8: 57 | ACY8: 57 | ACZ8: 57 | ADA8: 57 | ADB8: 57 | ADC8: 57 | ADD8: 57 | ADE8: 57 | ADF8: 57 | ADG8: 57 | ADH8: 57 | ADI8: 0.5
A9: 7 | B9: G | C9: 36 | D9: 37 | E9: 36 | F9: 36 | G9: 37 | H9: 44 | I9: 43 | J9: 42 | K9: 41 | M9: 2A | N9: =ROUND('3D Interpolace'!M10,2) -> 39.69 | O9: =ROUND('3D Interpolace'!N10,2) -> 39.36 | P9: =ROUND('3D Interpolace'!O10,2) -> 39.1 | Q9: =ROUND('3D Interpolace'!P10,2) -> 38.91 | R9: =ROUND('3D Interpolace'!Q10,2) -> 38.8 | S9: =ROUND('3D Interpolace'!R10,2) -> 38.76 | T9: =ROUND('3D Interpolace'!S10,2) -> 38.87 | U9: =ROUND('3D Interpolace'!T10,2) -> 39.12 | V9: =ROUND('3D Interpolace'!U10,2) -> 39.41 | W9: =ROUND('3D Interpolace'!V10,2) -> 39.62 | X9: =ROUND('3D Interpolace'!W10,2) -> 39.65 | Y9: =ROUND('3D Interpolace'!X10,2) -> 39.36 | Z9: =ROUND('3D Interpolace'!Y10,2) -> 38.85 | AA9: =ROUND('3D Interpolace'!Z10,2) -> 38.27 | AB9: =ROUND('3D Interpolace'!AA10,2) -> 37.83 | AC9: =ROUND('3D Interpolace'!AB10,2) -> 37.69 | AD9: =ROUND('3D Interpolace'!AC10,2) -> 38.01 | AE9: =ROUND('3D Interpolace'!AD10,2) -> 38.69 | AF9: =ROUND('3D Interpolace'!AE10,2) -> 39.46 | AG9: =ROUND('3D Interpolace'!AF10,2) -> 40.11 | AH9: =ROUND('3D Interpolace'!AG10,2) -> 40.38 | AI9: =ROUND('3D Interpolace'!AH10,2) -> 40.18 | AJ9: =ROUND('3D Interpolace'!AI10,2) -> 39.69 | AK9: =ROUND('3D Interpolace'!AJ10,2) -> 39.03 | AL9: =ROUND('3D Interpolace'!AK10,2) -> 38.32 | AM9: =ROUND('3D Interpolace'!AL10,2) -> 37.69 | AN9: =ROUND('3D Interpolace'!AM10,2) -> 37.12 | AO9: =ROUND('3D Interpolace'!AN10,2) -> 36.52 | AP9: =ROUND('3D Interpolace'!AO10,2) -> 35.93 | AQ9: =ROUND('3D Interpolace'!AP10,2) -> 35.38 | AR9: =ROUND('3D Interpolace'!AQ10,2) -> 34.89 | AS9: =ROUND('3D Interpolace'!AR10,2) -> 34.46 | AT9: =ROUND('3D Interpolace'!AS10,2) -> 34.08 | AU9: =ROUND('3D Interpolace'!AT10,2) -> 33.74 | AV9: =ROUND('3D Interpolace'!AU10,2) -> 33.44 | AW9: =ROUND('3D Interpolace'!AV10,2) -> 33.19 | AX9: =ROUND('3D Interpolace'!AW10,2) -> 32.99 | AY9: =ROUND('3D Interpolace'!AX10,2) -> 32.82 | AZ9: =ROUND('3D Interpolace'!AY10,2) -> 32.7 | BA9: =ROUND('3D Interpolace'!AZ10,2) -> 32.63 | BB9: =ROUND('3D Interpolace'!BA10,2) -> 32.6 | BD9: 0.6 | BE9: 7 | BO9: 4 | BP9: 4 | CU9: 0.6 | CW9: 0.6 | CX9: 7 | CY9: 39.69 | CZ9: 39.36 | DA9: 39.1 | DB9: 38.91 | DC9: 38.8 | DD9: 38.76 | DE9: 38.87 | DF9: 39.12 | DG9: 39.41 | DH9: 43.62 | DI9: 43.65 | DJ9: 39.36 | DK9: 38.85 | DL9: 38.27 | DM9: 37.83 | DN9: 37.69 | DO9: 38.01 | DP9: 38.69 | DQ9: 39.46 | DR9: 40.11 | DS9: 40.38 | DT9: 40.18 | DU9: 39.69 | DV9: 39.03 | DW9: 38.32 | DX9: 37.69 | DY9: 37.12 | DZ9: 36.52 | EA9: 35.93 | EB9: 35.38 | EC9: 34.89 | ED9: 34.46 | EE9: 34.08 | EF9: 33.74 | EG9: 33.44 | EH9: 33.19 | EI9: 32.99 | EJ9: 32.82 | EK9: 32.7 | EL9: 32.63 | EM9: 32.6 | EN9: 0.6 | EP9: 0.6 | EQ9: 7 | ER9: 39.69 | ES9: 39.36 | ET9: 39.1 | EU9: 38.91 | EV9: 38.8 | EW9: 38.76 | EX9: 38.87 | EY9: 39.12 | EZ9: 39.41 | FA9: 43.62 | FB9: 43.65 | FC9: 39.36 | FD9: 38.85 | FE9: 38.27 | FF9: 37.83 | FG9: 37.69 | FH9: 38.01 | FI9: 38.69 | FJ9: 39.46 | FK9: 40.11 | FL9: 40.38 | FM9: 40.38 | FN9: 40.18 | FO9: 39.69 | FP9: 39.03 | FQ9: 38.32 | FR9: 37.69 | FS9: 37.12 | FT9: 36.52 | FU9: 35.93 | FV9: 35.38 | FW9: 34.89 | FX9: 34.46 | FY9: 34.08 | FZ9: 33.74 | GA9: 33.44 | GB9: 33.19 | GC9: 32.99 | GD9: 32.82 | GE9: 32.7 | GF9: 32.63 | GG9: 32.6 | GK9: 0.6 | GL9: 7 | GM9: 0 | GN9: 0 | GO9: 0 | GP9: 0 | GQ9: 0 | GR9: 0 | GS9: 0 | GT9: 0 | GU9: 0 | GV9: 0 | GW9: 43.65 | GX9: 0 | GY9: 0 | GZ9: 0 | HA9: 0 | HB9: 0 | HC9: 0 | HD9: 0 | HE9: 0 | HF9: 0 | HG9: 0 | HH9: 0 | HI9: 0 | HJ9: 0 | HK9: 0 | HL9: 0 | HM9: 0 | HN9: 0 | HO9: 0 | HP9: 0 | HQ9: 0 | HR9: 0 | HS9: 0 | HT9: 0 | HU9: 0 | HV9: 0 | HW9: 0 | HX9: 0 | HY9: 0 | HZ9: 0 | IA9: 0 | IB9: 0 | IC9: 0.6 | IG9: 7 | IH9: 49.71428571 | II9: 49.41428571 | IJ9: 49.11428571 | IK9: 48.81428571 | IL9: 48.51428571 | IM9: 48.21428571 | IN9: 47.91428571 | IO9: 47.61428571 | IP9: 47.31428571 | IQ9: 47.01428571 | IR9: 46.71428571 | IS9: 46.41428571 | IT9: 46.11428571 | IU9: 45.81428571 | IV9: 45.51428571 | IW9: 45.21428571 | IX9: 44.91428571 | IY9: 44.61428571 | IZ9: 44.31428571 | JA9: 44.01428571 | JB9: 43.71428571 | JC9: 43.71428571 | JD9: 43.51428571 | JE9: 43.31428571 | JF9: 43.11428571 | JG9: 42.91428571 | JH9: 42.71428571 | JI9: 42.51428571 | JJ9: 42.31428571 | JK9: 42.11428571 | JL9: 41.91428571 | JM9: 41.71428571 | JN9: 41.51428571 | JO9: 41.31428571 | JP9: 41.11428571 | JQ9: 40.91428571 | JR9: 40.71428571 | JS9: 40.51428571 | JT9: 40.31428571 | JU9: 40.11428571 | JV9: 39.91428571 | JW9: 39.71428571 | JX9: 0.6 | KD9: 0.6 | KE9: 7 | KF9: 10.02428571 | KG9: 10.05428571 | KH9: 10.01428571 | KI9: 9.904285714 | KJ9: 9.714285714 | KK9: 9.454285714 | KL9: 9.044285714 | KM9: 8.494285714 | KN9: 7.904285714 | KO9: 3.394285714 | KP9: 3.064285714 | KQ9: 7.054285714 | KR9: 7.264285714 | KS9: 7.544285714 | KT9: 7.684285714 | KU9: 7.524285714 | KV9: 6.904285714 | KW9: 5.924285714 | KX9: 4.854285714 | KY9: 3.904285714 | KZ9: 3.334285714 | LA9: 3.334285714 | LB9: 3.334285714 | LC9: 3.624285714 | LD9: 4.084285714 | LE9: 4.594285714 | LF9: 5.024285714 | LG9: 5.394285714 | LH9: 5.794285714 | LI9: 6.184285714 | LJ9: 6.534285714 | LK9: 6.824285714 | LL9: 7.054285714 | LM9: 7.234285714 | LN9: 7.374285714 | LO9: 7.474285714 | LP9: 7.524285714 | LQ9: 7.524285714 | LR9: 7.494285714 | LS9: 7.414285714 | LT9: 7.284285714 | LU9: 7.114285714 | MC9: 0.6 | MD9: 7 | ME9: 8.254642857 | MF9: 8.212142857 | MG9: 8.112142857 | MH9: 7.949642857 | MI9: 7.724642857 | MJ9: 7.407142857 | MK9: 6.967142857 | ML9: 6.449642857 | MM9: 3.952142857 | MN9: 1.572142857 | MO9: 3.409642857 | MP9: 5.487142857 | MQ9: 5.694642857 | MR9: 5.867142857 | MS9: 5.842142857 | MT9: 5.472142857 | MU9: 4.732142857 | MV9: 3.789642857 | MW9: 2.859642857 | MX9: 2.152142857 | MY9: 1.867142857 | MZ9: 1.964642857 | NA9: 2.267142857 | NB9: 2.672142857 | NC9: 3.074642857 | ND9: 3.424642857 | NE9: 3.767142857 | NF9: 4.129642857 | NG9: 4.482142857 | NH9: 4.807142857 | NI9: 5.104642857 | NJ9: 5.382142857 | NK9: 5.639642857 | NL9: 5.857142857 | NM9: 6.002142857 | NN9: 6.062142857 | NO9: 6.054642857 | NP9: 5.982142857 | NQ9: 5.839642857 | NR9: 5.634642857 | NU9: 0.6 | NV9: 7 | NW9: 0.19 | NX9: 0.19 | NY9: 0.19 | NZ9: 0.57 | OA9: 0.57 | OB9: 0.57 | OC9: 0.57 | OD9: 0.57 | OE9: 5.27 | OF9: 22.99 | OG9: 5.27 | OH9: 1.68 | OI9: 1.68 | OJ9: 1.68 | OK9: 1.68 | OL9: 1.68 | OM9: 1.68 | ON9: 5.27 | OO9: 5.27 | OP9: 5.27 | OQ9: 22.99 | OR9: 22.99 | OS9: 5.27 | OT9: 5.27 | OU9: 5.27 | OV9: 5.27 | OW9: 5.27 | OX9: 1.68 | OY9: 1.68 | OZ9: 1.68 | PA9: 1.68 | PB9: 1.68 | PC9: 1.68 | PD9: 1.68 | PE9: 0.57 | PF9: 0.57 | PG9: 0.57 | PH9: 1.68 | PI9: 1.68 | PJ9: 1.68 | PM9: 0.6 | PN9: 7 | PO9: -1.49 | PP9: -1.49 | PQ9: -0.38 | PR9: 0 | PS9: 0 | PT9: 0 | PU9: 0 | PV9: 0.38 | PW9: 4.7 | PX9: 21.31 | PY9: 5.08 | PZ9: 1.49 | QA9: 1.62 | QB9: 1.62 | QC9: 1.62 | QD9: 1.49 | QE9: 1.49 | QF9: 4.7 | QG9: 4.7 | QH9: 3.59 | QI9: 0 | QJ9: 0 | QK9: -17.72 | QL9: -17.72 | QM9: -17.72 | QN9: -17.72 | QO9: -17.72 | QP9: -3.59 | QQ9: -3.59 | QR9: -3.59 | QS9: -21.31 | QT9: -21.31 | QU9: -21.31 | QV9: -21.31 | QW9: -22.42 | QX9: -22.42 | QY9: -22.42 | QZ9: -21.31 | RA9: -21.31 | RB9: -21.31 | RE9: 0.6 | RF9: 7 | RG9: 0 | RH9: 0 | RI9: 0 | RJ9: 0 | RK9: 0 | RL9: 0 | RM9: 0 | RN9: 0 | RO9: 0 | RP9: 0 | RQ9: 0 | RR9: 0 | RS9: 0 | RT9: 0 | RU9: 0 | RV9: 0 | RW9: 0 | RX9: 0 | RY9: 0 | RZ9: 0 | SA9: 0 | SB9: 0 | SC9: 0 | SD9: 0 | SE9: 0 | SF9: 0 | SG9: 0 | SH9: 0 | SI9: 0 | SJ9: 0 | SK9: 0 | SL9: 0 | SM9: 0 | SN9: 0 | SO9: 0 | SP9: 0 | SQ9: 0 | SR9: 0 | SS9: 0 | ST9: 0 | SU9: 0 | SV9: 0.6 | SX9: 0.6 | SY9: 7 | SZ9: 0 | TA9: 0 | TB9: 0 | TC9: 0 | TD9: 0 | TE9: 0 | TF9: 0 | TG9: 0 | TH9: 0 | TI9: 0 | TJ9: 0 | TK9: 0 | TL9: 0 | TM9: 0 | TN9: 0 | TO9: 0 | TP9: 0 | TQ9: 0 | TR9: 0 | TS9: 0 | TT9: 0 | TU9: 0 | TV9: 0 | TW9: 0 | TX9: 0 | TY9: 0 | TZ9: 0 | UA9: 0 | UB9: 0 | UC9: 0 | UD9: 0 | UE9: 0 | UF9: 0 | UG9: 0 | UH9: 0 | UI9: 0 | UJ9: 0 | UK9: 0 | UL9: 0 | UM9: 0 | UN9: 0 | UO9: 0.6 | UQ9: 0.6 | UR9: 7 | US9: 1 | UT9: 0 | UU9: 0 | UV9: 0 | UW9: 0 | UX9: 0 | UY9: 0 | UZ9: 0 | VA9: 0 | VB9: 0 | VC9: 0 | VD9: 0 | VE9: 0 | VF9: 0 | VG9: 0 | VH9: 0 | VI9: 0 | VJ9: 0 | VK9: 0 | VL9: 0 | VM9: 1 | VN9: 0 | VO9: 0 | VP9: 0 | VQ9: 0 | VR9: 0 | VS9: 0 | VT9: 0 | VU9: 0 | VV9: 0 | VW9: 0 | VX9: 0 | VY9: 0 | VZ9: 0 | WA9: 0 | WB9: 0 | WC9: 0 | WD9: 0 | WE9: 0 | WF9: 0 | WG9: 1 | WH9: 0.6 | WJ9: 0.6 | WK9: 7 | WL9: 39.69 | WM9: 0 | WN9: 0 | WO9: 0 | WP9: 0 | WQ9: 0 | WR9: 0 | WS9: 0 | WT9: 0 | WU9: 0 | WV9: 0 | WW9: 0 | WX9: 0 | WY9: 0 | WZ9: 0 | XA9: 0 | XB9: 0 | XC9: 0 | XD9: 0 | XE9: 0 | XF9: 40.38 | XG9: 0 | XH9: 0 | XI9: 0 | XJ9: 0 | XK9: 0 | XL9: 0 | XM9: 0 | XN9: 0 | XO9: 0 | XP9: 0 | XQ9: 0 | XR9: 0 | XS9: 0 | XT9: 0 | XU9: 0 | XV9: 0 | XW9: 0 | XX9: 0 | XY9: 0 | XZ9: 32.6 | YA9: 0.6 | YC9: 0.6 | YD9: 7 | YE9: 7 | YF9: 7 | YG9: 7 | YH9: 7 | YI9: 7 | YJ9: 7 | YK9: 7 | YL9: 7 | YM9: 7 | YN9: 7 | YO9: 7 | YP9: 7 | YQ9: 7 | YR9: 7 | YS9: 7 | YT9: 7 | YU9: 7 | YV9: 7 | YW9: 7 | YX9: 7 | YY9: 7 | YZ9: 4 | ZA9: 4 | ZB9: 4 | ZC9: 4 | ZD9: 4 | ZE9: 4 | ZF9: 4 | ZG9: 4 | ZH9: 4 | ZI9: 4 | ZJ9: 4 | ZK9: 4 | ZL9: 4 | ZM9: 4 | ZN9: 4 | ZO9: 4 | ZP9: 4 | ZQ9: 4 | ZR9: 4 | ZS9: 4 | ZT9: 4 | ZU9: 0.6 | ZW9: 0.6 | ZX9: 7 | ZY9: 0 | ZZ9: 0 | AAA9: 0 | AAB9: 0 | AAC9: 0 | AAD9: 0 | AAE9: 0 | AAF9: 0 | AAG9: 0 | AAH9: 4 | AAI9: 4 | AAJ9: 0 | AAK9: 0 | AAL9: 0 | AAM9: 0 | AAN9: 0 | AAO9: 0 | AAP9: 0 | AAQ9: 0 | AAR9: 0 | AAS9: 0 | AAT9: 0 | AAU9: 0 | AAV9: 0 | AAW9: 0 | AAX9: 0 | AAY9: 0 | AAZ9: 0 | ABA9: 0 | ABB9: 0 | ABC9: 0 | ABD9: 0 | ABE9: 0 | ABF9: 0 | ABG9: 0 | ABH9: 0 | ABI9: 0 | ABJ9: 0 | ABK9: 0 | ABL9: 0 | ABM9: 0 | ABN9: 0 | ABO9: 0.6 | ABQ9: 0.6 | ABR9: 7 | ABS9: 1 | ABT9: 0 | ABU9: 0 | ABV9: 0 | ABW9: 0 | ABX9: 0 | ABY9: 0 | ABZ9: 0 | ACA9: 0 | ACB9: 0 | ACC9: 0 | ACD9: 0 | ACE9: 0 | ACF9: 0 | ACG9: 0 | ACH9: 0 | ACI9: 0 | ACJ9: 0 | ACK9: 0 | ACL9: 0 | ACM9: 1 | ACN9: 57 | ACO9: 57 | ACP9: 57 | ACQ9: 57 | ACR9: 57 | ACS9: 57 | ACT9: 57 | ACU9: 57 | ACV9: 57 | ACW9: 57 | ACX9: 57 | ACY9: 57 | ACZ9: 57 | ADA9: 57 | ADB9: 57 | ADC9: 57 | ADD9: 57 | ADE9: 57 | ADF9: 57 | ADG9: 57 | ADH9: 57 | ADI9: 0.6
A10: 8 | B10: H | C10: 36 | D10: 36 | E10: 38 | F10: 36 | G10: 36 | H10: 41 | I10: 42 | J10: 43 | K10: 42 | M10: 2B | N10: =ROUND('3D Interpolace'!M11,2) -> 39.5 | O10: =ROUND('3D Interpolace'!N11,2) -> 39.26 | P10: =ROUND('3D Interpolace'!O11,2) -> 39.06 | Q10: =ROUND('3D Interpolace'!P11,2) -> 38.91 | R10: =ROUND('3D Interpolace'!Q11,2) -> 38.81 | S10: =ROUND('3D Interpolace'!R11,2) -> 38.76 | T10: =ROUND('3D Interpolace'!S11,2) -> 38.81 | U10: =ROUND('3D Interpolace'!T11,2) -> 38.96 | V10: =ROUND('3D Interpolace'!U11,2) -> 39.14 | W10: =ROUND('3D Interpolace'!V11,2) -> 39.25 | X10: =ROUND('3D Interpolace'!W11,2) -> 39.22 | Y10: =ROUND('3D Interpolace'!X11,2) -> 38.96 | Z10: =ROUND('3D Interpolace'!Y11,2) -> 38.51 | AA10: =ROUND('3D Interpolace'!Z11,2) -> 38.02 | AB10: =ROUND('3D Interpolace'!AA11,2) -> 37.64 | AC10: =ROUND('3D Interpolace'!AB11,2) -> 37.5 | AD10: =ROUND('3D Interpolace'!AC11,2) -> 37.74 | AE10: =ROUND('3D Interpolace'!AD11,2) -> 38.26 | AF10: =ROUND('3D Interpolace'!AE11,2) -> 38.86 | AG10: =ROUND('3D Interpolace'!AF11,2) -> 39.36 | AH10: =ROUND('3D Interpolace'!AG11,2) -> 39.57 | AI10: =ROUND('3D Interpolace'!AH11,2) -> 39.43 | AJ10: =ROUND('3D Interpolace'!AI11,2) -> 39.07 | AK10: =ROUND('3D Interpolace'!AJ11,2) -> 38.57 | AL10: =ROUND('3D Interpolace'!AK11,2) -> 38.02 | AM10: =ROUND('3D Interpolace'!AL11,2) -> 37.5 | AN10: =ROUND('3D Interpolace'!AM11,2) -> 37.02 | AO10: =ROUND('3D Interpolace'!AN11,2) -> 36.5 | AP10: =ROUND('3D Interpolace'!AO11,2) -> 35.96 | AQ10: =ROUND('3D Interpolace'!AP11,2) -> 35.43 | AR10: =ROUND('3D Interpolace'!AQ11,2) -> 34.9 | AS10: =ROUND('3D Interpolace'!AR11,2) -> 34.36 | AT10: =ROUND('3D Interpolace'!AS11,2) -> 33.8 | AU10: =ROUND('3D Interpolace'!AT11,2) -> 33.25 | AV10: =ROUND('3D Interpolace'!AU11,2) -> 32.77 | AW10: =ROUND('3D Interpolace'!AV11,2) -> 32.42 | AX10: =ROUND('3D Interpolace'!AW11,2) -> 32.18 | AY10: =ROUND('3D Interpolace'!AX11,2) -> 32.02 | AZ10: =ROUND('3D Interpolace'!AY11,2) -> 31.96 | BA10: =ROUND('3D Interpolace'!AZ11,2) -> 31.98 | BB10: =ROUND('3D Interpolace'!BA11,2) -> 32.08 | BD10: 0.7 | BE10: 8 | BF10: 4 | BG10: 4 | BH10: 4 | BI10: 4 | BJ10: 4 | BK10: 4 | BL10: 4 | BM10: 4 | BN10: 4 | BO10: 8 | BP10: 8 | BQ10: 4 | BR10: 4 | BS10: 4 | BT10: 4 | BU10: 4 | BV10: 4 | BW10: 4 | BX10: 4 | BY10: 4 | BZ10: 4 | CA10: 4 | CB10: 4 | CC10: 4 | CD10: 4 | CE10: 4 | CF10: 4 | CG10: 4 | CH10: 4 | CI10: 4 | CJ10: 4 | CK10: 4 | CL10: 4 | CM10: 4 | CN10: 4 | CO10: 4 | CP10: 4 | CQ10: 4 | CR10: 4 | CS10: 4 | CT10: 4 | CU10: 0.7 | CW10: 0.7 | CX10: 8 | CY10: 43.5 | CZ10: 43.26 | DA10: 43.06 | DB10: 42.91 | DC10: 42.81 | DD10: 42.76 | DE10: 42.81 | DF10: 42.96 | DG10: 43.14 | DH10: 47.25 | DI10: 47.22 | DJ10: 42.96 | DK10: 42.51 | DL10: 42.02 | DM10: 41.64 | DN10: 41.5 | DO10: 41.74 | DP10: 42.26 | DQ10: 42.86 | DR10: 43.36 | DS10: 43.57 | DT10: 43.43 | DU10: 43.07 | DV10: 42.57 | DW10: 42.02 | DX10: 41.5 | DY10: 41.02 | DZ10: 40.5 | EA10: 39.96 | EB10: 39.43 | EC10: 38.9 | ED10: 38.36 | EE10: 37.8 | EF10: 37.25 | EG10: 36.77 | EH10: 36.42 | EI10: 36.18 | EJ10: 36.02 | EK10: 35.96 | EL10: 35.98 | EM10: 36.08 | EN10: 0.7 | EP10: 0.7 | EQ10: 8 | ER10: 43.5 | ES10: 43.26 | ET10: 43.06 | EU10: 42.91 | EV10: 42.81 | EW10: 42.76 | EX10: 42.81 | EY10: 42.96 | EZ10: 43.14 | FA10: 47.25 | FB10: 47.22 | FC10: 42.96 | FD10: 42.51 | FE10: 42.02 | FF10: 41.64 | FG10: 41.5 | FH10: 41.74 | FI10: 42.26 | FJ10: 42.86 | FK10: 43.36 | FL10: 43.57 | FM10: 43.57 | FN10: 43.43 | FO10: 43.07 | FP10: 42.57 | FQ10: 42.02 | FR10: 41.5 | FS10: 41.02 | FT10: 40.5 | FU10: 39.96 | FV10: 39.43 | FW10: 38.9 | FX10: 38.36 | FY10: 37.8 | FZ10: 37.25 | GA10: 36.77 | GB10: 36.42 | GC10: 36.18 | GD10: 36.02 | GE10: 35.96 | GF10: 35.98 | GG10: 36.08 | GK10: 0.7 | GL10: 8 | GM10: 43.5 | GN10: 0 | GO10: 0 | GP10: 0 | GQ10: 0 | GR10: 42.76 | GS10: 0 | GT10: 0 | GU10: 0 | GV10: 47.25 | GW10: 47.22 | GX10: 0 | GY10: 0 | GZ10: 0 | HA10: 0 | HB10: 41.5 | HC10: 0 | HD10: 0 | HE10: 0 | HF10: 0 | HG10: 43.57 | HH10: 43.57 | HI10: 0 | HJ10: 0 | HK10: 0 | HL10: 0 | HM10: 41.5 | HN10: 0 | HO10: 0 | HP10: 0 | HQ10: 0 | HR10: 38.9 | HS10: 0 | HT10: 0 | HU10: 0 | HV10: 0 | HW10: 36.42 | HX10: 0 | HY10: 0 | HZ10: 0 | IA10: 0 | IB10: 36.08 | IC10: 0.7 | IG10: 8 | IH10: 50 | II10: 49.7 | IJ10: 49.4 | IK10: 49.1 | IL10: 48.8 | IM10: 48.5 | IN10: 48.2 | IO10: 47.9 | IP10: 47.6 | IQ10: 47.3 | IR10: 47 | IS10: 46.7 | IT10: 46.4 | IU10: 46.1 | IV10: 45.8 | IW10: 45.5 | IX10: 45.2 | IY10: 44.9 | IZ10: 44.6 | JA10: 44.3 | JB10: 44 | JC10: 44 | JD10: 43.8 | JE10: 43.6 | JF10: 43.4 | JG10: 43.2 | JH10: 43 | JI10: 42.8 | JJ10: 42.6 | JK10: 42.4 | JL10: 42.2 | JM10: 42 | JN10: 41.8 | JO10: 41.6 | JP10: 41.4 | JQ10: 41.2 | JR10: 41 | JS10: 40.8 | JT10: 40.6 | JU10: 40.4 | JV10: 40.2 | JW10: 40 | JX10: 0.7 | KD10: 0.7 | KE10: 8 | KF10: 6.5 | KG10: 6.44 | KH10: 6.34 | KI10: 6.19 | KJ10: 5.99 | KK10: 5.74 | KL10: 5.39 | KM10: 4.94 | KN10: 4.46 | KO10: 0.05 | KP10: -0.22 | KQ10: 3.74 | KR10: 3.89 | KS10: 4.08 | KT10: 4.16 | KU10: 4 | KV10: 3.46 | KW10: 2.64 | KX10: 1.74 | KY10: 0.94 | KZ10: 0.43 | LA10: 0.43 | LB10: 0.37 | LC10: 0.53 | LD10: 0.83 | LE10: 1.18 | LF10: 1.5 | LG10: 1.78 | LH10: 2.1 | LI10: 2.44 | LJ10: 2.77 | LK10: 3.1 | LL10: 3.44 | LM10: 3.8 | LN10: 4.15 | LO10: 4.43 | LP10: 4.58 | LQ10: 4.62 | LR10: 4.58 | LS10: 4.44 | LT10: 4.22 | LU10: 3.92 | MC10: 0.7 | MD10: 8 | ME10: 6.645357143 | MF10: 6.517857143 | MG10: 6.360357143 | MH10: 6.167857143 | MI10: 5.942857143 | MJ10: 5.667857143 | MK10: 5.320357143 | ML10: 4.927857143 | MM10: 2.555357143 | MN10: 0.2628571429 | MO10: 2.117857143 | MP10: 4.145357143 | MQ10: 4.265357143 | MR10: 4.352857143 | MS10: 4.287857143 | MT10: 3.962857143 | MU10: 3.362857143 | MV10: 2.605357143 | MW10: 1.850357143 | MX10: 1.257857143 | MY10: 0.9753571429 | MZ10: 0.9703571429 | NA10: 1.110357143 | NB10: 1.332857143 | NC10: 1.580357143 | ND10: 1.822857143 | NE10: 2.082857143 | NF10: 2.380357143 | NG10: 2.700357143 | NH10: 3.032857143 | NI10: 3.400357143 | NJ10: 3.820357143 | NK10: 4.265357143 | NL10: 4.670357143 | NM10: 4.957857143 | NN10: 5.092857143 | NO10: 5.102857143 | NP10: 5.005357143 | NQ10: 4.802857143 | NR10: 4.500357143 | NU10: 0.7 | NV10: 8 | NW10: 0.57 | NX10: 0.57 | NY10: 0.57 | NZ10: 0.57 | OA10: 1.68 | OB10: 1.68 | OC10: 1.68 | OD10: 1.68 | OE10: 5.27 | OF10: 22.99 | OG10: 5.27 | OH10: 1.68 | OI10: 1.68 | OJ10: 1.68 | OK10: 1.68 | OL10: 5.27 | OM10: 5.27 | ON10: 5.27 | OO10: 22.99 | OP10: 22.99 | OQ10: 22.99 | OR10: 22.99 | OS10: 22.99 | OT10: 22.99 | OU10: 22.99 | OV10: 22.99 | OW10: 5.27 | OX10: 5.27 | OY10: 5.27 | OZ10: 5.27 | PA10: 5.27 | PB10: 5.27 | PC10: 1.68 | PD10: 1.68 | PE10: 1.68 | PF10: 1.68 | PG10: 1.68 | PH10: 1.68 | PI10: 1.68 | PJ10: 1.68 | PM10: 0.7 | PN10: 8 | PO10: -22.42 | PP10: -22.42 | PQ10: -4.7 | PR10: -4.7 | PS10: -3.59 | PT10: -3.59 | PU10: 0 | PV10: 0 | PW10: 0 | PX10: 0 | PY10: 0 | PZ10: 0 | QA10: 0 | QB10: 0 | QC10: 0 | QD10: 3.59 | QE10: 3.59 | QF10: 0 | QG10: 17.72 | QH10: 0 | QI10: 0 | QJ10: 0 | QK10: 0 | QL10: 0 | QM10: 0 | QN10: 0 | QO10: -17.72 | QP10: -17.72 | QQ10: -17.72 | QR10: -17.72 | QS10: -17.72 | QT10: -17.72 | QU10: -21.31 | QV10: -21.31 | QW10: -3.59 | QX10: -3.59 | QY10: -3.59 | QZ10: -21.31 | RA10: -21.31 | RB10: -21.31 | RE10: 0.7 | RF10: 8 | RG10: 43.5 | RH10: 0 | RI10: 0 | RJ10: 0 | RK10: 0 | RL10: 0 | RM10: 0 | RN10: 0 | RO10: 0 | RP10: 47.25 | RQ10: 0 | RR10: 0 | RS10: 0 | RT10: 0 | RU10: 0 | RV10: 0 | RW10: 0 | RX10: 0 | RY10: 0 | RZ10: 0 | SA10: 43.57 | SB10: 0 | SC10: 0 | SD10: 0 | SE10: 0 | SF10: 0 | SG10: 0 | SH10: 0 | SI10: 0 | SJ10: 0 | SK10: 0 | SL10: 0 | SM10: 0 | SN10: 0 | SO10: 0 | SP10: 0 | SQ10: 0 | SR10: 0 | SS10: 0 | ST10: 0 | SU10: 36.08 | SV10: 0.7 | SX10: 0.7 | SY10: 8 | SZ10: 43.5 | TA10: 0 | TB10: 0 | TC10: 0 | TD10: 0 | TE10: 0 | TF10: 0 | TG10: 0 | TH10: 0 | TI10: 47.25 | TJ10: 0 | TK10: 0 | TL10: 0 | TM10: 0 | TN10: 0 | TO10: 0 | TP10: 0 | TQ10: 0 | TR10: 0 | TS10: 0 | TT10: 43.57 | TU10: 43.57 | TV10: 0 | TW10: 0 | TX10: 0 | TY10: 0 | TZ10: 0 | UA10: 0 | UB10: 0 | UC10: 0 | UD10: 0 | UE10: 0 | UF10: 0 | UG10: 0 | UH10: 0 | UI10: 0 | UJ10: 0 | UK10: 0 | UL10: 0 | UM10: 0 | UN10: 35.98 | UO10: 0.7 | UQ10: 0.7 | UR10: 8 | US10: 1 | UT10: 0 | UU10: 0 | UV10: 0 | UW10: 0 | UX10: 0 | UY10: 0 | UZ10: 0 | VA10: 0 | VB10: 0 | VC10: 0 | VD10: 0 | VE10: 0 | VF10: 0 | VG10: 0 | VH10: 0 | VI10: 0 | VJ10: 0 | VK10: 0 | VL10: 0 | VM10: 1 | VN10: 0 | VO10: 0 | VP10: 0 | VQ10: 0 | VR10: 0 | VS10: 0 | VT10: 0 | VU10: 0 | VV10: 0 | VW10: 0 | VX10: 0 | VY10: 0 | VZ10: 0 | WA10: 0 | WB10: 0 | WC10: 0 | WD10: 0 | WE10: 0 | WF10: 0 | WG10: 1 | WH10: 0.7 | WJ10: 0.7 | WK10: 8 | WL10: 43.5 | WM10: 0 | WN10: 0 | WO10: 0 | WP10: 0 | WQ10: 0 | WR10: 0 | WS10: 0 | WT10: 0 | WU10: 47.25 | WV10: 0 | WW10: 0 | WX10: 0 | WY10: 0 | WZ10: 0 | XA10: 0 | XB10: 0 | XC10: 0 | XD10: 0 | XE10: 0 | XF10: 43.57 | XG10: 0 | XH10: 0 | XI10: 0 | XJ10: 0 | XK10: 0 | XL10: 0 | XM10: 0 | XN10: 0 | XO10: 0 | XP10: 0 | XQ10: 0 | XR10: 0 | XS10: 0 | XT10: 0 | XU10: 0 | XV10: 0 | XW10: 0 | XX10: 0 | XY10: 0 | XZ10: 36.08 | YA10: 0.7 | YC10: 0.7 | YD10: 8 | YE10: 7 | YF10: 7 | YG10: 7 | YH10: 7 | YI10: 7 | YJ10: 7 | YK10: 7 | YL10: 7 | YM10: 7 | YN10: 7 | YO10: 7 | YP10: 7 | YQ10: 7 | YR10: 7 | YS10: 7 | YT10: 7 | YU10: 7 | YV10: 7 | YW10: 7 | YX10: 7 | YY10: 7 | YZ10: 4 | ZA10: 4 | ZB10: 4 | ZC10: 4 | ZD10: 4 | ZE10: 4 | ZF10: 4 | ZG10: 4 | ZH10: 4 | ZI10: 4 | ZJ10: 4 | ZK10: 4 | ZL10: 4 | ZM10: 4 | ZN10: 4 | ZO10: 4 | ZP10: 4 | ZQ10: 4 | ZR10: 4 | ZS10: 4 | ZT10: 4 | ZU10: 0.7 | ZW10: 0.7 | ZX10: 8 | ZY10: 4 | ZZ10: 4 | AAA10: 4 | AAB10: 4 | AAC10: 4 | AAD10: 4 | AAE10: 4 | AAF10: 4 | AAG10: 4 | AAH10: 8 | AAI10: 8 | AAJ10: 4 | AAK10: 4 | AAL10: 4 | AAM10: 4 | AAN10: 4 | AAO10: 4 | AAP10: 4 | AAQ10: 4 | AAR10: 4 | AAS10: 4 | AAT10: 4 | AAU10: 4 | AAV10: 4 | AAW10: 4 | AAX10: 4 | AAY10: 4 | AAZ10: 4 | ABA10: 4 | ABB10: 4 | ABC10: 4 | ABD10: 4 | ABE10: 4 | ABF10: 4 | ABG10: 4 | ABH10: 4 | ABI10: 4 | ABJ10: 4 | ABK10: 4 | ABL10: 4 | ABM10: 4 | ABN10: 4 | ABO10: 0.7 | ABQ10: 0.7 | ABR10: 8 | ABS10: 1 | ABT10: 0 | ABU10: 0 | ABV10: 0 | ABW10: 0 | ABX10: 0 | ABY10: 0 | ABZ10: 0 | ACA10: 0 | ACB10: 0 | ACC10: 0 | ACD10: 0 | ACE10: 0 | ACF10: 0 | ACG10: 0 | ACH10: 0 | ACI10: 0 | ACJ10: 0 | ACK10: 0 | ACL10: 0 | ACM10: 1 | ACN10: 57 | ACO10: 57 | ACP10: 57 | ACQ10: 57 | ACR10: 57 | ACS10: 57 | ACT10: 57 | ACU10: 57 | ACV10: 57 | ACW10: 57 | ACX10: 57 | ACY10: 57 | ACZ10: 57 | ADA10: 57 | ADB10: 57 | ADC10: 57 | ADD10: 57 | ADE10: 57 | ADF10: 57 | ADG10: 57 | ADH10: 57 | ADI10: 0.7
A11: 9 | B11: I | C11: 36 | D11: 35 | E11: 36 | F11: 37 | G11: 36 | H11: 41 | I11: 41 | J11: 41 | K11: 40 | M11: 2C | N11: =ROUND('3D Interpolace'!M12,2) -> 39.38 | O11: =ROUND('3D Interpolace'!N12,2) -> 39.25 | P11: =ROUND('3D Interpolace'!O12,2) -> 39.13 | Q11: =ROUND('3D Interpolace'!P12,2) -> 39.03 | R11: =ROUND('3D Interpolace'!Q12,2) -> 38.95 | S11: =ROUND('3D Interpolace'!R12,2) -> 38.88 | T11: =ROUND('3D Interpolace'!S12,2) -> 38.85 | U11: =ROUND('3D Interpolace'!T12,2) -> 38.87 | V11: =ROUND('3D Interpolace'!U12,2) -> 38.89 | W11: =ROUND('3D Interpolace'!V12,2) -> 38.87 | X11: =ROUND('3D Interpolace'!W12,2) -> 38.78 | Y11: =ROUND('3D Interpolace'!X12,2) -> 38.54 | Z11: =ROUND('3D Interpolace'!Y12,2) -> 38.18 | AA11: =ROUND('3D Interpolace'!Z12,2) -> 37.8 | AB11: =ROUND('3D Interpolace'!AA12,2) -> 37.5 | AC11: =ROUND('3D Interpolace'!AB12,2) -> 37.38 | AD11: =ROUND('3D Interpolace'!AC12,2) -> 37.5 | AE11: =ROUND('3D Interpolace'!AD12,2) -> 37.82 | AF11: =ROUND('3D Interpolace'!AE12,2) -> 38.21 | AG11: =ROUND('3D Interpolace'!AF12,2) -> 38.54 | AH11: =ROUND('3D Interpolace'!AG12,2) -> 38.67 | AI11: =ROUND('3D Interpolace'!AH12,2) -> 38.6 | AJ11: =ROUND('3D Interpolace'!AI12,2) -> 38.39 | AK11: =ROUND('3D Interpolace'!AJ12,2) -> 38.1 | AL11: =ROUND('3D Interpolace'!AK12,2) -> 37.75 | AM11: =ROUND('3D Interpolace'!AL12,2) -> 37.38 | AN11: =ROUND('3D Interpolace'!AM12,2) -> 36.98 | AO11: =ROUND('3D Interpolace'!AN12,2) -> 36.54 | AP11: =ROUND('3D Interpolace'!AO12,2) -> 36.05 | AQ11: =ROUND('3D Interpolace'!AP12,2) -> 35.53 | AR11: =ROUND('3D Interpolace'!AQ12,2) -> 34.98 | AS11: =ROUND('3D Interpolace'!AR12,2) -> 34.33 | AT11: =ROUND('3D Interpolace'!AS12,2) -> 33.6 | AU11: =ROUND('3D Interpolace'!AT12,2) -> 32.86 | AV11: =ROUND('3D Interpolace'!AU12,2) -> 32.21 | AW11: =ROUND('3D Interpolace'!AV12,2) -> 31.74 | AX11: =ROUND('3D Interpolace'!AW12,2) -> 31.46 | AY11: =ROUND('3D Interpolace'!AX12,2) -> 31.3 | AZ11: =ROUND('3D Interpolace'!AY12,2) -> 31.27 | BA11: =ROUND('3D Interpolace'!AZ12,2) -> 31.35 | BB11: =ROUND('3D Interpolace'!BA12,2) -> 31.56 | BD11: 0.8 | BE11: 9 | BF11: 4 | BG11: 4 | BH11: 4 | BI11: 4 | BJ11: 4 | BK11: 4 | BL11: 4 | BM11: 4 | BN11: 4 | BO11: 8 | BP11: 8 | BQ11: 4 | BR11: 4 | BS11: 4 | BT11: 4 | BU11: 4 | BV11: 4 | BW11: 4 | BX11: 4 | BY11: 4 | BZ11: 4 | CA11: 4 | CB11: 4 | CC11: 4 | CD11: 4 | CE11: 4 | CF11: 4 | CG11: 4 | CH11: 4 | CI11: 4 | CJ11: 4 | CK11: 4 | CL11: 4 | CM11: 4 | CN11: 4 | CO11: 4 | CP11: 4 | CQ11: 4 | CR11: 4 | CS11: 4 | CT11: 4 | CU11: 0.8 | CW11: 0.8 | CX11: 9 | CY11: 43.38 | CZ11: 43.25 | DA11: 43.13 | DB11: 43.03 | DC11: 42.95 | DD11: 42.88 | DE11: 42.85 | DF11: 42.87 | DG11: 42.89 | DH11: 46.87 | DI11: 46.78 | DJ11: 42.54 | DK11: 42.18 | DL11: 41.8 | DM11: 41.5 | DN11: 41.38 | DO11: 41.5 | DP11: 41.82 | DQ11: 42.21 | DR11: 42.54 | DS11: 42.67 | DT11: 42.6 | DU11: 42.39 | DV11: 42.1 | DW11: 41.75 | DX11: 41.38 | DY11: 40.98 | DZ11: 40.54 | EA11: 40.05 | EB11: 39.53 | EC11: 38.98 | ED11: 38.33 | EE11: 37.6 | EF11: 36.86 | EG11: 36.21 | EH11: 35.74 | EI11: 35.46 | EJ11: 35.3 | EK11: 35.27 | EL11: 35.35 | EM11: 35.56 | EN11: 0.8 | EP11: 0.8 | EQ11: 9 | ER11: 43.38 | ES11: 43.25 | ET11: 43.13 | EU11: 43.03 | EV11: 42.95 | EW11: 42.88 | EX11: 42.85 | EY11: 42.87 | EZ11: 42.89 | FA11: 46.87 | FB11: 46.78 | FC11: 42.54 | FD11: 42.18 | FE11: 41.8 | FF11: 41.5 | FG11: 41.38 | FH11: 41.5 | FI11: 41.82 | FJ11: 42.21 | FK11: 42.54 | FL11: 42.67 | FM11: 42.67 | FN11: 42.6 | FO11: 42.39 | FP11: 42.1 | FQ11: 41.75 | FR11: 41.38 | FS11: 40.98 | FT11: 40.54 | FU11: 40.05 | FV11: 39.53 | FW11: 38.98 | FX11: 38.33 | FY11: 37.6 | FZ11: 36.86 | GA11: 36.21 | GB11: 35.74 | GC11: 35.46 | GD11: 35.3 | GE11: 35.27 | GF11: 35.35 | GG11: 35.56 | GK11: 0.8 | GL11: 9 | GM11: 43.38 | GN11: 0 | GO11: 0 | GP11: 0 | GQ11: 0 | GR11: 42.88 | GS11: 0 | GT11: 0 | GU11: 0 | GV11: 46.87 | GW11: 46.78 | GX11: 0 | GY11: 0 | GZ11: 0 | HA11: 0 | HB11: 41.38 | HC11: 0 | HD11: 0 | HE11: 0 | HF11: 0 | HG11: 42.67 | HH11: 42.67 | HI11: 0 | HJ11: 0 | HK11: 0 | HL11: 0 | HM11: 41.38 | HN11: 0 | HO11: 0 | HP11: 0 | HQ11: 0 | HR11: 38.98 | HS11: 0 | HT11: 0 | HU11: 0 | HV11: 0 | HW11: 35.74 | HX11: 0 | HY11: 0 | HZ11: 0 | IA11: 0 | IB11: 35.56 | IC11: 0.8 | IG11: 9 | IH11: 50.28571429 | II11: 49.98571429 | IJ11: 49.68571429 | IK11: 49.38571429 | IL11: 49.08571429 | IM11: 48.78571429 | IN11: 48.48571429 | IO11: 48.18571429 | IP11: 47.88571429 | IQ11: 47.58571429 | IR11: 47.28571429 | IS11: 46.98571429 | IT11: 46.68571429 | IU11: 46.38571429 | IV11: 46.08571429 | IW11: 45.78571429 | IX11: 45.48571429 | IY11: 45.18571429 | IZ11: 44.88571429 | JA11: 44.58571429 | JB11: 44.28571429 | JC11: 44.28571429 | JD11: 44.08571429 | JE11: 43.88571429 | JF11: 43.68571429 | JG11: 43.48571429 | JH11: 43.28571429 | JI11: 43.08571429 | JJ11: 42.88571429 | JK11: 42.68571429 | JL11: 42.48571429 | JM11: 42.28571429 | JN11: 42.08571429 | JO11: 41.88571429 | JP11: 41.68571429 | JQ11: 41.48571429 | JR11: 41.28571429 | JS11: 41.08571429 | JT11: 40.88571429 | JU11: 40.68571429 | JV11: 40.48571429 | JW11: 40.28571429 | JX11: 0.8 | KD11: 0.8 | KE11: 9 | KF11: 6.905714286 | KG11: 6.735714286 | KH11: 6.555714286 | KI11: 6.355714286 | KJ11: 6.135714286 | KK11: 5.905714286 | KL11: 5.635714286 | KM11: 5.315714286 | KN11: 4.995714286 | KO11: 0.7157142857 | KP11: 0.5057142857 | KQ11: 4.445714286 | KR11: 4.505714286 | KS11: 4.585714286 | KT11: 4.585714286 | KU11: 4.405714286 | KV11: 3.985714286 | KW11: 3.365714286 | KX11: 2.675714286 | KY11: 2.045714286 | KZ11: 1.615714286 | LA11: 1.615714286 | LB11: 1.485714286 | LC11: 1.495714286 | LD11: 1.585714286 | LE11: 1.735714286 | LF11: 1.905714286 | LG11: 2.105714286 | LH11: 2.345714286 | LI11: 2.635714286 | LJ11: 2.955714286 | LK11: 3.305714286 | LL11: 3.755714286 | LM11: 4.285714286 | LN11: 4.825714286 | LO11: 5.275714286 | LP11: 5.545714286 | LQ11: 5.625714286 | LR11: 5.585714286 | LS11: 5.415714286 | LT11: 5.135714286 | LU11: 4.725714286 | MC11: 0.8 | MD11: 9 | ME11: 9.008571429 | MF11: 8.781071429 | MG11: 8.556071429 | MH11: 8.328571429 | MI11: 8.101071429 | MJ11: 7.871071429 | MK11: 7.626071429 | ML11: 7.373571429 | MM11: 6.141071429 | MN11: 4.948571429 | MO11: 5.828571429 | MP11: 6.801071429 | MQ11: 6.823571429 | MR11: 6.818571429 | MS11: 6.711071429 | MT11: 6.438571429 | MU11: 5.988571429 | MV11: 5.433571429 | MW11: 4.871071429 | MX11: 4.401071429 | MY11: 4.123571429 | MZ11: 4.008571429 | NA11: 3.971071429 | NB11: 3.993571429 | NC11: 4.071071429 | ND11: 4.201071429 | NE11: 4.381071429 | NF11: 4.616071429 | NG11: 4.906071429 | NH11: 5.243571429 | NI11: 5.663571429 | NJ11: 6.201071429 | NK11: 6.806071429 | NL11: 7.371071429 | NM11: 7.781071429 | NN11: 7.983571429 | NO11: 8.013571429 | NP11: 7.906071429 | NQ11: 7.666071429 | NR11: 7.291071429 | NU11: 0.8 | NV11: 9 | NW11: 0.19 | NX11: 0.19 | NY11: 0.19 | NZ11: 0.19 | OA11: 0.19 | OB11: 0.57 | OC11: 0.57 | OD11: 0.57 | OE11: 0.57 | OF11: 1.68 | OG11: 1.68 | OH11: 0.57 | OI11: 0.57 | OJ11: 0.57 | OK11: 0.57 | OL11: 0.57 | OM11: 1.68 | ON11: 1.68 | OO11: 1.68 | OP11: 1.68 | OQ11: 1.68 | OR11: 1.68 | OS11: 5.27 | OT11: 5.27 | OU11: 1.68 | OV11: 1.68 | OW11: 1.68 | OX11: 1.68 | OY11: 1.68 | OZ11: 1.68 | PA11: 1.68 | PB11: 0.57 | PC11: 0.57 | PD11: 0.57 | PE11: 0.57 | PF11: 0.57 | PG11: 0.19 | PH11: 0.57 | PI11: 0.57 | PJ11: 0.57 | PM11: 0.8 | PN11: 9 | PO11: -22.8 | PP11: -22.8 | PQ11: -22.8 | PR11: -5.08 | PS11: -5.08 | PT11: -4.7 | PU11: -1.11 | PV11: -1.11 | PW11: -1.11 | PX11: -3.59 | PY11: -3.59 | PZ11: -1.11 | QA11: -1.11 | QB11: -1.11 | QC11: -1.11 | QD11: -4.7 | QE11: -3.59 | QF11: -3.59 | QG11: -3.59 | QH11: -21.31 | QI11: 0 | QJ11: 0 | QK11: 3.59 | QL11: 3.59 | QM11: 0 | QN11: 0 | QO11: 0 | QP11: 0 | QQ11: 0 | QR11: 0 | QS11: 0 | QT11: -1.11 | QU11: -1.11 | QV11: -1.11 | QW11: 0 | QX11: 0 | QY11: -0.38 | QZ11: -1.11 | RA11: -1.11 | RB11: -1.11 | RE11: 0.8 | RF11: 9 | RG11: 0 | RH11: 0 | RI11: 0 | RJ11: 0 | RK11: 0 | RL11: 0 | RM11: 0 | RN11: 0 | RO11: 0 | RP11: 0 | RQ11: 0 | RR11: 0 | RS11: 0 | RT11: 0 | RU11: 0 | RV11: 0 | RW11: 0 | RX11: 0 | RY11: 0 | RZ11: 0 | SA11: 0 | SB11: 0 | SC11: 0 | SD11: 0 | SE11: 0 | SF11: 0 | SG11: 0 | SH11: 0 | SI11: 0 | SJ11: 0 | SK11: 0 | SL11: 0 | SM11: 0 | SN11: 0 | SO11: 0 | SP11: 0 | SQ11: 0 | SR11: 0 | SS11: 0 | ST11: 0 | SU11: 0 | SV11: 0.8 | SX11: 0.8 | SY11: 9 | SZ11: 0 | TA11: 0 | TB11: 0 | TC11: 0 | TD11: 0 | TE11: 0 | TF11: 0 | TG11: 0 | TH11: 0 | TI11: 0 | TJ11: 0 | TK11: 0 | TL11: 0 | TM11: 0 | TN11: 0 | TO11: 0 | TP11: 0 | TQ11: 0 | TR11: 0 | TS11: 0 | TT11: 0 | TU11: 0 | TV11: 0 | TW11: 0 | TX11: 0 | TY11: 0 | TZ11: 0 | UA11: 0 | UB11: 0 | UC11: 0 | UD11: 0 | UE11: 0 | UF11: 0 | UG11: 0 | UH11: 0 | UI11: 0 | UJ11: 0 | UK11: 0 | UL11: 0 | UM11: 0 | UN11: 0 | UO11: 0.8 | UQ11: 0.8 | UR11: 9 | US11: 1 | UT11: 0 | UU11: 0 | UV11: 0 | UW11: 0 | UX11: 0 | UY11: 0 | UZ11: 0 | VA11: 0 | VB11: 0 | VC11: 0 | VD11: 0 | VE11: 0 | VF11: 0 | VG11: 0 | VH11: 0 | VI11: 0 | VJ11: 0 | VK11: 0 | VL11: 0 | VM11: 1 | VN11: 0 | VO11: 0 | VP11: 0 | VQ11: 0 | VR11: 0 | VS11: 0 | VT11: 0 | VU11: 0 | VV11: 0 | VW11: 0 | VX11: 0 | VY11: 0 | VZ11: 0 | WA11: 0 | WB11: 0 | WC11: 0 | WD11: 0 | WE11: 0 | WF11: 0 | WG11: 1 | WH11: 0.8 | WJ11: 0.8 | WK11: 9 | WL11: 43.38 | WM11: 0 | WN11: 0 | WO11: 0 | WP11: 0 | WQ11: 0 | WR11: 0 | WS11: 0 | WT11: 0 | WU11: 0 | WV11: 0 | WW11: 0 | WX11: 0 | WY11: 0 | WZ11: 0 | XA11: 0 | XB11: 0 | XC11: 0 | XD11: 0 | XE11: 0 | XF11: 42.67 | XG11: 0 | XH11: 0 | XI11: 0 | XJ11: 0 | XK11: 0 | XL11: 0 | XM11: 0 | XN11: 0 | XO11: 0 | XP11: 0 | XQ11: 0 | XR11: 0 | XS11: 0 | XT11: 0 | XU11: 0 | XV11: 0 | XW11: 0 | XX11: 0 | XY11: 0 | XZ11: 35.56 | YA11: 0.8 | YC11: 0.8 | YD11: 9 | YE11: 7 | YF11: 7 | YG11: 7 | YH11: 7 | YI11: 7 | YJ11: 7 | YK11: 7 | YL11: 7 | YM11: 7 | YN11: 7 | YO11: 7 | YP11: 7 | YQ11: 7 | YR11: 7 | YS11: 7 | YT11: 7 | YU11: 7 | YV11: 7 | YW11: 7 | YX11: 7 | YY11: 7 | YZ11: 4 | ZA11: 4 | ZB11: 4 | ZC11: 4 | ZD11: 4 | ZE11: 4 | ZF11: 4 | ZG11: 4 | ZH11: 4 | ZI11: 4 | ZJ11: 4 | ZK11: 4 | ZL11: 4 | ZM11: 4 | ZN11: 4 | ZO11: 4 | ZP11: 4 | ZQ11: 4 | ZR11: 4 | ZS11: 4 | ZT11: 4 | ZU11: 0.8 | ZW11: 0.8 | ZX11: 9 | ZY11: 4 | ZZ11: 4 | AAA11: 4 | AAB11: 4 | AAC11: 4 | AAD11: 4 | AAE11: 4 | AAF11: 4 | AAG11: 4 | AAH11: 8 | AAI11: 8 | AAJ11: 4 | AAK11: 4 | AAL11: 4 | AAM11: 4 | AAN11: 4 | AAO11: 4 | AAP11: 4 | AAQ11: 4 | AAR11: 4 | AAS11: 4 | AAT11: 4 | AAU11: 4 | AAV11: 4 | AAW11: 4 | AAX11: 4 | AAY11: 4 | AAZ11: 4 | ABA11: 4 | ABB11: 4 | ABC11: 4 | ABD11: 4 | ABE11: 4 | ABF11: 4 | ABG11: 4 | ABH11: 4 | ABI11: 4 | ABJ11: 4 | ABK11: 4 | ABL11: 4 | ABM11: 4 | ABN11: 4 | ABO11: 0.8 | ABQ11: 0.8 | ABR11: 9 | ABS11: 1 | ABT11: 0 | ABU11: 0 | ABV11: 0 | ABW11: 0 | ABX11: 0 | ABY11: 0 | ABZ11: 0 | ACA11: 0 | ACB11: 0 | ACC11: 0 | ACD11: 0 | ACE11: 0 | ACF11: 0 | ACG11: 0 | ACH11: 0 | ACI11: 0 | ACJ11: 0 | ACK11: 0 | ACL11: 0 | ACM11: 1 | ACN11: 57 | ACO11: 57 | ACP11: 57 | ACQ11: 57 | ACR11: 57 | ACS11: 57 | ACT11: 57 | ACU11: 57 | ACV11: 57 | ACW11: 57 | ACX11: 57 | ACY11: 57 | ACZ11: 57 | ADA11: 57 | ADB11: 57 | ADC11: 57 | ADD11: 57 | ADE11: 57 | ADF11: 57 | ADG11: 57 | ADH11: 57 | ADI11: 0.8
A12: 10 | B12: J | C12: 35 | D12: 35 | E12: 36 | F12: 34 | G12: 36 | H12: 39 | I12: 41 | J12: 39 | K12: 38 | M12: 2D | N12: =ROUND('3D Interpolace'!M13,2) -> 39.23 | O12: =ROUND('3D Interpolace'!N13,2) -> 39.22 | P12: =ROUND('3D Interpolace'!O13,2) -> 39.19 | Q12: =ROUND('3D Interpolace'!P13,2) -> 39.14 | R12: =ROUND('3D Interpolace'!Q13,2) -> 39.08 | S12: =ROUND('3D Interpolace'!R13,2) -> 39 | T12: =ROUND('3D Interpolace'!S13,2) -> 38.9 | U12: =ROUND('3D Interpolace'!T13,2) -> 38.79 | V12: =ROUND('3D Interpolace'!U13,2) -> 38.67 | W12: =ROUND('3D Interpolace'!V13,2) -> 38.52 | X12: =ROUND('3D Interpolace'!W13,2) -> 38.35 | Y12: =ROUND('3D Interpolace'!X13,2) -> 38.13 | Z12: =ROUND('3D Interpolace'!Y13,2) -> 37.86 | AA12: =ROUND('3D Interpolace'!Z13,2) -> 37.58 | AB12: =ROUND('3D Interpolace'!AA13,2) -> 37.36 | AC12: =ROUND('3D Interpolace'!AB13,2) -> 37.23 | AD12: =ROUND('3D Interpolace'!AC13,2) -> 37.25 | AE12: =ROUND('3D Interpolace'!AD13,2) -> 37.39 | AF12: =ROUND('3D Interpolace'!AE13,2) -> 37.56 | AG12: =ROUND('3D Interpolace'!AF13,2) -> 37.72 | AH12: =ROUND('3D Interpolace'!AG13,2) -> 37.78 | AI12: =ROUND('3D Interpolace'!AH13,2) -> 37.77 | AJ12: =ROUND('3D Interpolace'!AI13,2) -> 37.72 | AK12: =ROUND('3D Interpolace'!AJ13,2) -> 37.62 | AL12: =ROUND('3D Interpolace'!AK13,2) -> 37.47 | AM12: =ROUND('3D Interpolace'!AL13,2) -> 37.23 | AN12: =ROUND('3D Interpolace'!AM13,2) -> 36.92 | AO12: =ROUND('3D Interpolace'!AN13,2) -> 36.55 | AP12: =ROUND('3D Interpolace'!AO13,2) -> 36.11 | AQ12: =ROUND('3D Interpolace'!AP13,2) -> 35.6 | AR12: =ROUND('3D Interpolace'!AQ13,2) -> 35.03 | AS12: =ROUND('3D Interpolace'!AR13,2) -> 34.32 | AT12: =ROUND('3D Interpolace'!AS13,2) -> 33.46 | AU12: =ROUND('3D Interpolace'!AT13,2) -> 32.57 | AV12: =ROUND('3D Interpolace'!AU13,2) -> 31.79 | AW12: =ROUND('3D Interpolace'!AV13,2) -> 31.25 | AX12: =ROUND('3D Interpolace'!AW13,2) -> 30.93 | AY12: =ROUND('3D Interpolace'!AX13,2) -> 30.77 | AZ12: =ROUND('3D Interpolace'!AY13,2) -> 30.75 | BA12: =ROUND('3D Interpolace'!AZ13,2) -> 30.88 | BB12: =ROUND('3D Interpolace'!BA13,2) -> 31.16 | BD12: 0.9 | BE12: 10 | CU12: 0.9 | CW12: 0.9 | CX12: 10 | CY12: 39.23 | CZ12: 39.22 | DA12: 39.19 | DB12: 39.14 | DC12: 39.08 | DD12: 39 | DE12: 38.9 | DF12: 38.79 | DG12: 38.67 | DH12: 38.52 | DI12: 38.35 | DJ12: 38.13 | DK12: 37.86 | DL12: 37.58 | DM12: 37.36 | DN12: 37.23 | DO12: 37.25 | DP12: 37.39 | DQ12: 37.56 | DR12: 37.72 | DS12: 37.78 | DT12: 37.77 | DU12: 37.72 | DV12: 37.62 | DW12: 37.47 | DX12: 37.23 | DY12: 36.92 | DZ12: 36.55 | EA12: 36.11 | EB12: 35.6 | EC12: 35.03 | ED12: 34.32 | EE12: 33.46 | EF12: 32.57 | EG12: 31.79 | EH12: 31.25 | EI12: 30.93 | EJ12: 30.77 | EK12: 30.75 | EL12: 30.88 | EM12: 31.16 | EN12: 0.9 | EP12: 0.9 | EQ12: 10 | ER12: 39.23 | ES12: 39.22 | ET12: 39.19 | EU12: 39.14 | EV12: 39.08 | EW12: 39 | EX12: 38.9 | EY12: 38.79 | EZ12: 38.67 | FA12: 38.52 | FB12: 38.35 | FC12: 38.13 | FD12: 37.86 | FE12: 37.58 | FF12: 37.36 | FG12: 37.23 | FH12: 37.25 | FI12: 37.39 | FJ12: 37.56 | FK12: 37.72 | FL12: 37.78 | FM12: 37.78 | FN12: 37.77 | FO12: 37.72 | FP12: 37.62 | FQ12: 37.47 | FR12: 37.23 | FS12: 36.92 | FT12: 36.55 | FU12: 36.11 | FV12: 35.6 | FW12: 35.03 | FX12: 34.32 | FY12: 33.46 | FZ12: 32.57 | GA12: 31.79 | GB12: 31.25 | GC12: 30.93 | GD12: 30.77 | GE12: 30.75 | GF12: 30.88 | GG12: 31.16 | GK12: 0.9 | GL12: 10 | GM12: 0 | GN12: 0 | GO12: 0 | GP12: 0 | GQ12: 0 | GR12: 0 | GS12: 0 | GT12: 0 | GU12: 0 | GV12: 0 | GW12: 0 | GX12: 0 | GY12: 0 | GZ12: 0 | HA12: 0 | HB12: 0 | HC12: 0 | HD12: 0 | HE12: 0 | HF12: 0 | HG12: 0 | HH12: 0 | HI12: 0 | HJ12: 0 | HK12: 0 | HL12: 0 | HM12: 0 | HN12: 0 | HO12: 0 | HP12: 0 | HQ12: 0 | HR12: 0 | HS12: 0 | HT12: 0 | HU12: 0 | HV12: 0 | HW12: 0 | HX12: 0 | HY12: 0 | HZ12: 0 | IA12: 0 | IB12: 0 | IC12: 0.9 | IG12: 10 | IH12: 50.57142857 | II12: 50.27142857 | IJ12: 49.97142857 | IK12: 49.67142857 | IL12: 49.37142857 | IM12: 49.07142857 | IN12: 48.77142857 | IO12: 48.47142857 | IP12: 48.17142857 | IQ12: 47.87142857 | IR12: 47.57142857 | IS12: 47.27142857 | IT12: 46.97142857 | IU12: 46.67142857 | IV12: 46.37142857 | IW12: 46.07142857 | IX12: 45.77142857 | IY12: 45.47142857 | IZ12: 45.17142857 | JA12: 44.87142857 | JB12: 44.57142857 | JC12: 44.57142857 | JD12: 44.37142857 | JE12: 44.17142857 | JF12: 43.97142857 | JG12: 43.77142857 | JH12: 43.57142857 | JI12: 43.37142857 | JJ12: 43.17142857 | JK12: 42.97142857 | JL12: 42.77142857 | JM12: 42.57142857 | JN12: 42.37142857 | JO12: 42.17142857 | JP12: 41.97142857 | JQ12: 41.77142857 | JR12: 41.57142857 | JS12: 41.37142857 | JT12: 41.17142857 | JU12: 40.97142857 | JV12: 40.77142857 | JW12: 40.57142857 | JX12: 0.9 | KD12: 0.9 | KE12: 10 | KF12: 11.34142857 | KG12: 11.05142857 | KH12: 10.78142857 | KI12: 10.53142857 | KJ12: 10.29142857 | KK12: 10.07142857 | KL12: 9.871428571 | KM12: 9.681428571 | KN12: 9.501428571 | KO12: 9.351428571 | KP12: 9.221428571 | KQ12: 9.141428571 | KR12: 9.111428571 | KS12: 9.091428571 | KT12: 9.011428571 | KU12: 8.841428571 | KV12: 8.521428571 | KW12: 8.081428571 | KX12: 7.611428571 | KY12: 7.151428571 | KZ12: 6.791428571 | LA12: 6.791428571 | LB12: 6.601428571 | LC12: 6.451428571 | LD12: 6.351428571 | LE12: 6.301428571 | LF12: 6.341428571 | LG12: 6.451428571 | LH12: 6.621428571 | LI12: 6.861428571 | LJ12: 7.171428571 | LK12: 7.541428571 | LL12: 8.051428571 | LM12: 8.711428571 | LN12: 9.401428571 | LO12: 9.981428571 | LP12: 10.32142857 | LQ12: 10.44142857 | LR12: 10.40142857 | LS12: 10.22142857 | LT12: 9.891428571 | LU12: 9.411428571 | MC12: 0.9 | MD12: 10 | ME12: =AVERAGE(KF12:KG13) -> 11.43178571 | MF12: 11.11178571 | MG12: 10.82178571 | MH12: 10.55928571 | MI12: 10.32428571 | MJ12: 10.12428571 | MK12: 9.959285714 | ML12: 9.819285714 | MM12: 9.699285714 | MN12: 9.591785714 | MO12: 9.499285714 | MP12: 9.434285714 | MQ12: 9.384285714 | MR12: 9.311785714 | MS12: 9.181785714 | MT12: 8.959285714 | MU12: 8.636785714 | MV12: 8.256785714 | MW12: 7.861785714 | MX12: 7.494285714 | MY12: 7.219285714 | MZ12: 7.009285714 | NA12: 6.819285714 | NB12: 6.674285714 | NC12: 6.606785714 | ND12: 6.636785714 | NE12: 6.746785714 | NF12: 6.929285714 | NG12: 7.186785714 | NH12: 7.516785714 | NI12: 7.961785714 | NJ12: 8.566785714 | NK12: 9.266785714 | NL12: 9.926785714 | NM12: 10.40928571 | NN12: 10.64928571 | NO12: 10.68928571 | NP12: 10.57428571 | NQ12: 10.30678571 | NR12: 9.884285714 | NU12: 0.9 | NV12: 10 | NW12: 0.06 | NX12: 0.06 | NY12: 0.06 | NZ12: 0.06 | OA12: 0.06 | OB12: 0.06 | OC12: 0.19 | OD12: 0.19 | OE12: 0.19 | OF12: 0.19 | OG12: 0.19 | OH12: 0.19 | OI12: 0.19 | OJ12: 0.19 | OK12: 0.19 | OL12: 0.19 | OM12: 0.19 | ON12: 0.19 | OO12: 0.57 | OP12: 0.57 | OQ12: 0.57 | OR12: 0.57 | OS12: 0.57 | OT12: 0.57 | OU12: 0.57 | OV12: 0.57 | OW12: 0.57 | OX12: 0.57 | OY12: 0.57 | OZ12: 0.57 | PA12: 0.57 | PB12: 0.19 | PC12: 0.19 | PD12: 0.19 | PE12: 0.06 | PF12: 0.06 | PG12: 0.06 | PH12: 0.06 | PI12: 0.06 | PJ12: 0.19 | PM12: 0.9 | PN12: 10 | PO12: -22.93 | PP12: -22.93 | PQ12: -22.93 | PR12: -5.21 | PS12: -5.21 | PT12: -5.21 | PU12: -1.49 | PV12: -1.49 | PW12: -1.49 | PX12: -1.49 | PY12: -1.49 | PZ12: -1.49 | QA12: -5.08 | QB12: -5.08 | QC12: -5.08 | QD12: -5.08 | QE12: -5.08 | QF12: -5.08 | QG12: -22.42 | QH12: -22.42 | QI12: 0.51 | QJ12: 0.38 | QK12: 0.38 | QL12: 0.38 | QM12: 0.38 | QN12: 0.38 | QO12: 0.38 | QP12: 0.38 | QQ12: 0.38 | QR12: 0.38 | QS12: 0 | QT12: 0 | QU12: 0 | QV12: 0 | QW12: -0.13 | QX12: 0 | QY12: 0 | QZ12: -0.13 | RA12: -0.13 | RB12: 0 | RE12: 0.9 | RF12: 10 | RG12: 0 | RH12: 0 | RI12: 0 | RJ12: 0 | RK12: 0 | RL12: 0 | RM12: 0 | RN12: 0 | RO12: 0 | RP12: 0 | RQ12: 0 | RR12: 0 | RS12: 0 | RT12: 0 | RU12: 0 | RV12: 0 | RW12: 0 | RX12: 0 | RY12: 0 | RZ12: 0 | SA12: 0 | SB12: 0 | SC12: 0 | SD12: 0 | SE12: 0 | SF12: 0 | SG12: 0 | SH12: 0 | SI12: 0 | SJ12: 0 | SK12: 0 | SL12: 0 | SM12: 0 | SN12: 0 | SO12: 0 | SP12: 0 | SQ12: 0 | SR12: 0 | SS12: 0 | ST12: 0 | SU12: 0 | SV12: 0.9 | SX12: 0.9 | SY12: 10 | SZ12: 0 | TA12: 0 | TB12: 0 | TC12: 0 | TD12: 0 | TE12: 0 | TF12: 0 | TG12: 0 | TH12: 0 | TI12: 0 | TJ12: 0 | TK12: 0 | TL12: 0 | TM12: 0 | TN12: 0 | TO12: 0 | TP12: 0 | TQ12: 0 | TR12: 0 | TS12: 0 | TT12: 0 | TU12: 0 | TV12: 0 | TW12: 0 | TX12: 0 | TY12: 0 | TZ12: 0 | UA12: 0 | UB12: 0 | UC12: 0 | UD12: 0 | UE12: 0 | UF12: 0 | UG12: 0 | UH12: 0 | UI12: 0 | UJ12: 0 | UK12: 0 | UL12: 0 | UM12: 0 | UN12: 0 | UO12: 0.9 | UQ12: 0.9 | UR12: 10 | US12: 1 | UT12: 0 | UU12: 0 | UV12: 0 | UW12: 0 | UX12: 0 | UY12: 0 | UZ12: 0 | VA12: 0 | VB12: 0 | VC12: 0 | VD12: 0 | VE12: 0 | VF12: 0 | VG12: 0 | VH12: 0 | VI12: 0 | VJ12: 0 | VK12: 0 | VL12: 0 | VM12: 1 | VN12: 0 | VO12: 0 | VP12: 0 | VQ12: 0 | VR12: 0 | VS12: 0 | VT12: 0 | VU12: 0 | VV12: 0 | VW12: 0 | VX12: 0 | VY12: 0 | VZ12: 0 | WA12: 0 | WB12: 0 | WC12: 0 | WD12: 0 | WE12: 0 | WF12: 0 | WG12: 1 | WH12: 0.9 | WJ12: 0.9 | WK12: 10 | WL12: 39.23 | WM12: 0 | WN12: 0 | WO12: 0 | WP12: 0 | WQ12: 0 | WR12: 0 | WS12: 0 | WT12: 0 | WU12: 0 | WV12: 0 | WW12: 0 | WX12: 0 | WY12: 0 | WZ12: 0 | XA12: 0 | XB12: 0 | XC12: 0 | XD12: 0 | XE12: 0 | XF12: 37.78 | XG12: 0 | XH12: 0 | XI12: 0 | XJ12: 0 | XK12: 0 | XL12: 0 | XM12: 0 | XN12: 0 | XO12: 0 | XP12: 0 | XQ12: 0 | XR12: 0 | XS12: 0 | XT12: 0 | XU12: 0 | XV12: 0 | XW12: 0 | XX12: 0 | XY12: 0 | XZ12: 31.16 | YA12: 0.9 | YC12: 0.9 | YD12: 10 | YE12: 7 | YF12: 7 | YG12: 7 | YH12: 7 | YI12: 7 | YJ12: 7 | YK12: 7 | YL12: 7 | YM12: 7 | YN12: 7 | YO12: 7 | YP12: 7 | YQ12: 7 | YR12: 7 | YS12: 7 | YT12: 7 | YU12: 7 | YV12: 7 | YW12: 7 | YX12: 7 | YY12: 7 | YZ12: 4 | ZA12: 4 | ZB12: 4 | ZC12: 4 | ZD12: 4 | ZE12: 4 | ZF12: 4 | ZG12: 4 | ZH12: 4 | ZI12: 4 | ZJ12: 4 | ZK12: 4 | ZL12: 4 | ZM12: 4 | ZN12: 4 | ZO12: 4 | ZP12: 4 | ZQ12: 4 | ZR12: 4 | ZS12: 4 | ZT12: 4 | ZU12: 0.9 | ZW12: 0.9 | ZX12: 10 | ZY12: 0 | ZZ12: 0 | AAA12: 0 | AAB12: 0 | AAC12: 0 | AAD12: 0 | AAE12: 0 | AAF12: 0 | AAG12: 0 | AAH12: 0 | AAI12: 0 | AAJ12: 0 | AAK12: 0 | AAL12: 0 | AAM12: 0 | AAN12: 0 | AAO12: 0 | AAP12: 0 | AAQ12: 0 | AAR12: 0 | AAS12: 0 | AAT12: 0 | AAU12: 0 | AAV12: 0 | AAW12: 0 | AAX12: 0 | AAY12: 0 | AAZ12: 0 | ABA12: 0 | ABB12: 0 | ABC12: 0 | ABD12: 0 | ABE12: 0 | ABF12: 0 | ABG12: 0 | ABH12: 0 | ABI12: 0 | ABJ12: 0 | ABK12: 0 | ABL12: 0 | ABM12: 0 | ABN12: 0 | ABO12: 0.9 | ABQ12: 0.9 | ABR12: 10 | ABS12: 1 | ABT12: 0 | ABU12: 0 | ABV12: 0 | ABW12: 0 | ABX12: 0 | ABY12: 0 | ABZ12: 0 | ACA12: 0 | ACB12: 0 | ACC12: 0 | ACD12: 0 | ACE12: 0 | ACF12: 0 | ACG12: 0 | ACH12: 0 | ACI12: 0 | ACJ12: 0 | ACK12: 0 | ACL12: 0 | ACM12: 1 | ACN12: 57 | ACO12: 57 | ACP12: 57 | ACQ12: 57 | ACR12: 57 | ACS12: 57 | ACT12: 57 | ACU12: 57 | ACV12: 57 | ACW12: 57 | ACX12: 57 | ACY12: 57 | ACZ12: 57 | ADA12: 57 | ADB12: 57 | ADC12: 57 | ADD12: 57 | ADE12: 57 | ADF12: 57 | ADG12: 57 | ADH12: 57 | ADI12: 0.9
A13: 11 | B13: K | C13: 37 | D13: 35 | E13: 35 | F13: 35 | G13: 36 | H13: 39 | I13: 36 | J13: 36 | K13: 35 | M13: 3 | N13: =ROUND('3D Interpolace'!M14,2) -> 39 | O13: =ROUND('3D Interpolace'!N14,2) -> 39.08 | P13: =ROUND('3D Interpolace'!O14,2) -> 39.12 | Q13: =ROUND('3D Interpolace'!P14,2) -> 39.12 | R13: =ROUND('3D Interpolace'!Q14,2) -> 39.08 | S13: =ROUND('3D Interpolace'!R14,2) -> 39 | T13: =ROUND('3D Interpolace'!S14,2) -> 38.86 | U13: =ROUND('3D Interpolace'!T14,2) -> 38.67 | V13: =ROUND('3D Interpolace'!U14,2) -> 38.45 | W13: =ROUND('3D Interpolace'!V14,2) -> 38.22 | X13: =ROUND('3D Interpolace'!W14,2) -> 38 | Y13: =ROUND('3D Interpolace'!X14,2) -> 37.78 | Z13: =ROUND('3D Interpolace'!Y14,2) -> 37.55 | AA13: =ROUND('3D Interpolace'!Z14,2) -> 37.33 | AB13: =ROUND('3D Interpolace'!AA14,2) -> 37.14 | AC13: =ROUND('3D Interpolace'!AB14,2) -> 37 | AD13: =ROUND('3D Interpolace'!AC14,2) -> 36.94 | AE13: =ROUND('3D Interpolace'!AD14,2) -> 36.93 | AF13: =ROUND('3D Interpolace'!AE14,2) -> 36.95 | AG13: =ROUND('3D Interpolace'!AF14,2) -> 36.98 | AH13: =ROUND('3D Interpolace'!AG14,2) -> 37 | AI13: =ROUND('3D Interpolace'!AH14,2) -> 37.03 | AJ13: =ROUND('3D Interpolace'!AI14,2) -> 37.1 | AK13: =ROUND('3D Interpolace'!AJ14,2) -> 37.14 | AL13: =ROUND('3D Interpolace'!AK14,2) -> 37.13 | AM13: =ROUND('3D Interpolace'!AL14,2) -> 37 | AN13: =ROUND('3D Interpolace'!AM14,2) -> 36.76 | AO13: =ROUND('3D Interpolace'!AN14,2) -> 36.44 | AP13: =ROUND('3D Interpolace'!AO14,2) -> 36.04 | AQ13: =ROUND('3D Interpolace'!AP14,2) -> 35.56 | AR13: =ROUND('3D Interpolace'!AQ14,2) -> 35 | AS13: =ROUND('3D Interpolace'!AR14,2) -> 34.26 | AT13: =ROUND('3D Interpolace'!AS14,2) -> 33.35 | AU13: =ROUND('3D Interpolace'!AT14,2) -> 32.41 | AV13: =ROUND('3D Interpolace'!AU14,2) -> 31.58 | AW13: =ROUND('3D Interpolace'!AV14,2) -> 31 | AX13: =ROUND('3D Interpolace'!AW14,2) -> 30.68 | AY13: =ROUND('3D Interpolace'!AX14,2) -> 30.52 | AZ13: =ROUND('3D Interpolace'!AY14,2) -> 30.52 | BA13: =ROUND('3D Interpolace'!AZ14,2) -> 30.68 | BB13: =ROUND('3D Interpolace'!BA14,2) -> 31 | BD13: 1 | BE13: 11 | CU13: 1 | CW13: 1 | CX13: 11 | CY13: 39 | CZ13: 39.08 | DA13: 39.12 | DB13: 39.12 | DC13: 39.08 | DD13: 39 | DE13: 38.86 | DF13: 38.67 | DG13: 38.45 | DH13: 38.22 | DI13: 38 | DJ13: 37.78 | DK13: 37.55 | DL13: 37.33 | DM13: 37.14 | DN13: 37 | DO13: 36.94 | DP13: 36.93 | DQ13: 36.95 | DR13: 36.98 | DS13: 37 | DT13: 37.03 | DU13: 37.1 | DV13: 37.14 | DW13: 37.13 | DX13: 37 | DY13: 36.76 | DZ13: 36.44 | EA13: 36.04 | EB13: 35.56 | EC13: 35 | ED13: 34.26 | EE13: 33.35 | EF13: 32.41 | EG13: 31.58 | EH13: 31 | EI13: 30.68 | EJ13: 30.52 | EK13: 30.52 | EL13: 30.68 | EM13: 31 | EN13: 1 | EP13: 1 | EQ13: 11 | ER13: =IF(ISNUMBER(INDEX(VstupniData,$EQ13,ER$2)),INDEX(VstupniData,$EQ13,ER$2),"") -> 39 | ES13: 39.08 | ET13: 39.12 | EU13: 39.12 | EV13: 39.08 | EW13: 39 | EX13: 38.86 | EY13: 38.67 | EZ13: 38.45 | FA13: 38.22 | FB13: =IF(ISNUMBER(INDEX(VstupniData,$EQ13,FB$2)),INDEX(VstupniData,$EQ13,FB$2),"") -> 38 | FC13: 37.78 | FD13: 37.55 | FE13: 37.33 | FF13: 37.14 | FG13: 37 | FH13: 36.94 | FI13: 36.93 | FJ13: 36.95 | FK13: 36.98 | FL13: =IF(ISNUMBER(INDEX(VstupniData,$EQ13,FL$2)),INDEX(VstupniData,$EQ13,FL$2),"") -> 37 | FM13: 37 | FN13: 37.03 | FO13: 37.1 | FP13: 37.14 | FQ13: 37.13 | FR13: 37 | FS13: 36.76 | FT13: 36.44 | FU13: 36.04 | FV13: =IF(ISNUMBER(INDEX(VstupniData,$EQ13,FV$2)),INDEX(VstupniData,$EQ13,FV$2),"") -> 35.56 | FW13: 35 | FX13: 34.26 | FY13: 33.35 | FZ13: 32.41 | GA13: 31.58 | GB13: 31 | GC13: 30.68 | GD13: 30.52 | GE13: 30.52 | GF13: 30.68 | GG13: 31 | GK13: 1 | GL13: 11 | GM13: 39 | GN13: 0 | GO13: 0 | GP13: 0 | GQ13: 0 | GR13: 39 | GS13: 0 | GT13: 0 | GU13: 0 | GV13: 0 | GW13: 38 | GX13: 0 | GY13: 0 | GZ13: 0 | HA13: 0 | HB13: 37 | HC13: 0 | HD13: 0 | HE13: 0 | HF13: 0 | HG13: 37 | HH13: 37 | HI13: 0 | HJ13: 0 | HK13: 0 | HL13: 0 | HM13: 37 | HN13: 0 | HO13: 0 | HP13: 0 | HQ13: 0 | HR13: 35 | HS13: 0 | HT13: 0 | HU13: 0 | HV13: 0 | HW13: 31 | HX13: 0 | HY13: 0 | HZ13: 0 | IA13: 0 | IB13: 31 | IC13: 1 | IG13: 11 | IH13: 50.85714286 | II13: 50.55714286 | IJ13: 50.25714286 | IK13: 49.95714286 | IL13: 49.65714286 | IM13: 49.35714286 | IN13: 49.05714286 | IO13: 48.75714286 | IP13: 48.45714286 | IQ13: 48.15714286 | IR13: 47.85714286 | IS13: 47.55714286 | IT13: 47.25714286 | IU13: 46.95714286 | IV13: 46.65714286 | IW13: 46.35714286 | IX13: 46.05714286 | IY13: 45.75714286 | IZ13: 45.45714286 | JA13: 45.15714286 | JB13: 44.85714286 | JC13: 44.85714286 | JD13: 44.65714286 | JE13: 44.45714286 | JF13: 44.25714286 | JG13: 44.05714286 | JH13: 43.85714286 | JI13: 43.65714286 | JJ13: 43.45714286 | JK13: 43.25714286 | JL13: 43.05714286 | JM13: 42.85714286 | JN13: 42.65714286 | JO13: 42.45714286 | JP13: 42.25714286 | JQ13: 42.05714286 | JR13: 41.85714286 | JS13: 41.65714286 | JT13: 41.45714286 | JU13: 41.25714286 | JV13: 41.05714286 | JW13: 40.85714286 | JX13: 1 | KD13: 1 | KE13: 11 | KF13: 11.85714286 | KG13: 11.47714286 | KH13: 11.13714286 | KI13: 10.83714286 | KJ13: 10.57714286 | KK13: 10.35714286 | KL13: 10.19714286 | KM13: 10.08714286 | KN13: 10.00714286 | KO13: 9.937142857 | KP13: 9.857142857 | KQ13: 9.777142857 | KR13: 9.707142857 | KS13: 9.627142857 | KT13: 9.517142857 | KU13: 9.357142857 | KV13: 9.117142857 | KW13: 8.827142857 | KX13: 8.507142857 | KY13: 8.177142857 | KZ13: 7.857142857 | LA13: 7.857142857 | LB13: 7.627142857 | LC13: 7.357142857 | LD13: 7.117142857 | LE13: 6.927142857 | LF13: 6.857142857 | LG13: 6.897142857 | LH13: 7.017142857 | LI13: 7.217142857 | LJ13: 7.497142857 | LK13: 7.857142857 | LL13: 8.397142857 | LM13: 9.107142857 | LN13: 9.847142857 | LO13: 10.47714286 | LP13: 10.85714286 | LQ13: 10.97714286 | LR13: 10.93714286 | LS13: 10.73714286 | LT13: 10.37714286 | LU13: 9.857142857 | MC13: 1 | MD13: 11 | ME13: =AVERAGE(KF14:KG15) -> 0.3675 | MF13: =AVERAGE(KG14:KH15) -> 0.275 | MG13: 0.23 | MH13: 0.2325 | MI13: 0.2825 | MJ13: 0.39 | MK13: 0.56 | ML13: 0.78 | MM13: 1.025 | MN13: 1.265 | MO13: 1.4975 | MP13: 1.735 | MQ13: 1.9725 | MR13: 2.1925 | MS13: 2.3775 | MT13: 2.5075 | MU13: 2.585 | MV13: 2.63 | MW13: 2.65 | MX13: 2.655 | MY13: 2.44468254 | MZ13: 2.07297619 | NA13: 1.722698413 | NB13: 1.349920635 | NC13: 1.012142857 | ND13: 0.7643650794 | NE13: 0.6415873016 | NF13: 0.6238095238 | NG13: 0.688531746 | NH13: 0.8357539683 | NI13: 1.06047619 | NJ13: 1.407698413 | NK13: 1.924920635 | NL13: 2.539642857 | NM13: 3.116865079 | NN13: 3.516587302 | NO13: 3.666309524 | NP13: 3.616031746 | NQ13: 3.408253968 | NR13: 3.04297619 | NU13: 1 | NV13: 11 | NW13: 22.99 | NX13: 22.99 | NY13: 22.99 | NZ13: 22.99 | OA13: 22.99 | OB13: 22.99 | OC13: 22.99 | OD13: 22.99 | OE13: 22.99 | OF13: 22.99 | OG13: 22.99 | OH13: 22.99 | OI13: 22.99 | OJ13: 5.27 | OK13: 5.27 | OL13: 5.27 | OM13: 5.27 | ON13: 5.27 | OO13: 5.27 | OP13: 5.27 | OQ13: 5.27 | OR13: 5.27 | OS13: 22.99 | OT13: 22.99 | OU13: 22.99 | OV13: 22.99 | OW13: 22.99 | OX13: 22.99 | OY13: 22.99 | OZ13: 22.99 | PA13: 22.99 | PB13: 22.99 | PC13: 22.99 | PD13: 5.27 | PE13: 5.27 | PF13: 5.27 | PG13: 5.27 | PH13: 5.27 | PI13: 5.27 | PJ13: 5.27 | PM13: 1 | PN13: 11 | PO13: 0 | PP13: 0 | PQ13: 0 | PR13: 0 | PS13: 0 | PT13: 0 | PU13: 0 | PV13: 0 | PW13: 0 | PX13: 0 | PY13: 0 | PZ13: 0 | QA13: 0 | QB13: -17.72 | QC13: -17.72 | QD13: -17.72 | QE13: -17.72 | QF13: -17.72 | QG13: -17.72 | QH13: -17.72 | QI13: -17.72 | QJ13: -17.72 | QK13: 0 | QL13: 0 | QM13: 0 | QN13: 0 | QO13: 0 | QP13: 0 | QQ13: 0 | QR13: 0 | QS13: 0 | QT13: 0 | QU13: 0 | QV13: -17.72 | QW13: 0 | QX13: 0 | QY13: -17.72 | QZ13: -17.72 | RA13: -17.72 | RB13: -17.72 | RE13: 1 | RF13: 11 | RG13: 0 | RH13: 0 | RI13: 0 | RJ13: 0 | RK13: 0 | RL13: 0 | RM13: 0 | RN13: 0 | RO13: 0 | RP13: 0 | RQ13: 0 | RR13: 0 | RS13: 0 | RT13: 0 | RU13: 0 | RV13: 0 | RW13: 0 | RX13: 0 | RY13: 0 | RZ13: 0 | SA13: 0 | SB13: 0 | SC13: 0 | SD13: 0 | SE13: 0 | SF13: 0 | SG13: 0 | SH13: 0 | SI13: 0 | SJ13: 0 | SK13: 0 | SL13: 0 | SM13: 0 | SN13: 0 | SO13: 0 | SP13: 0 | SQ13: 0 | SR13: 0 | SS13: 0 | ST13: 0 | SU13: 0 | SV13: 1 | SX13: 1 | SY13: 11 | SZ13: 0 | TA13: 0 | TB13: 0 | TC13: 0 | TD13: 0 | TE13: 0 | TF13: 0 | TG13: 0 | TH13: 0 | TI13: 0 | TJ13: 0 | TK13: 0 | TL13: 0 | TM13: 0 | TN13: 0 | TO13: 0 | TP13: 0 | TQ13: 0 | TR13: 0 | TS13: 0 | TT13: 0 | TU13: 0 | TV13: 0 | TW13: 0 | TX13: 0 | TY13: 0 | TZ13: 0 | UA13: 0 | UB13: 0 | UC13: 0 | UD13: 0 | UE13: 0 | UF13: 0 | UG13: 0 | UH13: 0 | UI13: 0 | UJ13: 0 | UK13: 0 | UL13: 0 | UM13: 0 | UN13: 0 | UO13: 1 | UQ13: 1 | UR13: 11 | US13: 1 | UT13: 1 | UU13: 1 | UV13: 1 | UW13: 1 | UX13: 1 | UY13: 1 | UZ13: 1 | VA13: 1 | VB13: 1 | VC13: 1 | VD13: 1 | VE13: 1 | VF13: 1 | VG13: 1 | VH13: 1 | VI13: 1 | VJ13: 1 | VK13: 1 | VL13: 1 | VM13: 1 | VN13: 1 | VO13: 1 | VP13: 1 | VQ13: 1 | VR13: 1 | VS13: 1 | VT13: 1 | VU13: 1 | VV13: 1 | VW13: 1 | VX13: 1 | VY13: 1 | VZ13: 1 | WA13: 1 | WB13: 1 | WC13: 1 | WD13: 1 | WE13: 1 | WF13: 1 | WG13: 1 | WH13: 1 | WJ13: 1 | WK13: 11 | WL13: 39 | WM13: 39.08 | WN13: 39.12 | WO13: 39.12 | WP13: 39.08 | WQ13: 39 | WR13: 38.86 | WS13: 38.67 | WT13: 38.45 | WU13: 38.22 | WV13: 38 | WW13: 37.78 | WX13: 37.55 | WY13: 37.33 | WZ13: 37.14 | XA13: 37 | XB13: 36.94 | XC13: 36.93 | XD13: 36.95 | XE13: 36.98 | XF13: 37 | XG13: 37.03 | XH13: 37.1 | XI13: 37.14 | XJ13: 37.13 | XK13: 37 | XL13: 36.76 | XM13: 36.44 | XN13: 36.04 | XO13: 35.56 | XP13: 35 | XQ13: 34.26 | XR13: 33.35 | XS13: 32.41 | XT13: 31.58 | XU13: 31 | XV13: 30.68 | XW13: 30.52 | XX13: 30.52 | XY13: 30.68 | XZ13: 31 | YA13: 1 | YC13: 1 | YD13: 11 | YE13: =YE12 -> 7 | YF13: =YF12 -> 7 | YG13: 7 | YH13: 7 | YI13: 7 | YJ13: 7 | YK13: 7 | YL13: 7 | YM13: 7 | YN13: 7 | YO13: 7 | YP13: 7 | YQ13: 7 | YR13: 7 | YS13: 7 | YT13: 7 | YU13: 7 | YV13: 7 | YW13: 7 | YX13: 7 | YY13: =YX13 -> 7 | YZ13: 4 | ZA13: =ZA12 -> 4 | ZB13: 4 | ZC13: 4 | ZD13: 4 | ZE13: 4 | ZF13: 4 | ZG13: 4 | ZH13: 4 | ZI13: 4 | ZJ13: 4 | ZK13: 4 | ZL13: 4 | ZM13: 4 | ZN13: 4 | ZO13: 4 | ZP13: 4 | ZQ13: 4 | ZR13: 4 | ZS13: 4 | ZT13: =ZS13 -> 4 | ZU13: 1 | ZW13: 1 | ZX13: 11 | ZY13: =IF(ISNUMBER(INDEX(Asfalt,$ZX13,ZY$2)),INDEX(Asfalt,$ZX13,ZY$2),0) -> 0 | ZZ13: 0 | AAA13: 0 | AAB13: 0 | AAC13: 0 | AAD13: 0 | AAE13: 0 | AAF13: 0 | AAG13: 0 | AAH13: 0 | AAI13: =IF(ISNUMBER(INDEX(Asfalt,$ZX13,AAI$2)),INDEX(Asfalt,$ZX13,AAI$2),0) -> 0 | AAJ13: 0 | AAK13: 0 | AAL13: 0 | AAM13: 0 | AAN13: 0 | AAO13: 0 | AAP13: 0 | AAQ13: 0 | AAR13: 0 | AAS13: =IF(ISNUMBER(INDEX(Asfalt,$ZX13,AAS$2)),INDEX(Asfalt,$ZX13,AAS$2),0) -> 0 | AAT13: 0 | AAU13: 0 | AAV13: 0 | AAW13: 0 | AAX13: 0 | AAY13: 0 | AAZ13: 0 | ABA13: 0 | ABB13: 0 | ABC13: =IF(ISNUMBER(INDEX(Asfalt,$ZX13,ABC$2)),INDEX(Asfalt,$ZX13,ABC$2),0) -> 0 | ABD13: 0 | ABE13: 0 | ABF13: 0 | ABG13: 0 | ABH13: 0 | ABI13: 0 | ABJ13: 0 | ABK13: 0 | ABL13: 0 | ABM13: 0 | ABN13: 0 | ABO13: 1 | ABQ13: 1 | ABR13: 11 | ABS13: 1 | ABT13: 1 | ABU13: 1 | ABV13: 1 | ABW13: 1 | ABX13: 1 | ABY13: 1 | ABZ13: 1 | ACA13: 1 | ACB13: 1 | ACC13: 1 | ACD13: 1 | ACE13: 1 | ACF13: 1 | ACG13: 1 | ACH13: 1 | ACI13: 1 | ACJ13: 1 | ACK13: 1 | ACL13: 1 | ACM13: 1 | ACN13: 57 | ACO13: =ACO12 -> 57 | ACP13: 57 | ACQ13: 57 | ACR13: 57 | ACS13: 57 | ACT13: 57 | ACU13: 57 | ACV13: 57 | ACW13: 57 | ACX13: 57 | ACY13: 57 | ACZ13: 57 | ADA13: 57 | ADB13: 57 | ADC13: 57 | ADD13: 57 | ADE13: 57 | ADF13: 57 | ADG13: 57 | ADH13: =ADG13 -> 57 | ADI13: 1
A14: 12 | B14: L | C14: 35 | D14: 36 | E14: 34 | F14: 34 | G14: 35 | H14: 36 | I14: 36 | J14: 34 | K14: 34 | M14: 3A | N14: =ROUND('3D Interpolace'!M15,2) -> 38.65 | O14: =ROUND('3D Interpolace'!N15,2) -> 38.8 | P14: =ROUND('3D Interpolace'!O15,2) -> 38.9 | Q14: =ROUND('3D Interpolace'!P15,2) -> 38.94 | R14: =ROUND('3D Interpolace'!Q15,2) -> 38.93 | S14: =ROUND('3D Interpolace'!R15,2) -> 38.86 | T14: =ROUND('3D Interpolace'!S15,2) -> 38.72 | U14: =ROUND('3D Interpolace'!T15,2) -> 38.51 | V14: =ROUND('3D Interpolace'!U15,2) -> 38.25 | W14: =ROUND('3D Interpolace'!V15,2) -> 37.98 | X14: =ROUND('3D Interpolace'!W15,2) -> 37.74 | Y14: =ROUND('3D Interpolace'!X15,2) -> 37.49 | Z14: =ROUND('3D Interpolace'!Y15,2) -> 37.24 | AA14: =ROUND('3D Interpolace'!Z15,2) -> 36.99 | AB14: =ROUND('3D Interpolace'!AA15,2) -> 36.77 | AC14: =ROUND('3D Interpolace'!AB15,2) -> 36.58 | AD14: =ROUND('3D Interpolace'!AC15,2) -> 36.45 | AE14: =ROUND('3D Interpolace'!AD15,2) -> 36.34 | AF14: =ROUND('3D Interpolace'!AE15,2) -> 36.26 | AG14: =ROUND('3D Interpolace'!AF15,2) -> 36.21 | AH14: =ROUND('3D Interpolace'!AG15,2) -> 36.19 | AI14: =ROUND('3D Interpolace'!AH15,2) -> 36.25 | AJ14: =ROUND('3D Interpolace'!AI15,2) -> 36.38 | AK14: =ROUND('3D Interpolace'!AJ15,2) -> 36.52 | AL14: =ROUND('3D Interpolace'!AK15,2) -> 36.59 | AM14: =ROUND('3D Interpolace'!AL15,2) -> 36.54 | AN14: =ROUND('3D Interpolace'!AM15,2) -> 36.34 | AO14: =ROUND('3D Interpolace'!AN15,2) -> 36.06 | AP14: =ROUND('3D Interpolace'!AO15,2) -> 35.69 | AQ14: =ROUND('3D Interpolace'!AP15,2) -> 35.24 | AR14: =ROUND('3D Interpolace'!AQ15,2) -> 34.72 | AS14: =ROUND('3D Interpolace'!AR15,2) -> 34.04 | AT14: =ROUND('3D Interpolace'!AS15,2) -> 33.19 | AU14: =ROUND('3D Interpolace'!AT15,2) -> 32.32 | AV14: =ROUND('3D Interpolace'!AU15,2) -> 31.54 | AW14: =ROUND('3D Interpolace'!AV15,2) -> 31.02 | AX14: =ROUND('3D Interpolace'!AW15,2) -> 30.73 | AY14: =ROUND('3D Interpolace'!AX15,2) -> 30.59 | AZ14: =ROUND('3D Interpolace'!AY15,2) -> 30.61 | BA14: =ROUND('3D Interpolace'!AZ15,2) -> 30.78 | BB14: =ROUND('3D Interpolace'!BA15,2) -> 31.1 | BD14: 1.1 | BE14: 12 | CU14: 1.1 | CW14: 1.1 | CX14: 12 | CY14: 38.65 | CZ14: 38.8 | DA14: 38.9 | DB14: 38.94 | DC14: 38.93 | DD14: 38.86 | DE14: 38.72 | DF14: 38.51 | DG14: 38.25 | DH14: 37.98 | DI14: 37.74 | DJ14: 37.49 | DK14: 37.24 | DL14: 36.99 | DM14: 36.77 | DN14: 36.58 | DO14: 36.45 | DP14: 36.34 | DQ14: 36.26 | DR14: 36.21 | DS14: 36.19 | DT14: 36.25 | DU14: 36.38 | DV14: 36.52 | DW14: 36.59 | DX14: 36.54 | DY14: 36.34 | DZ14: 36.06 | EA14: 35.69 | EB14: 35.24 | EC14: 34.72 | ED14: 34.04 | EE14: 33.19 | EF14: 32.32 | EG14: 31.54 | EH14: 31.02 | EI14: 30.73 | EJ14: 30.59 | EK14: 30.61 | EL14: 30.78 | EM14: 31.1 | EN14: 1.1 | EP14: 1 | EQ14: 11 | ER14: 39 | ES14: 39.08 | ET14: 39.12 | EU14: 39.12 | EV14: 39.08 | EW14: 39 | EX14: 38.86 | EY14: 38.67 | EZ14: 38.45 | FA14: 38.22 | FB14: 38 | FC14: 37.78 | FD14: 37.55 | FE14: 37.33 | FF14: 37.14 | FG14: 37 | FH14: 36.94 | FI14: 36.93 | FJ14: 36.95 | FK14: 36.98 | FL14: 37 | FM14: 37 | FN14: 37.03 | FO14: 37.1 | FP14: 37.14 | FQ14: 37.13 | FR14: 37 | FS14: 36.76 | FT14: 36.44 | FU14: 36.04 | FV14: 35.56 | FW14: 35 | FX14: 34.26 | FY14: 33.35 | FZ14: 32.41 | GA14: 31.58 | GB14: 31 | GC14: 30.68 | GD14: 30.52 | GE14: 30.52 | GF14: 30.68 | GG14: 31 | GK14: 1 | GL14: 11 | GM14: 39 | GN14: 0 | GO14: 0 | GP14: 0 | GQ14: 0 | GR14: 39 | GS14: 0 | GT14: 0 | GU14: 0 | GV14: 0 | GW14: 38 | GX14: 0 | GY14: 0 | GZ14: 0 | HA14: 0 | HB14: 37 | HC14: 0 | HD14: 0 | HE14: 0 | HF14: 0 | HG14: 37 | HH14: 37 | HI14: 0 | HJ14: 0 | HK14: 0 | HL14: 0 | HM14: 37 | HN14: 0 | HO14: 0 | HP14: 0 | HQ14: 0 | HR14: 35 | HS14: 0 | HT14: 0 | HU14: 0 | HV14: 0 | HW14: 31 | HX14: 0 | HY14: 0 | HZ14: 0 | IA14: 0 | IB14: 31 | IC14: 1 | IG14: 11 | IH14: 39 | II14: 39 | IJ14: 39 | IK14: 39 | IL14: 39 | IM14: 39 | IN14: 39 | IO14: 39 | IP14: 39 | IQ14: 39 | IR14: 39 | IS14: 39 | IT14: 39 | IU14: 39 | IV14: 39 | IW14: 39 | IX14: 39 | IY14: 39 | IZ14: 39 | JA14: 39 | JB14: 39 | JC14: 38.38888889 | JD14: 38.11111111 | JE14: 37.83333333 | JF14: 37.55555556 | JG14: 37.27777778 | JH14: 37 | JI14: 36.72222222 | JJ14: 36.44444444 | JK14: 36.16666667 | JL14: 35.88888889 | JM14: 35.61111111 | JN14: 35.33333333 | JO14: 35.05555556 | JP14: 34.77777778 | JQ14: 34.5 | JR14: 34.22222222 | JS14: 33.94444444 | JT14: 33.66666667 | JU14: 33.38888889 | JV14: 33.11111111 | JW14: 32.83333333 | JX14: 1 | KD14: 1 | KE14: 11 | KF14: 0 | KG14: -0.08 | KH14: -0.12 | KI14: -0.12 | KJ14: -0.08 | KK14: 0 | KL14: 0.14 | KM14: 0.33 | KN14: 0.55 | KO14: 0.78 | KP14: 1 | KQ14: 1.22 | KR14: 1.45 | KS14: 1.67 | KT14: 1.86 | KU14: 2 | KV14: 2.06 | KW14: 2.07 | KX14: 2.05 | KY14: 2.02 | KZ14: 2 | LA14: 1.388888889 | LB14: 1.081111111 | LC14: 0.7333333333 | LD14: 0.4155555556 | LE14: 0.1477777778 | LF14: 0 | LG14: -0.03777777778 | LH14: 0.004444444444 | LI14: 0.1266666667 | LJ14: 0.3288888889 | LK14: 0.6111111111 | LL14: 1.073333333 | LM14: 1.705555556 | LN14: 2.367777778 | LO14: 2.92 | LP14: 3.222222222 | LQ14: 3.264444444 | LR14: 3.146666667 | LS14: 2.868888889 | LT14: 2.431111111 | LU14: 1.833333333 | MC14: 1.1 | MD14: 12 | ME14: =AVERAGE(KF15:KG16) -> 1.2225 | MF14: =AVERAGE(KG15:KH16) -> 1.0675 | MG14: =AVERAGE(KH15:KI16) -> 0.9725 | MH14: =AVERAGE(KI15:KJ16) -> 0.935 | MI14: =AVERAGE(KJ15:KK16) -> 0.9575 | MJ14: =AVERAGE(KK15:KL16) -> 1.05 | MK14: =AVERAGE(KL15:KM16) -> 1.2175 | ML14: =AVERAGE(KM15:KN16) -> 1.45 | MM14: =AVERAGE(KN15:KO16) -> 1.72 | MN14: =AVERAGE(KO15:KP16) -> 1.9875 | MO14: =AVERAGE(KP15:KQ16) -> 2.25 | MP14: =AVERAGE(KQ15:KR16) -> 2.5275 | MQ14: =AVERAGE(KR15:KS16) -> 2.815 | MR14: =AVERAGE(KS15:KT16) -> 3.09 | MS14: =AVERAGE(KT15:KU16) -> 3.3325 | MT14: =AVERAGE(KU15:KV16) -> 3.5325 | MU14: =AVERAGE(KV15:KW16) -> 3.695 | MV14: =AVERAGE(KW15:KX16) -> 3.83 | MW14: =AVERAGE(KX15:KY16) -> 3.93 | MX14: =AVERAGE(KY15:KZ16) -> 3.9875 | MY14: =AVERAGE(LA15:LB16) -> 3.793928571 | MZ14: =AVERAGE(LB15:LC16) -> 3.408650794 | NA14: =AVERAGE(LC15:LD16) -> 2.968373016 | NB14: =AVERAGE(LD15:LE16) -> 2.550595238 | NC14: =AVERAGE(LE15:LF16) -> 2.23281746 | ND14: =AVERAGE(LF15:LG16) -> 2.060039683 | NE14: =AVERAGE(LG15:LH16) -> 2.012261905 | NF14: =AVERAGE(LH15:LI16) -> 2.051984127 | NG14: =AVERAGE(LI15:LJ16) -> 2.169206349 | NH14: =AVERAGE(LJ15:LK16) -> 2.348928571 | NI14: =AVERAGE(LK15:LL16) -> 2.623650794 | NJ14: =AVERAGE(LL15:LM16) -> 3.040873016 | NK14: =AVERAGE(LM15:LN16) -> 3.540595238 | NL14: =AVERAGE(LN15:LO16) -> 4.00531746 | NM14: =AVERAGE(LO15:LP16) -> 4.312539683 | NN14: =AVERAGE(LP15:LQ16) -> 4.399761905 | NO14: =AVERAGE(LQ15:LR16) -> 4.311984127 | NP14: =AVERAGE(LR15:LS16) -> 4.081706349 | NQ14: =AVERAGE(LS15:LT16) -> 3.711428571 | NR14: =AVERAGE(LT15:LU16) -> 3.206150794 | NU14: 1.1 | NV14: 12 | NW14: 22.99 | NX14: 22.99 | NY14: 22.99 | NZ14: 22.99 | OA14: 22.99 | OB14: 22.99 | OC14: 22.99 | OD14: 22.99 | OE14: 22.99 | OF14: 22.99 | OG14: 5.27 | OH14: 5.27 | OI14: 5.27 | OJ14: 5.27 | OK14: 5.27 | OL14: 5.27 | OM14: 5.27 | ON14: 5.27 | OO14: 5.27 | OP14: 5.27 | OQ14: 5.27 | OR14: 5.27 | OS14: 5.27 | OT14: 5.27 | OU14: 5.27 | OV14: 5.27 | OW14: 5.27 | OX14: 5.27 | OY14: 5.27 | OZ14: 5.27 | PA14: 5.27 | PB14: 5.27 | PC14: 5.27 | PD14: 1.68 | PE14: 1.68 | PF14: 1.68 | PG14: 1.68 | PH14: 1.68 | PI14: 5.27 | PJ14: 5.27 | PM14: 1.1 | PN14: 12 | PO14: 0 | PP14: 0 | PQ14: 0 | PR14: 0 | PS14: 0 | PT14: 0 | PU14: 0 | PV14: 0 | PW14: 0 | PX14: 0 | PY14: -17.72 | PZ14: -17.72 | QA14: -17.72 | QB14: -17.72 | QC14: -17.72 | QD14: -17.72 | QE14: -17.72 | QF14: -17.72 | QG14: -17.72 | QH14: -17.72 | QI14: -17.72 | QJ14: -17.72 | QK14: -17.72 | QL14: -17.72 | QM14: -17.72 | QN14: -17.72 | QO14: -17.72 | QP14: -17.72 | QQ14: -17.72 | QR14: -17.72 | QS14: -17.72 | QT14: -17.72 | QU14: -17.72 | QV14: -3.59 | QW14: -3.59 | QX14: -3.59 | QY14: -3.59 | QZ14: -21.31 | RA14: -17.72 | RB14: -17.72 | RE14: 1.1 | RF14: 12 | RG14: 0 | RH14: 0 | RI14: 0 | RJ14: 0 | RK14: 0 | RL14: 0 | RM14: 0 | RN14: 0 | RO14: 0 | RP14: 0 | RQ14: 0 | RR14: 0 | RS14: 0 | RT14: 0 | RU14: 0 | RV14: 0 | RW14: 0 | RX14: 0 | RY14: 0 | RZ14: 0 | SA14: 0 | SB14: 0 | SC14: 0 | SD14: 0 | SE14: 0 | SF14: 0 | SG14: 0 | SH14: 0 | SI14: 0 | SJ14: 0 | SK14: 0 | SL14: 0 | SM14: 0 | SN14: 0 | SO14: 0 | SP14: 0 | SQ14: 0 | SR14: 0 | SS14: 0 | ST14: 0 | SU14: 0 | SV14: 1.1 | SX14: 1.1 | SY14: 12 | SZ14: 0 | TA14: 0 | TB14: 39.12 | TC14: 39.12 | TD14: 0 | TE14: 0 | TF14: 0 | TG14: 0 | TH14: 0 | TI14: 0 | TJ14: 0 | TK14: 0 | TL14: 0 | TM14: 0 | TN14: 0 | TO14: 0 | TP14: 0 | TQ14: 0 | TR14: 0 | TS14: 0 | TT14: 37 | TU14: 0 | TV14: 0 | TW14: 0 | TX14: 37.14 | TY14: 0 | TZ14: 0 | UA14: 0 | UB14: 0 | UC14: 0 | UD14: 0 | UE14: 0 | UF14: 0 | UG14: 0 | UH14: 0 | UI14: 0 | UJ14: 0 | UK14: 0 | UL14: 0 | UM14: 0 | UN14: 0 | UO14: 1.1 | UQ14: 1.1 | UR14: 12 | US14: 1 | UT14: =IF(OR(INT(1000*UT$1/$B$18)-1000*UT$1/$B$18=0,INT(1000*$UQ14/$B$19)-1000*$UQ14/$B$19=0),1,0) -> 0 | UU14: 0 | UV14: 0 | UW14: 0 | UX14: 0 | UY14: 0 | UZ14: 0 | VA14: 0 | VB14: 0 | VC14: 0 | VD14: =IF(OR(INT(1000*VD$1/$B$18)-1000*VD$1/$B$18=0,INT(1000*$UQ14/$B$19)-1000*$UQ14/$B$19=0),1,0) -> 0 | VE14: 0 | VF14: 0 | VG14: 0 | VH14: 0 | VI14: 0 | VJ14: 0 | VK14: 0 | VL14: 0 | VM14: 1 | VN14: =IF(OR(INT(1000*VN$1/$B$18)-1000*VN$1/$B$18=0,INT(1000*$UQ14/$B$19)-1000*$UQ14/$B$19=0),1,0) -> 0 | VO14: 0 | VP14: 0 | VQ14: 0 | VR14: 0 | VS14: 0 | VT14: 0 | VU14: 0 | VV14: 0 | VW14: 0 | VX14: =IF(OR(INT(1000*VX$1/$B$18)-1000*VX$1/$B$18=0,INT(1000*$UQ14/$B$19)-1000*$UQ14/$B$19=0),1,0) -> 0 | VY14: 0 | VZ14: 0 | WA14: 0 | WB14: 0 | WC14: 0 | WD14: 0 | WE14: 0 | WF14: 0 | WG14: 1 | WH14: 1.1 | WJ14: 1.1 | WK14: 12 | WL14: 38.65 | WM14: 0 | WN14: 0 | WO14: 0 | WP14: 0 | WQ14: 0 | WR14: 0 | WS14: 0 | WT14: 0 | WU14: 0 | WV14: 0 | WW14: 0 | WX14: 0 | WY14: 0 | WZ14: 0 | XA14: 0 | XB14: 0 | XC14: 0 | XD14: 0 | XE14: 0 | XF14: 36.19 | XG14: 0 | XH14: 0 | XI14: 0 | XJ14: 0 | XK14: 0 | XL14: 0 | XM14: 0 | XN14: 0 | XO14: 0 | XP14: 0 | XQ14: 0 | XR14: 0 | XS14: 0 | XT14: 0 | XU14: 0 | XV14: 0 | XW14: 0 | XX14: 0 | XY14: 0 | XZ14: 31.1 | YA14: 1.1 | YC14: 1 | YD14: 11 | YE14: =COUNTIF(RG13:SA23,">0") -> 1 | YF14: =YE14 -> 1 | YG14: =YF14 -> 1 | YH14: 1 | YI14: 1 | YJ14: 1 | YK14: 1 | YL14: 1 | YM14: 1 | YN14: 1 | YO14: 1 | YP14: 1 | YQ14: 1 | YR14: 1 | YS14: 1 | YT14: 1 | YU14: 1 | YV14: 1 | YW14: 1 | YX14: 1 | YY14: =YX14 -> 1 | YZ14: =COUNTIF(SA13:SU23,">0") -> 3 | ZA14: =YZ14 -> 3 | ZB14: =ZA14 -> 3 | ZC14: 3 | ZD14: 3 | ZE14: 3 | ZF14: 3 | ZG14: 3 | ZH14: 3 | ZI14: 3 | ZJ14: 3 | ZK14: 3 | ZL14: 3 | ZM14: 3 | ZN14: 3 | ZO14: 3 | ZP14: 3 | ZQ14: 3 | ZR14: 3 | ZS14: 3 | ZT14: =ZS14 -> 3 | ZU14: 1 | ZW14: 1 | ZX14: 11 | ZY14: 0 | ZZ14: 0 | AAA14: 0 | AAB14: 0 | AAC14: 0 | AAD14: 0 | AAE14: 0 | AAF14: 0 | AAG14: 0 | AAH14: 0 | AAI14: 0 | AAJ14: 0 | AAK14: 0 | AAL14: 0 | AAM14: 0 | AAN14: 0 | AAO14: 0 | AAP14: 0 | AAQ14: 0 | AAR14: 0 | AAS14: 0 | AAT14: 0 | AAU14: 0 | AAV14: 0 | AAW14: 0 | AAX14: 0 | AAY14: 0 | AAZ14: 0 | ABA14: 0 | ABB14: 0 | ABC14: 0 | ABD14: 0 | ABE14: 0 | ABF14: 0 | ABG14: 0 | ABH14: 0 | ABI14: 0 | ABJ14: 0 | ABK14: 0 | ABL14: 0 | ABM14: 0 | ABN14: 0 | ABO14: 1 | ABQ14: 1 | ABR14: 11 | ABS14: =RANK(#REF!,$ER$14:$FL$24,0) ->  | ABT14: =RANK(IE14,$ER$14:$FL$24,0) ->  | ABU14: =RANK(IF14,$ER$14:$FL$24,0) ->  | ABV14: =RANK(IG14,$ER$14:$FL$24,0) ->  | ABW14: =RANK(IH14,$ER$14:$FL$24,0) -> 47 | ABX14: =RANK(II14,$ER$14:$FL$24,0) -> 47 | ABY14: =RANK(IJ14,$ER$14:$FL$24,0) -> 47 | ABZ14: =RANK(IK14,$ER$14:$FL$24,0) -> 47 | ACA14: =RANK(IL14,$ER$14:$FL$24,0) -> 47 | ACB14: =RANK(IM14,$ER$14:$FL$24,0) -> 47 | ACC14: =RANK(IN14,$ER$14:$FL$24,0) -> 47 | ACD14: =RANK(IO14,$ER$14:$FL$24,0) -> 47 | ACE14: =RANK(IP14,$ER$14:$FL$24,0) -> 47 | ACF14: =RANK(IQ14,$ER$14:$FL$24,0) -> 47 | ACG14: =RANK(IR14,$ER$14:$FL$24,0) -> 47 | ACH14: =RANK(IS14,$ER$14:$FL$24,0) -> 47 | ACI14: =RANK(IT14,$ER$14:$FL$24,0) -> 47 | ACJ14: =RANK(IU14,$ER$14:$FL$24,0) -> 47 | ACK14: =RANK(IV14,$ER$14:$FL$24,0) -> 47 | ACL14: =RANK(IW14,$ER$14:$FL$24,0) -> 47 | ACM14: =RANK(IX14,$ER$14:$FL$24,0) -> 47 | ACN14: =COUNTIF(VO13:WI23,">0") -> 58 | ACO14: =ACN14 -> 58 | ACP14: =ACO14 -> 58 | ACQ14: 58 | ACR14: 58 | ACS14: 58 | ACT14: 58 | ACU14: 58 | ACV14: 58 | ACW14: 58 | ACX14: 58 | ACY14: 58 | ACZ14: 58 | ADA14: 58 | ADB14: 58 | ADC14: 58 | ADD14: 58 | ADE14: 58 | ADF14: 58 | ADG14: 58 | ADH14: =ADG14 -> 58 | ADI14: 1
A15: 13 | B15: M | C15: 34 | D15: 34 | E15: 35 | F15: 35 | G15: 34 | H15: 34 | I15: 33 | J15: 32 | K15: 30 | M15: 3B | N15: =ROUND('3D Interpolace'!M16,2) -> 38.22 | O15: =ROUND('3D Interpolace'!N16,2) -> 38.44 | P15: =ROUND('3D Interpolace'!O16,2) -> 38.59 | Q15: =ROUND('3D Interpolace'!P16,2) -> 38.68 | R15: =ROUND('3D Interpolace'!Q16,2) -> 38.71 | S15: =ROUND('3D Interpolace'!R16,2) -> 38.67 | T15: =ROUND('3D Interpolace'!S16,2) -> 38.55 | U15: =ROUND('3D Interpolace'!T16,2) -> 38.35 | V15: =ROUND('3D Interpolace'!U16,2) -> 38.09 | W15: =ROUND('3D Interpolace'!V16,2) -> 37.8 | X15: =ROUND('3D Interpolace'!W16,2) -> 37.53 | Y15: =ROUND('3D Interpolace'!X16,2) -> 37.24 | Z15: =ROUND('3D Interpolace'!Y16,2) -> 36.92 | AA15: =ROUND('3D Interpolace'!Z16,2) -> 36.59 | AB15: =ROUND('3D Interpolace'!AA16,2) -> 36.29 | AC15: =ROUND('3D Interpolace'!AB16,2) -> 36.03 | AD15: =ROUND('3D Interpolace'!AC16,2) -> 35.81 | AE15: =ROUND('3D Interpolace'!AD16,2) -> 35.62 | AF15: =ROUND('3D Interpolace'!AE16,2) -> 35.46 | AG15: =ROUND('3D Interpolace'!AF16,2) -> 35.35 | AH15: =ROUND('3D Interpolace'!AG16,2) -> 35.3 | AI15: =ROUND('3D Interpolace'!AH16,2) -> 35.37 | AJ15: =ROUND('3D Interpolace'!AI16,2) -> 35.54 | AK15: =ROUND('3D Interpolace'!AJ16,2) -> 35.75 | AL15: =ROUND('3D Interpolace'!AK16,2) -> 35.89 | AM15: =ROUND('3D Interpolace'!AL16,2) -> 35.89 | AN15: =ROUND('3D Interpolace'!AM16,2) -> 35.72 | AO15: =ROUND('3D Interpolace'!AN16,2) -> 35.45 | AP15: =ROUND('3D Interpolace'!AO16,2) -> 35.1 | AQ15: =ROUND('3D Interpolace'!AP16,2) -> 34.69 | AR15: =ROUND('3D Interpolace'!AQ16,2) -> 34.24 | AS15: =ROUND('3D Interpolace'!AR16,2) -> 33.68 | AT15: =ROUND('3D Interpolace'!AS16,2) -> 32.99 | AU15: =ROUND('3D Interpolace'!AT16,2) -> 32.29 | AV15: =ROUND('3D Interpolace'!AU16,2) -> 31.67 | AW15: =ROUND('3D Interpolace'!AV16,2) -> 31.25 | AX15: =ROUND('3D Interpolace'!AW16,2) -> 31.02 | AY15: =ROUND('3D Interpolace'!AX16,2) -> 30.92 | AZ15: =ROUND('3D Interpolace'!AY16,2) -> 30.95 | BA15: =ROUND('3D Interpolace'!AZ16,2) -> 31.1 | BB15: =ROUND('3D Interpolace'!BA16,2) -> 31.37 | BD15: 1.2 | BE15: 13 | CU15: 1.2 | CW15: 1.2 | CX15: 13 | CY15: 38.22 | CZ15: 38.44 | DA15: 38.59 | DB15: 38.68 | DC15: 38.71 | DD15: 38.67 | DE15: =T15+BL15 -> 38.55 | DF15: =U15+BM15 -> 38.35 | DG15: 38.09 | DH15: 37.8 | DI15: 37.53 | DJ15: 37.24 | DK15: 36.92 | DL15: 36.59 | DM15: =AB15+BT15 -> 36.29 | DN15: =AC15+BU15 -> 36.03 | DO15: 35.81 | DP15: 35.62 | DQ15: 35.46 | DR15: 35.35 | DS15: 35.3 | DT15: 35.37 | DU15: 35.54 | DV15: 35.75 | DW15: 35.89 | DX15: 35.89 | DY15: 35.72 | DZ15: 35.45 | EA15: 35.1 | EB15: 34.69 | EC15: 34.24 | ED15: 33.68 | EE15: 32.99 | EF15: 32.29 | EG15: 31.67 | EH15: 31.25 | EI15: 31.02 | EJ15: 30.92 | EK15: 30.95 | EL15: 31.1 | EM15: 31.37 | EN15: 1.2 | EP15: 1.1 | EQ15: 12 | ER15: 38.65 | ES15: 38.8 | ET15: 38.9 | EU15: 38.94 | EV15: 38.93 | EW15: 38.86 | EX15: 38.72 | EY15: 38.51 | EZ15: 38.25 | FA15: 37.98 | FB15: 37.74 | FC15: 37.49 | FD15: 37.24 | FE15: 36.99 | FF15: 36.77 | FG15: 36.58 | FH15: 36.45 | FI15: 36.34 | FJ15: 36.26 | FK15: 36.21 | FL15: 36.19 | FM15: 36.19 | FN15: 36.25 | FO15: 36.38 | FP15: 36.52 | FQ15: 36.59 | FR15: 36.54 | FS15: 36.34 | FT15: 36.06 | FU15: 35.69 | FV15: 35.24 | FW15: 34.72 | FX15: 34.04 | FY15: 33.19 | FZ15: 32.32 | GA15: 31.54 | GB15: 31.02 | GC15: 30.73 | GD15: 30.59 | GE15: 30.61 | GF15: 30.78 | GG15: 31.1 | GK15: 1.1 | GL15: 12 | GM15: 0 | GN15: 0 | GO15: 0 | GP15: 0 | GQ15: 0 | GR15: 0 | GS15: 0 | GT15: 0 | GU15: 0 | GV15: 0 | GW15: 0 | GX15: 0 | GY15: 0 | GZ15: 0 | HA15: 0 | HB15: 0 | HC15: 0 | HD15: 0 | HE15: 0 | HF15: 0 | HG15: 0 | HH15: 0 | HI15: 0 | HJ15: 0 | HK15: 0 | HL15: 0 | HM15: 0 | HN15: 0 | HO15: 0 | HP15: 0 | HQ15: 0 | HR15: 0 | HS15: 0 | HT15: 0 | HU15: 0 | HV15: 0 | HW15: 0 | HX15: 0 | HY15: 0 | HZ15: 0 | IA15: 0 | IB15: 0 | IC15: 1.1 | IG15: 12 | IH15: 39.5 | II15: 39.5 | IJ15: 39.5 | IK15: 39.5 | IL15: 39.5 | IM15: 39.5 | IN15: 39.5 | IO15: 39.5 | IP15: 39.5 | IQ15: 39.5 | IR15: 39.5 | IS15: 39.5 | IT15: 39.5 | IU15: 39.5 | IV15: 39.5 | IW15: 39.5 | IX15: 39.5 | IY15: 39.5 | IZ15: 39.5 | JA15: 39.5 | JB15: 39.5 | JC15: 39.26984127 | JD15: 38.99206349 | JE15: 38.71428571 | JF15: 38.43650794 | JG15: 38.15873016 | JH15: 37.88095238 | JI15: 37.6031746 | JJ15: 37.32539683 | JK15: 37.04761905 | JL15: 36.76984127 | JM15: 36.49206349 | JN15: 36.21428571 | JO15: 35.93650794 | JP15: 35.65873016 | JQ15: 35.38095238 | JR15: 35.1031746 | JS15: 34.82539683 | JT15: 34.54761905 | JU15: 34.26984127 | JV15: 33.99206349 | JW15: 33.71428571 | JX15: 1.1 | KD15: 1.1 | KE15: 12 | KF15: 0.85 | KG15: 0.7 | KH15: 0.6 | KI15: 0.56 | KJ15: 0.57 | KK15: 0.64 | KL15: 0.78 | KM15: 0.99 | KN15: 1.25 | KO15: 1.52 | KP15: 1.76 | KQ15: 2.01 | KR15: 2.26 | KS15: 2.51 | KT15: 2.73 | KU15: 2.92 | KV15: 3.05 | KW15: 3.16 | KX15: 3.24 | KY15: 3.29 | KZ15: 3.31 | LA15: 3.07984127 | LB15: 2.742063492 | LC15: 2.334285714 | LD15: 1.916507937 | LE15: 1.568730159 | LF15: 1.340952381 | LG15: 1.263174603 | LH15: 1.265396825 | LI15: 1.357619048 | LJ15: 1.52984127 | LK15: 1.772063492 | LL15: 2.174285714 | LM15: 2.746507937 | LN15: 3.338730159 | LO15: 3.840952381 | LP15: 4.083174603 | LQ15: 4.095396825 | LR15: 3.957619048 | LS15: 3.65984127 | LT15: 3.212063492 | LU15: 2.614285714 | MC15: 1.2 | MD15: 13 | ME15: 2.1275 | MF15: 1.915 | MG15: 1.77 | MH15: 1.69 | MI15: 1.6775 | MJ15: 1.745 | MK15: 1.895 | ML15: 2.115 | MM15: 2.3825 | MN15: 2.6675 | MO15: 2.9675 | MP15: 3.3025 | MQ15: 3.665 | MR15: 4.0225 | MS15: 4.3425 | MT15: 4.615 | MU15: 4.8525 | MV15: 5.06 | MW15: 5.2225 | MX15: 5.32 | MY15: 5.514880952 | MZ15: 5.104603175 | NA15: 4.616825397 | NB15: 4.141547619 | NC15: 3.771269841 | ND15: 3.560992063 | NE15: 3.490714286 | NF15: 3.515436508 | NG15: 3.60515873 | NH15: 3.727380952 | NI15: 3.899603175 | NJ15: 4.161825397 | NK15: 4.479047619 | NL15: 4.763769841 | NM15: 4.925992063 | NN15: 4.920714286 | NO15: 4.780436508 | NP15: 4.53265873 | NQ15: 4.174880952 | NR15: 3.712103175 | NU15: 1.2 | NV15: 13 | NW15: 5.27 | NX15: 22.99 | NY15: 22.99 | NZ15: 22.99 | OA15: 22.99 | OB15: 22.99 | OC15: 22.99 | OD15: 5.27 | OE15: 5.27 | OF15: 5.27 | OG15: 5.27 | OH15: 5.27 | OI15: 5.27 | OJ15: 1.68 | OK15: 1.68 | OL15: 1.68 | OM15: 1.68 | ON15: 1.68 | OO15: 1.68 | OP15: 1.68 | OQ15: 1.68 | OR15: 1.68 | OS15: 1.68 | OT15: 1.68 | OU15: 5.27 | OV15: 5.27 | OW15: 5.27 | OX15: 5.27 | OY15: 5.27 | OZ15: 5.27 | PA15: 5.27 | PB15: 1.68 | PC15: 1.68 | PD15: 1.68 | PE15: 1.68 | PF15: 1.68 | PG15: 1.68 | PH15: 1.68 | PI15: 1.68 | PJ15: 5.27 | PM15: 1.2 | PN15: 13 | PO15: -17.72 | PP15: 0 | PQ15: 0 | PR15: 0 | PS15: 0 | PT15: 0 | PU15: 0 | PV15: -17.72 | PW15: -17.72 | PX15: -17.72 | PY15: -17.72 | PZ15: -17.72 | QA15: -17.72 | QB15: -21.31 | QC15: -21.31 | QD15: -21.31 | QE15: -21.31 | QF15: -21.31 | QG15: -21.31 | QH15: -21.31 | QI15: -21.31 | QJ15: -21.31 | QK15: -21.31 | QL15: -21.31 | QM15: -17.72 | QN15: -17.72 | QO15: -17.72 | QP15: -17.72 | QQ15: -17.72 | QR15: -17.72 | QS15: 0 | QT15: -3.59 | QU15: -3.59 | QV15: -3.59 | QW15: -3.59 | QX15: -3.59 | QY15: -3.59 | QZ15: -21.31 | RA15: -21.31 | RB15: -17.72 | RE15: 1.2 | RF15: 13 | RG15: 0 | RH15: 0 | RI15: 0 | RJ15: 0 | RK15: 0 | RL15: 0 | RM15: 0 | RN15: 0 | RO15: 0 | RP15: 0 | RQ15: 0 | RR15: 0 | RS15: 0 | RT15: 0 | RU15: 0 | RV15: 0 | RW15: 0 | RX15: 0 | RY15: 0 | RZ15: 0 | SA15: 0 | SB15: 0 | SC15: 0 | SD15: 0 | SE15: 0 | SF15: 0 | SG15: 0 | SH15: 0 | SI15: 0 | SJ15: 0 | SK15: 0 | SL15: 0 | SM15: 0 | SN15: 0 | SO15: 0 | SP15: 0 | SQ15: 0 | SR15: 0 | SS15: 0 | ST15: 0 | SU15: 0 | SV15: 1.2 | SX15: 1.2 | SY15: 13 | SZ15: 0 | TA15: 0 | TB15: 0 | TC15: 0 | TD15: 0 | TE15: 0 | TF15: 0 | TG15: 0 | TH15: 0 | TI15: 0 | TJ15: 0 | TK15: 0 | TL15: 0 | TM15: 0 | TN15: 0 | TO15: 0 | TP15: 0 | TQ15: 0 | TR15: 0 | TS15: 0 | TT15: 0 | TU15: 0 | TV15: 0 | TW15: 0 | TX15: 0 | TY15: 0 | TZ15: 0 | UA15: 0 | UB15: 0 | UC15: 0 | UD15: 0 | UE15: 0 | UF15: 0 | UG15: 0 | UH15: 0 | UI15: 0 | UJ15: 0 | UK15: 0 | UL15: 0 | UM15: 0 | UN15: 0 | UO15: 1.2 | UQ15: 1.2 | UR15: 13 | US15: 1 | UT15: 0 | UU15: 0 | UV15: 0 | UW15: 0 | UX15: 0 | UY15: 0 | UZ15: 0 | VA15: 0 | VB15: 0 | VC15: 0 | VD15: 0 | VE15: 0 | VF15: 0 | VG15: 0 | VH15: 0 | VI15: 0 | VJ15: 0 | VK15: 0 | VL15: 0 | VM15: 1 | VN15: 0 | VO15: 0 | VP15: 0 | VQ15: 0 | VR15: 0 | VS15: 0 | VT15: 0 | VU15: 0 | VV15: 0 | VW15: 0 | VX15: 0 | VY15: 0 | VZ15: 0 | WA15: 0 | WB15: 0 | WC15: 0 | WD15: 0 | WE15: 0 | WF15: 0 | WG15: 1 | WH15: 1.2 | WJ15: 1.2 | WK15: 13 | WL15: 38.22 | WM15: 0 | WN15: 0 | WO15: 0 | WP15: 0 | WQ15: 0 | WR15: 0 | WS15: 0 | WT15: 0 | WU15: 0 | WV15: 0 | WW15: 0 | WX15: 0 | WY15: 0 | WZ15: 0 | XA15: 0 | XB15: 0 | XC15: 0 | XD15: 0 | XE15: 0 | XF15: 35.3 | XG15: 0 | XH15: 0 | XI15: 0 | XJ15: 0 | XK15: 0 | XL15: 0 | XM15: 0 | XN15: 0 | XO15: 0 | XP15: 0 | XQ15: 0 | XR15: 0 | XS15: 0 | XT15: 0 | XU15: 0 | XV15: 0 | XW15: 0 | XX15: 0 | XY15: 0 | XZ15: 31.37 | YA15: 1.2 | YC15: 1.1 | YD15: 12 | YE15: =YE14 -> 1 | YF15: =YF14 -> 1 | YG15: =YG14 -> 1 | YH15: =YH14 -> 1 | YI15: =YI14 -> 1 | YJ15: =YJ14 -> 1 | YK15: =YK14 -> 1 | YL15: =YL14 -> 1 | YM15: =YM14 -> 1 | YN15: =YN14 -> 1 | YO15: =YO14 -> 1 | YP15: =YP14 -> 1 | YQ15: =YQ14 -> 1 | YR15: =YR14 -> 1 | YS15: =YS14 -> 1 | YT15: =YT14 -> 1 | YU15: =YU14 -> 1 | YV15: =YV14 -> 1 | YW15: =YW14 -> 1 | YX15: =YX14 -> 1 | YY15: =YX15 -> 1 | YZ15: =ZA15 -> 3 | ZA15: =ZA14 -> 3 | ZB15: =ZB14 -> 3 | ZC15: =ZC14 -> 3 | ZD15: =ZD14 -> 3 | ZE15: =ZE14 -> 3 | ZF15: =ZF14 -> 3 | ZG15: =ZG14 -> 3 | ZH15: =ZH14 -> 3 | ZI15: =ZI14 -> 3 | ZJ15: =ZJ14 -> 3 | ZK15: =ZK14 -> 3 | ZL15: =ZL14 -> 3 | ZM15: =ZM14 -> 3 | ZN15: =ZN14 -> 3 | ZO15: =ZO14 -> 3 | ZP15: =ZP14 -> 3 | ZQ15: =ZQ14 -> 3 | ZR15: =ZR14 -> 3 | ZS15: =ZS14 -> 3 | ZT15: =ZS15 -> 3 | ZU15: 1.1 | ZW15: 1.1 | ZX15: 12 | ZY15: 0 | ZZ15: 0 | AAA15: 0 | AAB15: 0 | AAC15: 0 | AAD15: 0 | AAE15: 0 | AAF15: 0 | AAG15: 0 | AAH15: 0 | AAI15: 0 | AAJ15: 0 | AAK15: 0 | AAL15: 0 | AAM15: 0 | AAN15: 0 | AAO15: 0 | AAP15: 0 | AAQ15: 0 | AAR15: 0 | AAS15: 0 | AAT15: 0 | AAU15: 0 | AAV15: 0 | AAW15: 0 | AAX15: 0 | AAY15: 0 | AAZ15: 0 | ABA15: 0 | ABB15: 0 | ABC15: 0 | ABD15: 0 | ABE15: 0 | ABF15: 0 | ABG15: 0 | ABH15: 0 | ABI15: 0 | ABJ15: 0 | ABK15: 0 | ABL15: 0 | ABM15: 0 | ABN15: 0 | ABO15: 1.1 | ABQ15: 1.1 | ABR15: 12 | ABS15: =RANK(#REF!,$ER$14:$FL$24,0) ->  | ACN15: =ACO15 -> 58 | ACO15: =ACO14 -> 58 | ACP15: =ACP14 -> 58 | ACQ15: =ACQ14 -> 58 | ACR15: =ACR14 -> 58 | ACS15: =ACS14 -> 58 | ACT15: =ACT14 -> 58 | ACU15: =ACU14 -> 58 | ACV15: =ACV14 -> 58 | ACW15: =ACW14 -> 58 | ACX15: =ACX14 -> 58 | ACY15: =ACY14 -> 58 | ACZ15: =ACZ14 -> 58 | ADA15: =ADA14 -> 58 | ADB15: =ADB14 -> 58 | ADC15: =ADC14 -> 58 | ADD15: =ADD14 -> 58 | ADE15: =ADE14 -> 58 | ADF15: =ADF14 -> 58 | ADG15: =ADG14 -> 58 | ADH15: =ADG15 -> 58 | ADI15: 1.1
M16: 3C | N16: =ROUND('3D Interpolace'!M17,2) -> 37.78 | O16: =ROUND('3D Interpolace'!N17,2) -> 38.05 | P16: =ROUND('3D Interpolace'!O17,2) -> 38.26 | Q16: =ROUND('3D Interpolace'!P17,2) -> 38.39 | R16: =ROUND('3D Interpolace'!Q17,2) -> 38.46 | S16: =ROUND('3D Interpolace'!R17,2) -> 38.45 | T16: =ROUND('3D Interpolace'!S17,2) -> 38.35 | U16: =ROUND('3D Interpolace'!T17,2) -> 38.17 | V16: =ROUND('3D Interpolace'!U17,2) -> 37.93 | W16: =ROUND('3D Interpolace'!V17,2) -> 37.65 | X16: =ROUND('3D Interpolace'!W17,2) -> 37.35 | Y16: =ROUND('3D Interpolace'!X17,2) -> 37.01 | Z16: =ROUND('3D Interpolace'!Y17,2) -> 36.62 | AA16: =ROUND('3D Interpolace'!Z17,2) -> 36.21 | AB16: =ROUND('3D Interpolace'!AA17,2) -> 35.82 | AC16: =ROUND('3D Interpolace'!AB17,2) -> 35.49 | AD16: =ROUND('3D Interpolace'!AC17,2) -> 35.21 | AE16: =ROUND('3D Interpolace'!AD17,2) -> 34.95 | AF16: =ROUND('3D Interpolace'!AE17,2) -> 34.73 | AG16: =ROUND('3D Interpolace'!AF17,2) -> 34.57 | AH16: =ROUND('3D Interpolace'!AG17,2) -> 34.5 | AI16: =ROUND('3D Interpolace'!AH17,2) -> 34.58 | AJ16: =ROUND('3D Interpolace'!AI17,2) -> 34.79 | AK16: =ROUND('3D Interpolace'!AJ17,2) -> 35.04 | AL16: =ROUND('3D Interpolace'!AK17,2) -> 35.23 | AM16: =ROUND('3D Interpolace'!AL17,2) -> 35.27 | AN16: =ROUND('3D Interpolace'!AM17,2) -> 35.13 | AO16: =ROUND('3D Interpolace'!AN17,2) -> 34.88 | AP16: =ROUND('3D Interpolace'!AO17,2) -> 34.54 | AQ16: =ROUND('3D Interpolace'!AP17,2) -> 34.17 | AR16: =ROUND('3D Interpolace'!AQ17,2) -> 33.8 | AS16: =ROUND('3D Interpolace'!AR17,2) -> 33.38 | AT16: =ROUND('3D Interpolace'!AS17,2) -> 32.89 | AU16: =ROUND('3D Interpolace'!AT17,2) -> 32.39 | AV16: =ROUND('3D Interpolace'!AU17,2) -> 31.96 | AW16: =ROUND('3D Interpolace'!AV17,2) -> 31.67 | AX16: =ROUND('3D Interpolace'!AW17,2) -> 31.52 | AY16: =ROUND('3D Interpolace'!AX17,2) -> 31.45 | AZ16: =ROUND('3D Interpolace'!AY17,2) -> 31.47 | BA16: =ROUND('3D Interpolace'!AZ17,2) -> 31.59 | BB16: =ROUND('3D Interpolace'!BA17,2) -> 31.79 | BD16: 1.3 | BE16: 14 | CU16: 1.3 | CW16: 1.3 | CX16: 14 | CY16: 37.78 | CZ16: 38.05 | DA16: 38.26 | DB16: 38.39 | DC16: 38.46 | DD16: 38.45 | DE16: 38.35 | DF16: 38.17 | DG16: 37.93 | DH16: 37.65 | DI16: 37.35 | DJ16: 37.01 | DK16: 36.62 | DL16: 36.21 | DM16: 35.82 | DN16: 35.49 | DO16: 35.21 | DP16: 34.95 | DQ16: 34.73 | DR16: 34.57 | DS16: 34.5 | DT16: 34.58 | DU16: 34.79 | DV16: 35.04 | DW16: 35.23 | DX16: 35.27 | DY16: 35.13 | DZ16: 34.88 | EA16: 34.54 | EB16: 34.17 | EC16: 33.8 | ED16: 33.38 | EE16: 32.89 | EF16: 32.39 | EG16: 31.96 | EH16: 31.67 | EI16: 31.52 | EJ16: 31.45 | EK16: 31.47 | EL16: 31.59 | EM16: 31.79 | EN16: 1.3 | EP16: 1.2 | EQ16: 13 | ER16: 38.22 | ES16: 38.44 | ET16: 38.59 | EU16: 38.68 | EV16: 38.71 | EW16: 38.67 | EX16: 38.55 | EY16: 38.35 | EZ16: 38.09 | FA16: 37.8 | FB16: 37.53 | FC16: 37.24 | FD16: 36.92 | FE16: 36.59 | FF16: 36.29 | FG16: 36.03 | FH16: 35.81 | FI16: 35.62 | FJ16: 35.46 | FK16: 35.35 | FL16: 35.3 | FM16: 35.3 | FN16: 35.37 | FO16: 35.54 | FP16: 35.75 | FQ16: 35.89 | FR16: 35.89 | FS16: 35.72 | FT16: 35.45 | FU16: 35.1 | FV16: 34.69 | FW16: 34.24 | FX16: 33.68 | FY16: 32.99 | FZ16: 32.29 | GA16: 31.67 | GB16: 31.25 | GC16: 31.02 | GD16: 30.92 | GE16: 30.95 | GF16: 31.1 | GG16: 31.37 | GK16: 1.2 | GL16: 13 | GM16: 0 | GN16: 0 | GO16: 0 | GP16: 0 | GQ16: 0 | GR16: 0 | GS16: 0 | GT16: 0 | GU16: 0 | GV16: 0 | GW16: 0 | GX16: 0 | GY16: 0 | GZ16: 0 | HA16: 0 | HB16: 0 | HC16: 0 | HD16: 0 | HE16: 0 | HF16: 0 | HG16: 0 | HH16: 0 | HI16: 0 | HJ16: 0 | HK16: 0 | HL16: 0 | HM16: 0 | HN16: 0 | HO16: 0 | HP16: 0 | HQ16: 0 | HR16: 0 | HS16: 0 | HT16: 0 | HU16: 0 | HV16: 0 | HW16: 0 | HX16: 0 | HY16: 0 | HZ16: 0 | IA16: 0 | IB16: 0 | IC16: 1.2 | IG16: 13 | IH16: 40 | II16: 40 | IJ16: 40 | IK16: 40 | IL16: 40 | IM16: 40 | IN16: 40 | IO16: 40 | IP16: 40 | IQ16: 40 | IR16: 40 | IS16: 40 | IT16: 40 | IU16: 40 | IV16: 40 | IW16: 40 | IX16: 40 | IY16: 40 | IZ16: 40 | JA16: 40 | JB16: 40 | JC16: 40.15079365 | JD16: 39.87301587 | JE16: 39.5952381 | JF16: 39.31746032 | JG16: 39.03968254 | JH16: 38.76190476 | JI16: 38.48412698 | JJ16: 38.20634921 | JK16: 37.92857143 | JL16: 37.65079365 | JM16: 37.37301587 | JN16: 37.0952381 | JO16: 36.81746032 | JP16: 36.53968254 | JQ16: 36.26190476 | JR16: 35.98412698 | JS16: 35.70634921 | JT16: 35.42857143 | JU16: 35.15079365 | JV16: 34.87301587 | JW16: 34.5952381 | JX16: 1.2 | KD16: 1.2 | KE16: 13 | KF16: 1.78 | KG16: 1.56 | KH16: 1.41 | KI16: 1.32 | KJ16: 1.29 | KK16: 1.33 | KL16: 1.45 | KM16: 1.65 | KN16: 1.91 | KO16: 2.2 | KP16: 2.47 | KQ16: 2.76 | KR16: 3.08 | KS16: 3.41 | KT16: 3.71 | KU16: 3.97 | KV16: 4.19 | KW16: 4.38 | KX16: 4.54 | KY16: 4.65 | KZ16: 4.7 | LA16: 4.850793651 | LB16: 4.503015873 | LC16: 4.055238095 | LD16: 3.567460317 | LE16: 3.14968254 | LF16: 2.871904762 | LG16: 2.764126984 | LH16: 2.756349206 | LI16: 2.828571429 | LJ16: 2.960793651 | LK16: 3.133015873 | LL16: 3.415238095 | LM16: 3.827460317 | LN16: 4.24968254 | LO16: 4.591904762 | LP16: 4.734126984 | LQ16: 4.686349206 | LR16: 4.508571429 | LS16: 4.200793651 | LT16: 3.773015873 | LU16: 3.225238095 | MC16: 1.3 | MD16: 14 | ME16: 3.035 | MF16: 2.77 | MG16: 2.58 | MH16: 2.465 | MI16: 2.42 | MJ16: 2.4575 | MK16: 2.585 | ML16: 2.7875 | MM16: 3.0425 | MN16: 3.3325 | MO16: 3.66 | MP16: 4.0425 | MQ16: 4.47 | MR16: 4.8975 | MS16: 5.28 | MT16: 5.605 | MU16: 5.8925 | MV16: 6.145 | MW16: 6.3425 | MX16: 6.46 | MY16: 7.038333333 | MZ16: 6.608055556 | NA16: 6.085277778 | NB16: 5.5725 | NC16: 5.164722222 | ND16: 4.921944444 | NE16: 4.826666667 | NF16: 4.828888889 | NG16: 4.886111111 | NH16: 4.948333333 | NI16: 5.013055556 | NJ16: 5.115277778 | NK16: 5.245 | NL16: 5.344722222 | NM16: 5.359444444 | NN16: 5.264166667 | NO16: 5.076388889 | NP16: 4.816111111 | NQ16: 4.480833333 | NR16: 4.073055556 | NU16: 1.3 | NV16: 14 | NW16: 5.27 | NX16: 5.27 | NY16: 5.27 | NZ16: 5.27 | OA16: 5.27 | OB16: 5.27 | OC16: 5.27 | OD16: 5.27 | OE16: 5.27 | OF16: 5.27 | OG16: 5.27 | OH16: 1.68 | OI16: 1.68 | OJ16: 1.68 | OK16: 1.68 | OL16: 1.68 | OM16: 1.68 | ON16: 0.57 | OO16: 0.57 | OP16: 0.57 | OQ16: 0.57 | OR16: 0.57 | OS16: 0.57 | OT16: 1.68 | OU16: 1.68 | OV16: 1.68 | OW16: 1.68 | OX16: 1.68 | OY16: 1.68 | OZ16: 1.68 | PA16: 1.68 | PB16: 1.68 | PC16: 1.68 | PD16: 1.68 | PE16: 1.68 | PF16: 1.68 | PG16: 1.68 | PH16: 1.68 | PI16: 1.68 | PJ16: 1.68 | PM16: 1.3 | PN16: 14 | PO16: -17.72 | PP16: -17.72 | PQ16: -17.72 | PR16: -17.72 | PS16: -17.72 | PT16: -17.72 | PU16: -17.72 | PV16: -17.72 | PW16: -17.72 | PX16: -17.72 | PY16: -17.72 | PZ16: -21.31 | QA16: -21.31 | QB16: -21.31 | QC16: -21.31 | QD16: -21.31 | QE16: -21.31 | QF16: -22.42 | QG16: -4.7 | QH16: -4.7 | QI16: -4.7 | QJ16: -22.42 | QK16: -22.42 | QL16: -21.31 | QM16: -21.31 | QN16: -21.31 | QO16: -21.31 | QP16: -21.31 | QQ16: -21.31 | QR16: -21.31 | QS16: -3.59 | QT16: -3.59 | QU16: -3.59 | QV16: -3.59 | QW16: -3.59 | QX16: -3.59 | QY16: -21.31 | QZ16: -21.31 | RA16: -21.31 | RB16: -21.31 | RE16: 1.3 | RF16: 14 | RG16: 0 | RH16: 0 | RI16: 0 | RJ16: 0 | RK16: 0 | RL16: 0 | RM16: 0 | RN16: 0 | RO16: 0 | RP16: 0 | RQ16: 0 | RR16: 0 | RS16: 0 | RT16: 0 | RU16: 0 | RV16: 0 | RW16: 0 | RX16: 0 | RY16: 0 | RZ16: 0 | SA16: 0 | SB16: 0 | SC16: 0 | SD16: 0 | SE16: 0 | SF16: 0 | SG16: 0 | SH16: 0 | SI16: 0 | SJ16: 0 | SK16: 0 | SL16: 0 | SM16: 0 | SN16: 0 | SO16: 0 | SP16: 0 | SQ16: 0 | SR16: 0 | SS16: 0 | ST16: 0 | SU16: 0 | SV16: 1.3 | SX16: 1.3 | SY16: 14 | SZ16: 0 | TA16: 0 | TB16: 0 | TC16: 0 | TD16: 0 | TE16: 0 | TF16: 0 | TG16: 0 | TH16: 0 | TI16: 0 | TJ16: 0 | TK16: 0 | TL16: 0 | TM16: 0 | TN16: 0 | TO16: 0 | TP16: 0 | TQ16: 0 | TR16: 0 | TS16: 0 | TT16: 0 | TU16: 0 | TV16: 0 | TW16: 0 | TX16: 0 | TY16: 0 | TZ16: 0 | UA16: 0 | UB16: 0 | UC16: 0 | UD16: 0 | UE16: 0 | UF16: 0 | UG16: 0 | UH16: 0 | UI16: 0 | UJ16: 0 | UK16: 0 | UL16: 0 | UM16: 0 | UN16: 0 | UO16: 1.3 | UQ16: 1.3 | UR16: 14 | US16: 1 | UT16: 0 | UU16: 0 | UV16: 0 | UW16: 0 | UX16: 0 | UY16: 0 | UZ16: 0 | VA16: 0 | VB16: 0 | VC16: 0 | VD16: 0 | VE16: 0 | VF16: 0 | VG16: 0 | VH16: 0 | VI16: 0 | VJ16: 0 | VK16: 0 | VL16: 0 | VM16: 1 | VN16: 0 | VO16: 0 | VP16: 0 | VQ16: 0 | VR16: 0 | VS16: 0 | VT16: 0 | VU16: 0 | VV16: 0 | VW16: 0 | VX16: 0 | VY16: 0 | VZ16: 0 | WA16: 0 | WB16: 0 | WC16: 0 | WD16: 0 | WE16: 0 | WF16: 0 | WG16: 1 | WH16: 1.3 | WJ16: 1.3 | WK16: 14 | WL16: 37.78 | WM16: 0 | WN16: 0 | WO16: 0 | WP16: 0 | WQ16: 0 | WR16: 0 | WS16: 0 | WT16: 0 | WU16: 0 | WV16: 0 | WW16: 0 | WX16: 0 | WY16: 0 | WZ16: 0 | XA16: 0 | XB16: 0 | XC16: 0 | XD16: 0 | XE16: 0 | XF16: 34.5 | XG16: 0 | XH16: 0 | XI16: 0 | XJ16: 0 | XK16: 0 | XL16: 0 | XM16: 0 | XN16: 0 | XO16: 0 | XP16: 0 | XQ16: 0 | XR16: 0 | XS16: 0 | XT16: 0 | XU16: 0 | XV16: 0 | XW16: 0 | XX16: 0 | XY16: 0 | XZ16: 31.79 | YA16: 1.3 | YC16: 1.2 | YD16: 13 | YE16: =YE15 -> 1 | YF16: =YF15 -> 1 | YG16: 1 | YH16: 1 | YI16: 1 | YJ16: 1 | YK16: 1 | YL16: 1 | YM16: 1 | YN16: 1 | YO16: 1 | YP16: 1 | YQ16: 1 | YR16: 1 | YS16: 1 | YT16: 1 | YU16: 1 | YV16: 1 | YW16: 1 | YX16: 1 | YY16: =YX16 -> 1 | YZ16: 3 | ZA16: =ZA15 -> 3 | ZB16: 3 | ZC16: 3 | ZD16: 3 | ZE16: 3 | ZF16: 3 | ZG16: 3 | ZH16: 3 | ZI16: 3 | ZJ16: 3 | ZK16: 3 | ZL16: 3 | ZM16: 3 | ZN16: 3 | ZO16: 3 | ZP16: 3 | ZQ16: 3 | ZR16: 3 | ZS16: 3 | ZT16: =ZS16 -> 3 | ZU16: 1.2 | ZW16: 1.2 | ZX16: 13 | ZY16: 0 | ZZ16: 0 | AAA16: 0 | AAB16: 0 | AAC16: 0 | AAD16: 0 | AAE16: 0 | AAF16: 0 | AAG16: 0 | AAH16: 0 | AAI16: 0 | AAJ16: 0 | AAK16: 0 | AAL16: 0 | AAM16: 0 | AAN16: 0 | AAO16: 0 | AAP16: 0 | AAQ16: 0 | AAR16: 0 | AAS16: 0 | AAT16: 0 | AAU16: 0 | AAV16: 0 | AAW16: 0 | AAX16: 0 | AAY16: 0 | AAZ16: 0 | ABA16: 0 | ABB16: 0 | ABC16: 0 | ABD16: 0 | ABE16: 0 | ABF16: 0 | ABG16: 0 | ABH16: 0 | ABI16: 0 | ABJ16: 0 | ABK16: 0 | ABL16: 0 | ABM16: 0 | ABN16: 0 | ABO16: 1.2 | ABQ16: 1.2 | ABR16: 13 | ABS16: =RANK(#REF!,$ER$14:$FL$24,0) ->  | ABW16: 35 | ABX16: 35 | ABY16: 35 | ABZ16: 35 | ACA16: 35 | ACB16: 35 | ACC16: 35 | ACD16: 35 | ACE16: 35 | ACF16: 35 | ACG16: 35 | ACH16: 35 | ACI16: 35 | ACJ16: 35 | ACK16: 35 | ACL16: 35 | ACM16: 35 | ACN16: 58 | ACO16: =ACO15 -> 58 | ACP16: 58 | ACQ16: 58 | ACR16: 58 | ACS16: 58 | ACT16: 58 | ACU16: 58 | ACV16: 58 | ACW16: 58 | ACX16: 58 | ACY16: 58 | ACZ16: 58 | ADA16: 58 | ADB16: 58 | ADC16: 58 | ADD16: 58 | ADE16: 58 | ADF16: 58 | ADG16: 58 | ADH16: =ADG16 -> 58 | ADI16: 1.2
B17: DESKA | F17: x | G17: y | H17: z | M17: 3D | N17: =ROUND('3D Interpolace'!M18,2) -> 37.35 | O17: =ROUND('3D Interpolace'!N18,2) -> 37.68 | P17: =ROUND('3D Interpolace'!O18,2) -> 37.93 | Q17: =ROUND('3D Interpolace'!P18,2) -> 38.1 | R17: =ROUND('3D Interpolace'!Q18,2) -> 38.19 | S17: =ROUND('3D Interpolace'!R18,2) -> 38.22 | T17: =ROUND('3D Interpolace'!S18,2) -> 38.15 | U17: =ROUND('3D Interpolace'!T18,2) -> 37.99 | V17: =ROUND('3D Interpolace'!U18,2) -> 37.76 | W17: =ROUND('3D Interpolace'!V18,2) -> 37.49 | X17: =ROUND('3D Interpolace'!W18,2) -> 37.18 | Y17: =ROUND('3D Interpolace'!X18,2) -> 36.82 | Z17: =ROUND('3D Interpolace'!Y18,2) -> 36.38 | AA17: =ROUND('3D Interpolace'!Z18,2) -> 35.91 | AB17: =ROUND('3D Interpolace'!AA18,2) -> 35.47 | AC17: =ROUND('3D Interpolace'!AB18,2) -> 35.1 | AD17: =ROUND('3D Interpolace'!AC18,2) -> 34.78 | AE17: =ROUND('3D Interpolace'!AD18,2) -> 34.49 | AF17: =ROUND('3D Interpolace'!AE18,2) -> 34.25 | AG17: =ROUND('3D Interpolace'!AF18,2) -> 34.08 | AH17: =ROUND('3D Interpolace'!AG18,2) -> 34.01 | AI17: =ROUND('3D Interpolace'!AH18,2) -> 34.09 | AJ17: =ROUND('3D Interpolace'!AI18,2) -> 34.33 | AK17: =ROUND('3D Interpolace'!AJ18,2) -> 34.61 | AL17: =ROUND('3D Interpolace'!AK18,2) -> 34.83 | AM17: =ROUND('3D Interpolace'!AL18,2) -> 34.9 | AN17: =ROUND('3D Interpolace'!AM18,2) -> 34.79 | AO17: =ROUND('3D Interpolace'!AN18,2) -> 34.56 | AP17: =ROUND('3D Interpolace'!AO18,2) -> 34.26 | AQ17: =ROUND('3D Interpolace'!AP18,2) -> 33.93 | AR17: =ROUND('3D Interpolace'!AQ18,2) -> 33.64 | AS17: =ROUND('3D Interpolace'!AR18,2) -> 33.35 | AT17: =ROUND('3D Interpolace'!AS18,2) -> 33.03 | AU17: =ROUND('3D Interpolace'!AT18,2) -> 32.71 | AV17: =ROUND('3D Interpolace'!AU18,2) -> 32.45 | AW17: =ROUND('3D Interpolace'!AV18,2) -> 32.26 | AX17: =ROUND('3D Interpolace'!AW18,2) -> 32.16 | AY17: =ROUND('3D Interpolace'!AX18,2) -> 32.12 | AZ17: =ROUND('3D Interpolace'!AY18,2) -> 32.14 | BA17: =ROUND('3D Interpolace'!AZ18,2) -> 32.21 | BB17: =ROUND('3D Interpolace'!BA18,2) -> 32.34 | BD17: 1.4 | BE17: 15 | CU17: 1.4 | CW17: 1.4 | CX17: 15 | CY17: 37.35 | CZ17: 37.68 | DA17: 37.93 | DB17: 38.1 | DC17: 38.19 | DD17: 38.22 | DE17: 38.15 | DF17: 37.99 | DG17: 37.76 | DH17: 37.49 | DI17: 37.18 | DJ17: 36.82 | DK17: 36.38 | DL17: 35.91 | DM17: 35.47 | DN17: 35.1 | DO17: 34.78 | DP17: 34.49 | DQ17: 34.25 | DR17: 34.08 | DS17: 34.01 | DT17: 34.09 | DU17: 34.33 | DV17: 34.61 | DW17: 34.83 | DX17: 34.9 | DY17: 34.79 | DZ17: 34.56 | EA17: 34.26 | EB17: 33.93 | EC17: 33.64 | ED17: 33.35 | EE17: 33.03 | EF17: 32.71 | EG17: 32.45 | EH17: 32.26 | EI17: 32.16 | EJ17: 32.12 | EK17: 32.14 | EL17: 32.21 | EM17: 32.34 | EN17: 1.4 | EP17: 1.3 | EQ17: 14 | ER17: 37.78 | ES17: 38.05 | ET17: 38.26 | EU17: 38.39 | EV17: 38.46 | EW17: 38.45 | EX17: 38.35 | EY17: 38.17 | EZ17: 37.93 | FA17: 37.65 | FB17: 37.35 | FC17: 37.01 | FD17: 36.62 | FE17: 36.21 | FF17: 35.82 | FG17: 35.49 | FH17: 35.21 | FI17: 34.95 | FJ17: 34.73 | FK17: 34.57 | FL17: 34.5 | FM17: 34.5 | FN17: 34.58 | FO17: 34.79 | FP17: 35.04 | FQ17: 35.23 | FR17: 35.27 | FS17: 35.13 | FT17: 34.88 | FU17: 34.54 | FV17: 34.17 | FW17: 33.8 | FX17: 33.38 | FY17: 32.89 | FZ17: 32.39 | GA17: 31.96 | GB17: 31.67 | GC17: 31.52 | GD17: 31.45 | GE17: 31.47 | GF17: 31.59 | GG17: 31.79 | GK17: 1.3 | GL17: 14 | GM17: 0 | GN17: 0 | GO17: 0 | GP17: 0 | GQ17: 0 | GR17: 0 | GS17: 0 | GT17: 0 | GU17: 0 | GV17: 0 | GW17: 0 | GX17: 0 | GY17: 0 | GZ17: 0 | HA17: 0 | HB17: 0 | HC17: 0 | HD17: 0 | HE17: 0 | HF17: 0 | HG17: 0 | HH17: 0 | HI17: 0 | HJ17: 0 | HK17: 0 | HL17: 0 | HM17: 0 | HN17: 0 | HO17: 0 | HP17: 0 | HQ17: 0 | HR17: 0 | HS17: 0 | HT17: 0 | HU17: 0 | HV17: 0 | HW17: 0 | HX17: 0 | HY17: 0 | HZ17: 0 | IA17: 0 | IB17: 0 | IC17: 1.3 | IG17: 14 | IH17: 40.5 | II17: 40.5 | IJ17: 40.5 | IK17: 40.5 | IL17: 40.5 | IM17: 40.5 | IN17: 40.5 | IO17: 40.5 | IP17: 40.5 | IQ17: 40.5 | IR17: 40.5 | IS17: 40.5 | IT17: 40.5 | IU17: 40.5 | IV17: 40.5 | IW17: 40.5 | IX17: 40.5 | IY17: 40.5 | IZ17: 40.5 | JA17: 40.5 | JB17: 40.5 | JC17: 41.03174603 | JD17: 40.75396825 | JE17: 40.47619048 | JF17: 40.1984127 | JG17: 39.92063492 | JH17: 39.64285714 | JI17: 39.36507937 | JJ17: 39.08730159 | JK17: 38.80952381 | JL17: 38.53174603 | JM17: 38.25396825 | JN17: 37.97619048 | JO17: 37.6984127 | JP17: 37.42063492 | JQ17: 37.14285714 | JR17: 36.86507937 | JS17: 36.58730159 | JT17: 36.30952381 | JU17: 36.03174603 | JV17: 35.75396825 | JW17: 35.47619048 | JX17: 1.3 | KD17: 1.3 | KE17: 14 | KF17: 2.72 | KG17: 2.45 | KH17: 2.24 | KI17: 2.11 | KJ17: 2.04 | KK17: 2.05 | KL17: 2.15 | KM17: 2.33 | KN17: 2.57 | KO17: 2.85 | KP17: 3.15 | KQ17: 3.49 | KR17: 3.88 | KS17: 4.29 | KT17: 4.68 | KU17: 5.01 | KV17: 5.29 | KW17: 5.55 | KX17: 5.77 | KY17: 5.93 | KZ17: 6 | LA17: 6.531746032 | LB17: 6.173968254 | LC17: 5.686190476 | LD17: 5.158412698 | LE17: 4.690634921 | LF17: 4.372857143 | LG17: 4.235079365 | LH17: 4.207301587 | LI17: 4.26952381 | LJ17: 4.361746032 | LK17: 4.453968254 | LL17: 4.596190476 | LM17: 4.808412698 | LN17: 5.030634921 | LO17: 5.182857143 | LP17: 5.195079365 | LQ17: 5.067301587 | LR17: 4.85952381 | LS17: 4.561746032 | LT17: 4.163968254 | LU17: 3.686190476 | MC17: 1.4 | MD17: 15 | ME17: 3.9025 | MF17: 3.5975 | MG17: 3.3725 | MH17: 3.2275 | MI17: 3.1575 | MJ17: 3.1725 | MK17: 3.2825 | ML17: 3.4725 | MM17: 3.72 | MN17: 4.0075 | MO17: 4.3375 | MP17: 4.7325 | MQ17: 5.1775 | MR17: 5.6225 | MS17: 6.02 | MT17: 6.355 | MU17: 6.65 | MV17: 6.905 | MW17: 7.1 | MX17: 7.2125 | MY17: 8.164285714 | MZ17: 7.719007937 | NA17: 7.173730159 | NB17: 6.633452381 | NC17: 6.195674603 | ND17: 5.920396825 | NE17: 5.792619048 | NF17: 5.75484127 | NG17: 5.762063492 | NH17: 5.764285714 | NI17: 5.744007937 | NJ17: 5.731230159 | NK17: 5.725952381 | NL17: 5.695674603 | NM17: 5.612896825 | NN17: 5.462619048 | NO17: 5.24984127 | NP17: 4.987063492 | NQ17: 4.676785714 | NR17: 4.319007937 | NU17: 1.4 | NV17: 15 | NW17: 5.27 | NX17: 5.27 | NY17: 5.27 | NZ17: 5.27 | OA17: 5.27 | OB17: 5.27 | OC17: 5.27 | OD17: 5.27 | OE17: 5.27 | OF17: 1.68 | OG17: 1.68 | OH17: 1.68 | OI17: 1.68 | OJ17: 1.68 | OK17: 0.57 | OL17: 0.57 | OM17: 0.57 | ON17: 0.57 | OO17: 0.57 | OP17: 0.57 | OQ17: 0.19 | OR17: 0.57 | OS17: 0.57 | OT17: 0.57 | OU17: 0.57 | OV17: 1.68 | OW17: 1.68 | OX17: 1.68 | OY17: 1.68 | OZ17: 1.68 | PA17: 1.68 | PB17: 1.68 | PC17: 1.68 | PD17: 1.68 | PE17: 1.68 | PF17: 1.68 | PG17: 1.68 | PH17: 1.68 | PI17: 1.68 | PJ17: 1.68 | PM17: 1.4 | PN17: 15 | PO17: -17.72 | PP17: -17.72 | PQ17: -17.72 | PR17: -17.72 | PS17: -17.72 | PT17: -17.72 | PU17: -17.72 | PV17: -17.72 | PW17: -17.72 | PX17: -21.31 | PY17: -21.31 | PZ17: -21.31 | QA17: -21.31 | QB17: -21.31 | QC17: -22.42 | QD17: -22.42 | QE17: -22.42 | QF17: -4.7 | QG17: -4.7 | QH17: -4.7 | QI17: -5.08 | QJ17: -22.42 | QK17: -22.42 | QL17: -22.42 | QM17: -22.42 | QN17: -21.31 | QO17: -21.31 | QP17: -21.31 | QQ17: -21.31 | QR17: -21.31 | QS17: -3.59 | QT17: -3.59 | QU17: -3.59 | QV17: -3.59 | QW17: -3.59 | QX17: -3.59 | QY17: -21.31 | QZ17: -21.31 | RA17: -21.31 | RB17: -21.31 | RE17: 1.4 | RF17: 15 | RG17: 0 | RH17: 0 | RI17: 0 | RJ17: 0 | RK17: 0 | RL17: 0 | RM17: 0 | RN17: 0 | RO17: 0 | RP17: 0 | RQ17: 0 | RR17: 0 | RS17: 0 | RT17: 0 | RU17: 0 | RV17: 0 | RW17: 0 | RX17: 0 | RY17: 0 | RZ17: 0 | SA17: 0 | SB17: 0 | SC17: 0 | SD17: 0 | SE17: 0 | SF17: 0 | SG17: 0 | SH17: 0 | SI17: 0 | SJ17: 0 | SK17: 0 | SL17: 0 | SM17: 0 | SN17: 0 | SO17: 0 | SP17: 0 | SQ17: 0 | SR17: 0 | SS17: 0 | ST17: 0 | SU17: 0 | SV17: 1.4 | SX17: 1.4 | SY17: 15 | SZ17: 0 | TA17: 0 | TB17: 0 | TC17: 0 | TD17: 0 | TE17: 0 | TF17: 0 | TG17: 0 | TH17: 0 | TI17: 0 | TJ17: 0 | TK17: 0 | TL17: 0 | TM17: 0 | TN17: 0 | TO17: 0 | TP17: 0 | TQ17: 0 | TR17: 0 | TS17: 0 | TT17: 0 | TU17: 0 | TV17: 0 | TW17: 0 | TX17: 0 | TY17: 0 | TZ17: 0 | UA17: 0 | UB17: 0 | UC17: 0 | UD17: 0 | UE17: 0 | UF17: 0 | UG17: 0 | UH17: 0 | UI17: 0 | UJ17: 0 | UK17: 0 | UL17: 0 | UM17: 0 | UN17: 0 | UO17: 1.4 | UQ17: 1.4 | UR17: 15 | US17: 1 | UT17: 0 | UU17: 0 | UV17: 0 | UW17: 0 | UX17: 0 | UY17: 0 | UZ17: 0 | VA17: 0 | VB17: 0 | VC17: 0 | VD17: 0 | VE17: 0 | VF17: 0 | VG17: 0 | VH17: 0 | VI17: 0 | VJ17: 0 | VK17: 0 | VL17: 0 | VM17: 1 | VN17: 0 | VO17: 0 | VP17: 0 | VQ17: 0 | VR17: 0 | VS17: 0 | VT17: 0 | VU17: 0 | VV17: 0 | VW17: 0 | VX17: 0 | VY17: 0 | VZ17: 0 | WA17: 0 | WB17: 0 | WC17: 0 | WD17: 0 | WE17: 0 | WF17: 0 | WG17: 1 | WH17: 1.4 | WJ17: 1.4 | WK17: 15 | WL17: 37.35 | WM17: 0 | WN17: 0 | WO17: 0 | WP17: 0 | WQ17: 0 | WR17: 0 | WS17: 0 | WT17: 0 | WU17: 0 | WV17: 0 | WW17: 0 | WX17: 0 | WY17: 0 | WZ17: 0 | XA17: 0 | XB17: 0 | XC17: 0 | XD17: 0 | XE17: 0 | XF17: 34.01 | XG17: 0 | XH17: 0 | XI17: 0 | XJ17: 0 | XK17: 0 | XL17: 0 | XM17: 0 | XN17: 0 | XO17: 0 | XP17: 0 | XQ17: 0 | XR17: 0 | XS17: 0 | XT17: 0 | XU17: 0 | XV17: 0 | XW17: 0 | XX17: 0 | XY17: 0 | XZ17: 32.34 | YA17: 1.4 | YC17: 1.3 | YD17: 14 | YE17: 1 | YF17: 1 | YG17: 1 | YH17: 1 | YI17: 1 | YJ17: 1 | YK17: 1 | YL17: 1 | YM17: 1 | YN17: 1 | YO17: 1 | YP17: 1 | YQ17: 1 | YR17: 1 | YS17: 1 | YT17: 1 | YU17: 1 | YV17: 1 | YW17: 1 | YX17: 1 | YY17: 1 | YZ17: 3 | ZA17: 3 | ZB17: 3 | ZC17: 3 | ZD17: 3 | ZE17: 3 | ZF17: 3 | ZG17: 3 | ZH17: 3 | ZI17: 3 | ZJ17: 3 | ZK17: 3 | ZL17: 3 | ZM17: 3 | ZN17: 3 | ZO17: 3 | ZP17: 3 | ZQ17: 3 | ZR17: 3 | ZS17: 3 | ZT17: 3 | ZU17: 1.3 | ZW17: 1.3 | ZX17: 14 | ZY17: 0 | ZZ17: 0 | AAA17: 0 | AAB17: 0 | AAC17: 0 | AAD17: 0 | AAE17: 0 | AAF17: 0 | AAG17: 0 | AAH17: 0 | AAI17: 0 | AAJ17: 0 | AAK17: 0 | AAL17: 0 | AAM17: 0 | AAN17: 0 | AAO17: 0 | AAP17: 0 | AAQ17: 0 | AAR17: 0 | AAS17: 0 | AAT17: 0 | AAU17: 0 | AAV17: 0 | AAW17: 0 | AAX17: 0 | AAY17: 0 | AAZ17: 0 | ABA17: 0 | ABB17: 0 | ABC17: 0 | ABD17: 0 | ABE17: 0 | ABF17: 0 | ABG17: 0 | ABH17: 0 | ABI17: 0 | ABJ17: 0 | ABK17: 0 | ABL17: 0 | ABM17: 0 | ABN17: 0 | ABO17: 1.3 | ABQ17: 1.3 | ABR17: 14 | ABS17: =RANK(#REF!,$ER$14:$FL$24,0) ->  | ACN17: 58 | ACO17: 58 | ACP17: 58 | ACQ17: 58 | ACR17: 58 | ACS17: 58 | ACT17: 58 | ACU17: 58 | ACV17: 58 | ACW17: 58 | ACX17: 58 | ACY17: 58 | ACZ17: 58 | ADA17: 58 | ADB17: 58 | ADC17: 58 | ADD17: 58 | ADE17: 58 | ADF17: 58 | ADG17: 58 | ADH17: 58 | ADI17: 1.3
B18: 2000 | C18: =B18/500+1 -> 5 | E18: Bod A | F18: 3500 | G18: 6000 | H18: 32 | M18: 4 | N18: =ROUND('3D Interpolace'!M19,2) -> 37 | O18: =ROUND('3D Interpolace'!N19,2) -> 37.36 | P18: =ROUND('3D Interpolace'!O19,2) -> 37.64 | Q18: =ROUND('3D Interpolace'!P19,2) -> 37.84 | R18: =ROUND('3D Interpolace'!Q19,2) -> 37.96 | S18: =ROUND('3D Interpolace'!R19,2) -> 38 | T18: =ROUND('3D Interpolace'!S19,2) -> 37.94 | U18: =ROUND('3D Interpolace'!T19,2) -> 37.79 | V18: =ROUND('3D Interpolace'!U19,2) -> 37.57 | W18: =ROUND('3D Interpolace'!V19,2) -> 37.3 | X18: =ROUND('3D Interpolace'!W19,2) -> 37 | Y18: =ROUND('3D Interpolace'!X19,2) -> 36.65 | Z18: =ROUND('3D Interpolace'!Y19,2) -> 36.22 | AA18: =ROUND('3D Interpolace'!Z19,2) -> 35.78 | AB18: =ROUND('3D Interpolace'!AA19,2) -> 35.35 | AC18: =ROUND('3D Interpolace'!AB19,2) -> 35 | AD18: =ROUND('3D Interpolace'!AC19,2) -> 34.7 | AE18: =ROUND('3D Interpolace'!AD19,2) -> 34.43 | AF18: =ROUND('3D Interpolace'!AE19,2) -> 34.21 | AG18: =ROUND('3D Interpolace'!AF19,2) -> 34.06 | AH18: =ROUND('3D Interpolace'!AG19,2) -> 34 | AI18: =ROUND('3D Interpolace'!AH19,2) -> 34.1 | AJ18: =ROUND('3D Interpolace'!AI19,2) -> 34.35 | AK18: =ROUND('3D Interpolace'!AJ19,2) -> 34.65 | AL18: =ROUND('3D Interpolace'!AK19,2) -> 34.9 | AM18: =ROUND('3D Interpolace'!AL19,2) -> 35 | AN18: =ROUND('3D Interpolace'!AM19,2) -> 34.93 | AO18: =ROUND('3D Interpolace'!AN19,2) -> 34.74 | AP18: =ROUND('3D Interpolace'!AO19,2) -> 34.5 | AQ18: =ROUND('3D Interpolace'!AP19,2) -> 34.23 | AR18: =ROUND('3D Interpolace'!AQ19,2) -> 34 | AS18: =ROUND('3D Interpolace'!AR19,2) -> 33.78 | AT18: =ROUND('3D Interpolace'!AS19,2) -> 33.55 | AU18: =ROUND('3D Interpolace'!AT19,2) -> 33.33 | AV18: =ROUND('3D Interpolace'!AU19,2) -> 33.14 | AW18: =ROUND('3D Interpolace'!AV19,2) -> 33 | AX18: =ROUND('3D Interpolace'!AW19,2) -> 32.92 | AY18: =ROUND('3D Interpolace'!AX19,2) -> 32.88 | AZ18: =ROUND('3D Interpolace'!AY19,2) -> 32.88 | BA18: =ROUND('3D Interpolace'!AZ19,2) -> 32.92 | BB18: =ROUND('3D Interpolace'!BA19,2) -> 33 | BD18: 1.5 | BE18: 16 | CU18: 1.5 | CW18: 1.5 | CX18: 16 | CY18: 37 | CZ18: 37.36 | DA18: 37.64 | DB18: 37.84 | DC18: 37.96 | DD18: 38 | DE18: 37.94 | DF18: 37.79 | DG18: 37.57 | DH18: 37.3 | DI18: 37 | DJ18: 36.65 | DK18: 36.22 | DL18: 35.78 | DM18: 35.35 | DN18: 35 | DO18: 34.7 | DP18: 34.43 | DQ18: 34.21 | DR18: 34.06 | DS18: 34 | DT18: 34.1 | DU18: 34.35 | DV18: 34.65 | DW18: 34.9 | DX18: 35 | DY18: 34.93 | DZ18: 34.74 | EA18: 34.5 | EB18: 34.23 | EC18: 34 | ED18: 33.78 | EE18: 33.55 | EF18: 33.33 | EG18: 33.14 | EH18: 33 | EI18: 32.92 | EJ18: 32.88 | EK18: 32.88 | EL18: 32.92 | EM18: 33 | EN18: 1.5 | EP18: 1.4 | EQ18: 15 | ER18: 37.35 | ES18: 37.68 | ET18: 37.93 | EU18: 38.1 | EV18: 38.19 | EW18: 38.22 | EX18: 38.15 | EY18: 37.99 | EZ18: 37.76 | FA18: 37.49 | FB18: 37.18 | FC18: 36.82 | FD18: 36.38 | FE18: 35.91 | FF18: 35.47 | FG18: 35.1 | FH18: 34.78 | FI18: 34.49 | FJ18: 34.25 | FK18: 34.08 | FL18: 34.01 | FM18: 34.01 | FN18: 34.09 | FO18: 34.33 | FP18: 34.61 | FQ18: 34.83 | FR18: 34.9 | FS18: 34.79 | FT18: 34.56 | FU18: 34.26 | FV18: 33.93 | FW18: 33.64 | FX18: 33.35 | FY18: 33.03 | FZ18: 32.71 | GA18: 32.45 | GB18: 32.26 | GC18: 32.16 | GD18: 32.12 | GE18: 32.14 | GF18: 32.21 | GG18: 32.34 | GK18: 1.4 | GL18: 15 | GM18: 0 | GN18: 0 | GO18: 0 | GP18: 0 | GQ18: 0 | GR18: 0 | GS18: 0 | GT18: 0 | GU18: 0 | GV18: 0 | GW18: 0 | GX18: 0 | GY18: 0 | GZ18: 0 | HA18: 0 | HB18: 0 | HC18: 0 | HD18: 0 | HE18: 0 | HF18: 0 | HG18: 0 | HH18: 0 | HI18: 0 | HJ18: 0 | HK18: 0 | HL18: 0 | HM18: 0 | HN18: 0 | HO18: 0 | HP18: 0 | HQ18: 0 | HR18: 0 | HS18: 0 | HT18: 0 | HU18: 0 | HV18: 0 | HW18: 0 | HX18: 0 | HY18: 0 | HZ18: 0 | IA18: 0 | IB18: 0 | IC18: 1.4 | IG18: 15 | IH18: 41 | II18: 41 | IJ18: 41 | IK18: 41 | IL18: 41 | IM18: 41 | IN18: 41 | IO18: 41 | IP18: 41 | IQ18: 41 | IR18: 41 | IS18: 41 | IT18: 41 | IU18: 41 | IV18: 41 | IW18: 41 | IX18: 41 | IY18: 41 | IZ18: 41 | JA18: 41 | JB18: 41 | JC18: 41.91269841 | JD18: 41.63492063 | JE18: 41.35714286 | JF18: 41.07936508 | JG18: 40.8015873 | JH18: 40.52380952 | JI18: 40.24603175 | JJ18: 39.96825397 | JK18: 39.69047619 | JL18: 39.41269841 | JM18: 39.13492063 | JN18: 38.85714286 | JO18: 38.57936508 | JP18: 38.3015873 | JQ18: 38.02380952 | JR18: 37.74603175 | JS18: 37.46825397 | JT18: 37.19047619 | JU18: 36.91269841 | JV18: 36.63492063 | JW18: 36.35714286 | JX18: 1.4 | KD18: 1.4 | KE18: 15 | KF18: 3.65 | KG18: 3.32 | KH18: 3.07 | KI18: 2.9 | KJ18: 2.81 | KK18: 2.78 | KL18: 2.85 | KM18: 3.01 | KN18: 3.24 | KO18: 3.51 | KP18: 3.82 | KQ18: 4.18 | KR18: 4.62 | KS18: 5.09 | KT18: 5.53 | KU18: 5.9 | KV18: 6.22 | KW18: 6.51 | KX18: 6.75 | KY18: 6.92 | KZ18: 6.99 | LA18: 7.902698413 | LB18: 7.544920635 | LC18: 7.027142857 | LD18: 6.469365079 | LE18: 5.971587302 | LF18: 5.623809524 | LG18: 5.456031746 | LH18: 5.408253968 | LI18: 5.43047619 | LJ18: 5.482698413 | LK18: 5.494920635 | LL18: 5.507142857 | LM18: 5.549365079 | LN18: 5.591587302 | LO18: 5.573809524 | LP18: 5.486031746 | LQ18: 5.308253968 | LR18: 5.07047619 | LS18: 4.772698413 | LT18: 4.424920635 | LU18: 4.017142857 | MC18: 1.5 | MD18: 16 | ME18: 2.71 | MF18: 2.375 | MG18: 2.1225 | MH18: 1.9525 | MI18: 1.865 | MJ18: 1.87 | MK18: 1.9825 | ML18: 2.18 | MM18: 2.43 | MN18: 2.7075 | MO18: 3.0075 | MP18: 3.35 | MQ18: 3.7275 | MR18: 4.1 | MS18: 4.43 | MT18: 4.7025 | MU18: 4.935 | MV18: 5.1325 | MW18: 5.2775 | MX18: 5.35 | MY18: 5.657738095 | MZ18: 4.207460317 | NA18: 4.66968254 | NB18: 5.131904762 | NC18: 4.679126984 | ND18: 4.363849206 | NE18: 4.171071429 | NF18: 4.055793651 | NG18: 3.980515873 | NH18: 3.910238095 | NI18: 3.839960317 | NJ18: 3.78968254 | NK18: 3.754404762 | NL18: 3.706626984 | NM18: 3.616349206 | NN18: 3.466071429 | NO18: 3.263293651 | NP18: 3.020515873 | NQ18: 2.737738095 | NR18: 2.414960317 | NU18: 1.5 | NV18: 16 | NW18: 5.27 | NX18: 5.27 | NY18: 5.27 | NZ18: 22.99 | OA18: 22.99 | OB18: 22.99 | OC18: 22.99 | OD18: 5.27 | OE18: 5.27 | OF18: 5.27 | OG18: 5.27 | OH18: 5.27 | OI18: 5.27 | OJ18: 1.68 | OK18: 1.68 | OL18: 1.68 | OM18: 1.68 | ON18: 1.68 | OO18: 1.68 | OP18: 1.68 | OQ18: 1.68 | OR18: 1.68 | OS18: 1.68 | OT18: 1.68 | OU18: 1.68 | OV18: 1.68 | OW18: 1.68 | OX18: 1.68 | OY18: 5.27 | OZ18: 5.27 | PA18: 5.27 | PB18: 5.27 | PC18: 5.27 | PD18: 5.27 | PE18: 5.27 | PF18: 5.27 | PG18: 5.27 | PH18: 5.27 | PI18: 5.27 | PJ18: 5.27 | PM18: 1.5 | PN18: 16 | PO18: 4.7 | PP18: 3.59 | PQ18: 3.59 | PR18: 21.31 | PS18: 21.31 | PT18: 21.31 | PU18: 21.31 | PV18: 3.59 | PW18: 3.59 | PX18: 3.59 | PY18: 3.59 | PZ18: 3.59 | QA18: 4.7 | QB18: 1.11 | QC18: 1.11 | QD18: 1.49 | QE18: 1.49 | QF18: 1.49 | QG18: 1.62 | QH18: 1.62 | QI18: 1.11 | QJ18: 0 | QK18: 0 | QL18: 0 | QM18: 0 | QN18: 0 | QO18: 0 | QP18: 0 | QQ18: 3.59 | QR18: 3.59 | QS18: 0 | QT18: 0 | QU18: 0 | QV18: 3.59 | QW18: 3.59 | QX18: 0 | QY18: 0 | QZ18: 0 | RA18: 0 | RB18: 0 | RE18: 1.5 | RF18: 16 | RG18: 0 | RH18: 0 | RI18: 0 | RJ18: 0 | RK18: 0 | RL18: 0 | RM18: 0 | RN18: 0 | RO18: 0 | RP18: 0 | RQ18: 0 | RR18: 0 | RS18: 0 | RT18: 0 | RU18: 0 | RV18: 0 | RW18: 0 | RX18: 0 | RY18: 0 | RZ18: 0 | SA18: 0 | SB18: 0 | SC18: 0 | SD18: 0 | SE18: 0 | SF18: 0 | SG18: 0 | SH18: 0 | SI18: 0 | SJ18: 0 | SK18: 0 | SL18: 0 | SM18: 0 | SN18: 0 | SO18: 0 | SP18: 0 | SQ18: 0 | SR18: 0 | SS18: 0 | ST18: 0 | SU18: 0 | SV18: 1.5 | SX18: 1.5 | SY18: 16 | SZ18: 0 | TA18: 0 | TB18: 0 | TC18: 0 | TD18: 0 | TE18: 0 | TF18: 0 | TG18: 0 | TH18: 0 | TI18: 0 | TJ18: 0 | TK18: 0 | TL18: 0 | TM18: 0 | TN18: 0 | TO18: 0 | TP18: 0 | TQ18: 0 | TR18: 0 | TS18: 0 | TT18: 0 | TU18: 0 | TV18: 0 | TW18: 0 | TX18: 0 | TY18: 0 | TZ18: 0 | UA18: 0 | UB18: 0 | UC18: 0 | UD18: 0 | UE18: 0 | UF18: 0 | UG18: 0 | UH18: 0 | UI18: 0 | UJ18: 0 | UK18: 0 | UL18: 0 | UM18: 0 | UN18: 0 | UO18: 1.5 | UQ18: 1.5 | UR18: 16 | US18: 1 | UT18: 0 | UU18: 0 | UV18: 0 | UW18: 0 | UX18: 0 | UY18: 0 | UZ18: 0 | VA18: 0 | VB18: 0 | VC18: 0 | VD18: 0 | VE18: 0 | VF18: 0 | VG18: 0 | VH18: 0 | VI18: 0 | VJ18: 0 | VK18: 0 | VL18: 0 | VM18: 1 | VN18: 0 | VO18: 0 | VP18: 0 | VQ18: 0 | VR18: 0 | VS18: 0 | VT18: 0 | VU18: 0 | VV18: 0 | VW18: 0 | VX18: 0 | VY18: 0 | VZ18: 0 | WA18: 0 | WB18: 0 | WC18: 0 | WD18: 0 | WE18: 0 | WF18: 0 | WG18: 1 | WH18: 1.5 | WJ18: 1.5 | WK18: 16 | WL18: 37 | WM18: 0 | WN18: 0 | WO18: 0 | WP18: 0 | WQ18: 0 | WR18: 0 | WS18: 0 | WT18: 0 | WU18: 0 | WV18: 0 | WW18: 0 | WX18: 0 | WY18: 0 | WZ18: 0 | XA18: 0 | XB18: 0 | XC18: 0 | XD18: 0 | XE18: 0 | XF18: 34 | XG18: 0 | XH18: 0 | XI18: 0 | XJ18: 0 | XK18: 0 | XL18: 0 | XM18: 0 | XN18: 0 | XO18: 0 | XP18: 0 | XQ18: 0 | XR18: 0 | XS18: 0 | XT18: 0 | XU18: 0 | XV18: 0 | XW18: 0 | XX18: 0 | XY18: 0 | XZ18: 33 | YA18: 1.5 | YC18: 1.4 | YD18: 15 | YE18: 1 | YF18: 1 | YG18: 1 | YH18: 1 | YI18: 1 | YJ18: 1 | YK18: 1 | YL18: 1 | YM18: 1 | YN18: 1 | YO18: 1 | YP18: 1 | YQ18: 1 | YR18: 1 | YS18: 1 | YT18: 1 | YU18: 1 | YV18: 1 | YW18: 1 | YX18: 1 | YY18: 1 | YZ18: 3 | ZA18: 3 | ZB18: 3 | ZC18: 3 | ZD18: 3 | ZE18: 3 | ZF18: 3 | ZG18: 3 | ZH18: 3 | ZI18: 3 | ZJ18: 3 | ZK18: 3 | ZL18: 3 | ZM18: 3 | ZN18: 3 | ZO18: 3 | ZP18: 3 | ZQ18: 3 | ZR18: 3 | ZS18: 3 | ZT18: 3 | ZU18: 1.4 | ZW18: 1.4 | ZX18: 15 | ZY18: 0 | ZZ18: 0 | AAA18: 0 | AAB18: 0 | AAC18: 0 | AAD18: 0 | AAE18: 0 | AAF18: 0 | AAG18: 0 | AAH18: 0 | AAI18: 0 | AAJ18: 0 | AAK18: 0 | AAL18: 0 | AAM18: 0 | AAN18: 0 | AAO18: 0 | AAP18: 0 | AAQ18: 0 | AAR18: 0 | AAS18: 0 | AAT18: 0 | AAU18: 0 | AAV18: 0 | AAW18: 0 | AAX18: 0 | AAY18: 0 | AAZ18: 0 | ABA18: 0 | ABB18: 0 | ABC18: 0 | ABD18: 0 | ABE18: 0 | ABF18: 0 | ABG18: 0 | ABH18: 0 | ABI18: 0 | ABJ18: 0 | ABK18: 0 | ABL18: 0 | ABM18: 0 | ABN18: 0 | ABO18: 1.4 | ABQ18: 1.4 | ABR18: 15 | ABS18: =RANK(#REF!,$ER$14:$FL$24,0) ->  | ACN18: 58 | ACO18: 58 | ACP18: 58 | ACQ18: 58 | ACR18: 58 | ACS18: 58 | ACT18: 58 | ACU18: 58 | ACV18: 58 | ACW18: 58 | ACX18: 58 | ACY18: 58 | ACZ18: 58 | ADA18: 58 | ADB18: 58 | ADC18: 58 | ADD18: 58 | ADE18: 58 | ADF18: 58 | ADG18: 58 | ADH18: 58 | ADI18: 1.4
B19: 1000 | C19: =B19/500+1 -> 3 | E19: Bod B | F19: 4000 | G19: 5500 | H19: 34 | M19: 4A | N19: =ROUND('3D Interpolace'!M20,2) -> 36.7 | O19: =ROUND('3D Interpolace'!N20,2) -> 37.1 | P19: =ROUND('3D Interpolace'!O20,2) -> 37.4 | Q19: =ROUND('3D Interpolace'!P20,2) -> 37.63 | R19: =ROUND('3D Interpolace'!Q20,2) -> 37.76 | S19: =ROUND('3D Interpolace'!R20,2) -> 37.82 | T19: =ROUND('3D Interpolace'!S20,2) -> 37.76 | U19: =ROUND('3D Interpolace'!T20,2) -> 37.58 | V19: =ROUND('3D Interpolace'!U20,2) -> 37.34 | W19: =ROUND('3D Interpolace'!V20,2) -> 37.07 | X19: =ROUND('3D Interpolace'!W20,2) -> 36.8 | Y19: =ROUND('3D Interpolace'!X20,2) -> 36.52 | Z19: =ROUND('3D Interpolace'!Y20,2) -> 36.21 | AA19: =ROUND('3D Interpolace'!Z20,2) -> 35.88 | AB19: =ROUND('3D Interpolace'!AA20,2) -> 35.59 | AC19: =ROUND('3D Interpolace'!AB20,2) -> 35.34 | AD19: =ROUND('3D Interpolace'!AC20,2) -> 35.15 | AE19: =ROUND('3D Interpolace'!AD20,2) -> 34.98 | AF19: =ROUND('3D Interpolace'!AE20,2) -> 34.85 | AG19: =ROUND('3D Interpolace'!AF20,2) -> 34.77 | AH19: =ROUND('3D Interpolace'!AG20,2) -> 34.77 | AI19: =ROUND('3D Interpolace'!AH20,2) -> 34.88 | AJ19: =ROUND('3D Interpolace'!AI20,2) -> 35.11 | AK19: =ROUND('3D Interpolace'!AJ20,2) -> 35.37 | AL19: =ROUND('3D Interpolace'!AK20,2) -> 35.6 | AM19: =ROUND('3D Interpolace'!AL20,2) -> 35.72 | AN19: =ROUND('3D Interpolace'!AM20,2) -> 35.72 | AO19: =ROUND('3D Interpolace'!AN20,2) -> 35.64 | AP19: =ROUND('3D Interpolace'!AO20,2) -> 35.5 | AQ19: =ROUND('3D Interpolace'!AP20,2) -> 35.34 | AR19: =ROUND('3D Interpolace'!AQ20,2) -> 35.17 | AS19: =ROUND('3D Interpolace'!AR20,2) -> 34.96 | AT19: =ROUND('3D Interpolace'!AS20,2) -> 34.71 | AU19: =ROUND('3D Interpolace'!AT20,2) -> 34.44 | AV19: =ROUND('3D Interpolace'!AU20,2) -> 34.2 | AW19: =ROUND('3D Interpolace'!AV20,2) -> 34.02 | AX19: =ROUND('3D Interpolace'!AW20,2) -> 33.91 | AY19: =ROUND('3D Interpolace'!AX20,2) -> 33.84 | AZ19: =ROUND('3D Interpolace'!AY20,2) -> 33.81 | BA19: =ROUND('3D Interpolace'!AZ20,2) -> 33.82 | BB19: =ROUND('3D Interpolace'!BA20,2) -> 33.87 | BD19: 1.6 | BE19: 17 | BF19: 4 | BG19: 4 | BH19: 4 | BI19: 4 | BJ19: 4 | BK19: 4 | BL19: 4 | BM19: 4 | BN19: 4 | BO19: 4 | BP19: 4 | BQ19: 4 | BR19: 4 | BS19: 4 | BT19: 4 | BU19: 4 | BV19: 4 | BW19: 4 | BX19: 4 | BY19: 4 | BZ19: 4 | CA19: 8 | CB19: 8 | CC19: 4 | CD19: 4 | CE19: 4 | CF19: 4 | CG19: 4 | CH19: 4 | CI19: 4 | CJ19: 4 | CK19: 4 | CL19: 4 | CM19: 4 | CN19: 4 | CO19: 4 | CP19: 4 | CQ19: 4 | CR19: 4 | CS19: 4 | CT19: 4 | CU19: 1.6 | CW19: 1.6 | CX19: 17 | CY19: 40.7 | CZ19: 41.1 | DA19: 41.4 | DB19: 41.63 | DC19: 41.76 | DD19: 41.82 | DE19: 41.76 | DF19: 41.58 | DG19: 41.34 | DH19: 41.07 | DI19: 40.8 | DJ19: 40.52 | DK19: 40.21 | DL19: 39.88 | DM19: 39.59 | DN19: 39.34 | DO19: 39.15 | DP19: 38.98 | DQ19: 38.85 | DR19: 38.77 | DS19: 38.77 | DT19: 42.88 | DU19: 43.11 | DV19: 39.37 | DW19: 39.6 | DX19: 39.72 | DY19: 39.72 | DZ19: 39.64 | EA19: 39.5 | EB19: 39.34 | EC19: 39.17 | ED19: 38.96 | EE19: 38.71 | EF19: 38.44 | EG19: 38.2 | EH19: 38.02 | EI19: 37.91 | EJ19: 37.84 | EK19: 37.81 | EL19: 37.82 | EM19: 37.87 | EN19: 1.6 | EP19: 1.5 | EQ19: 16 | ER19: 37 | ES19: 37.36 | ET19: 37.64 | EU19: 37.84 | EV19: 37.96 | EW19: 38 | EX19: 37.94 | EY19: 37.79 | EZ19: 37.57 | FA19: 37.3 | FB19: 37 | FC19: 36.65 | FD19: 36.22 | FE19: 35.78 | FF19: 35.35 | FG19: 35 | FH19: 34.7 | FI19: 34.43 | FJ19: 34.21 | FK19: 34.06 | FL19: 34 | FM19: 34 | FN19: 34.1 | FO19: 34.35 | FP19: 34.65 | FQ19: 34.9 | FR19: 35 | FS19: 34.93 | FT19: 34.74 | FU19: 34.5 | FV19: 34.23 | FW19: 34 | FX19: 33.78 | FY19: 33.55 | FZ19: 33.33 | GA19: 33.14 | GB19: 33 | GC19: 32.92 | GD19: 32.88 | GE19: 32.88 | GF19: 32.92 | GG19: 33 | GK19: 1.5 | GL19: 16 | GM19: 37 | GN19: 0 | GO19: 0 | GP19: 0 | GQ19: 0 | GR19: 38 | GS19: 0 | GT19: 0 | GU19: 0 | GV19: 0 | GW19: 37 | GX19: 0 | GY19: 0 | GZ19: 0 | HA19: 0 | HB19: 35 | HC19: 0 | HD19: 0 | HE19: 0 | HF19: 0 | HG19: 34 | HH19: 34 | HI19: 0 | HJ19: 0 | HK19: 0 | HL19: 0 | HM19: 35 | HN19: 0 | HO19: 0 | HP19: 0 | HQ19: 0 | HR19: 34 | HS19: 0 | HT19: 0 | HU19: 0 | HV19: 0 | HW19: 33 | HX19: 0 | HY19: 0 | HZ19: 0 | IA19: 0 | IB19: 33 | IC19: 1.5 | IG19: 16 | IH19: 41.5 | II19: 41.5 | IJ19: 41.5 | IK19: 41.5 | IL19: 41.5 | IM19: 41.5 | IN19: 41.5 | IO19: 41.5 | IP19: 41.5 | IQ19: 41.5 | IR19: 41.5 | IS19: 41.5 | IT19: 41.5 | IU19: 41.5 | IV19: 41.5 | IW19: 41.5 | IX19: 41.5 | IY19: 41.5 | IZ19: 41.5 | JA19: 41.5 | JB19: 41.5 | JC19: 42.79365079 | JD19: 42.51587302 | JE19: 42.23809524 | JF19: 41.96031746 | JG19: 41.68253968 | JH19: 41.4047619 | JI19: 41.12698413 | JJ19: 40.84920635 | JK19: 40.57142857 | JL19: 40.29365079 | JM19: 40.01587302 | JN19: 39.73809524 | JO19: 39.46031746 | JP19: 39.18253968 | JQ19: 38.9047619 | JR19: 38.62698413 | JS19: 38.34920635 | JT19: 38.07142857 | JU19: 37.79365079 | JV19: 37.51587302 | JW19: 37.23809524 | JX19: 1.5 | KD19: 1.5 | KE19: 16 | KF19: 4.5 | KG19: 4.14 | KH19: 3.86 | KI19: 3.66 | KJ19: 3.54 | KK19: 3.5 | KL19: 3.56 | KM19: 3.71 | KN19: 3.93 | KO19: 4.2 | KP19: 4.5 | KQ19: 4.85 | KR19: 5.28 | KS19: 5.72 | KT19: 6.15 | KU19: 6.5 | KV19: 6.8 | KW19: 7.07 | KX19: 7.29 | KY19: 7.44 | KZ19: 7.5 | LA19: 8.793650794 | LB19: 8.415873016 | LC19: 7.888095238 | LD19: 7.31031746 | LE19: 6.782539683 | LF19: 6.404761905 | LG19: 6.196984127 | LH19: 6.109206349 | LI19: 6.071428571 | LJ19: 6.063650794 | LK19: 6.015873016 | LL19: 5.958095238 | LM19: 5.91031746 | LN19: 5.852539683 | LO19: 5.764761905 | LP19: 5.626984127 | LQ19: 5.429206349 | LR19: 5.191428571 | LS19: 4.913650794 | LT19: 4.595873016 | LU19: 4.238095238 | MC19: 1.6 | MD19: 17 | ME19: 1.4775 | MF19: 1.1125 | MG19: 0.8375 | MH19: 0.6475 | MI19: 0.545 | MJ19: 0.5475 | MK19: 0.6775 | ML19: 0.905 | MM19: 1.17 | MN19: 1.4275 | MO19: 1.66 | MP19: 1.8825 | MQ19: 2.1075 | MR19: 2.315 | MS19: 2.4875 | MT19: 2.6175 | MU19: 2.7125 | MV19: 2.7775 | MW19: 2.8075 | MX19: 2.795 | MY19: 2.443690476 | MZ19: 0.008412698413 | NA19: 1.520634921 | NB19: 3.035357143 | NC19: 2.602579365 | ND19: 2.247301587 | NE19: 1.94952381 | NF19: 1.699246032 | NG19: 1.493968254 | NH19: 1.331190476 | NI19: 1.233412698 | NJ19: 1.218134921 | NK19: 1.257857143 | NL19: 1.297579365 | NM19: 1.287301587 | NN19: 1.19452381 | NO19: 1.036746032 | NP19: 0.833968254 | NQ19: 0.5861904762 | NR19: 0.2934126984 | NU19: 1.6 | NV19: 17 | NW19: 22.99 | NX19: 22.99 | NY19: 22.99 | NZ19: 22.99 | OA19: 22.99 | OB19: 22.99 | OC19: 22.99 | OD19: 22.99 | OE19: 22.99 | OF19: 22.99 | OG19: 22.99 | OH19: 22.99 | OI19: 5.27 | OJ19: 5.27 | OK19: 5.27 | OL19: 5.27 | OM19: 5.27 | ON19: 5.27 | OO19: 5.27 | OP19: 5.27 | OQ19: 5.27 | OR19: 22.99 | OS19: 22.99 | OT19: 5.27 | OU19: 5.27 | OV19: 5.27 | OW19: 22.99 | OX19: 22.99 | OY19: 22.99 | OZ19: 22.99 | PA19: 22.99 | PB19: 22.99 | PC19: 22.99 | PD19: 22.99 | PE19: 22.99 | PF19: 22.99 | PG19: 22.99 | PH19: 22.99 | PI19: 22.99 | PJ19: 22.99 | PM19: 1.6 | PN19: 17 | PO19: 17.72 | PP19: 17.72 | PQ19: 0 | PR19: 0 | PS19: 0 | PT19: 0 | PU19: 0 | PV19: 0 | PW19: 0 | PX19: 0 | PY19: 0 | PZ19: 17.72 | QA19: 0 | QB19: 0 | QC19: 0 | QD19: 3.59 | QE19: 3.59 | QF19: 3.59 | QG19: 3.59 | QH19: 4.7 | QI19: 0 | QJ19: 0 | QK19: 0 | QL19: 0 | QM19: 0 | QN19: 0 | QO19: 0 | QP19: 0 | QQ19: 0 | QR19: 0 | QS19: 0 | QT19: 0 | QU19: 0 | QV19: 0 | QW19: 0 | QX19: 0 | QY19: 0 | QZ19: 0 | RA19: 0 | RB19: 0 | RE19: 1.6 | RF19: 17 | RG19: 0 | RH19: 0 | RI19: 0 | RJ19: 0 | RK19: 0 | RL19: 41.82 | RM19: 0 | RN19: 0 | RO19: 0 | RP19: 0 | RQ19: 0 | RR19: 0 | RS19: 0 | RT19: 0 | RU19: 0 | RV19: 0 | RW19: 0 | RX19: 0 | RY19: 0 | RZ19: 0 | SA19: 0 | SB19: 0 | SC19: 0 | SD19: 0 | SE19: 0 | SF19: 0 | SG19: 0 | SH19: 0 | SI19: 0 | SJ19: 0 | SK19: 0 | SL19: 0 | SM19: 0 | SN19: 0 | SO19: 0 | SP19: 0 | SQ19: 0 | SR19: 0 | SS19: 0 | ST19: 0 | SU19: 0 | SV19: 1.6 | SX19: 1.6 | SY19: 17 | SZ19: 0 | TA19: 0 | TB19: 0 | TC19: 0 | TD19: 0 | TE19: 0 | TF19: 0 | TG19: 0 | TH19: 0 | TI19: 0 | TJ19: 0 | TK19: 0 | TL19: 0 | TM19: 0 | TN19: 0 | TO19: 0 | TP19: 0 | TQ19: 0 | TR19: 0 | TS19: 0 | TT19: 0 | TU19: 0 | TV19: 0 | TW19: 0 | TX19: 0 | TY19: 0 | TZ19: 0 | UA19: 0 | UB19: 0 | UC19: 0 | UD19: 0 | UE19: 0 | UF19: 0 | UG19: 0 | UH19: 0 | UI19: 0 | UJ19: 0 | UK19: 0 | UL19: 0 | UM19: 0 | UN19: 0 | UO19: 1.6 | UQ19: 1.6 | UR19: 17 | US19: 1 | UT19: 0 | UU19: 0 | UV19: 0 | UW19: 0 | UX19: 0 | UY19: 0 | UZ19: 0 | VA19: 0 | VB19: 0 | VC19: 0 | VD19: 0 | VE19: 0 | VF19: 0 | VG19: 0 | VH19: 0 | VI19: 0 | VJ19: 0 | VK19: 0 | VL19: 0 | VM19: 1 | VN19: 0 | VO19: 0 | VP19: 0 | VQ19: 0 | VR19: 0 | VS19: 0 | VT19: 0 | VU19: 0 | VV19: 0 | VW19: 0 | VX19: 0 | VY19: 0 | VZ19: 0 | WA19: 0 | WB19: 0 | WC19: 0 | WD19: 0 | WE19: 0 | WF19: 0 | WG19: 1 | WH19: 1.6 | WJ19: 1.6 | WK19: 17 | WL19: 40.7 | WM19: 0 | WN19: 0 | WO19: 0 | WP19: 0 | WQ19: 41.82 | WR19: 0 | WS19: 0 | WT19: 0 | WU19: 0 | WV19: 0 | WW19: 0 | WX19: 0 | WY19: 0 | WZ19: 0 | XA19: 0 | XB19: 0 | XC19: 0 | XD19: 0 | XE19: 0 | XF19: 38.77 | XG19: 0 | XH19: 0 | XI19: 0 | XJ19: 0 | XK19: 0 | XL19: 0 | XM19: 0 | XN19: 0 | XO19: 0 | XP19: 0 | XQ19: 0 | XR19: 0 | XS19: 0 | XT19: 0 | XU19: 0 | XV19: 0 | XW19: 0 | XX19: 0 | XY19: 0 | XZ19: 37.87 | YA19: 1.6 | YC19: 1.5 | YD19: 16 | YE19: 1 | YF19: 1 | YG19: 1 | YH19: 1 | YI19: 1 | YJ19: 1 | YK19: 1 | YL19: 1 | YM19: 1 | YN19: 1 | YO19: 1 | YP19: 1 | YQ19: 1 | YR19: 1 | YS19: 1 | YT19: 1 | YU19: 1 | YV19: 1 | YW19: 1 | YX19: 1 | YY19: 1 | YZ19: 3 | ZA19: 3 | ZB19: 3 | ZC19: 3 | ZD19: 3 | ZE19: 3 | ZF19: 3 | ZG19: 3 | ZH19: 3 | ZI19: 3 | ZJ19: 3 | ZK19: 3 | ZL19: 3 | ZM19: 3 | ZN19: 3 | ZO19: 3 | ZP19: 3 | ZQ19: 3 | ZR19: 3 | ZS19: 3 | ZT19: 3 | ZU19: 1.5 | ZW19: 1.5 | ZX19: 16 | ZY19: 0 | ZZ19: 0 | AAA19: 0 | AAB19: 0 | AAC19: 0 | AAD19: 0 | AAE19: 0 | AAF19: 0 | AAG19: 0 | AAH19: 0 | AAI19: 0 | AAJ19: 0 | AAK19: 0 | AAL19: 0 | AAM19: 0 | AAN19: 0 | AAO19: 0 | AAP19: 0 | AAQ19: 0 | AAR19: 0 | AAS19: 0 | AAT19: 0 | AAU19: 0 | AAV19: 0 | AAW19: 0 | AAX19: 0 | AAY19: 0 | AAZ19: 0 | ABA19: 0 | ABB19: 0 | ABC19: 0 | ABD19: 0 | ABE19: 0 | ABF19: 0 | ABG19: 0 | ABH19: 0 | ABI19: 0 | ABJ19: 0 | ABK19: 0 | ABL19: 0 | ABM19: 0 | ABN19: 0 | ABO19: 1.5 | ABQ19: 1.5 | ABR19: 16 | ABS19: =RANK(#REF!,$ER$14:$FL$24,0) ->  | ACN19: 58 | ACO19: 58 | ACP19: 58 | ACQ19: 58 | ACR19: 58 | ACS19: 58 | ACT19: 58 | ACU19: 58 | ACV19: 58 | ACW19: 58 | ACX19: 58 | ACY19: 58 | ACZ19: 58 | ADA19: 58 | ADB19: 58 | ADC19: 58 | ADD19: 58 | ADE19: 58 | ADF19: 58 | ADG19: 58 | ADH19: 58 | ADI19: 1.5
E20: Bod C | F20: 3000 | G20: 5500 | H20: 36 | M20: 4B | N20: =ROUND('3D Interpolace'!M21,2) -> 36.43 | O20: =ROUND('3D Interpolace'!N21,2) -> 36.86 | P20: =ROUND('3D Interpolace'!O21,2) -> 37.19 | Q20: =ROUND('3D Interpolace'!P21,2) -> 37.43 | R20: =ROUND('3D Interpolace'!Q21,2) -> 37.59 | S20: =ROUND('3D Interpolace'!R21,2) -> 37.65 | T20: =ROUND('3D Interpolace'!S21,2) -> 37.58 | U20: =ROUND('3D Interpolace'!T21,2) -> 37.37 | V20: =ROUND('3D Interpolace'!U21,2) -> 37.09 | W20: =ROUND('3D Interpolace'!V21,2) -> 36.82 | X20: =ROUND('3D Interpolace'!W21,2) -> 36.6 | Y20: =ROUND('3D Interpolace'!X21,2) -> 36.44 | Z20: =ROUND('3D Interpolace'!Y21,2) -> 36.3 | AA20: =ROUND('3D Interpolace'!Z21,2) -> 36.18 | AB20: =ROUND('3D Interpolace'!AA21,2) -> 36.09 | AC20: =ROUND('3D Interpolace'!AB21,2) -> 36.03 | AD20: =ROUND('3D Interpolace'!AC21,2) -> 36.01 | AE20: =ROUND('3D Interpolace'!AD21,2) -> 36.01 | AF20: =ROUND('3D Interpolace'!AE21,2) -> 36.05 | AG20: =ROUND('3D Interpolace'!AF21,2) -> 36.1 | AH20: =ROUND('3D Interpolace'!AG21,2) -> 36.18 | AI20: =ROUND('3D Interpolace'!AH21,2) -> 36.3 | AJ20: =ROUND('3D Interpolace'!AI21,2) -> 36.47 | AK20: =ROUND('3D Interpolace'!AJ21,2) -> 36.65 | AL20: =ROUND('3D Interpolace'!AK21,2) -> 36.81 | AM20: =ROUND('3D Interpolace'!AL21,2) -> 36.92 | AN20: =ROUND('3D Interpolace'!AM21,2) -> 37 | AO20: =ROUND('3D Interpolace'!AN21,2) -> 37.08 | AP20: =ROUND('3D Interpolace'!AO21,2) -> 37.11 | AQ20: =ROUND('3D Interpolace'!AP21,2) -> 37.09 | AR20: =ROUND('3D Interpolace'!AQ21,2) -> 36.98 | AS20: =ROUND('3D Interpolace'!AR21,2) -> 36.75 | AT20: =ROUND('3D Interpolace'!AS21,2) -> 36.39 | AU20: =ROUND('3D Interpolace'!AT21,2) -> 36 | AV20: =ROUND('3D Interpolace'!AU21,2) -> 35.63 | AW20: =ROUND('3D Interpolace'!AV21,2) -> 35.35 | AX20: =ROUND('3D Interpolace'!AW21,2) -> 35.18 | AY20: =ROUND('3D Interpolace'!AX21,2) -> 35.05 | AZ20: =ROUND('3D Interpolace'!AY21,2) -> 34.98 | BA20: =ROUND('3D Interpolace'!AZ21,2) -> 34.95 | BB20: =ROUND('3D Interpolace'!BA21,2) -> 34.98 | BD20: 1.7 | BE20: 18 | BF20: 4 | BG20: 4 | BH20: 4 | BI20: 4 | BJ20: 4 | BK20: 4 | BL20: 4 | BM20: 4 | BN20: 4 | BO20: 4 | BP20: 4 | BQ20: 4 | BR20: 4 | BS20: 4 | BT20: 4 | BU20: 4 | BV20: 4 | BW20: 4 | BX20: 4 | BY20: 4 | BZ20: 4 | CA20: 8 | CB20: 8 | CC20: 4 | CD20: 4 | CE20: 4 | CF20: 4 | CG20: 4 | CH20: 4 | CI20: 4 | CJ20: 4 | CK20: 4 | CL20: 4 | CM20: 4 | CN20: 4 | CO20: 4 | CP20: 4 | CQ20: 4 | CR20: 4 | CS20: 4 | CT20: 4 | CU20: 1.7 | CW20: 1.7 | CX20: 18 | CY20: 40.43 | CZ20: 40.86 | DA20: 41.19 | DB20: 41.43 | DC20: 41.59 | DD20: 41.65 | DE20: 41.58 | DF20: 41.37 | DG20: 41.09 | DH20: 40.82 | DI20: 40.6 | DJ20: 40.44 | DK20: 40.3 | DL20: 40.18 | DM20: 40.09 | DN20: 40.03 | DO20: 40.01 | DP20: 40.01 | DQ20: 40.05 | DR20: 40.1 | DS20: 40.18 | DT20: 44.3 | DU20: 44.47 | DV20: 40.65 | DW20: 40.81 | DX20: 40.92 | DY20: 41 | DZ20: 41.08 | EA20: 41.11 | EB20: 41.09 | EC20: 40.98 | ED20: 40.75 | EE20: 40.39 | EF20: 40 | EG20: 39.63 | EH20: 39.35 | EI20: 39.18 | EJ20: 39.05 | EK20: 38.98 | EL20: 38.95 | EM20: 38.98 | EN20: 1.7 | EP20: 1.6 | EQ20: 17 | ER20: 40.7 | ES20: 41.1 | ET20: 41.4 | EU20: 41.63 | EV20: 41.76 | EW20: 41.82 | EX20: 41.76 | EY20: 41.58 | EZ20: 41.34 | FA20: 41.07 | FB20: 40.8 | FC20: 40.52 | FD20: 40.21 | FE20: 39.88 | FF20: 39.59 | FG20: 39.34 | FH20: 39.15 | FI20: 38.98 | FJ20: 38.85 | FK20: 38.77 | FL20: 38.77 | FM20: 38.77 | FN20: 42.88 | FO20: 43.11 | FP20: 39.37 | FQ20: 39.6 | FR20: 39.72 | FS20: 39.72 | FT20: 39.64 | FU20: 39.5 | FV20: 39.34 | FW20: 39.17 | FX20: 38.96 | FY20: 38.71 | FZ20: 38.44 | GA20: 38.2 | GB20: 38.02 | GC20: 37.91 | GD20: 37.84 | GE20: 37.81 | GF20: 37.82 | GG20: 37.87 | GK20: 1.6 | GL20: 17 | GM20: 40.7 | GN20: 0 | GO20: 0 | GP20: 0 | GQ20: 0 | GR20: 41.82 | GS20: 0 | GT20: 0 | GU20: 0 | GV20: 0 | GW20: 40.8 | GX20: 0 | GY20: 0 | GZ20: 0 | HA20: 0 | HB20: 39.34 | HC20: 0 | HD20: 0 | HE20: 0 | HF20: 0 | HG20: 38.77 | HH20: 38.77 | HI20: 42.88 | HJ20: 43.11 | HK20: 0 | HL20: 0 | HM20: 39.72 | HN20: 0 | HO20: 0 | HP20: 0 | HQ20: 0 | HR20: 39.17 | HS20: 0 | HT20: 0 | HU20: 0 | HV20: 0 | HW20: 38.02 | HX20: 0 | HY20: 0 | HZ20: 0 | IA20: 0 | IB20: 37.87 | IC20: 1.6 | IG20: 17 | IH20: 42 | II20: 42 | IJ20: 42 | IK20: 42 | IL20: 42 | IM20: 42 | IN20: 42 | IO20: 42 | IP20: 42 | IQ20: 42 | IR20: 42 | IS20: 42 | IT20: 42 | IU20: 42 | IV20: 42 | IW20: 42 | IX20: 42 | IY20: 42 | IZ20: 42 | JA20: 42 | JB20: 42 | JC20: 43.67460317 | JD20: 43.3968254 | JE20: 43.11904762 | JF20: 42.84126984 | JG20: 42.56349206 | JH20: 42.28571429 | JI20: 42.00793651 | JJ20: 41.73015873 | JK20: 41.45238095 | JL20: 41.17460317 | JM20: 40.8968254 | JN20: 40.61904762 | JO20: 40.34126984 | JP20: 40.06349206 | JQ20: 39.78571429 | JR20: 39.50793651 | JS20: 39.23015873 | JT20: 38.95238095 | JU20: 38.67460317 | JV20: 38.3968254 | JW20: 38.11904762 | JX20: 1.6 | KD20: 1.6 | KE20: 17 | KF20: 1.3 | KG20: 0.9 | KH20: 0.6 | KI20: 0.37 | KJ20: 0.24 | KK20: 0.18 | KL20: 0.24 | KM20: 0.42 | KN20: 0.66 | KO20: 0.93 | KP20: 1.2 | KQ20: 1.48 | KR20: 1.79 | KS20: 2.12 | KT20: 2.41 | KU20: 2.66 | KV20: 2.85 | KW20: 3.02 | KX20: 3.15 | KY20: 3.23 | KZ20: 3.23 | LA20: 4.904603175 | LB20: 0.5168253968 | LC20: 0.009047619048 | LD20: 3.471269841 | LE20: 2.963492063 | LF20: 2.565714286 | LG20: 2.287936508 | LH20: 2.09015873 | LI20: 1.952380952 | LJ20: 1.834603175 | LK20: 1.726825397 | LL20: 1.659047619 | LM20: 1.631269841 | LN20: 1.623492063 | LO20: 1.585714286 | LP20: 1.487936508 | LQ20: 1.32015873 | LR20: 1.112380952 | LS20: 0.8646031746 | LT20: 0.5768253968 | LU20: 0.249047619 | MC20: 1.7 | MD20: 18 | ME20: 4.2125 | MF20: 3.8275 | MG20: 3.535 | MH20: 3.33 | MI20: 3.22 | MJ20: 3.23 | MK20: 3.3825 | ML20: 3.6425 | MM20: 3.9275 | MN20: 4.1575 | MO20: 4.295 | MP20: 4.36 | MQ20: 4.38 | MR20: 4.3675 | MS20: 4.3325 | MT20: 4.2725 | MU20: 4.185 | MV20: 4.0725 | MW20: 3.945 | MX20: 3.815 | MY20: 3.794642857 | MZ20: 1.384365079 | NA20: 2.969087302 | NB20: 4.558809524 | NC20: 4.161031746 | ND20: 3.765753968 | NE20: 3.35047619 | NF20: 2.937698413 | NG20: 2.577420635 | NH20: 2.317142857 | NI20: 2.209365079 | NJ20: 2.271587302 | NK20: 2.441309524 | NL20: 2.626031746 | NM20: 2.740753968 | NN20: 2.73797619 | NO20: 2.647698413 | NP20: 2.497420635 | NQ20: 2.289642857 | NR20: 2.026865079 | NU20: 1.7 | NV20: 18 | NW20: 1.68 | NX20: 5.27 | NY20: 5.27 | NZ20: 5.27 | OA20: 5.27 | OB20: 5.27 | OC20: 5.27 | OD20: 5.27 | OE20: 5.27 | OF20: 1.68 | OG20: 1.68 | OH20: 1.68 | OI20: 1.68 | OJ20: 1.68 | OK20: 1.68 | OL20: 1.68 | OM20: 1.68 | ON20: 1.68 | OO20: 5.27 | OP20: 5.27 | OQ20: 5.27 | OR20: 22.99 | OS20: 5.27 | OT20: 1.68 | OU20: 1.68 | OV20: 5.27 | OW20: 5.27 | OX20: 5.27 | OY20: 5.27 | OZ20: 5.27 | PA20: 5.27 | PB20: 5.27 | PC20: 5.27 | PD20: 5.27 | PE20: 5.27 | PF20: 5.27 | PG20: 5.27 | PH20: 5.27 | PI20: 5.27 | PJ20: 5.27 | PM20: 1.7 | PN20: 18 | PO20: -3.59 | PP20: 0 | PQ20: 0 | PR20: 0 | PS20: -17.72 | PT20: -17.72 | PU20: -17.72 | PV20: -17.72 | PW20: -17.72 | PX20: -21.31 | PY20: -21.31 | PZ20: -3.59 | QA20: -3.59 | QB20: -3.59 | QC20: -3.59 | QD20: -3.59 | QE20: 0 | QF20: 0 | QG20: 3.59 | QH20: 3.59 | QI20: 0 | QJ20: 0 | QK20: 0 | QL20: 0 | QM20: -3.59 | QN20: 0 | QO20: 0 | QP20: 0 | QQ20: -17.72 | QR20: -17.72 | QS20: -17.72 | QT20: -17.72 | QU20: -17.72 | QV20: -17.72 | QW20: 0 | QX20: 0 | QY20: 0 | QZ20: 0 | RA20: -17.72 | RB20: -17.72 | RE20: 1.7 | RF20: 18 | RG20: 0 | RH20: 0 | RI20: 0 | RJ20: 0 | RK20: 0 | RL20: 0 | RM20: 0 | RN20: 0 | RO20: 0 | RP20: 0 | RQ20: 0 | RR20: 0 | RS20: 0 | RT20: 0 | RU20: 0 | RV20: 0 | RW20: 0 | RX20: 0 | RY20: 0 | RZ20: 0 | SA20: 0 | SB20: 0 | SC20: 44.47 | SD20: 0 | SE20: 0 | SF20: 0 | SG20: 0 | SH20: 0 | SI20: 41.11 | SJ20: 0 | SK20: 0 | SL20: 0 | SM20: 0 | SN20: 0 | SO20: 0 | SP20: 0 | SQ20: 0 | SR20: 0 | SS20: 0 | ST20: 0 | SU20: 38.98 | SV20: 1.7 | SX20: 1.7 | SY20: 18 | SZ20: 0 | TA20: 0 | TB20: 0 | TC20: 0 | TD20: 0 | TE20: 41.82 | TF20: 0 | TG20: 0 | TH20: 0 | TI20: 0 | TJ20: 0 | TK20: 0 | TL20: 0 | TM20: 0 | TN20: 0 | TO20: 0 | TP20: 0 | TQ20: 0 | TR20: 0 | TS20: 0 | TT20: 0 | TU20: 0 | TV20: 0 | TW20: 0 | TX20: 0 | TY20: 0 | TZ20: 0 | UA20: 0 | UB20: 0 | UC20: 0 | UD20: 0 | UE20: 0 | UF20: 0 | UG20: 0 | UH20: 0 | UI20: 0 | UJ20: 0 | UK20: 0 | UL20: 0 | UM20: 0 | UN20: 0 | UO20: 1.7 | UQ20: 1.7 | UR20: 18 | US20: 1 | UT20: 0 | UU20: 0 | UV20: 0 | UW20: 0 | UX20: 0 | UY20: 0 | UZ20: 0 | VA20: 0 | VB20: 0 | VC20: 0 | VD20: 0 | VE20: 0 | VF20: 0 | VG20: 0 | VH20: 0 | VI20: 0 | VJ20: 0 | VK20: 0 | VL20: 0 | VM20: 1 | VN20: 0 | VO20: 0 | VP20: 0 | VQ20: 0 | VR20: 0 | VS20: 0 | VT20: 0 | VU20: 0 | VV20: 0 | VW20: 0 | VX20: 0 | VY20: 0 | VZ20: 0 | WA20: 0 | WB20: 0 | WC20: 0 | WD20: 0 | WE20: 0 | WF20: 0 | WG20: 1 | WH20: 1.7 | WJ20: 1.7 | WK20: 18 | WL20: 40.43 | WM20: 0 | WN20: 0 | WO20: 0 | WP20: 0 | WQ20: 0 | WR20: 0 | WS20: 0 | WT20: 0 | WU20: 0 | WV20: 0 | WW20: 0 | WX20: 0 | WY20: 0 | WZ20: 0 | XA20: 0 | XB20: 0 | XC20: 0 | XD20: 0 | XE20: 0 | XF20: 40.18 | XG20: 0 | XH20: 44.47 | XI20: 0 | XJ20: 0 | XK20: 0 | XL20: 0 | XM20: 0 | XN20: 41.11 | XO20: 0 | XP20: 0 | XQ20: 0 | XR20: 0 | XS20: 0 | XT20: 0 | XU20: 0 | XV20: 0 | XW20: 0 | XX20: 0 | XY20: 0 | XZ20: 38.98 | YA20: 1.7 | YC20: 1.6 | YD20: 17 | YE20: 1 | YF20: 1 | YG20: 1 | YH20: 1 | YI20: 1 | YJ20: 1 | YK20: 1 | YL20: 1 | YM20: 1 | YN20: 1 | YO20: 1 | YP20: 1 | YQ20: 1 | YR20: 1 | YS20: 1 | YT20: 1 | YU20: 1 | YV20: 1 | YW20: 1 | YX20: 1 | YY20: 1 | YZ20: 3 | ZA20: 3 | ZB20: 3 | ZC20: 3 | ZD20: 3 | ZE20: 3 | ZF20: 3 | ZG20: 3 | ZH20: 3 | ZI20: 3 | ZJ20: 3 | ZK20: 3 | ZL20: 3 | ZM20: 3 | ZN20: 3 | ZO20: 3 | ZP20: 3 | ZQ20: 3 | ZR20: 3 | ZS20: 3 | ZT20: 3 | ZU20: 1.6 | ZW20: 1.6 | ZX20: 17 | ZY20: 4 | ZZ20: 4 | AAA20: 4 | AAB20: 4 | AAC20: 4 | AAD20: 4 | AAE20: 4 | AAF20: 4 | AAG20: 4 | AAH20: 4 | AAI20: 4 | AAJ20: 4 | AAK20: 4 | AAL20: 4 | AAM20: 4 | AAN20: 4 | AAO20: 4 | AAP20: 4 | AAQ20: 4 | AAR20: 4 | AAS20: 4 | AAT20: 4 | AAU20: 8 | AAV20: 8 | AAW20: 4 | AAX20: 4 | AAY20: 4 | AAZ20: 4 | ABA20: 4 | ABB20: 4 | ABC20: 4 | ABD20: 4 | ABE20: 4 | ABF20: 4 | ABG20: 4 | ABH20: 4 | ABI20: 4 | ABJ20: 4 | ABK20: 4 | ABL20: 4 | ABM20: 4 | ABN20: 4 | ABO20: 1.6 | ABQ20: 1.6 | ABR20: 17 | ABS20: =RANK(#REF!,$ER$14:$FL$24,0) ->  | ACN20: 58 | ACO20: 58 | ACP20: 58 | ACQ20: 58 | ACR20: 58 | ACS20: 58 | ACT20: 58 | ACU20: 58 | ACV20: 58 | ACW20: 58 | ACX20: 58 | ACY20: 58 | ACZ20: 58 | ADA20: 58 | ADB20: 58 | ADC20: 58 | ADD20: 58 | ADE20: 58 | ADF20: 58 | ADG20: 58 | ADH20: 58 | ADI20: 1.6
B21: 1000 | C21: =B21/500+1 -> 3 | M21: 4C | N21: =ROUND('3D Interpolace'!M22,2) -> 36.21 | O21: =ROUND('3D Interpolace'!N22,2) -> 36.65 | P21: =ROUND('3D Interpolace'!O22,2) -> 36.99 | Q21: =ROUND('3D Interpolace'!P22,2) -> 37.25 | R21: =ROUND('3D Interpolace'!Q22,2) -> 37.41 | S21: =ROUND('3D Interpolace'!R22,2) -> 37.47 | T21: =ROUND('3D Interpolace'!S22,2) -> 37.38 | U21: =ROUND('3D Interpolace'!T22,2) -> 37.14 | V21: =ROUND('3D Interpolace'!U22,2) -> 36.83 | W21: =ROUND('3D Interpolace'!V22,2) -> 36.55 | X21: =ROUND('3D Interpolace'!W22,2) -> 36.4 | Y21: =ROUND('3D Interpolace'!X22,2) -> 36.38 | Z21: =ROUND('3D Interpolace'!Y22,2) -> 36.44 | AA21: =ROUND('3D Interpolace'!Z22,2) -> 36.56 | AB21: =ROUND('3D Interpolace'!AA22,2) -> 36.7 | AC21: =ROUND('3D Interpolace'!AB22,2) -> 36.85 | AD21: =ROUND('3D Interpolace'!AC22,2) -> 37.02 | AE21: =ROUND('3D Interpolace'!AD22,2) -> 37.22 | AF21: =ROUND('3D Interpolace'!AE22,2) -> 37.43 | AG21: =ROUND('3D Interpolace'!AF22,2) -> 37.64 | AH21: =ROUND('3D Interpolace'!AG22,2) -> 37.82 | AI21: =ROUND('3D Interpolace'!AH22,2) -> 37.95 | AJ21: =ROUND('3D Interpolace'!AI22,2) -> 38.06 | AK21: =ROUND('3D Interpolace'!AJ22,2) -> 38.15 | AL21: =ROUND('3D Interpolace'!AK22,2) -> 38.25 | AM21: =ROUND('3D Interpolace'!AL22,2) -> 38.36 | AN21: =ROUND('3D Interpolace'!AM22,2) -> 38.53 | AO21: =ROUND('3D Interpolace'!AN22,2) -> 38.75 | AP21: =ROUND('3D Interpolace'!AO22,2) -> 38.96 | AQ21: =ROUND('3D Interpolace'!AP22,2) -> 39.07 | AR21: =ROUND('3D Interpolace'!AQ22,2) -> 39.02 | AS21: =ROUND('3D Interpolace'!AR22,2) -> 38.73 | AT21: =ROUND('3D Interpolace'!AS22,2) -> 38.25 | AU21: =ROUND('3D Interpolace'!AT22,2) -> 37.69 | AV21: =ROUND('3D Interpolace'!AU22,2) -> 37.16 | AW21: =ROUND('3D Interpolace'!AV22,2) -> 36.77 | AX21: =ROUND('3D Interpolace'!AW22,2) -> 36.51 | AY21: =ROUND('3D Interpolace'!AX22,2) -> 36.32 | AZ21: =ROUND('3D Interpolace'!AY22,2) -> 36.2 | BA21: =ROUND('3D Interpolace'!AZ22,2) -> 36.14 | BB21: =ROUND('3D Interpolace'!BA22,2) -> 36.14 | BD21: 1.8 | BE21: 19 | CA21: 4 | CB21: 4 | CU21: 1.8 | CW21: 1.8 | CX21: 19 | CY21: 36.21 | CZ21: 36.65 | DA21: 36.99 | DB21: 37.25 | DC21: 37.41 | DD21: 37.47 | DE21: 37.38 | DF21: 37.14 | DG21: 36.83 | DH21: 36.55 | DI21: 36.4 | DJ21: 36.38 | DK21: 36.44 | DL21: 36.56 | DM21: 36.7 | DN21: 36.85 | DO21: 37.02 | DP21: 37.22 | DQ21: 37.43 | DR21: 37.64 | DS21: 37.82 | DT21: 41.95 | DU21: 42.06 | DV21: 38.15 | DW21: 38.25 | DX21: 38.36 | DY21: 38.53 | DZ21: 38.75 | EA21: 38.96 | EB21: 39.07 | EC21: 39.02 | ED21: 38.73 | EE21: 38.25 | EF21: 37.69 | EG21: 37.16 | EH21: 36.77 | EI21: 36.51 | EJ21: 36.32 | EK21: 36.2 | EL21: 36.14 | EM21: 36.14 | EN21: 1.8 | EP21: 1.7 | EQ21: 18 | ER21: 40.43 | ES21: 40.86 | ET21: 41.19 | EU21: 41.43 | EV21: 41.59 | EW21: 41.65 | EX21: 41.58 | EY21: 41.37 | EZ21: 41.09 | FA21: 40.82 | FB21: 40.6 | FC21: 40.44 | FD21: 40.3 | FE21: 40.18 | FF21: 40.09 | FG21: 40.03 | FH21: 40.01 | FI21: 40.01 | FJ21: 40.05 | FK21: 40.1 | FL21: 40.18 | FM21: 40.18 | FN21: 44.3 | FO21: 44.47 | FP21: 40.65 | FQ21: 40.81 | FR21: 40.92 | FS21: 41 | FT21: 41.08 | FU21: 41.11 | FV21: 41.09 | FW21: 40.98 | FX21: 40.75 | FY21: 40.39 | FZ21: 40 | GA21: 39.63 | GB21: 39.35 | GC21: 39.18 | GD21: 39.05 | GE21: 38.98 | GF21: 38.95 | GG21: 38.98 | GK21: 1.7 | GL21: 18 | GM21: 40.43 | GN21: 0 | GO21: 0 | GP21: 0 | GQ21: 0 | GR21: 41.65 | GS21: 0 | GT21: 0 | GU21: 0 | GV21: 0 | GW21: 40.6 | GX21: 0 | GY21: 0 | GZ21: 0 | HA21: 0 | HB21: 40.03 | HC21: 0 | HD21: 0 | HE21: 0 | HF21: 0 | HG21: 40.18 | HH21: 40.18 | HI21: 44.3 | HJ21: 44.47 | HK21: 0 | HL21: 0 | HM21: 40.92 | HN21: 0 | HO21: 0 | HP21: 0 | HQ21: 0 | HR21: 40.98 | HS21: 0 | HT21: 0 | HU21: 0 | HV21: 0 | HW21: 39.35 | HX21: 0 | HY21: 0 | HZ21: 0 | IA21: 0 | IB21: 38.98 | IC21: 1.7 | IG21: 18 | IH21: 42.5 | II21: 42.5 | IJ21: 42.5 | IK21: 42.5 | IL21: 42.5 | IM21: 42.5 | IN21: 42.5 | IO21: 42.5 | IP21: 42.5 | IQ21: 42.5 | IR21: 42.5 | IS21: 42.5 | IT21: 42.5 | IU21: 42.5 | IV21: 42.5 | IW21: 42.5 | IX21: 42.5 | IY21: 42.5 | IZ21: 42.5 | JA21: 42.5 | JB21: 42.5 | JC21: 44.55555556 | JD21: 44.27777778 | JE21: 44 | JF21: 43.72222222 | JG21: 43.44444444 | JH21: 43.16666667 | JI21: 42.88888889 | JJ21: 42.61111111 | JK21: 42.33333333 | JL21: 42.05555556 | JM21: 41.77777778 | JN21: 41.5 | JO21: 41.22222222 | JP21: 40.94444444 | JQ21: 40.66666667 | JR21: 40.38888889 | JS21: 40.11111111 | JT21: 39.83333333 | JU21: 39.55555556 | JV21: 39.27777778 | JW21: 39 | JX21: 1.7 | KD21: 1.7 | KE21: 18 | KF21: 2.07 | KG21: 1.64 | KH21: 1.31 | KI21: 1.07 | KJ21: 0.91 | KK21: 0.85 | KL21: 0.92 | KM21: 1.13 | KN21: 1.41 | KO21: 1.68 | KP21: 1.9 | KQ21: 2.06 | KR21: 2.2 | KS21: 2.32 | KT21: 2.41 | KU21: 2.47 | KV21: 2.49 | KW21: 2.49 | KX21: 2.45 | KY21: 2.4 | KZ21: 2.32 | LA21: 4.375555556 | LB21: -0.02222222222 | LC21: -0.47 | LD21: 3.072222222 | LE21: 2.634444444 | LF21: 2.246666667 | LG21: 1.888888889 | LH21: 1.531111111 | LI21: 1.223333333 | LJ21: 0.9655555556 | LK21: 0.7977777778 | LL21: 0.75 | LM21: 0.8322222222 | LN21: 0.9444444444 | LO21: 1.036666667 | LP21: 1.038888889 | LQ21: 0.9311111111 | LR21: 0.7833333333 | LS21: 0.5755555556 | LT21: 0.3277777778 | LU21: 0.02 | MC21: 1.8 | MD21: 19 | ME21: 6.9 | MF21: 6.5175 | MG21: 6.225 | MH21: 6.0225 | MI21: 5.915 | MJ21: 5.9325 | MK21: 6.11 | ML21: 6.3975 | MM21: 6.6925 | MN21: 6.89 | MO21: 6.9275 | MP21: 6.8275 | MQ21: 6.6375 | MR21: 6.4025 | MS21: 6.1575 | MT21: 5.91 | MU21: 5.645 | MV21: 5.3625 | MW21: 5.0825 | MX21: 4.835 | MY21: 5.135595238 | MZ21: 2.72531746 | NA21: 4.352539683 | NB21: 5.989761905 | NC21: 5.606984127 | ND21: 5.166706349 | NE21: 4.651428571 | NF21: 4.108650794 | NG21: 3.625873016 | NH21: 3.293095238 | NI21: 3.19281746 | NJ21: 3.340039683 | NK21: 3.642261905 | NL21: 3.974484127 | NM21: 4.214206349 | NN21: 4.303928571 | NO21: 4.281150794 | NP21: 4.183373016 | NQ21: 4.018095238 | NR21: 3.78281746 | NU21: 1.8 | NV21: 19 | NW21: 0.57 | NX21: 0.57 | NY21: 0.57 | NZ21: 0.57 | OA21: 1.68 | OB21: 1.68 | OC21: 0.57 | OD21: 0.57 | OE21: 0.57 | OF21: 0.57 | OG21: 0.57 | OH21: 0.57 | OI21: 0.57 | OJ21: 0.57 | OK21: 0.57 | OL21: 1.68 | OM21: 1.68 | ON21: 1.68 | OO21: 1.68 | OP21: 1.68 | OQ21: 1.68 | OR21: 5.27 | OS21: 1.68 | OT21: 1.68 | OU21: 1.68 | OV21: 1.68 | OW21: 1.68 | OX21: 1.68 | OY21: 5.27 | OZ21: 5.27 | PA21: 5.27 | PB21: 5.27 | PC21: 5.27 | PD21: 5.27 | PE21: 1.68 | PF21: 1.68 | PG21: 1.68 | PH21: 1.68 | PI21: 1.68 | PJ21: 5.27 | PM21: 1.8 | PN21: 19 | PO21: -1.11 | PP21: -4.7 | PQ21: -4.7 | PR21: -4.7 | PS21: -3.59 | PT21: -3.59 | PU21: -4.7 | PV21: -4.7 | PW21: -4.7 | PX21: -4.7 | PY21: -4.7 | PZ21: -4.7 | QA21: -4.7 | QB21: -4.7 | QC21: -4.7 | QD21: -3.59 | QE21: -3.59 | QF21: -3.59 | QG21: -3.59 | QH21: -3.59 | QI21: 0 | QJ21: -17.72 | QK21: -3.59 | QL21: 0 | QM21: 0 | QN21: 0 | QO21: -3.59 | QP21: -3.59 | QQ21: 0 | QR21: -17.72 | QS21: -17.72 | QT21: -17.72 | QU21: 0 | QV21: 0 | QW21: -3.59 | QX21: -3.59 | QY21: -3.59 | QZ21: -3.59 | RA21: -3.59 | RB21: 0 | RE21: 1.8 | RF21: 19 | RG21: 0 | RH21: 0 | RI21: 0 | RJ21: 0 | RK21: 0 | RL21: 0 | RM21: 0 | RN21: 0 | RO21: 0 | RP21: 0 | RQ21: 0 | RR21: 0 | RS21: 0 | RT21: 0 | RU21: 0 | RV21: 0 | RW21: 0 | RX21: 0 | RY21: 0 | RZ21: 0 | SA21: 0 | SB21: 0 | SC21: 0 | SD21: 0 | SE21: 0 | SF21: 0 | SG21: 0 | SH21: 0 | SI21: 0 | SJ21: 0 | SK21: 0 | SL21: 0 | SM21: 0 | SN21: 0 | SO21: 0 | SP21: 0 | SQ21: 0 | SR21: 0 | SS21: 0 | ST21: 0 | SU21: 0 | SV21: 1.8 | SX21: 1.8 | SY21: 19 | SZ21: 0 | TA21: 0 | TB21: 0 | TC21: 0 | TD21: 0 | TE21: 0 | TF21: 0 | TG21: 0 | TH21: 0 | TI21: 0 | TJ21: 0 | TK21: 0 | TL21: 0 | TM21: 0 | TN21: 0 | TO21: 0 | TP21: 0 | TQ21: 0 | TR21: 0 | TS21: 0 | TT21: 40.18 | TU21: 0 | TV21: 0 | TW21: 44.47 | TX21: 0 | TY21: 0 | TZ21: 0 | UA21: 0 | UB21: 0 | UC21: 41.11 | UD21: 0 | UE21: 0 | UF21: 0 | UG21: 0 | UH21: 0 | UI21: 0 | UJ21: 0 | UK21: 0 | UL21: 0 | UM21: 0 | UN21: 0 | UO21: 1.8 | UQ21: 1.8 | UR21: 19 | US21: 1 | UT21: 0 | UU21: 0 | UV21: 0 | UW21: 0 | UX21: 0 | UY21: 0 | UZ21: 0 | VA21: 0 | VB21: 0 | VC21: 0 | VD21: 0 | VE21: 0 | VF21: 0 | VG21: 0 | VH21: 0 | VI21: 0 | VJ21: 0 | VK21: 0 | VL21: 0 | VM21: 1 | VN21: 0 | VO21: 0 | VP21: 0 | VQ21: 0 | VR21: 0 | VS21: 0 | VT21: 0 | VU21: 0 | VV21: 0 | VW21: 0 | VX21: 0 | VY21: 0 | VZ21: 0 | WA21: 0 | WB21: 0 | WC21: 0 | WD21: 0 | WE21: 0 | WF21: 0 | WG21: 1 | WH21: 1.8 | WJ21: 1.8 | WK21: 19 | WL21: 36.21 | WM21: 0 | WN21: 0 | WO21: 0 | WP21: 0 | WQ21: 0 | WR21: 0 | WS21: 0 | WT21: 0 | WU21: 0 | WV21: 0 | WW21: 0 | WX21: 0 | WY21: 0 | WZ21: 0 | XA21: 0 | XB21: 0 | XC21: 0 | XD21: 0 | XE21: 0 | XF21: 37.82 | XG21: 0 | XH21: 0 | XI21: 0 | XJ21: 0 | XK21: 0 | XL21: 0 | XM21: 0 | XN21: 0 | XO21: 0 | XP21: 0 | XQ21: 0 | XR21: 0 | XS21: 0 | XT21: 0 | XU21: 0 | XV21: 0 | XW21: 0 | XX21: 0 | XY21: 0 | XZ21: 36.14 | YA21: 1.8 | YC21: 1.7 | YD21: 18 | YE21: 1 | YF21: 1 | YG21: 1 | YH21: 1 | YI21: 1 | YJ21: 1 | YK21: 1 | YL21: 1 | YM21: 1 | YN21: 1 | YO21: 1 | YP21: 1 | YQ21: 1 | YR21: 1 | YS21: 1 | YT21: 1 | YU21: 1 | YV21: 1 | YW21: 1 | YX21: 1 | YY21: 1 | YZ21: 3 | ZA21: 3 | ZB21: 3 | ZC21: 3 | ZD21: 3 | ZE21: 3 | ZF21: 3 | ZG21: 3 | ZH21: 3 | ZI21: 3 | ZJ21: 3 | ZK21: 3 | ZL21: 3 | ZM21: 3 | ZN21: 3 | ZO21: 3 | ZP21: 3 | ZQ21: 3 | ZR21: 3 | ZS21: 3 | ZT21: 3 | ZU21: 1.7 | ZW21: 1.7 | ZX21: 18 | ZY21: 4 | ZZ21: 4 | AAA21: 4 | AAB21: 4 | AAC21: 4 | AAD21: 4 | AAE21: 4 | AAF21: 4 | AAG21: 4 | AAH21: 4 | AAI21: 4 | AAJ21: 4 | AAK21: 4 | AAL21: 4 | AAM21: 4 | AAN21: 4 | AAO21: 4 | AAP21: 4 | AAQ21: 4 | AAR21: 4 | AAS21: 4 | AAT21: 4 | AAU21: 8 | AAV21: 8 | AAW21: 4 | AAX21: 4 | AAY21: 4 | AAZ21: 4 | ABA21: 4 | ABB21: 4 | ABC21: 4 | ABD21: 4 | ABE21: 4 | ABF21: 4 | ABG21: 4 | ABH21: 4 | ABI21: 4 | ABJ21: 4 | ABK21: 4 | ABL21: 4 | ABM21: 4 | ABN21: 4 | ABO21: 1.7 | ABQ21: 1.7 | ABR21: 18 | ABS21: =RANK(#REF!,$ER$14:$FL$24,0) ->  | ACN21: 58 | ACO21: 58 | ACP21: 58 | ACQ21: 58 | ACR21: 58 | ACS21: 58 | ACT21: 58 | ACU21: 58 | ACV21: 58 | ACW21: 58 | ACX21: 58 | ACY21: 58 | ACZ21: 58 | ADA21: 58 | ADB21: 58 | ADC21: 58 | ADD21: 58 | ADE21: 58 | ADF21: 58 | ADG21: 58 | ADH21: 58 | ADI21: 1.7
B22: 500 | C22: =B22/500+1 -> 2 | E22: AB | F22: =(F19-F18) -> 500 | G22: =(G19-G18) -> -500 | H22: =H19-H18 -> 2 | M22: 4D | N22: =ROUND('3D Interpolace'!M23,2) -> 36.06 | O22: =ROUND('3D Interpolace'!N23,2) -> 36.48 | P22: =ROUND('3D Interpolace'!O23,2) -> 36.81 | Q22: =ROUND('3D Interpolace'!P23,2) -> 37.05 | R22: =ROUND('3D Interpolace'!Q23,2) -> 37.2 | S22: =ROUND('3D Interpolace'!R23,2) -> 37.26 | T22: =ROUND('3D Interpolace'!S23,2) -> 37.16 | U22: =ROUND('3D Interpolace'!T23,2) -> 36.88 | V22: =ROUND('3D Interpolace'!U23,2) -> 36.56 | W22: =ROUND('3D Interpolace'!V23,2) -> 36.29 | X22: =ROUND('3D Interpolace'!W23,2) -> 36.2 | Y22: =ROUND('3D Interpolace'!X23,2) -> 36.31 | Z22: =ROUND('3D Interpolace'!Y23,2) -> 36.56 | AA22: =ROUND('3D Interpolace'!Z23,2) -> 36.89 | AB22: =ROUND('3D Interpolace'!AA23,2) -> 37.24 | AC22: =ROUND('3D Interpolace'!AB23,2) -> 37.58 | AD22: =ROUND('3D Interpolace'!AC23,2) -> 37.91 | AE22: =ROUND('3D Interpolace'!AD23,2) -> 38.27 | AF22: =ROUND('3D Interpolace'!AE23,2) -> 38.63 | AG22: =ROUND('3D Interpolace'!AF23,2) -> 38.97 | AH22: =ROUND('3D Interpolace'!AG23,2) -> 39.23 | AI22: =ROUND('3D Interpolace'!AH23,2) -> 39.41 | AJ22: =ROUND('3D Interpolace'!AI23,2) -> 39.52 | AK22: =ROUND('3D Interpolace'!AJ23,2) -> 39.59 | AL22: =ROUND('3D Interpolace'!AK23,2) -> 39.67 | AM22: =ROUND('3D Interpolace'!AL23,2) -> 39.8 | AN22: =ROUND('3D Interpolace'!AM23,2) -> 40.04 | AO22: =ROUND('3D Interpolace'!AN23,2) -> 40.36 | AP22: =ROUND('3D Interpolace'!AO23,2) -> 40.67 | AQ22: =ROUND('3D Interpolace'!AP23,2) -> 40.86 | AR22: =ROUND('3D Interpolace'!AQ23,2) -> 40.83 | AS22: =ROUND('3D Interpolace'!AR23,2) -> 40.49 | AT22: =ROUND('3D Interpolace'!AS23,2) -> 39.9 | AU22: =ROUND('3D Interpolace'!AT23,2) -> 39.21 | AV22: =ROUND('3D Interpolace'!AU23,2) -> 38.55 | AW22: =ROUND('3D Interpolace'!AV23,2) -> 38.06 | AX22: =ROUND('3D Interpolace'!AW23,2) -> 37.73 | AY22: =ROUND('3D Interpolace'!AX23,2) -> 37.49 | AZ22: =ROUND('3D Interpolace'!AY23,2) -> 37.32 | BA22: =ROUND('3D Interpolace'!AZ23,2) -> 37.22 | BB22: =ROUND('3D Interpolace'!BA23,2) -> 37.21 | BD22: 1.9 | BE22: 20 | CA22: 4 | CB22: 4 | CU22: 1.9 | CW22: 1.9 | CX22: 20 | CY22: 36.06 | CZ22: 36.48 | DA22: 36.81 | DB22: 37.05 | DC22: 37.2 | DD22: 37.26 | DE22: 37.16 | DF22: 36.88 | DG22: 36.56 | DH22: 36.29 | DI22: 36.2 | DJ22: 36.31 | DK22: 36.56 | DL22: 36.89 | DM22: 37.24 | DN22: 37.58 | DO22: 37.91 | DP22: 38.27 | DQ22: 38.63 | DR22: 38.97 | DS22: 39.23 | DT22: 43.41 | DU22: 43.52 | DV22: 39.59 | DW22: 39.67 | DX22: 39.8 | DY22: 40.04 | DZ22: 40.36 | EA22: 40.67 | EB22: 40.86 | EC22: 40.83 | ED22: 40.49 | EE22: 39.9 | EF22: 39.21 | EG22: 38.55 | EH22: 38.06 | EI22: 37.73 | EJ22: 37.49 | EK22: 37.32 | EL22: 37.22 | EM22: 37.21 | EN22: 1.9 | EP22: 1.8 | EQ22: 19 | ER22: 36.21 | ES22: 36.65 | ET22: 36.99 | EU22: 37.25 | EV22: 37.41 | EW22: 37.47 | EX22: 37.38 | EY22: 37.14 | EZ22: 36.83 | FA22: 36.55 | FB22: 36.4 | FC22: 36.38 | FD22: 36.44 | FE22: 36.56 | FF22: 36.7 | FG22: 36.85 | FH22: 37.02 | FI22: 37.22 | FJ22: 37.43 | FK22: 37.64 | FL22: 37.82 | FM22: 37.82 | FN22: 41.95 | FO22: 42.06 | FP22: 38.15 | FQ22: 38.25 | FR22: 38.36 | FS22: 38.53 | FT22: 38.75 | FU22: 38.96 | FV22: 39.07 | FW22: 39.02 | FX22: 38.73 | FY22: 38.25 | FZ22: 37.69 | GA22: 37.16 | GB22: 36.77 | GC22: 36.51 | GD22: 36.32 | GE22: 36.2 | GF22: 36.14 | GG22: 36.14 | GK22: 1.8 | GL22: 19 | GM22: 0 | GN22: 0 | GO22: 0 | GP22: 0 | GQ22: 0 | GR22: 0 | GS22: 0 | GT22: 0 | GU22: 0 | GV22: 0 | GW22: 0 | GX22: 0 | GY22: 0 | GZ22: 0 | HA22: 0 | HB22: 0 | HC22: 0 | HD22: 0 | HE22: 0 | HF22: 0 | HG22: 0 | HH22: 0 | HI22: 0 | HJ22: 0 | HK22: 0 | HL22: 0 | HM22: 0 | HN22: 0 | HO22: 0 | HP22: 0 | HQ22: 0 | HR22: 0 | HS22: 0 | HT22: 0 | HU22: 0 | HV22: 0 | HW22: 0 | HX22: 0 | HY22: 0 | HZ22: 0 | IA22: 0 | IB22: 0 | IC22: 1.8 | IG22: 19 | IH22: 43 | II22: 43 | IJ22: 43 | IK22: 43 | IL22: 43 | IM22: 43 | IN22: 43 | IO22: 43 | IP22: 43 | IQ22: 43 | IR22: 43 | IS22: 43 | IT22: 43 | IU22: 43 | IV22: 43 | IW22: 43 | IX22: 43 | IY22: 43 | IZ22: 43 | JA22: 43 | JB22: 43 | JC22: 45.43650794 | JD22: 45.15873016 | JE22: 44.88095238 | JF22: 44.6031746 | JG22: 44.32539683 | JH22: 44.04761905 | JI22: 43.76984127 | JJ22: 43.49206349 | JK22: 43.21428571 | JL22: 42.93650794 | JM22: 42.65873016 | JN22: 42.38095238 | JO22: 42.1031746 | JP22: 41.82539683 | JQ22: 41.54761905 | JR22: 41.26984127 | JS22: 40.99206349 | JT22: 40.71428571 | JU22: 40.43650794 | JV22: 40.15873016 | JW22: 39.88095238 | JX22: 1.8 | KD22: 1.8 | KE22: 19 | KF22: 6.79 | KG22: 6.35 | KH22: 6.01 | KI22: 5.75 | KJ22: 5.59 | KK22: 5.53 | KL22: 5.62 | KM22: 5.86 | KN22: 6.17 | KO22: 6.45 | KP22: 6.6 | KQ22: 6.62 | KR22: 6.56 | KS22: 6.44 | KT22: 6.3 | KU22: 6.15 | KV22: 5.98 | KW22: 5.78 | KX22: 5.57 | KY22: 5.36 | KZ22: 5.18 | LA22: 7.616507937 | LB22: 3.208730159 | LC22: 2.820952381 | LD22: 6.453174603 | LE22: 6.075396825 | LF22: 5.687619048 | LG22: 5.23984127 | LH22: 4.742063492 | LI22: 4.254285714 | LJ22: 3.866507937 | LK22: 3.638730159 | LL22: 3.650952381 | LM22: 3.853174603 | LN22: 4.135396825 | LO22: 4.387619048 | LP22: 4.49984127 | LQ22: 4.482063492 | LR22: 4.394285714 | LS22: 4.236507937 | LT22: 4.018730159 | LU22: 3.740952381 | MC22: 1.9 | MD22: 20 | ME22: =AVERAGE(KF23:KG24) -> 7.525 | MF22: 7.1775 | MG22: 6.915 | MH22: 6.7375 | MI22: 6.645 | MJ22: 6.675 | MK22: 6.87 | ML22: 7.17 | MM22: 7.4575 | MN22: 7.6175 | MO22: 7.57 | MP22: 7.335 | MQ22: 6.9775 | MR22: 6.565 | MS22: 6.1575 | MT22: 5.7725 | MU22: 5.3875 | MV22: 4.995 | MW22: 4.6175 | MX22: 4.285 | MY22: 4.894047619 | MZ22: 2.426269841 | NA22: 4.005992063 | NB22: 5.603214286 | NC22: 5.185436508 | ND22: 4.70515873 | NE22: 4.139880952 | NF22: 3.547103175 | NG22: 3.026825397 | NH22: 2.681547619 | NI22: 2.606269841 | NJ22: 2.813492063 | NK22: 3.198214286 | NL22: 3.620436508 | NM22: 3.94265873 | NN22: 4.094880952 | NO22: 4.119603175 | NP22: 4.064325397 | NQ22: 3.934047619 | NR22: 3.723769841 | NU22: 1.9 | NV22: 20 | NW22: 0.57 | NX22: 0.57 | NY22: 0.57 | NZ22: 0.57 | OA22: 0.57 | OB22: 0.57 | OC22: 0.57 | OD22: 0.57 | OE22: 0.57 | OF22: 0.57 | OG22: 0.57 | OH22: 0.57 | OI22: 0.57 | OJ22: 0.57 | OK22: 0.57 | OL22: 1.68 | OM22: 1.68 | ON22: 1.68 | OO22: 1.68 | OP22: 1.68 | OQ22: 1.68 | OR22: 5.27 | OS22: 1.68 | OT22: 1.68 | OU22: 1.68 | OV22: 1.68 | OW22: 1.68 | OX22: 5.27 | OY22: 5.27 | OZ22: 5.27 | PA22: 5.27 | PB22: 5.27 | PC22: 5.27 | PD22: 5.27 | PE22: 5.27 | PF22: 1.68 | PG22: 1.68 | PH22: 1.68 | PI22: 5.27 | PJ22: 5.27 | PM22: 1.9 | PN22: 20 | PO22: -4.7 | PP22: -22.42 | PQ22: -22.42 | PR22: -22.42 | PS22: -22.42 | PT22: -22.42 | PU22: -22.42 | PV22: -22.42 | PW22: -22.42 | PX22: -22.42 | PY22: -22.42 | PZ22: -22.42 | QA22: -22.42 | QB22: -22.42 | QC22: -22.42 | QD22: -21.31 | QE22: -21.31 | QF22: -21.31 | QG22: -21.31 | QH22: -21.31 | QI22: -3.59 | QJ22: -17.72 | QK22: -3.59 | QL22: 0 | QM22: -3.59 | QN22: -3.59 | QO22: -3.59 | QP22: -17.72 | QQ22: -17.72 | QR22: -17.72 | QS22: -17.72 | QT22: -17.72 | QU22: -17.72 | QV22: -17.72 | QW22: 0 | QX22: -3.59 | QY22: -3.59 | QZ22: -3.59 | RA22: 0 | RB22: 0 | RE22: 1.9 | RF22: 20 | RG22: 0 | RH22: 0 | RI22: 0 | RJ22: 0 | RK22: 0 | RL22: 0 | RM22: 0 | RN22: 0 | RO22: 0 | RP22: 0 | RQ22: 0 | RR22: 0 | RS22: 0 | RT22: 0 | RU22: 0 | RV22: 0 | RW22: 0 | RX22: 0 | RY22: 0 | RZ22: 0 | SA22: 0 | SB22: 0 | SC22: 0 | SD22: 0 | SE22: 0 | SF22: 0 | SG22: 0 | SH22: 0 | SI22: 0 | SJ22: 0 | SK22: 0 | SL22: 0 | SM22: 0 | SN22: 0 | SO22: 0 | SP22: 0 | SQ22: 0 | SR22: 0 | SS22: 0 | ST22: 0 | SU22: 0 | SV22: 1.9 | SX22: 1.9 | SY22: 20 | SZ22: 0 | TA22: 0 | TB22: 0 | TC22: 0 | TD22: 0 | TE22: 0 | TF22: 0 | TG22: 0 | TH22: 0 | TI22: 0 | TJ22: 0 | TK22: 0 | TL22: 0 | TM22: 0 | TN22: 0 | TO22: 0 | TP22: 0 | TQ22: 0 | TR22: 0 | TS22: 0 | TT22: 0 | TU22: 0 | TV22: 0 | TW22: 0 | TX22: 0 | TY22: 0 | TZ22: 0 | UA22: 0 | UB22: 0 | UC22: 0 | UD22: 0 | UE22: 0 | UF22: 0 | UG22: 0 | UH22: 0 | UI22: 0 | UJ22: 0 | UK22: 0 | UL22: 0 | UM22: 0 | UN22: 0 | UO22: 1.9 | UQ22: 1.9 | UR22: 20 | US22: 1 | UT22: 0 | UU22: 0 | UV22: 0 | UW22: 0 | UX22: 0 | UY22: 0 | UZ22: 0 | VA22: 0 | VB22: 0 | VC22: 0 | VD22: 0 | VE22: 0 | VF22: 0 | VG22: 0 | VH22: 0 | VI22: 0 | VJ22: 0 | VK22: 0 | VL22: 0 | VM22: 1 | VN22: 0 | VO22: 0 | VP22: 0 | VQ22: 0 | VR22: 0 | VS22: 0 | VT22: 0 | VU22: 0 | VV22: 0 | VW22: 0 | VX22: 0 | VY22: 0 | VZ22: 0 | WA22: 0 | WB22: 0 | WC22: 0 | WD22: 0 | WE22: 0 | WF22: 0 | WG22: 1 | WH22: 1.9 | WJ22: 1.9 | WK22: 20 | WL22: 36.06 | WM22: 0 | WN22: 0 | WO22: 0 | WP22: 0 | WQ22: 0 | WR22: 0 | WS22: 0 | WT22: 0 | WU22: 0 | WV22: 0 | WW22: 0 | WX22: 0 | WY22: 0 | WZ22: 0 | XA22: 0 | XB22: 0 | XC22: 0 | XD22: 0 | XE22: 0 | XF22: 39.23 | XG22: 0 | XH22: 0 | XI22: 0 | XJ22: 0 | XK22: 0 | XL22: 0 | XM22: 0 | XN22: 0 | XO22: 0 | XP22: 0 | XQ22: 0 | XR22: 0 | XS22: 0 | XT22: 0 | XU22: 0 | XV22: 0 | XW22: 0 | XX22: 0 | XY22: 0 | XZ22: 37.21 | YA22: 1.9 | YC22: 1.8 | YD22: 19 | YE22: 1 | YF22: 1 | YG22: 1 | YH22: 1 | YI22: 1 | YJ22: 1 | YK22: 1 | YL22: 1 | YM22: 1 | YN22: 1 | YO22: 1 | YP22: 1 | YQ22: 1 | YR22: 1 | YS22: 1 | YT22: 1 | YU22: 1 | YV22: 1 | YW22: 1 | YX22: 1 | YY22: 1 | YZ22: 3 | ZA22: 3 | ZB22: 3 | ZC22: 3 | ZD22: 3 | ZE22: 3 | ZF22: 3 | ZG22: 3 | ZH22: 3 | ZI22: 3 | ZJ22: 3 | ZK22: 3 | ZL22: 3 | ZM22: 3 | ZN22: 3 | ZO22: 3 | ZP22: 3 | ZQ22: 3 | ZR22: 3 | ZS22: 3 | ZT22: 3 | ZU22: 1.8 | ZW22: 1.8 | ZX22: 19 | ZY22: 0 | ZZ22: 0 | AAA22: 0 | AAB22: 0 | AAC22: 0 | AAD22: 0 | AAE22: 0 | AAF22: 0 | AAG22: 0 | AAH22: 0 | AAI22: 0 | AAJ22: 0 | AAK22: 0 | AAL22: 0 | AAM22: 0 | AAN22: 0 | AAO22: 0 | AAP22: 0 | AAQ22: 0 | AAR22: 0 | AAS22: 0 | AAT22: 0 | AAU22: 4 | AAV22: 4 | AAW22: 0 | AAX22: 0 | AAY22: 0 | AAZ22: 0 | ABA22: 0 | ABB22: 0 | ABC22: 0 | ABD22: 0 | ABE22: 0 | ABF22: 0 | ABG22: 0 | ABH22: 0 | ABI22: 0 | ABJ22: 0 | ABK22: 0 | ABL22: 0 | ABM22: 0 | ABN22: 0 | ABO22: 1.8 | ABQ22: 1.8 | ABR22: 19 | ABS22: =RANK(#REF!,$ER$14:$FL$24,0) ->  | ACN22: 58 | ACO22: 58 | ACP22: 58 | ACQ22: 58 | ACR22: 58 | ACS22: 58 | ACT22: 58 | ACU22: 58 | ACV22: 58 | ACW22: 58 | ACX22: 58 | ACY22: 58 | ACZ22: 58 | ADA22: 58 | ADB22: 58 | ADC22: 58 | ADD22: 58 | ADE22: 58 | ADF22: 58 | ADG22: 58 | ADH22: 58 | ADI22: 1.8
E23: AC | F23: =(F20-F18) -> -500 | G23: =G20-G18 -> -500 | H23: =H20-H18 -> 4 | M23: 5 | N23: =ROUND('3D Interpolace'!M24,2) -> 36 | O23: =ROUND('3D Interpolace'!N24,2) -> 36.36 | P23: =ROUND('3D Interpolace'!O24,2) -> 36.64 | Q23: =ROUND('3D Interpolace'!P24,2) -> 36.84 | R23: =ROUND('3D Interpolace'!Q24,2) -> 36.96 | S23: =ROUND('3D Interpolace'!R24,2) -> 37 | T23: =ROUND('3D Interpolace'!S24,2) -> 36.88 | U23: =ROUND('3D Interpolace'!T24,2) -> 36.6 | V23: =ROUND('3D Interpolace'!U24,2) -> 36.28 | W23: =ROUND('3D Interpolace'!V24,2) -> 36.04 | X23: =ROUND('3D Interpolace'!W24,2) -> 36 | Y23: =ROUND('3D Interpolace'!X24,2) -> 36.21 | Z23: =ROUND('3D Interpolace'!Y24,2) -> 36.58 | AA23: =ROUND('3D Interpolace'!Z24,2) -> 37.06 | AB23: =ROUND('3D Interpolace'!AA24,2) -> 37.55 | AC23: =ROUND('3D Interpolace'!AB24,2) -> 38 | AD23: =ROUND('3D Interpolace'!AC24,2) -> 38.42 | AE23: =ROUND('3D Interpolace'!AD24,2) -> 38.85 | AF23: =ROUND('3D Interpolace'!AE24,2) -> 39.27 | AG23: =ROUND('3D Interpolace'!AF24,2) -> 39.66 | AH23: =ROUND('3D Interpolace'!AG24,2) -> 40 | AI23: =ROUND('3D Interpolace'!AH24,2) -> 40.26 | AJ23: =ROUND('3D Interpolace'!AI24,2) -> 40.47 | AK23: =ROUND('3D Interpolace'!AJ24,2) -> 40.65 | AL23: =ROUND('3D Interpolace'!AK24,2) -> 40.82 | AM23: =ROUND('3D Interpolace'!AL24,2) -> 41 | AN23: =ROUND('3D Interpolace'!AM24,2) -> 41.26 | AO23: =ROUND('3D Interpolace'!AN24,2) -> 41.59 | AP23: =ROUND('3D Interpolace'!AO24,2) -> 41.89 | AQ23: =ROUND('3D Interpolace'!AP24,2) -> 42.06 | AR23: =ROUND('3D Interpolace'!AQ24,2) -> 42 | AS23: =ROUND('3D Interpolace'!AR24,2) -> 41.62 | AT23: =ROUND('3D Interpolace'!AS24,2) -> 40.99 | AU23: =ROUND('3D Interpolace'!AT24,2) -> 40.25 | AV23: =ROUND('3D Interpolace'!AU24,2) -> 39.54 | AW23: =ROUND('3D Interpolace'!AV24,2) -> 39 | AX23: =ROUND('3D Interpolace'!AW24,2) -> 38.64 | AY23: =ROUND('3D Interpolace'!AX24,2) -> 38.36 | AZ23: =ROUND('3D Interpolace'!AY24,2) -> 38.16 | BA23: =ROUND('3D Interpolace'!AZ24,2) -> 38.04 | BB23: =ROUND('3D Interpolace'!BA24,2) -> 38 | BD23: 2 | BE23: 21 | CA23: 4 | CB23: 4 | CU23: 2 | CW23: 2 | CX23: 21 | CY23: 36 | CZ23: 36.36 | DA23: 36.64 | DB23: 36.84 | DC23: 36.96 | DD23: 37 | DE23: 36.88 | DF23: 36.6 | DG23: 36.28 | DH23: 36.04 | DI23: 36 | DJ23: 36.21 | DK23: 36.58 | DL23: 37.06 | DM23: 37.55 | DN23: 38 | DO23: 38.42 | DP23: 38.85 | DQ23: 39.27 | DR23: 39.66 | DS23: 40 | DT23: 44.26 | DU23: 44.47 | DV23: 40.65 | DW23: 40.82 | DX23: 41 | DY23: 41.26 | DZ23: 41.59 | EA23: 41.89 | EB23: 42.06 | EC23: 42 | ED23: 41.62 | EE23: 40.99 | EF23: 40.25 | EG23: 39.54 | EH23: 39 | EI23: 38.64 | EJ23: 38.36 | EK23: 38.16 | EL23: 38.04 | EM23: 38 | EN23: 2 | EP23: 1.9 | EQ23: 20 | ER23: =IF(ISNUMBER(INDEX(VstupniData,$EQ23,ER$2)),INDEX(VstupniData,$EQ23,ER$2),"") -> 36.06 | ES23: 36.48 | ET23: 36.81 | EU23: 37.05 | EV23: 37.2 | EW23: 37.26 | EX23: 37.16 | EY23: 36.88 | EZ23: 36.56 | FA23: 36.29 | FB23: =IF(ISNUMBER(INDEX(VstupniData,$EQ23,FB$2)),INDEX(VstupniData,$EQ23,FB$2),"") -> 36.2 | FC23: 36.31 | FD23: 36.56 | FE23: 36.89 | FF23: 37.24 | FG23: 37.58 | FH23: 37.91 | FI23: 38.27 | FJ23: 38.63 | FK23: 38.97 | FL23: =IF(ISNUMBER(INDEX(VstupniData,$EQ23,FL$2)),INDEX(VstupniData,$EQ23,FL$2),"") -> 39.23 | FM23: 39.23 | FN23: 43.41 | FO23: 43.52 | FP23: 39.59 | FQ23: 39.67 | FR23: 39.8 | FS23: 40.04 | FT23: 40.36 | FU23: 40.67 | FV23: =IF(ISNUMBER(INDEX(VstupniData,$EQ23,FV$2)),INDEX(VstupniData,$EQ23,FV$2),"") -> 40.86 | FW23: 40.83 | FX23: 40.49 | FY23: 39.9 | FZ23: 39.21 | GA23: 38.55 | GB23: 38.06 | GC23: 37.73 | GD23: 37.49 | GE23: 37.32 | GF23: =IF(ISNUMBER(INDEX(VstupniData,$EQ23,GF$2)),INDEX(VstupniData,$EQ23,GF$2),"") -> 37.22 | GG23: 37.21 | GK23: 1.9 | GL23: 20 | GM23: 0 | GN23: 0 | GO23: 0 | GP23: 0 | GQ23: 0 | GR23: 0 | GS23: 0 | GT23: 0 | GU23: 0 | GV23: 0 | GW23: 0 | GX23: 0 | GY23: 0 | GZ23: 0 | HA23: 0 | HB23: 0 | HC23: 0 | HD23: 0 | HE23: 0 | HF23: 0 | HG23: 0 | HH23: 0 | HI23: 0 | HJ23: 0 | HK23: 0 | HL23: 0 | HM23: 0 | HN23: 0 | HO23: 0 | HP23: 0 | HQ23: 0 | HR23: 0 | HS23: 0 | HT23: 0 | HU23: 0 | HV23: 0 | HW23: 0 | HX23: 0 | HY23: 0 | HZ23: 0 | IA23: 0 | IB23: 0 | IC23: 1.9 | IG23: 20 | IH23: 43.5 | II23: 43.5 | IJ23: 43.5 | IK23: 43.5 | IL23: 43.5 | IM23: 43.5 | IN23: 43.5 | IO23: 43.5 | IP23: 43.5 | IQ23: 43.5 | IR23: 43.5 | IS23: 43.5 | IT23: 43.5 | IU23: 43.5 | IV23: 43.5 | IW23: 43.5 | IX23: 43.5 | IY23: 43.5 | IZ23: 43.5 | JA23: 43.5 | JB23: 43.5 | JC23: 46.31746032 | JD23: 46.03968254 | JE23: 45.76190476 | JF23: 45.48412698 | JG23: 45.20634921 | JH23: 44.92857143 | JI23: 44.65079365 | JJ23: 44.37301587 | JK23: 44.0952381 | JL23: 43.81746032 | JM23: 43.53968254 | JN23: 43.26190476 | JO23: 42.98412698 | JP23: 42.70634921 | JQ23: 42.42857143 | JR23: 42.15079365 | JS23: 41.87301587 | JT23: 41.5952381 | JU23: 41.31746032 | JV23: 41.03968254 | JW23: 40.76190476 | JX23: 1.9 | KD23: 1.9 | KE23: 20 | KF23: 7.44 | KG23: 7.02 | KH23: 6.69 | KI23: 6.45 | KJ23: 6.3 | KK23: 6.24 | KL23: 6.34 | KM23: 6.62 | KN23: 6.94 | KO23: 7.21 | KP23: 7.3 | KQ23: 7.19 | KR23: 6.94 | KS23: 6.61 | KT23: 6.26 | KU23: 5.92 | KV23: 5.59 | KW23: 5.23 | KX23: 4.87 | KY23: 4.53 | KZ23: 4.27 | LA23: 7.087460317 | LB23: 2.62968254 | LC23: 2.241904762 | LD23: 5.894126984 | LE23: 5.536349206 | LF23: 5.128571429 | LG23: 4.610793651 | LH23: 4.013015873 | LI23: 3.425238095 | LJ23: 2.957460317 | LK23: 2.70968254 | LL23: 2.771904762 | LM23: 3.084126984 | LN23: 3.496349206 | LO23: 3.878571429 | LP23: 4.090793651 | LQ23: 4.143015873 | LR23: 4.105238095 | LS23: 3.997460317 | LT23: 3.81968254 | LU23: 3.551904762 | MC23: 2 | MD23: 21 | ME23: =AVERAGE(KF25:KG26) -> 3.9075 | MF23: =AVERAGE(KG25:KH26) -> 3.6575 | MG23: 3.475 | MH23: 3.3575 | MI23: 3.3075 | MJ23: 3.3625 | MK23: 3.56 | ML23: 3.8425 | MM23: 4.095 | MN23: 4.2075 | MO23: 4.0975 | MP23: 3.775 | MQ23: 3.315 | MR23: 2.7975 | MS23: 2.3025 | MT23: 1.8675 | MU23: 1.465 | MV23: 1.07 | MW23: 0.685 | MX23: 0.315 | MY23: 6.96 | MZ23: 11.4125 | NA23: 8.67 | NB23: 9.94 | NC23: 11.235 | ND23: 10.5675 | NE23: 9.925 | NF23: 9.2775 | NG23: 8.65 | NH23: 8.1125 | NI23: 7.73 | NJ23: 7.5775 | NK23: 7.6775 | NL23: 7.94 | NM23: 8.235 | NN23: 8.4375 | NO23: 8.4775 | NP23: 8.395 | NQ23: 8.24 | NR23: 8.01 | NU23: 2 | NV23: 21 | NW23: 5.27 | NX23: 5.27 | NY23: 5.27 | NZ23: 5.27 | OA23: 5.27 | OB23: 5.27 | OC23: 5.27 | OD23: 5.27 | OE23: 1.68 | OF23: 1.68 | OG23: 1.68 | OH23: 5.27 | OI23: 5.27 | OJ23: 5.27 | OK23: 5.27 | OL23: 22.99 | OM23: 22.99 | ON23: 22.99 | OO23: 22.99 | OP23: 22.99 | OQ23: 0.57 | OR23: 0.06 | OS23: 0.19 | OT23: 0.19 | OU23: 0.06 | OV23: 0.06 | OW23: 0.19 | OX23: 0.19 | OY23: 0.19 | OZ23: 0.19 | PA23: 0.57 | PB23: 0.57 | PC23: 0.57 | PD23: 0.57 | PE23: 0.19 | PF23: 0.19 | PG23: 0.19 | PH23: 0.19 | PI23: 0.19 | PJ23: 0.19 | PM23: 2 | PN23: 21 | PO23: 0 | PP23: -17.72 | PQ23: -17.72 | PR23: -17.72 | PS23: -17.72 | PT23: -17.72 | PU23: -17.72 | PV23: -17.72 | PW23: -21.31 | PX23: -21.31 | PY23: -21.31 | PZ23: -17.72 | QA23: -17.72 | QB23: -17.72 | QC23: -17.72 | QD23: 0 | QE23: 0 | QF23: 0 | QG23: 0 | QH23: 0 | QI23: -4.7 | QJ23: -22.93 | QK23: -22.8 | QL23: -5.08 | QM23: -5.21 | QN23: -5.21 | QO23: -22.8 | QP23: -22.8 | QQ23: -22.8 | QR23: -22.8 | QS23: -22.42 | QT23: -22.42 | QU23: -22.42 | QV23: -22.42 | QW23: -22.8 | QX23: -22.8 | QY23: -22.8 | QZ23: -22.8 | RA23: -22.8 | RB23: -22.8 | RE23: 2 | RF23: 21 | RG23: 0 | RH23: 0 | RI23: 0 | RJ23: 0 | RK23: 0 | RL23: 0 | RM23: 0 | RN23: 0 | RO23: 0 | RP23: 0 | RQ23: 0 | RR23: 0 | RS23: 0 | RT23: 0 | RU23: 0 | RV23: 0 | RW23: 0 | RX23: 0 | RY23: 0 | RZ23: 0 | SA23: 0 | SB23: 0 | SC23: 0 | SD23: 0 | SE23: 0 | SF23: 0 | SG23: 0 | SH23: 0 | SI23: 0 | SJ23: 0 | SK23: 0 | SL23: 0 | SM23: 0 | SN23: 0 | SO23: 0 | SP23: 0 | SQ23: 0 | SR23: 0 | SS23: 0 | ST23: 0 | SU23: 0 | SV23: 2 | SX23: 2 | SY23: 21 | SZ23: 0 | TA23: 0 | TB23: 0 | TC23: 0 | TD23: 0 | TE23: 0 | TF23: 0 | TG23: 0 | TH23: 0 | TI23: 0 | TJ23: 0 | TK23: 0 | TL23: 0 | TM23: 0 | TN23: 0 | TO23: 0 | TP23: 0 | TQ23: 0 | TR23: 0 | TS23: 0 | TT23: 0 | TU23: 0 | TV23: 0 | TW23: 0 | TX23: 0 | TY23: 0 | TZ23: 0 | UA23: 0 | UB23: 0 | UC23: 0 | UD23: 0 | UE23: 0 | UF23: 0 | UG23: 0 | UH23: 0 | UI23: 0 | UJ23: 0 | UK23: 0 | UL23: 0 | UM23: 0 | UN23: 0 | UO23: 2 | UQ23: 2 | UR23: 21 | US23: 1 | UT23: 1 | UU23: 1 | UV23: 1 | UW23: 1 | UX23: 1 | UY23: 1 | UZ23: 1 | VA23: 1 | VB23: 1 | VC23: 1 | VD23: 1 | VE23: 1 | VF23: 1 | VG23: 1 | VH23: 1 | VI23: 1 | VJ23: 1 | VK23: 1 | VL23: 1 | VM23: 1 | VN23: 1 | VO23: 1 | VP23: 1 | VQ23: 1 | VR23: 1 | VS23: 1 | VT23: 1 | VU23: 1 | VV23: 1 | VW23: 1 | VX23: 1 | VY23: 1 | VZ23: 1 | WA23: 1 | WB23: 1 | WC23: 1 | WD23: 1 | WE23: 1 | WF23: 1 | WG23: 1 | WH23: 2 | WJ23: 2 | WK23: 21 | WL23: 36 | WM23: 36.36 | WN23: 36.64 | WO23: 36.84 | WP23: 36.96 | WQ23: 37 | WR23: 36.88 | WS23: 36.6 | WT23: 36.28 | WU23: 36.04 | WV23: 36 | WW23: 36.21 | WX23: 36.58 | WY23: 37.06 | WZ23: 37.55 | XA23: 38 | XB23: 38.42 | XC23: 38.85 | XD23: 39.27 | XE23: 39.66 | XF23: 40 | XG23: 44.26 | XH23: 44.47 | XI23: 40.65 | XJ23: 40.82 | XK23: 41 | XL23: 41.26 | XM23: 41.59 | XN23: 41.89 | XO23: 42.06 | XP23: 42 | XQ23: 41.62 | XR23: 40.99 | XS23: 40.25 | XT23: 39.54 | XU23: 39 | XV23: 38.64 | XW23: 38.36 | XX23: 38.16 | XY23: 38.04 | XZ23: 38 | YA23: 2 | YC23: 1.9 | YD23: 20 | YE23: 1 | YF23: 1 | YG23: 1 | YH23: 1 | YI23: 1 | YJ23: 1 | YK23: 1 | YL23: 1 | YM23: 1 | YN23: 1 | YO23: 1 | YP23: 1 | YQ23: 1 | YR23: 1 | YS23: 1 | YT23: 1 | YU23: 1 | YV23: 1 | YW23: 1 | YX23: 1 | YY23: 1 | YZ23: 3 | ZA23: 3 | ZB23: 3 | ZC23: 3 | ZD23: 3 | ZE23: 3 | ZF23: 3 | ZG23: 3 | ZH23: 3 | ZI23: 3 | ZJ23: 3 | ZK23: 3 | ZL23: 3 | ZM23: 3 | ZN23: 3 | ZO23: 3 | ZP23: 3 | ZQ23: 3 | ZR23: 3 | ZS23: 3 | ZT23: 3 | ZU23: 1.9 | ZW23: 1.9 | ZX23: 20 | ZY23: =IF(ISNUMBER(INDEX(Asfalt,$ZX23,ZY$2)),INDEX(Asfalt,$ZX23,ZY$2),0) -> 0 | ZZ23: 0 | AAA23: 0 | AAB23: 0 | AAC23: 0 | AAD23: 0 | AAE23: 0 | AAF23: 0 | AAG23: 0 | AAH23: 0 | AAI23: =IF(ISNUMBER(INDEX(Asfalt,$ZX23,AAI$2)),INDEX(Asfalt,$ZX23,AAI$2),0) -> 0 | AAJ23: 0 | AAK23: 0 | AAL23: 0 | AAM23: 0 | AAN23: 0 | AAO23: 0 | AAP23: 0 | AAQ23: 0 | AAR23: 0 | AAS23: =IF(ISNUMBER(INDEX(Asfalt,$ZX23,AAS$2)),INDEX(Asfalt,$ZX23,AAS$2),0) -> 0 | AAT23: 0 | AAU23: 4 | AAV23: 4 | AAW23: 0 | AAX23: 0 | AAY23: 0 | AAZ23: 0 | ABA23: 0 | ABB23: 0 | ABC23: =IF(ISNUMBER(INDEX(Asfalt,$ZX23,ABC$2)),INDEX(Asfalt,$ZX23,ABC$2),0) -> 0 | ABD23: 0 | ABE23: 0 | ABF23: 0 | ABG23: 0 | ABH23: 0 | ABI23: 0 | ABJ23: 0 | ABK23: 0 | ABL23: 0 | ABM23: 0 | ABN23: 0 | ABO23: 1.9 | ABQ23: 1.9 | ABR23: 20 | ABS23: =RANK(#REF!,$ER$14:$FL$24,0) ->  | ACN23: 58 | ACO23: 58 | ACP23: 58 | ACQ23: 58 | ACR23: 58 | ACS23: 58 | ACT23: 58 | ACU23: 58 | ACV23: 58 | ACW23: 58 | ACX23: 58 | ACY23: 58 | ACZ23: 58 | ADA23: 58 | ADB23: 58 | ADC23: 58 | ADD23: 58 | ADE23: 58 | ADF23: 58 | ADG23: 58 | ADH23: 58 | ADI23: 1.9
M24: 5A | N24: =ROUND('3D Interpolace'!M25,2) -> 36.1 | O24: =ROUND('3D Interpolace'!N25,2) -> 36.31 | P24: =ROUND('3D Interpolace'!O25,2) -> 36.46 | Q24: =ROUND('3D Interpolace'!P25,2) -> 36.56 | R24: =ROUND('3D Interpolace'!Q25,2) -> 36.61 | S24: =ROUND('3D Interpolace'!R25,2) -> 36.6 | T24: =ROUND('3D Interpolace'!S25,2) -> 36.47 | U24: =ROUND('3D Interpolace'!T25,2) -> 36.21 | V24: =ROUND('3D Interpolace'!U25,2) -> 35.94 | W24: =ROUND('3D Interpolace'!V25,2) -> 35.76 | X24: =ROUND('3D Interpolace'!W25,2) -> 35.77 | Y24: =ROUND('3D Interpolace'!X25,2) -> 36.03 | Z24: =ROUND('3D Interpolace'!Y25,2) -> 36.48 | AA24: =ROUND('3D Interpolace'!Z25,2) -> 37.02 | AB24: =ROUND('3D Interpolace'!AA25,2) -> 37.58 | AC24: =ROUND('3D Interpolace'!AB25,2) -> 38.06 | AD24: =ROUND('3D Interpolace'!AC25,2) -> 38.45 | AE24: =ROUND('3D Interpolace'!AD25,2) -> 38.82 | AF24: =ROUND('3D Interpolace'!AE25,2) -> 39.18 | AG24: =ROUND('3D Interpolace'!AF25,2) -> 39.55 | AH24: =ROUND('3D Interpolace'!AG25,2) -> 39.93 | AI24: =ROUND('3D Interpolace'!AH25,2) -> 40.36 | AJ24: =ROUND('3D Interpolace'!AI25,2) -> 40.83 | AK24: =ROUND('3D Interpolace'!AJ25,2) -> 41.29 | AL24: =ROUND('3D Interpolace'!AK25,2) -> 41.7 | AM24: =ROUND('3D Interpolace'!AL25,2) -> 42.01 | AN24: =ROUND('3D Interpolace'!AM25,2) -> 42.23 | AO24: =ROUND('3D Interpolace'!AN25,2) -> 42.41 | AP24: =ROUND('3D Interpolace'!AO25,2) -> 42.51 | AQ24: =ROUND('3D Interpolace'!AP25,2) -> 42.49 | AR24: =ROUND('3D Interpolace'!AQ25,2) -> 42.33 | AS24: =ROUND('3D Interpolace'!AR25,2) -> 41.94 | AT24: =ROUND('3D Interpolace'!AS25,2) -> 41.34 | AU24: =ROUND('3D Interpolace'!AT25,2) -> 40.66 | AV24: =ROUND('3D Interpolace'!AU25,2) -> 40.01 | AW24: =ROUND('3D Interpolace'!AV25,2) -> 39.5 | AX24: =ROUND('3D Interpolace'!AW25,2) -> 39.15 | AY24: =ROUND('3D Interpolace'!AX25,2) -> 38.87 | AZ24: =ROUND('3D Interpolace'!AY25,2) -> 38.65 | BA24: =ROUND('3D Interpolace'!AZ25,2) -> 38.51 | BB24: =ROUND('3D Interpolace'!BA25,2) -> 38.44 | BD24: 2.1 | BE24: 22 | CA24: 4 | CB24: 4 | CU24: 2.1 | CW24: 2.1 | CX24: 22 | CY24: 36.1 | CZ24: 36.31 | DA24: 36.46 | DB24: 36.56 | DC24: 36.61 | DD24: 36.6 | DE24: 36.47 | DF24: 36.21 | DG24: 35.94 | DH24: 35.76 | DI24: 35.77 | DJ24: 36.03 | DK24: 36.48 | DL24: 37.02 | DM24: 37.58 | DN24: 38.06 | DO24: 38.45 | DP24: 38.82 | DQ24: 39.18 | DR24: 39.55 | DS24: 39.93 | DT24: 44.36 | DU24: 44.83 | DV24: 41.29 | DW24: 41.7 | DX24: 42.01 | DY24: 42.23 | DZ24: 42.41 | EA24: 42.51 | EB24: 42.49 | EC24: 42.33 | ED24: 41.94 | EE24: 41.34 | EF24: 40.66 | EG24: 40.01 | EH24: 39.5 | EI24: 39.15 | EJ24: 38.87 | EK24: 38.65 | EL24: 38.51 | EM24: 38.44 | EN24: 2.1 | EP24: 2 | EQ24: 21 | ER24: 36 | ES24: 36.36 | ET24: 36.64 | EU24: 36.84 | EV24: 36.96 | EW24: 37 | EX24: 36.88 | EY24: 36.6 | EZ24: 36.28 | FA24: 36.04 | FB24: 36 | FC24: 36.21 | FD24: 36.58 | FE24: 37.06 | FF24: 37.55 | FG24: 38 | FH24: 38.42 | FI24: 38.85 | FJ24: 39.27 | FK24: 39.66 | FL24: 40 | FM24: 40 | FN24: 44.26 | FO24: 44.47 | FP24: 40.65 | FQ24: 40.82 | FR24: 41 | FS24: 41.26 | FT24: 41.59 | FU24: 41.89 | FV24: 42.06 | FW24: 42 | FX24: 41.62 | FY24: 40.99 | FZ24: 40.25 | GA24: 39.54 | GB24: 39 | GC24: 38.64 | GD24: 38.36 | GE24: 38.16 | GF24: 38.04 | GG24: 38 | GK24: 2 | GL24: 21 | GM24: 36 | GN24: 0 | GO24: 0 | GP24: 0 | GQ24: 0 | GR24: 37 | GS24: 0 | GT24: 0 | GU24: 0 | GV24: 0 | GW24: 36 | GX24: 0 | GY24: 0 | GZ24: 0 | HA24: 0 | HB24: 38 | HC24: 0 | HD24: 0 | HE24: 0 | HF24: 0 | HG24: 40 | HH24: 40 | HI24: 44.26 | HJ24: 44.47 | HK24: 0 | HL24: 0 | HM24: 41 | HN24: 0 | HO24: 0 | HP24: 0 | HQ24: 0 | HR24: 42 | HS24: 0 | HT24: 0 | HU24: 0 | HV24: 0 | HW24: 39 | HX24: 0 | HY24: 0 | HZ24: 0 | IA24: 0 | IB24: 38 | IC24: 2 | IG24: 21 | IH24: 44 | II24: 44 | IJ24: 44 | IK24: 44 | IL24: 44 | IM24: 44 | IN24: 44 | IO24: 44 | IP24: 44 | IQ24: 44 | IR24: 44 | IS24: 44 | IT24: 44 | IU24: 44 | IV24: 44 | IW24: 44 | IX24: 44 | IY24: 44 | IZ24: 44 | JA24: 44 | JB24: 44 | JC24: 47.1984127 | JD24: 46.92063492 | JE24: 46.64285714 | JF24: 46.36507937 | JG24: 46.08730159 | JH24: 45.80952381 | JI24: 45.53174603 | JJ24: 45.25396825 | JK24: 44.97619048 | JL24: 44.6984127 | JM24: 44.42063492 | JN24: 44.14285714 | JO24: 43.86507937 | JP24: 43.58730159 | JQ24: 43.30952381 | JR24: 43.03174603 | JS24: 42.75396825 | JT24: 42.47619048 | JU24: 42.1984127 | JV24: 41.92063492 | JW24: 41.64285714 | JX24: 2 | KD24: 2 | KE24: 21 | KF24: 8 | KG24: 7.64 | KH24: 7.36 | KI24: 7.16 | KJ24: 7.04 | KK24: 7 | KL24: 7.12 | KM24: 7.4 | KN24: 7.72 | KO24: 7.96 | KP24: 8 | KQ24: 7.79 | KR24: 7.42 | KS24: 6.94 | KT24: 6.45 | KU24: 6 | KV24: 5.58 | KW24: 5.15 | KX24: 4.73 | KY24: 4.34 | KZ24: 4 | LA24: 7.198412698 | LB24: 2.660634921 | LC24: 2.172857143 | LD24: 5.715079365 | LE24: 5.267301587 | LF24: 4.80952381 | LG24: 4.271746032 | LH24: 3.663968254 | LI24: 3.086190476 | LJ24: 2.638412698 | LK24: 2.420634921 | LL24: 2.522857143 | LM24: 2.875079365 | LN24: 3.337301587 | LO24: 3.76952381 | LP24: 4.031746032 | LQ24: 4.113968254 | LR24: 4.116190476 | LS24: 4.038412698 | LT24: 3.880634921 | LU24: 3.642857143 | MC24: 2.1 | MD24: 22 | ME24: =AVERAGE(KF26:KG27) -> 4.03 | MF24: =AVERAGE(KG26:KH27) -> 3.9575 | MG24: =AVERAGE(KH26:KI27) -> 3.9175 | MH24: =AVERAGE(KI26:KJ27) -> 3.91 | MI24: =AVERAGE(KJ26:KK27) -> 3.9375 | MJ24: =AVERAGE(KK26:KL27) -> 4.0275 | MK24: =AVERAGE(KL26:KM27) -> 4.2125 | ML24: =AVERAGE(KM26:KN27) -> 4.445 | MM24: =AVERAGE(KN26:KO27) -> 4.6325 | MN24: =AVERAGE(KO26:KP27) -> 4.685 | MO24: =AVERAGE(KP26:KQ27) -> 4.5225 | MP24: =AVERAGE(KQ26:KR27) -> 4.1475 | MQ24: =AVERAGE(KR26:KS27) -> 3.6375 | MR24: =AVERAGE(KS26:KT27) -> 3.0775 | MS24: =AVERAGE(KT26:KU27) -> 2.56 | MT24: =AVERAGE(KU26:KV27) -> 2.15 | MU24: =AVERAGE(KV26:KW27) -> 1.8275 | MV24: =AVERAGE(KW26:KX27) -> 1.54 | MW24: =AVERAGE(KX26:KY27) -> 1.24 | MX24: =AVERAGE(KY26:KZ27) -> 0.8825 | MY24: =AVERAGE(LA26:LB27) -> 11.16 | MZ24: =AVERAGE(LB26:LC27) -> 8.1525 | NA24: =AVERAGE(LC26:LD27) -> 9.08 | NB24: =AVERAGE(LD26:LE27) -> 10.045 | NC24: =AVERAGE(LE26:LF27) -> 9.1525 | ND24: =AVERAGE(LF26:LG27) -> 8.465 | NE24: =AVERAGE(LG26:LH27) -> 7.9525 | NF24: =AVERAGE(LH26:LI27) -> 7.5675 | NG24: =AVERAGE(LI26:LJ27) -> 7.2925 | NH24: =AVERAGE(LJ26:LK27) -> 7.1075 | NI24: =AVERAGE(LK26:LL27) -> 7.0325 | NJ24: =AVERAGE(LL26:LM27) -> 7.1075 | NK24: =AVERAGE(LM26:LN27) -> 7.29 | NL24: =AVERAGE(LN26:LO27) -> 7.4875 | NM24: =AVERAGE(LO26:LP27) -> 7.6125 | NN24: =AVERAGE(LP26:LQ27) -> 7.6125 | NO24: =AVERAGE(LQ26:LR27) -> 7.5175 | NP24: =AVERAGE(LR26:LS27) -> 7.3625 | NQ24: =AVERAGE(LS26:LT27) -> 7.145 | NR24: =AVERAGE(LT26:LU27) -> 6.865 | NU24: 2.1 | NV24: 22 | NW24: 1.68 | NX24: 5.27 | NY24: 5.27 | NZ24: 5.27 | OA24: 5.27 | OB24: 1.68 | OC24: 1.68 | OD24: 1.68 | OE24: 1.68 | OF24: 1.68 | OG24: 1.68 | OH24: 1.68 | OI24: 5.27 | OJ24: 5.27 | OK24: 5.27 | OL24: 5.27 | OM24: 22.99 | ON24: 22.99 | OO24: 22.99 | OP24: 22.99 | OQ24: 0.06 | OR24: 0.19 | OS24: 0.19 | OT24: 0.06 | OU24: 0.19 | OV24: 0.19 | OW24: 0.57 | OX24: 0.57 | OY24: 0.57 | OZ24: 0.57 | PA24: 0.57 | PB24: 0.57 | PC24: 0.57 | PD24: 0.57 | PE24: 0.57 | PF24: 0.57 | PG24: 0.57 | PH24: 0.57 | PI24: 0.57 | PJ24: 0.57 | PM24: 2.1 | PN24: 22 | PO24: -3.59 | PP24: 0 | PQ24: 0 | PR24: -17.72 | PS24: -17.72 | PT24: -21.31 | PU24: -21.31 | PV24: -21.31 | PW24: -21.31 | PX24: -21.31 | PY24: -21.31 | PZ24: -21.31 | QA24: -17.72 | QB24: -17.72 | QC24: -17.72 | QD24: -17.72 | QE24: 0 | QF24: 0 | QG24: 0 | QH24: 0 | QI24: -1.62 | QJ24: -22.8 | QK24: -5.08 | QL24: -5.21 | QM24: -5.08 | QN24: -5.08 | QO24: -22.42 | QP24: -22.42 | QQ24: -22.42 | QR24: -22.42 | QS24: -22.42 | QT24: -22.42 | QU24: -22.42 | QV24: -22.42 | QW24: -22.42 | QX24: -4.7 | QY24: -4.7 | QZ24: -4.7 | RA24: -4.7 | RB24: -22.42 | RE24: 2.1 | RF24: 22 | RG24: 0 | RH24: 0 | RI24: 0 | RJ24: 0 | RK24: 0 | RL24: 0 | RM24: 0 | RN24: 0 | RO24: 0 | RP24: 0 | RQ24: 0 | RR24: 0 | RS24: 0 | RT24: 0 | RU24: 0 | RV24: 0 | RW24: 0 | RX24: 0 | RY24: 0 | RZ24: 0 | SA24: 0 | SB24: 0 | SC24: 44.83 | SD24: 0 | SE24: 0 | SF24: 0 | SG24: 0 | SH24: 0 | SI24: 0 | SJ24: 0 | SK24: 0 | SL24: 0 | SM24: 0 | SN24: 0 | SO24: 0 | SP24: 0 | SQ24: 0 | SR24: 0 | SS24: 0 | ST24: 0 | SU24: 0 | SV24: 2.1 | SX24: 2.1 | SY24: 22 | SZ24: 0 | TA24: 0 | TB24: 0 | TC24: 0 | TD24: 0 | TE24: 0 | TF24: 0 | TG24: 0 | TH24: 0 | TI24: 0 | TJ24: 0 | TK24: 0 | TL24: 0 | TM24: 0 | TN24: 0 | TO24: 0 | TP24: 0 | TQ24: 0 | TR24: 0 | TS24: 0 | TT24: 40 | TU24: 0 | TV24: 0 | TW24: 44.47 | TX24: 0 | TY24: 0 | TZ24: 0 | UA24: 0 | UB24: 0 | UC24: 0 | UD24: 42.06 | UE24: 0 | UF24: 0 | UG24: 0 | UH24: 0 | UI24: 0 | UJ24: 0 | UK24: 0 | UL24: 0 | UM24: 0 | UN24: 0 | UO24: 2.1 | UQ24: 2.1 | UR24: 22 | US24: 1 | UT24: =IF(OR(INT(1000*UT$1/$B$18)-1000*UT$1/$B$18=0,INT(1000*$UQ24/$B$19)-1000*$UQ24/$B$19=0),1,0) -> 0 | UU24: 0 | UV24: 0 | UW24: 0 | UX24: 0 | UY24: 0 | UZ24: 0 | VA24: 0 | VB24: 0 | VC24: 0 | VD24: =IF(OR(INT(1000*VD$1/$B$18)-1000*VD$1/$B$18=0,INT(1000*$UQ24/$B$19)-1000*$UQ24/$B$19=0),1,0) -> 0 | VE24: 0 | VF24: 0 | VG24: 0 | VH24: 0 | VI24: 0 | VJ24: 0 | VK24: 0 | VL24: 0 | VM24: 1 | VN24: =IF(OR(INT(1000*VN$1/$B$18)-1000*VN$1/$B$18=0,INT(1000*$UQ24/$B$19)-1000*$UQ24/$B$19=0),1,0) -> 0 | VO24: 0 | VP24: 0 | VQ24: 0 | VR24: 0 | VS24: 0 | VT24: 0 | VU24: 0 | VV24: 0 | VW24: 0 | VX24: =IF(OR(INT(1000*VX$1/$B$18)-1000*VX$1/$B$18=0,INT(1000*$UQ24/$B$19)-1000*$UQ24/$B$19=0),1,0) -> 0 | VY24: 0 | VZ24: 0 | WA24: 0 | WB24: 0 | WC24: 0 | WD24: 0 | WE24: 0 | WF24: 0 | WG24: 1 | WH24: 2.1 | WJ24: 2.1 | WK24: 22 | WL24: 36.1 | WM24: 0 | WN24: 0 | WO24: 0 | WP24: 0 | WQ24: 0 | WR24: 0 | WS24: 0 | WT24: 0 | WU24: 0 | WV24: 0 | WW24: 0 | WX24: 0 | WY24: 0 | WZ24: 0 | XA24: 0 | XB24: 0 | XC24: 0 | XD24: 0 | XE24: 0 | XF24: 39.93 | XG24: 0 | XH24: 44.83 | XI24: 0 | XJ24: 0 | XK24: 0 | XL24: 0 | XM24: 0 | XN24: 0 | XO24: 0 | XP24: 0 | XQ24: 0 | XR24: 0 | XS24: 0 | XT24: 0 | XU24: 0 | XV24: 0 | XW24: 0 | XX24: 0 | XY24: 0 | XZ24: 38.44 | YA24: 2.1 | YC24: 2 | YD24: 21 | YE24: =YE23 -> 1 | YF24: =YF23 -> 1 | YG24: 1 | YH24: 1 | YI24: 1 | YJ24: 1 | YK24: 1 | YL24: 1 | YM24: 1 | YN24: 1 | YO24: 1 | YP24: 1 | YQ24: 1 | YR24: 1 | YS24: 1 | YT24: 1 | YU24: 1 | YV24: 1 | YW24: 1 | YX24: 1 | YY24: =YX24 -> 1 | YZ24: 3 | ZA24: =ZA23 -> 3 | ZB24: 3 | ZC24: 3 | ZD24: 3 | ZE24: 3 | ZF24: 3 | ZG24: 3 | ZH24: 3 | ZI24: 3 | ZJ24: 3 | ZK24: 3 | ZL24: 3 | ZM24: 3 | ZN24: 3 | ZO24: 3 | ZP24: 3 | ZQ24: 3 | ZR24: 3 | ZS24: 3 | ZT24: =ZS24 -> 3 | ZU24: 2 | ZW24: 2 | ZX24: 21 | ZY24: 0 | ZZ24: 0 | AAA24: 0 | AAB24: 0 | AAC24: 0 | AAD24: 0 | AAE24: 0 | AAF24: 0 | AAG24: 0 | AAH24: 0 | AAI24: 0 | AAJ24: 0 | AAK24: 0 | AAL24: 0 | AAM24: 0 | AAN24: 0 | AAO24: 0 | AAP24: 0 | AAQ24: 0 | AAR24: 0 | AAS24: 0 | AAT24: 0 | AAU24: 4 | AAV24: 4 | AAW24: 0 | AAX24: 0 | AAY24: 0 | AAZ24: 0 | ABA24: 0 | ABB24: 0 | ABC24: 0 | ABD24: 0 | ABE24: 0 | ABF24: 0 | ABG24: 0 | ABH24: 0 | ABI24: 0 | ABJ24: 0 | ABK24: 0 | ABL24: 0 | ABM24: 0 | ABN24: 0 | ABO24: 2 | ABQ24: 2 | ABR24: 21 | ABS24: =RANK(#REF!,$ER$14:$FL$24,0) ->  | ACN24: 58 | ACO24: =ACO23 -> 58 | ACP24: 58 | ACQ24: 58 | ACR24: 58 | ACS24: 58 | ACT24: 58 | ACU24: 58 | ACV24: 58 | ACW24: 58 | ACX24: 58 | ACY24: 58 | ACZ24: 58 | ADA24: 58 | ADB24: 58 | ADC24: 58 | ADD24: 58 | ADE24: 58 | ADF24: 58 | ADG24: 58 | ADH24: =ADG24 -> 58 | ADI24: 2
E25: AB x AC | F25: =G22*H23-H22*G23 -> -1000 | G25: =H22*F23-F22*H23 -> -3000 | H25: =IF(F22*G23-G22*F23=0,0.0001,F22*G23-G22*F23) -> -500000 | M25: 5B | N25: =ROUND('3D Interpolace'!M26,2) -> 36.35 | O25: =ROUND('3D Interpolace'!N26,2) -> 36.32 | P25: =ROUND('3D Interpolace'!O26,2) -> 36.28 | Q25: =ROUND('3D Interpolace'!P26,2) -> 36.23 | R25: =ROUND('3D Interpolace'!Q26,2) -> 36.16 | S25: =ROUND('3D Interpolace'!R26,2) -> 36.08 | T25: =ROUND('3D Interpolace'!S26,2) -> 35.94 | U25: =ROUND('3D Interpolace'!T26,2) -> 35.73 | V25: =ROUND('3D Interpolace'!U26,2) -> 35.54 | W25: =ROUND('3D Interpolace'!V26,2) -> 35.43 | X25: =ROUND('3D Interpolace'!W26,2) -> 35.5 | Y25: =ROUND('3D Interpolace'!X26,2) -> 35.81 | Z25: =ROUND('3D Interpolace'!Y26,2) -> 36.29 | AA25: =ROUND('3D Interpolace'!Z26,2) -> 36.86 | AB25: =ROUND('3D Interpolace'!AA26,2) -> 37.43 | AC25: =ROUND('3D Interpolace'!AB26,2) -> 37.89 | AD25: =ROUND('3D Interpolace'!AC26,2) -> 38.2 | AE25: =ROUND('3D Interpolace'!AD26,2) -> 38.42 | AF25: =ROUND('3D Interpolace'!AE26,2) -> 38.62 | AG25: =ROUND('3D Interpolace'!AF26,2) -> 38.89 | AH25: =ROUND('3D Interpolace'!AG26,2) -> 39.3 | AI25: =ROUND('3D Interpolace'!AH26,2) -> 39.97 | AJ25: =ROUND('3D Interpolace'!AI26,2) -> 40.83 | AK25: =ROUND('3D Interpolace'!AJ26,2) -> 41.73 | AL25: =ROUND('3D Interpolace'!AK26,2) -> 42.5 | AM25: =ROUND('3D Interpolace'!AL26,2) -> 42.98 | AN25: =ROUND('3D Interpolace'!AM26,2) -> 43.12 | AO25: =ROUND('3D Interpolace'!AN26,2) -> 43.03 | AP25: =ROUND('3D Interpolace'!AO26,2) -> 42.78 | AQ25: =ROUND('3D Interpolace'!AP26,2) -> 42.45 | AR25: =ROUND('3D Interpolace'!AQ26,2) -> 42.1 | AS25: =ROUND('3D Interpolace'!AR26,2) -> 41.7 | AT25: =ROUND('3D Interpolace'!AS26,2) -> 41.19 | AU25: =ROUND('3D Interpolace'!AT26,2) -> 40.65 | AV25: =ROUND('3D Interpolace'!AU26,2) -> 40.13 | AW25: =ROUND('3D Interpolace'!AV26,2) -> 39.71 | AX25: =ROUND('3D Interpolace'!AW26,2) -> 39.39 | AY25: =ROUND('3D Interpolace'!AX26,2) -> 39.12 | AZ25: =ROUND('3D Interpolace'!AY26,2) -> 38.91 | BA25: =ROUND('3D Interpolace'!AZ26,2) -> 38.75 | BB25: =ROUND('3D Interpolace'!BA26,2) -> 38.64 | BD25: 2.2 | BE25: 23 | CA25: 4 | CB25: 4 | CU25: 2.2 | CW25: 2.2 | CX25: 23 | CY25: 36.35 | CZ25: 36.32 | DA25: 36.28 | DB25: 36.23 | DC25: 36.16 | DD25: 36.08 | DE25: 35.94 | DF25: 35.73 | DG25: 35.54 | DH25: 35.43 | DI25: 35.5 | DJ25: 35.81 | DK25: 36.29 | DL25: 36.86 | DM25: 37.43 | DN25: 37.89 | DO25: 38.2 | DP25: 38.42 | DQ25: 38.62 | DR25: 38.89 | DS25: 39.3 | DT25: 43.97 | DU25: 44.83 | DV25: 41.73 | DW25: 42.5 | DX25: 42.98 | DY25: 43.12 | DZ25: 43.03 | EA25: 42.78 | EB25: 42.45 | EC25: 42.1 | ED25: 41.7 | EE25: 41.19 | EF25: 40.65 | EG25: 40.13 | EH25: 39.71 | EI25: 39.39 | EJ25: 39.12 | EK25: 38.91 | EL25: 38.75 | EM25: 38.64 | EN25: 2.2 | EP25: 2 | EQ25: 21 | ER25: 36 | ES25: 36.36 | ET25: 36.64 | EU25: 36.84 | EV25: 36.96 | EW25: 37 | EX25: 36.88 | EY25: 36.6 | EZ25: 36.28 | FA25: 36.04 | FB25: 36 | FC25: 36.21 | FD25: 36.58 | FE25: 37.06 | FF25: 37.55 | FG25: 38 | FH25: 38.42 | FI25: 38.85 | FJ25: 39.27 | FK25: 39.66 | FL25: 40 | FM25: 40 | FN25: 44.26 | FO25: 44.47 | FP25: 40.65 | FQ25: 40.82 | FR25: 41 | FS25: 41.26 | FT25: 41.59 | FU25: 41.89 | FV25: 42.06 | FW25: 42 | FX25: 41.62 | FY25: 40.99 | FZ25: 40.25 | GA25: 39.54 | GB25: 39 | GC25: 38.64 | GD25: 38.36 | GE25: 38.16 | GF25: 38.04 | GG25: 38 | GK25: 2 | GL25: 21 | GM25: 36 | GN25: 0 | GO25: 0 | GP25: 0 | GQ25: 0 | GR25: 37 | GS25: 0 | GT25: 0 | GU25: 0 | GV25: 0 | GW25: 36 | GX25: 0 | GY25: 0 | GZ25: 0 | HA25: 0 | HB25: 38 | HC25: 0 | HD25: 0 | HE25: 0 | HF25: 0 | HG25: 40 | HH25: 40 | HI25: 44.26 | HJ25: 44.47 | HK25: 0 | HL25: 0 | HM25: 41 | HN25: 0 | HO25: 0 | HP25: 0 | HQ25: 0 | HR25: 42 | HS25: 0 | HT25: 0 | HU25: 0 | HV25: 0 | HW25: 39 | HX25: 0 | HY25: 0 | HZ25: 0 | IA25: 0 | IB25: 38 | IC25: 2 | IG25: 21 | IH25: 40 | II25: 40 | IJ25: 40 | IK25: 40 | IL25: 40 | IM25: 40 | IN25: 40 | IO25: 40 | IP25: 40 | IQ25: 40 | IR25: 40 | IS25: 40 | IT25: 40 | IU25: 40 | IV25: 40 | IW25: 40 | IX25: 40 | IY25: 40 | IZ25: 40 | JA25: 40 | JB25: 40 | JC25: 54 | JD25: 53.6 | JE25: 53.2 | JF25: 52.8 | JG25: 52.4 | JH25: 52 | JI25: 51.6 | JJ25: 51.2 | JK25: 50.8 | JL25: 50.4 | JM25: 50 | JN25: 49.6 | JO25: 49.2 | JP25: 48.8 | JQ25: 48.4 | JR25: 48 | JS25: 47.6 | JT25: 47.2 | JU25: 46.8 | JV25: 46.4 | JW25: 46 | JX25: 2 | KD25: 2 | KE25: 21 | KF25: 4 | KG25: 3.64 | KH25: 3.36 | KI25: 3.16 | KJ25: 3.04 | KK25: 3 | KL25: 3.12 | KM25: 3.4 | KN25: 3.72 | KO25: 3.96 | KP25: 4 | KQ25: 3.79 | KR25: 3.42 | KS25: 2.94 | KT25: 2.45 | KU25: 2 | KV25: 1.58 | KW25: 1.15 | KX25: 0.73 | KY25: 0.34 | KZ25: 0 | LA25: 14 | LB25: 9.34 | LC25: 8.73 | LD25: 12.15 | LE25: 11.58 | LF25: 11 | LG25: 10.34 | LH25: 9.61 | LI25: 8.91 | LJ25: 8.34 | LK25: 8 | LL25: 7.98 | LM25: 8.21 | LN25: 8.55 | LO25: 8.86 | LP25: 9 | LQ25: 8.96 | LR25: 8.84 | LS25: 8.64 | LT25: 8.36 | LU25: 8 | MC25: 2.2 | MD25: 23 | ME25: 4.0775 | MF25: 4.2275 | MG25: 4.3675 | MH25: 4.5 | MI25: 4.6225 | MJ25: 4.7525 | MK25: 4.915 | ML25: 5.08 | MM25: 5.185 | MN25: 5.1675 | MO25: 4.9625 | MP25: 4.5625 | MQ25: 4.035 | MR25: 3.4725 | MS25: 2.9775 | MT25: 2.635 | MU25: 2.4475 | MV25: 2.33 | MW25: 2.17 | MX25: 1.8525 | MY25: 11.295 | MZ25: 7.96 | NA25: 8.45 | NB25: 8.9925 | NC25: 7.8175 | ND25: 7.0875 | NE25: 6.7675 | NF25: 6.7125 | NG25: 6.79 | NH25: 6.8675 | NI25: 6.8925 | NJ25: 6.9225 | NK25: 6.98 | NL25: 7.0275 | NM25: 7.0275 | NN25: 6.96 | NO25: 6.8375 | NP25: 6.67 | NQ25: 6.4575 | NR25: 6.205 | NU25: 2.2 | NV25: 23 | NW25: 1.68 | NX25: 1.68 | NY25: 1.68 | NZ25: 1.68 | OA25: 1.68 | OB25: 1.68 | OC25: 1.68 | OD25: 1.68 | OE25: 1.68 | OF25: 1.68 | OG25: 1.68 | OH25: 1.68 | OI25: 1.68 | OJ25: 5.27 | OK25: 5.27 | OL25: 5.27 | OM25: 5.27 | ON25: 5.27 | OO25: 5.27 | OP25: 22.99 | OQ25: 0.06 | OR25: 0.57 | OS25: 0.19 | OT25: 0.19 | OU25: 0.57 | OV25: 0.57 | OW25: 0.57 | OX25: 0.57 | OY25: 0.57 | OZ25: 0.57 | PA25: 0.57 | PB25: 0.57 | PC25: 0.57 | PD25: 0.57 | PE25: 0.57 | PF25: 0.57 | PG25: 0.57 | PH25: 0.57 | PI25: 0.57 | PJ25: 0.57 | PM25: 2.2 | PN25: 23 | PO25: -3.59 | PP25: -3.59 | PQ25: -3.59 | PR25: -3.59 | PS25: -3.59 | PT25: -3.59 | PU25: -3.59 | PV25: -3.59 | PW25: -3.59 | PX25: -3.59 | PY25: -3.59 | PZ25: -3.59 | QA25: -3.59 | QB25: 0 | QC25: -17.72 | QD25: 0 | QE25: 0 | QF25: 0 | QG25: 0 | QH25: 17.72 | QI25: -0.51 | QJ25: -4.7 | QK25: -5.08 | QL25: -1.49 | QM25: -4.7 | QN25: -4.7 | QO25: -4.7 | QP25: -4.7 | QQ25: -4.7 | QR25: -4.7 | QS25: -22.42 | QT25: -22.42 | QU25: -4.7 | QV25: -4.7 | QW25: -4.7 | QX25: -4.7 | QY25: -4.7 | QZ25: -4.7 | RA25: -4.7 | RB25: -4.7 | RE25: 2.2 | RF25: 23 | RG25: 0 | RH25: 0 | RI25: 0 | RJ25: 0 | RK25: 0 | RL25: 0 | RM25: 0 | RN25: 0 | RO25: 0 | RP25: 0 | RQ25: 0 | RR25: 0 | RS25: 0 | RT25: 0 | RU25: 0 | RV25: 0 | RW25: 0 | RX25: 0 | RY25: 0 | RZ25: 0 | SA25: 0 | SB25: 0 | SC25: 44.83 | SD25: 0 | SE25: 0 | SF25: 0 | SG25: 0 | SH25: 0 | SI25: 0 | SJ25: 0 | SK25: 0 | SL25: 0 | SM25: 0 | SN25: 0 | SO25: 0 | SP25: 0 | SQ25: 0 | SR25: 0 | SS25: 0 | ST25: 0 | SU25: 0 | SV25: 2.2 | SX25: 2.2 | SY25: 23 | SZ25: 0 | TA25: 0 | TB25: 0 | TC25: 0 | TD25: 0 | TE25: 37 | TF25: 0 | TG25: 0 | TH25: 0 | TI25: 0 | TJ25: 0 | TK25: 0 | TL25: 0 | TM25: 0 | TN25: 0 | TO25: 0 | TP25: 0 | TQ25: 0 | TR25: 0 | TS25: 0 | TT25: 40 | TU25: 0 | TV25: 0 | TW25: 0 | TX25: 0 | TY25: 0 | TZ25: 0 | UA25: 0 | UB25: 0 | UC25: 0 | UD25: 0 | UE25: 0 | UF25: 0 | UG25: 0 | UH25: 0 | UI25: 0 | UJ25: 0 | UK25: 0 | UL25: 0 | UM25: 0 | UN25: 0 | UO25: 2.2 | UQ25: 2.2 | UR25: 23 | US25: 1 | UT25: 0 | UU25: 0 | UV25: 0 | UW25: 0 | UX25: 0 | UY25: 0 | UZ25: 0 | VA25: 0 | VB25: 0 | VC25: 0 | VD25: 0 | VE25: 0 | VF25: 0 | VG25: 0 | VH25: 0 | VI25: 0 | VJ25: 0 | VK25: 0 | VL25: 0 | VM25: 1 | VN25: 0 | VO25: 0 | VP25: 0 | VQ25: 0 | VR25: 0 | VS25: 0 | VT25: 0 | VU25: 0 | VV25: 0 | VW25: 0 | VX25: 0 | VY25: 0 | VZ25: 0 | WA25: 0 | WB25: 0 | WC25: 0 | WD25: 0 | WE25: 0 | WF25: 0 | WG25: 1 | WH25: 2.2 | WJ25: 2.2 | WK25: 23 | WL25: 36.35 | WM25: 0 | WN25: 0 | WO25: 0 | WP25: 0 | WQ25: 0 | WR25: 0 | WS25: 0 | WT25: 0 | WU25: 0 | WV25: 0 | WW25: 0 | WX25: 0 | WY25: 0 | WZ25: 0 | XA25: 0 | XB25: 0 | XC25: 0 | XD25: 0 | XE25: 0 | XF25: 39.3 | XG25: 0 | XH25: 44.83 | XI25: 0 | XJ25: 0 | XK25: 0 | XL25: 0 | XM25: 0 | XN25: 0 | XO25: 0 | XP25: 0 | XQ25: 0 | XR25: 0 | XS25: 0 | XT25: 0 | XU25: 0 | XV25: 0 | XW25: 0 | XX25: 0 | XY25: 0 | XZ25: 38.64 | YA25: 2.2 | YC25: 2 | YD25: 21 | YE25: =COUNTIF(RG23:SA33,">0") -> 4 | YF25: =YE25 -> 4 | YG25: =YF25 -> 4 | YH25: 4 | YI25: 4 | YJ25: 4 | YK25: 4 | YL25: 4 | YM25: 4 | YN25: 4 | YO25: 4 | YP25: 4 | YQ25: 4 | YR25: 4 | YS25: 4 | YT25: 4 | YU25: 4 | YV25: 4 | YW25: 4 | YX25: 4 | YY25: =YX25 -> 4 | YZ25: =COUNTIF(SA23:SU33,">0") -> 4 | ZA25: =YZ25 -> 4 | ZB25: =ZA25 -> 4 | ZC25: 4 | ZD25: 4 | ZE25: 4 | ZF25: 4 | ZG25: 4 | ZH25: 4 | ZI25: 4 | ZJ25: 4 | ZK25: 4 | ZL25: 4 | ZM25: 4 | ZN25: 4 | ZO25: 4 | ZP25: 4 | ZQ25: 4 | ZR25: 4 | ZS25: 4 | ZT25: =ZS25 -> 4 | ZU25: 2 | ZW25: 2 | ZX25: 21 | ZY25: 0 | ZZ25: 0 | AAA25: 0 | AAB25: 0 | AAC25: 0 | AAD25: 0 | AAE25: 0 | AAF25: 0 | AAG25: 0 | AAH25: 0 | AAI25: 0 | AAJ25: 0 | AAK25: 0 | AAL25: 0 | AAM25: 0 | AAN25: 0 | AAO25: 0 | AAP25: 0 | AAQ25: 0 | AAR25: 0 | AAS25: 0 | AAT25: 0 | AAU25: 4 | AAV25: 4 | AAW25: 0 | AAX25: 0 | AAY25: 0 | AAZ25: 0 | ABA25: 0 | ABB25: 0 | ABC25: 0 | ABD25: 0 | ABE25: 0 | ABF25: 0 | ABG25: 0 | ABH25: 0 | ABI25: 0 | ABJ25: 0 | ABK25: 0 | ABL25: 0 | ABM25: 0 | ABN25: 0 | ABO25: 2 | ABQ25: 2 | ABR25: 21 | ABS25: =COUNTIF(UU23:VO33,">0") -> 51 | ABT25: =ABS25 -> 51 | ABU25: =ABT25 -> 51 | ABV25: 51 | ABW25: 51 | ABX25: 51 | ABY25: 51 | ABZ25: 51 | ACA25: 51 | ACB25: 51 | ACC25: 51 | ACD25: 51 | ACE25: 51 | ACF25: 51 | ACG25: 51 | ACH25: 51 | ACI25: 51 | ACJ25: 51 | ACK25: 51 | ACL25: 51 | ACM25: =ACL25 -> 51 | ACN25: =COUNTIF(VO23:WI33,">0") -> 58 | ACO25: =ACN25 -> 58 | ACP25: =ACO25 -> 58 | ACQ25: 58 | ACR25: 58 | ACS25: 58 | ACT25: 58 | ACU25: 58 | ACV25: 58 | ACW25: 58 | ACX25: 58 | ACY25: 58 | ACZ25: 58 | ADA25: 58 | ADB25: 58 | ADC25: 58 | ADD25: 58 | ADE25: 58 | ADF25: 58 | ADG25: 58 | ADH25: =ADG25 -> 58 | ADI25: 2
B26: Dělení nulou | H26: =F22*G23-G22*F23 -> -500000 | M26: 5C | N26: =ROUND('3D Interpolace'!M27,2) -> 36.65 | O26: =ROUND('3D Interpolace'!N27,2) -> 36.37 | P26: =ROUND('3D Interpolace'!O27,2) -> 36.12 | Q26: =ROUND('3D Interpolace'!P27,2) -> 35.9 | R26: =ROUND('3D Interpolace'!Q27,2) -> 35.71 | S26: =ROUND('3D Interpolace'!R27,2) -> 35.56 | T26: =ROUND('3D Interpolace'!S27,2) -> 35.41 | U26: =ROUND('3D Interpolace'!T27,2) -> 35.26 | V26: =ROUND('3D Interpolace'!U27,2) -> 35.15 | W26: =ROUND('3D Interpolace'!V27,2) -> 35.14 | X26: =ROUND('3D Interpolace'!W27,2) -> 35.26 | Y26: =ROUND('3D Interpolace'!X27,2) -> 35.58 | Z26: =ROUND('3D Interpolace'!Y27,2) -> 36.07 | AA26: =ROUND('3D Interpolace'!Z27,2) -> 36.64 | AB26: =ROUND('3D Interpolace'!AA27,2) -> 37.18 | AC26: =ROUND('3D Interpolace'!AB27,2) -> 37.59 | AD26: =ROUND('3D Interpolace'!AC27,2) -> 37.78 | AE26: =ROUND('3D Interpolace'!AD27,2) -> 37.81 | AF26: =ROUND('3D Interpolace'!AE27,2) -> 37.83 | AG26: =ROUND('3D Interpolace'!AF27,2) -> 37.98 | AH26: =ROUND('3D Interpolace'!AG27,2) -> 38.42 | AI26: =ROUND('3D Interpolace'!AH27,2) -> 39.33 | AJ26: =ROUND('3D Interpolace'!AI27,2) -> 40.63 | AK26: =ROUND('3D Interpolace'!AJ27,2) -> 42.01 | AL26: =ROUND('3D Interpolace'!AK27,2) -> 43.19 | AM26: =ROUND('3D Interpolace'!AL27,2) -> 43.86 | AN26: =ROUND('3D Interpolace'!AM27,2) -> 43.89 | AO26: =ROUND('3D Interpolace'!AN27,2) -> 43.49 | AP26: =ROUND('3D Interpolace'!AO27,2) -> 42.85 | AQ26: =ROUND('3D Interpolace'!AP27,2) -> 42.16 | AR26: =ROUND('3D Interpolace'!AQ27,2) -> 41.62 | AS26: =ROUND('3D Interpolace'!AR27,2) -> 41.21 | AT26: =ROUND('3D Interpolace'!AS27,2) -> 40.81 | AU26: =ROUND('3D Interpolace'!AT27,2) -> 40.43 | AV26: =ROUND('3D Interpolace'!AU27,2) -> 40.08 | AW26: =ROUND('3D Interpolace'!AV27,2) -> 39.77 | AX26: =ROUND('3D Interpolace'!AW27,2) -> 39.49 | AY26: =ROUND('3D Interpolace'!AX27,2) -> 39.25 | AZ26: =ROUND('3D Interpolace'!AY27,2) -> 39.04 | BA26: =ROUND('3D Interpolace'!AZ27,2) -> 38.87 | BB26: =ROUND('3D Interpolace'!BA27,2) -> 38.72 | BD26: 2.3 | BE26: 24 | CA26: 4 | CB26: 4 | CU26: 2.3 | CW26: 2.3 | CX26: 24 | CY26: 36.65 | CZ26: 36.37 | DA26: 36.12 | DB26: 35.9 | DC26: 35.71 | DD26: 35.56 | DE26: 35.41 | DF26: 35.26 | DG26: 35.15 | DH26: 35.14 | DI26: 35.26 | DJ26: 35.58 | DK26: 36.07 | DL26: 36.64 | DM26: 37.18 | DN26: 37.59 | DO26: 37.78 | DP26: 37.81 | DQ26: 37.83 | DR26: 37.98 | DS26: 38.42 | DT26: 43.33 | DU26: 44.63 | DV26: 42.01 | DW26: 43.19 | DX26: 43.86 | DY26: 43.89 | DZ26: 43.49 | EA26: 42.85 | EB26: 42.16 | EC26: 41.62 | ED26: 41.21 | EE26: 40.81 | EF26: 40.43 | EG26: 40.08 | EH26: 39.77 | EI26: 39.49 | EJ26: 39.25 | EK26: 39.04 | EL26: 38.87 | EM26: 38.72 | EN26: 2.3 | EP26: 2.1 | EQ26: 22 | ER26: 36.1 | ES26: 36.31 | ET26: 36.46 | EU26: 36.56 | EV26: 36.61 | EW26: 36.6 | EX26: 36.47 | EY26: 36.21 | EZ26: 35.94 | FA26: 35.76 | FB26: 35.77 | FC26: 36.03 | FD26: 36.48 | FE26: 37.02 | FF26: 37.58 | FG26: 38.06 | FH26: 38.45 | FI26: 38.82 | FJ26: 39.18 | FK26: 39.55 | FL26: 39.93 | FM26: 39.93 | FN26: 44.36 | FO26: 44.83 | FP26: 41.29 | FQ26: 41.7 | FR26: 42.01 | FS26: 42.23 | FT26: 42.41 | FU26: 42.51 | FV26: 42.49 | FW26: 42.33 | FX26: 41.94 | FY26: 41.34 | FZ26: 40.66 | GA26: 40.01 | GB26: 39.5 | GC26: 39.15 | GD26: 38.87 | GE26: 38.65 | GF26: 38.51 | GG26: 38.44 | GK26: 2.1 | GL26: 22 | GM26: 0 | GN26: 0 | GO26: 0 | GP26: 0 | GQ26: 0 | GR26: 0 | GS26: 0 | GT26: 0 | GU26: 0 | GV26: 0 | GW26: 0 | GX26: 0 | GY26: 0 | GZ26: 0 | HA26: 0 | HB26: 0 | HC26: 0 | HD26: 0 | HE26: 0 | HF26: 0 | HG26: 0 | HH26: 0 | HI26: 0 | HJ26: 0 | HK26: 0 | HL26: 0 | HM26: 0 | HN26: 0 | HO26: 0 | HP26: 0 | HQ26: 0 | HR26: 0 | HS26: 0 | HT26: 0 | HU26: 0 | HV26: 0 | HW26: 0 | HX26: 0 | HY26: 0 | HZ26: 0 | IA26: 0 | IB26: 0 | IC26: 2.1 | IG26: 22 | IH26: 40.2 | II26: 40.2 | IJ26: 40.2 | IK26: 40.2 | IL26: 40.2 | IM26: 40.2 | IN26: 40.2 | IO26: 40.2 | IP26: 40.2 | IQ26: 40.2 | IR26: 40.2 | IS26: 40.2 | IT26: 40.2 | IU26: 40.2 | IV26: 40.2 | IW26: 40.2 | IX26: 40.2 | IY26: 40.2 | IZ26: 40.2 | JA26: 40.2 | JB26: 40.2 | JC26: 53.5 | JD26: 53.1 | JE26: 52.7 | JF26: 52.3 | JG26: 51.9 | JH26: 51.5 | JI26: 51.1 | JJ26: 50.7 | JK26: 50.3 | JL26: 49.9 | JM26: 49.5 | JN26: 49.1 | JO26: 48.7 | JP26: 48.3 | JQ26: 47.9 | JR26: 47.5 | JS26: 47.1 | JT26: 46.7 | JU26: 46.3 | JV26: 45.9 | JW26: 45.5 | JX26: 2.1 | KD26: 2.1 | KE26: 22 | KF26: 4.1 | KG26: 3.89 | KH26: 3.74 | KI26: 3.64 | KJ26: 3.59 | KK26: 3.6 | KL26: 3.73 | KM26: 3.99 | KN26: 4.26 | KO26: 4.44 | KP26: 4.43 | KQ26: 4.17 | KR26: 3.72 | KS26: 3.18 | KT26: 2.62 | KU26: 2.14 | KV26: 1.75 | KW26: 1.38 | KX26: 1.02 | KY26: 0.65 | KZ26: 0.27 | LA26: 13.57 | LB26: 8.74 | LC26: 7.87 | LD26: 11.01 | LE26: 10.2 | LF26: 9.49 | LG26: 8.87 | LH26: 8.29 | LI26: 7.79 | LJ26: 7.41 | LK26: 7.17 | LL26: 7.16 | LM26: 7.36 | LN26: 7.64 | LO26: 7.89 | LP26: 8 | LQ26: 7.95 | LR26: 7.83 | LS26: 7.65 | LT26: 7.39 | LU26: 7.06 | MC26: 2.3 | MD26: 24 | ME26: 4.115 | MF26: 4.4725 | MG26: 4.78 | MH26: 5.0375 | MI26: 5.2475 | MJ26: 5.4175 | MK26: 5.5575 | ML26: 5.6575 | MM26: 5.6825 | MN26: 5.6025 | MO26: 5.375 | MP26: 4.97 | MQ26: 4.45 | MR26: 3.915 | MS26: 3.465 | MT26: 3.2075 | MU26: 3.17 | MV26: 3.2325 | MW26: 3.2125 | MX26: 2.9375 | MY26: 11.5525 | MZ26: 7.895 | NA26: 7.9525 | NB26: 8.0775 | NC26: 6.6225 | ND26: 5.85 | NE26: 5.72 | NF26: 5.99 | NG26: 6.415 | NH26: 6.75 | NI26: 6.8675 | NJ26: 6.845 | NK26: 6.77 | NL26: 6.6575 | NM26: 6.525 | NN26: 6.3825 | NO26: 6.225 | NP26: 6.0425 | NQ26: 5.835 | NR26: 5.6075 | NU26: 2.3 | NV26: 24 | NW26: 1.68 | NX26: 1.68 | NY26: 1.68 | NZ26: 1.68 | OA26: 1.68 | OB26: 1.68 | OC26: 1.68 | OD26: 1.68 | OE26: 1.68 | OF26: 1.68 | OG26: 1.68 | OH26: 1.68 | OI26: 1.68 | OJ26: 5.27 | OK26: 5.27 | OL26: 5.27 | OM26: 5.27 | ON26: 5.27 | OO26: 5.27 | OP26: 5.27 | OQ26: 0.06 | OR26: 0.57 | OS26: 0.57 | OT26: 0.19 | OU26: 0.57 | OV26: 1.68 | OW26: 1.68 | OX26: 1.68 | OY26: 0.57 | OZ26: 0.57 | PA26: 0.57 | PB26: 0.57 | PC26: 0.57 | PD26: 0.57 | PE26: 0.57 | PF26: 0.57 | PG26: 0.57 | PH26: 0.57 | PI26: 1.68 | PJ26: 1.68 | PM26: 2.3 | PN26: 24 | PO26: -3.59 | PP26: -3.59 | PQ26: -3.59 | PR26: -3.59 | PS26: -3.59 | PT26: -3.59 | PU26: -3.59 | PV26: -3.59 | PW26: -3.59 | PX26: -3.59 | PY26: -3.59 | PZ26: -3.59 | QA26: -3.59 | QB26: 0 | QC26: 0 | QD26: 0 | QE26: 0 | QF26: 0 | QG26: 3.59 | QH26: 3.59 | QI26: -0.13 | QJ26: -1.11 | QK26: -1.11 | QL26: -1.49 | QM26: -4.7 | QN26: -3.59 | QO26: -3.59 | QP26: -3.59 | QQ26: -1.11 | QR26: -1.11 | QS26: -4.7 | QT26: -4.7 | QU26: -4.7 | QV26: -4.7 | QW26: -4.7 | QX26: -4.7 | QY26: -4.7 | QZ26: -4.7 | RA26: -3.59 | RB26: -3.59 | RE26: 2.3 | RF26: 24 | RG26: 0 | RH26: 0 | RI26: 0 | RJ26: 0 | RK26: 0 | RL26: 0 | RM26: 0 | RN26: 0 | RO26: 0 | RP26: 0 | RQ26: 0 | RR26: 0 | RS26: 0 | RT26: 0 | RU26: 0 | RV26: 0 | RW26: 0 | RX26: 0 | RY26: 0 | RZ26: 0 | SA26: 0 | SB26: 0 | SC26: 0 | SD26: 0 | SE26: 0 | SF26: 0 | SG26: 0 | SH26: 0 | SI26: 0 | SJ26: 0 | SK26: 0 | SL26: 0 | SM26: 0 | SN26: 0 | SO26: 0 | SP26: 0 | SQ26: 0 | SR26: 0 | SS26: 0 | ST26: 0 | SU26: 0 | SV26: 2.3 | SX26: 2.3 | SY26: 24 | SZ26: 0 | TA26: 0 | TB26: 0 | TC26: 0 | TD26: 0 | TE26: 0 | TF26: 0 | TG26: 0 | TH26: 0 | TI26: 0 | TJ26: 0 | TK26: 0 | TL26: 0 | TM26: 0 | TN26: 0 | TO26: 0 | TP26: 0 | TQ26: 0 | TR26: 0 | TS26: 0 | TT26: 0 | TU26: 0 | TV26: 0 | TW26: 44.83 | TX26: 0 | TY26: 0 | TZ26: 0 | UA26: 0 | UB26: 0 | UC26: 0 | UD26: 0 | UE26: 0 | UF26: 0 | UG26: 0 | UH26: 0 | UI26: 0 | UJ26: 0 | UK26: 0 | UL26: 0 | UM26: 0 | UN26: 0 | UO26: 2.3 | UQ26: 2.3 | UR26: 24 | US26: 1 | UT26: 0 | UU26: 0 | UV26: 0 | UW26: 0 | UX26: 0 | UY26: 0 | UZ26: 0 | VA26: 0 | VB26: 0 | VC26: 0 | VD26: 0 | VE26: 0 | VF26: 0 | VG26: 0 | VH26: 0 | VI26: 0 | VJ26: 0 | VK26: 0 | VL26: 0 | VM26: 1 | VN26: 0 | VO26: 0 | VP26: 0 | VQ26: 0 | VR26: 0 | VS26: 0 | VT26: 0 | VU26: 0 | VV26: 0 | VW26: 0 | VX26: 0 | VY26: 0 | VZ26: 0 | WA26: 0 | WB26: 0 | WC26: 0 | WD26: 0 | WE26: 0 | WF26: 0 | WG26: 1 | WH26: 2.3 | WJ26: 2.3 | WK26: 24 | WL26: 36.65 | WM26: 0 | WN26: 0 | WO26: 0 | WP26: 0 | WQ26: 0 | WR26: 0 | WS26: 0 | WT26: 0 | WU26: 0 | WV26: 0 | WW26: 0 | WX26: 0 | WY26: 0 | WZ26: 0 | XA26: 0 | XB26: 0 | XC26: 0 | XD26: 0 | XE26: 0 | XF26: 38.42 | XG26: 0 | XH26: 0 | XI26: 0 | XJ26: 0 | XK26: 0 | XL26: 0 | XM26: 0 | XN26: 0 | XO26: 0 | XP26: 0 | XQ26: 0 | XR26: 0 | XS26: 0 | XT26: 0 | XU26: 0 | XV26: 0 | XW26: 0 | XX26: 0 | XY26: 0 | XZ26: 38.72 | YA26: 2.3 | YC26: 2.1 | YD26: 22 | YE26: =YE25 -> 4 | YF26: =YF25 -> 4 | YG26: =YG25 -> 4 | YH26: =YH25 -> 4 | YI26: =YI25 -> 4 | YJ26: =YJ25 -> 4 | YK26: =YK25 -> 4 | YL26: =YL25 -> 4 | YM26: =YM25 -> 4 | YN26: =YN25 -> 4 | YO26: =YO25 -> 4 | YP26: =YP25 -> 4 | YQ26: =YQ25 -> 4 | YR26: =YR25 -> 4 | YS26: =YS25 -> 4 | YT26: =YT25 -> 4 | YU26: =YU25 -> 4 | YV26: =YV25 -> 4 | YW26: =YW25 -> 4 | YX26: =YX25 -> 4 | YY26: =YX26 -> 4 | YZ26: =ZA26 -> 4 | ZA26: =ZA25 -> 4 | ZB26: =ZB25 -> 4 | ZC26: =ZC25 -> 4 | ZD26: =ZD25 -> 4 | ZE26: =ZE25 -> 4 | ZF26: =ZF25 -> 4 | ZG26: =ZG25 -> 4 | ZH26: =ZH25 -> 4 | ZI26: =ZI25 -> 4 | ZJ26: =ZJ25 -> 4 | ZK26: =ZK25 -> 4 | ZL26: =ZL25 -> 4 | ZM26: =ZM25 -> 4 | ZN26: =ZN25 -> 4 | ZO26: =ZO25 -> 4 | ZP26: =ZP25 -> 4 | ZQ26: =ZQ25 -> 4 | ZR26: =ZR25 -> 4 | ZS26: =ZS25 -> 4 | ZT26: =ZS26 -> 4 | ZU26: 2.1 | ZW26: 2.1 | ZX26: 22 | ZY26: 0 | ZZ26: 0 | AAA26: 0 | AAB26: 0 | AAC26: 0 | AAD26: 0 | AAE26: 0 | AAF26: 0 | AAG26: 0 | AAH26: 0 | AAI26: 0 | AAJ26: 0 | AAK26: 0 | AAL26: 0 | AAM26: 0 | AAN26: 0 | AAO26: 0 | AAP26: 0 | AAQ26: 0 | AAR26: 0 | AAS26: 0 | AAT26: 0 | AAU26: 4 | AAV26: 4 | AAW26: 0 | AAX26: 0 | AAY26: 0 | AAZ26: 0 | ABA26: 0 | ABB26: 0 | ABC26: 0 | ABD26: 0 | ABE26: 0 | ABF26: 0 | ABG26: 0 | ABH26: 0 | ABI26: 0 | ABJ26: 0 | ABK26: 0 | ABL26: 0 | ABM26: 0 | ABN26: 0 | ABO26: 2.1 | ABQ26: 2.1 | ABR26: 22 | ABS26: =ABS25 -> 51 | ABT26: =ABT25 -> 51 | ABU26: =ABU25 -> 51 | ABV26: =ABV25 -> 51 | ABW26: =ABW25 -> 51 | ABX26: =ABX25 -> 51 | ABY26: =ABY25 -> 51 | ABZ26: =ABZ25 -> 51 | ACA26: =ACA25 -> 51 | ACB26: =ACB25 -> 51 | ACC26: =ACC25 -> 51 | ACD26: =ACD25 -> 51 | ACE26: =ACE25 -> 51 | ACF26: =ACF25 -> 51 | ACG26: =ACG25 -> 51 | ACH26: =ACH25 -> 51 | ACI26: =ACI25 -> 51 | ACJ26: =ACJ25 -> 51 | ACK26: =ACK25 -> 51 | ACL26: =ACL25 -> 51 | ACM26: =ACL26 -> 51 | ACN26: =ACO26 -> 58 | ACO26: =ACO25 -> 58 | ACP26: =ACP25 -> 58 | ACQ26: =ACQ25 -> 58 | ACR26: =ACR25 -> 58 | ACS26: =ACS25 -> 58 | ACT26: =ACT25 -> 58 | ACU26: =ACU25 -> 58 | ACV26: =ACV25 -> 58 | ACW26: =ACW25 -> 58 | ACX26: =ACX25 -> 58 | ACY26: =ACY25 -> 58 | ACZ26: =ACZ25 -> 58 | ADA26: =ADA25 -> 58 | ADB26: =ADB25 -> 58 | ADC26: =ADC25 -> 58 | ADD26: =ADD25 -> 58 | ADE26: =ADE25 -> 58 | ADF26: =ADF25 -> 58 | ADG26: =ADG25 -> 58 | ADH26: =ADG26 -> 58 | ADI26: 2.1
